Workbook

Sheet commentariosPREUBASpart1 (hidden)
B2: qué capture | E2: que pasó 1 | F2: que pasó 2 | G2: que pasó 3
B3: Adq (nomina no) | C3: monto $1mdp viv 1,111,112 15 años | D3: 0.9 | E3: no muestra tasas | F3: no muestra plazo despues del 15 | G3: si le doy calcular max me lo ajusta al 70% (abajo en ceda k41)el max deberia ser 90% con otra tasa pero borra celda h25, le asigna tasa 8.90%, cuando al 90% en 15 años deberia pintar 10.15% pero para esa tasa 8.90% se requiere aforo 60% o < y para esa combinacion (adq nomina no al 70%) deberia ser tasa 9.25%
B5: Apoyo infonavit (nomina no) | C5: monto $900 viv 1$1mdp 15 años | D5: 0.9 | E5: no muestra tasas | F5: no muestra plazo despues del 15 | G5: si le doy calcular max me lo ajusta al 90% (abajo en ceda k41) pero borra celda h25, borra la celda L23, pero si le asigna correctamente tasa 10.15%, si le cambio plazo a 20, la tasa cambia correctamente a 10.35%
B7: COFI (nomina no) | C7: monto $600 viv 1$1mdp 15 años | D7: 0.6 | E7: asigna tasa 8.90 correctamente
C8: monto $700 viv 1$1mdp 15 años | D8: 0.7 | E8: asigna tasa 9,25 correctamente
C9: monto $900 viv 1$1mdp 15 años | D9: 0.9 | E9: no muestra tasas | F9: no muestra plazo despues del 15 | G9: si le doy calcular max me lo ajusta al 70% (abajo en ceda k41) el max deberia ser 90% con otra tasa, pero borra celda h25, borra la celda L23, y me le asigna incorrectamente tasa 8.90%, debiendo ser 9.25%
B11: Adq "trad" NOMINA SI | C11: monto $500 viv $1MDP 15 años | D11: 0.5 | E11: asigna tasa 8.90 correctamente
C12: monto $700 viv 1$1mdp 15 años | D12: 0.7 | E12: muestra tasa 9.25% incorrecta, debe ser 9.5% | G12: LA TASA CON BENEFICIO DE NOMINA ES MAS ALTA QUE LA QUE NO ES NOMINA, CUAL SE LE OFERTA???
C13: monto $900 viv 1$1mdp 15 años | D13: 0.9 | E13: no muestra tasas | F13: no muestra plazo despues del 15 | G13: si le doy calcular max me lo ajusta correctamente al 90% (abajo en ceda k41) pero borra celda h25, borra la celda L23, y le asigna correctamente tasa 9.80%, si le cambio plazo a 20, debiendo ser tasa 9.5%
B15: SUSTI mejora no /nomina no | C15: monto $600 viv 1$1mdp 15 años | D15: 0.6 | E15: asigna tasa 8.90 correctamente
B16: SUSTI mejora no /nomina no | C16: monto $700 viv 1$1mdp 15 años | D16: 0.7 | E16: asigna tasa 9.5 correctamente
B17: SUSTI mejora no /nomina no | C17: monto $700,001 viv 1$1mdp 15 años | D17: >70% | E17: no muestra tasas | F17: no muestra plazo despues del 15 | G17: si le doy calcular max me lo ajusta al 90% (abajo en ceda k41) pero borra celda h25, borra la celda L23, Yi le asigna INcorrectamente tasa 8.90%,
B19: SUSTI mejora SI /nomina no | C19: monto $600 viv 1$1mdp 15 años | D19: 0.6 | E19: asigna tasa 8.90 correctamente
B20: SUSTI mejora SI /nomina no | C20: monto $690 viv 1$1mdp 15 años | D20: =690000/1000000 -> 0.69 | E20: asigna tasa 9.5 Incorrectamente, al ser mejora deberia ser 9.25%
B21: SUSTI mejora SI /nomina no | C21: monto $900,000 viv 1$1mdp 15 años | D21: 0.9 | E21: no muestra tasas | F21: no muestra plazo despues del 15 | G21: si le doy calcular max me lo ajusta al 90% (abajo en ceda k41) pero borra celda h25, borra la celda L23, Yi le asigna INcorrectamente tasa 8.90%,
B23: REMO | C23: monto $400,000 viv 1$1mdp 15 años | D23: 0.4 | E23: asigna tasa 8.90 correctamente | G23: si le doy calcular max me lo ajusta al40% (abajo en ceda k41) pero borra celda h25, borra la celda L23, pero si le asigna correctamente tasa 8.90%,

Sheet Simulación
B7: SIMULADOR CRÉDITO HIPOTECARIO
N8: =TODAY() -> 2023-12-11
U11: 5
U12: 6
U13: 7
U14: 8
U15: 9
S16: NO | U16: 10
S17: SI | U17: 11
D18: =IF('Parametro Destino'!I4<'Parametro Destino'!I3,"PLAZO MENOR AL MINIMO POSIBLE",IF(AND(T23=5,H25>1000000),"Distinto a Asalariado el Monto Máx. para Remodelación es de $1,000,000",IF(H29>1000000,"Distinto a Asalariado el Monto Máx. para Remodelación es de $1,000,000",IF(N23>'Parametro Destino'!C6,"EL AFORO SUPERA AL MÁXIMO PARA EL PRODUCTO revisa el monto ajustado o incrementa el valor vivienda",IF(H25<'Parametro Destino'!C9,"EL MONTO ES MENOR AL MINIMO PARA EL PRODUCTO",IF(PLAZO_SIMULACION>'Parametro Destino'!C10,"EL PLAZO SELECCIONADO SUPERA AL MÁXIMO POR PRODUCTO", "DATOS DEL CRÉDITO")))))) -> EL MONTO ES MENOR AL MINIMO PARA EL PRODUCTO | T18: =IF(OR(H21="TERRENO"),"",0.079) -> 0.079 | U18: 12 | W18: LIQUIDEZ
D19: =IF(T23=12, " Liquidez GOLD reconoce tu captación AFIRME: saldos promedio ≥$30mil mensuales o Inversión ≥$1mdp ","") ->  | T19: =IF(OR(H21="TERRENO"),R26,"") ->  | U19: 13 | W19: SI
J20: Liquidez? | T20: =IF(OR(H21="TERRENO"),"",0.079) -> 0.079 | U20: 14 | W20: NO
E21: DESTINO DEL CRÉDITO: | H21: ADQUISICION | J21: NO | L21: NÓMINA AFIRME | N21: NO | T21: =IF(OR(H21="TERRENO"),"",8.9%) -> 0.089 | U21: 15 | W21: =IF(J21="SI",1,0) -> 0
E22: =IF(T23=8,"VALOR VIVIENDA DE CREDITO",IF(OR(T23=6),"ADEUDO ACTUAL:","")) ->  | T22: =IF(OR(H21="TERRENO"),"",0.099) -> 0.099 | U22: =IF(OR($T$23=9,$T$23=11,$T$23=12,$N$25=7.9%),"",16) -> 16
E23: =IF(T23=8,"VALOR DE LA VIVIENDA ADICIONAL:","VALOR DE VIVIENDA:") -> VALOR DE VIVIENDA: | L23: FINANCIAMIENTO | N23: =IF(H23=0,0,IF(T23=8,H25/(H23+H22),H25/H23)) -> 0 | T23: ='Parametro Destino'!C2 -> 1 | U23: =IF(OR($T$23=9,$T$23=11,$T$23=12,$N$25=7.9%),"",17) -> 17
E24: =IF(T23=3,"Disponible por Infonavit","") ->  | N24: =IF(T23=5,"*","") ->  | T24: =IF(OR(T23=4,T23=6), "MEJORA","") ->  | U24: =IF(OR($T$23=9,$T$23=11,$T$23=12,$N$25=7.9%),"",18) -> 18
E25: IMPORTE DEL CRÉDITO: | L25: TASA DE INTERÉS | N25: ='Parametro Destino'!C60 -> 0.0995 | U25: =IF(OR($T$23=9,$T$23=11,$T$23=12,$N$25=7.9%),"",19) -> 19
J26: =H23*0.6 -> 0 | R26: =IF(AND(H21="TERRENO",N27>5),9.55%,IF(N27=5,9.2%)) -> FALSE | U26: =IF(OR($T$23=9,$T$23=11,$T$23=12,$N$25=7.9%),"",20) -> 20
E27: =IF(OR(T23=7,T23=10),"PROYECTO DE CONSTRUCCIÓN:","") ->  | L27: PLAZO EN AÑOS: | N27: 20 | O27: =IF(T23=12,"Plazo Máx. 15 años",IF(T23=9,"Plazo Máx. 15 años", IF(T23=11,"Plazo Máx. 15 años",""))) -> 
N28: 17 | T28: =IF(T23<11,"","LIQUIDEZ") -> 
E29: =IF(T23=6,"PRESUPUESTO DE REMODELACIÓN","") ->  | L29: GASTOS DE ESCRITURACIÓN % | N29: 0.05
J31: ¿APLICA COMO MEJORA? | N31: NO
E33: =D18 -> EL MONTO ES MENOR AL MINIMO PARA EL PRODUCTO | W33: =IF((H42+H25)>(H23*0.8),"El monto de credito de liquidez se ajusta al máximo por aforo","") -> 
E34: =IF(T23=4,W33,"") ->  | J34: =IF(L34="","","Aforo Máximo") ->  | L34: =IF(D17="EL AFORO SUPERA AL MÁXIMO PARA EL PRODUCTO",'Parametro Destino'!C5,"") -> 
D38: LIQUIDEZ DINERO ADICIONAL | R38: OJO
W39: =(H23*0.8)-H25 -> 0
E40: Importe Máx. Liquidez según reglas | H40: =MIN(W39:W40) -> 0 | L40: Tasa de Interés inicial Liquidez | N40: =IF(AND(J21="SI",H44>3000000),10.9%,10.4%) -> 0.104 | W40: =H23*0.4 -> 0
L41: Apertura Liquidez (no incluye IVA) | N41: =MIN(H40:H42)*1.5% -> 0
E42: Importe adicional de Liquidez | L42: Gastos Notariales (Aprox)** | N42: =MIN(H40:H42)*N29 -> 0
L43: Mensualidad Liquidez | N43: ='Tabla Liquidez'!O9 -> 6.38
E44: Sustitucion + Liquidez | H44: =(MIN(H40,H42))+H25 -> 0 | L44: Mensualidad Liq +Sust. | N44: =+N43+I105 -> 6.38
E46: PLAZO EN AÑOS | H46: =+PLAZO_SIMULACION -> 20
D49: =IF(W21=1,"RESUMEN DEL CRÉDITO DE SUSTITUCIÓN","RESUMEN DEL CRÉDITO LIQUIDEZ") -> RESUMEN DEL CRÉDITO LIQUIDEZ
G52: Monto de Crédito | M52: ='Tabla Amortización Liquidez'!MTO_SOLICITADO -> 0
G53: =IF(T23=8,"Financiamiento de Gastos Estimado","Enganche") -> Enganche | M53: =IF(OR(T23=4,T23=5,T23=7,T23=6,T23=11),0,IF(OR(T23=4),H22-M84,IF(T23=3,H23-H24-M84,IF(T23=8,H22-M84,H23-M84-H24)))) -> 0
G54: Gastos Notariales (Aprox)* | M54: ='Parametro Destino'!F7 -> 0
G55: =IF(W21=1,"Apertura Sustitución","Apertura") -> Apertura | M55: ='Parametro Destino'!C8*Simulación!M84 -> 0 | N55: =IF(OR($T$23=11,$T$23=12),"Apertura 1.5% +IVA","") -> 
G56: =IF(T21=8,"2 Avalúos","Avalúo") -> Avalúo | M56: ='Parametro Destino'!F6 -> 2000
G57: =IF(N23>79.99%,"Trámite CUV","") ->  | M57: =IF(N23>79.99%,260*1.16,"") -> 
G58: ** a confirmar con presupuesto del Notario
G59: DESEMBOLSO INICIAL: | M59: =SUM(M53:M58) -> 2000
I61: TASA DE INTERÉS | L61: =N25 -> 0.0995
I62: FIJOS
G63: Tasa de Interés inicial por Pago puntual | I63: =N25 -> 0.0995
G64: CAT | I64: ='Tabla Liquidez'!N4 -> 
G66: Amortización: | I66: ='Tabla Liquidez'!D9 -> 0
G67: Intereses: | I67: ='Tabla Liquidez'!F9 -> 0
G68: Seguro de vida: | I68: ='Tabla Liquidez'!J9 -> 0
G69: Seguro de daños: | I69: ='Tabla Liquidez'!K9 -> 0
G70: Seguro de Desempleo y Contenidos: | I70: ='Tabla Liquidez'!L9 -> 6.38
G71: Comisión Mensual | I71: ='Tabla Liquidez'!M9 -> 0
G72: =IF(OR($T$23=11,$T$23=12),"IVA de Interés y Seguros","IVA de Com. Mensual y Seguros") -> IVA de Com. Mensual y Seguros | I72: ='Tabla Liquidez'!N9+'Tabla Liquidez'!G9 -> 0
G73: PAGO MENSUAL APROXIMADO: | I73: =SUM(I66:K72) -> 6.38
D81: =IF(W21=1,"RESUMEN DEL CRÉDITO DE SUSTITUCIÓN","RESUMEN DEL CRÉDITO") -> RESUMEN DEL CRÉDITO
G84: Monto de Crédito | M84: ='Tabla Crec'!C9 -> 0 | N84: MONTO MÁX. AJUSTADO | R84: =IF(N31="NO",0,0) -> 0
G85: =IF(T23=8,"Financiamiento de Gastos Estimado","Enganche") -> Enganche | M85: =IF(OR(T23=4,T23=5,T23=7,T23=6,T23=11),0,IF(OR(T23=4),H22-M84,IF(T23=3,H23-H24-M84,IF(T23=8,H22-M84,H23-M84-H24)))) -> 0 | R85: SI
G86: Gastos Notariales (Aprox)* | M86: ='Parametro Destino'!F7 -> 0 | R86: NO
G87: =IF(W21=1,"Apertura Sustitución","Apertura") -> Apertura | M87: ='Parametro Destino'!C8*Simulación!M84 -> 0
G88: =IF(T21=8,"2 Avalúos","Avalúo") -> Avalúo | M88: ='Parametro Destino'!F6 -> 2000
G89: =IF(N23>79.99%,"Trámite CUV","") ->  | M89: =IF(N23>79.99%,260*1.16,"") -> 
G90: ** a confirmar con presupuesto del Notario
G91: DESEMBOLSO INICIAL: | M91: =SUM(M85:M90) -> 2000
I93: TASA DE INTERÉS | L93: =IF(J21="SI",N40,N25) -> 0.0995
I94: FIJOS | M94: CRECIENTES**** | S94: H21="terreno"
G95: Tasa de Interés inicial por Pago puntual | I95: =L93 -> 0.0995 | M95: =N25 -> 0.0995
G96: CAT | I96: ='Tabla Fijo'!M4 ->  | M96: ='Tabla Crec'!M4 ->  | N96: kjlklkllkj
O97: gfffddddd
G98: Amortización: | I98: ='Tabla Fijo'!D9 -> 0 | M98: ='Tabla Crec'!D9 -> 0
G99: Intereses: | I99: ='Tabla Fijo'!F9 -> 0 | M99: ='Tabla Crec'!F9 -> 0
G100: Seguro de vida: | I100: ='Tabla Fijo'!I9 -> 0 | M100: ='Tabla Crec'!I9 -> 0
G101: Seguro de daños: | I101: ='Tabla Fijo'!J9 -> 0 | M101: ='Tabla Crec'!J9 -> 0
G102: Seguro de Desempleo y Contenidos: | I102: ='Tabla Fijo'!K9 -> 0 | M102: ='Tabla Crec'!K9 -> 0
G103: Comisión Mensual | I103: ='Tabla Fijo'!L9 -> 0 | M103: ='Tabla Crec'!L9 -> 0
G104: Iva de comisión de Admon y Seg. | I104: ='Tabla Fijo'!M9 -> 0 | M104: ='Tabla Crec'!M9 -> 0
G105: PAGO MENSUAL APROXIMADO: | I105: =SUM(I98:K104) -> 0 | L105: =IF('Parametro Destino'!I4<'Parametro Destino'!I3,'Parametro Destino'!I5,"") ->  | M105: =SUM(M98:M104) -> 0 | N105: Mensualidad a: | O105: ='Parametro Destino'!F5 -> 20
B112: *En ADQUISICION Los Notariales son estimados y dependen de la Entidad Federativa - Presupuesto del Notario deben incluir impuestos y derechos, gastos y honorarios. | R112: =H25+R84 -> 0
B113: *En SUSTITUCION, los Honorarios Notariales los cubre el Banco durante esta promoción siempre y cuando sea con Notaria del Padron Campaña Sustitución | R113: ='Parametro Destino'!C7 -> 0
B114: *En SUSTITUCION, los Gastos de Escrituración (impuestos, derechos, gastos) pueden ser financiados o serán cubiertos por el cliente | R114: =IF(N31="SI",MAX(R115,R117),MIN(R115,R117)) -> 0
B115: **La autorización del crédito y condiciones financieras depende de la documentación e información presentada para su evaluación. | R115: =IF('Parametro Destino'!C2=8,'Parametro Destino'!F3,MIN((H23*'Parametro Destino'!C6),'Parametro Destino'!F2,'Parametro Destino'!C7)) -> 0
B116: **La presente es de carácter informativa, no representa oferta por parte del Grupo Financiero Afirme y se encuentra sujeta a cambio sin previo aviso
R117: =IF(N31="si",(R115+R84),R115) -> 0
B118: **** El esquema de pagos crecientes no aplica en: Construcción, Liquidez, Liquidez GOLD o combinado Susti+Liquidez; en el resto de destinos solo aplica a 15 y 20 años, para destino de Terreno solo 10 y 15 años. | O118: BAF-040-2305-16 | R118: =IF(T23=4,MIN(H22+R84,R115),IF(T23=3,MIN(R114,R113),IF(T23=8,MIN(R115,R117),R117))) -> 0

Sheet Parametro Destino (hidden)
H1: =MIN(G3,G4) -> 0 | I1: ,O,SI(Y(TASACREC=9.9%,Q8=20),"0.07%","2.40%")
B2: DESTINO | C2: =VLOOKUP(Simulación!H21,'Parametro Destino'!B13:E24,4,) -> 1 | D2: SI(Simulación!H21='Parametro Destino'!B13,1,SI(Simulación!H21='Parametro Destino'!B14,2,SI(Simulación!H21='Parametro Destino'!B15,3,SI(Simulación!H21='Parametro Destino'!B16,4,SI(Simulación!H21='Parametro Destino'!B17,5,SI(Simulación!H21='Parametro Destino'!B18,6,SI(Simulación!H21='Parametro Destino'!B19,7,SI(Simulación!H21='Parametro Destino'!B20,8,9)))))))) | E2: MONTO MAX COFI | F2: =(Simulación!H23)-Simulación!H24 -> 0 | H2: =(Simulación!H22+Simulación!H23)*'Parametro Destino'!C6 -> 0
B3: PRODUCTO | C3: =IF(AND(Simulación!N25=8.9%,Simulación!N21="si"),2,IF(Simulación!N25=8.9%,1,2)) -> 2 | D3: , =SI(Y(Simulación!L25=8.9%,Simulación!L21="si"),2,SI(Simulación!L25=8.9%,1,2)) | E3: MONTO MAX TU CASA 2 | F3: =IF(C2=8,H1,H2) -> 0 | G3: =(Simulación!H22+Simulación!H23)*'Parametro Destino'!C6 -> 0 | H3: PLAZO MINIMO | I3: =IF(C3=1,5,5) -> 5
B4: VALOR CONSTRUCCION | C4: =MIN((Simulación!H23*0.7),Simulación!H27) -> 0 | E4: PLAZO FIJOS | F4: =IF(I4<I3,I3,IF(C3=2,MIN(20,PLAZO_SIMULACION),MIN(PLAZO_SIMULACION,20))) -> 20 | G4: =Simulación!H22+M22 -> 2020 | H4: PLAZO SELECCIONADO | I4: =PLAZO_SIMULACION -> 20
B5: AFORO REAL | C5: =Simulación!N23 -> 0 | E5: PLAZO CRECIENTES | F5: =IF(C2=9,IF(F4<=10,10,IF(F4<=15,15,"N/A")),IF(F4<=15,15,IF(F4<=20,20,"N/A"))) -> 20 | H5: LEYENDA PLAZO | I5: =IF(I3=5,"Plazo Min 5 años","Plazo Min 3 años") -> Plazo Min 5 años
B6: AFORO MAXIMO | C6: =MIN(I8:I9) -> 0.9 | E6: COSTO DEL AVALUO | F6: =IF(C2=8,(J30+L30),J30) -> 2000 | H6: NOMINA AFIRME | I6: =Simulación!N21 -> NO | K6: 0.079 | L6: =50% -> 0.5
B7: MONTO MAX POR AFORO | C7: =IF(Simulación!T23=6,MIN(MIN((Simulación!H23*0.4),MIN(F8,2500000),(Simulación!H23*'Parametro Destino'!C6))+Simulación!H22,Simulación!H23*'Parametro Destino'!C6),IF(C2=8,F3,IF(C2=7,MIN(Simulación!H27,(Simulación!H23*0.7)),IF(C2=3, MIN((Simulación!H23*'Parametro Destino'!C6),(F2)),C6*Simulación!H23)))) -> 0 | D7: ,=SI( O('Parametro Destino'!C2=8,'Parametro Destino'!C2=3,'Parametro Destino'!C2=4), MIN('Parametro Destino'!F3,Simulación!H25), MIN(Simulación!H25,'Parametro Destino'!C7,'Parametro Destino'!F2)) | E7: GASTOS NOTARIALES | F7: =IF(OR(Simulación!T23=1,Simulación!T23=2,Simulación!T23=3,Simulación!T23=9,Simulación!T23=10), Simulación!N29*Simulación!H23,IF(Simulación!T23=8,'Parametro Destino'!M21,Simulación!H25*Simulación!N29)) -> 0 | H7: MEJORA | I7: =Simulación!N31 -> NO | K7: 0.089 | L7: 0.6
B8: COMISION APLICABLE | C8: =VLOOKUP(C2,A13:D24,4) -> 0.01 | E8: REMODELACION | F8: =Simulación!H29 -> 0 | H8: AFORO MONTO | I8: =IF(I10<G18,H19,IF(I10<G17,H18,IF(I10<G16,H17,IF(I10<G15,H16,H15)))) -> 1 | K8: 0.0925 | L8: 0.7 | M8: =IF(AND(Simulación!N21="NO"),60%,90%) -> 0.6
B9: MONTO MIN POR TASA | C9: =IF(C3=1,200000,200000) -> 200000 | E9: ,=SI(Y($C$2=4,I7="SI"),0.9,0.9) | H9: AFORO X PRODUCTO | I9: =VLOOKUP(C2,A13:D24,3,0) -> 0.9 | K9: 0.095 | L9: 0.9
B10: PLAZO MAXIMO POR TASA | C10: =IF(C2=9,15,20) -> 20 | E10: =VLOOKUP(I11,K6:L11,2) -> 0.9 | H10: SOLICITADO | I10: =Simulación!H25 -> 0 | K10: 0.1015 | L10: 0.9 | M10: , =SI(Y(Simulación!L25=8.9%,Simulación!h21="SUSTITUCION"),90%,SI(Simulación!L25=8.9%,Simulación!h21="ADQUISICION"))
F11: =IF(Simulación!J21="SI",80%,IF($I$11=7.9%,50%,90%)) -> 0.9 | H11: TASA | I11: =Simulación!N25 -> 0.0995 | K11: 0.1035 | L11: 0.9
B12: DESTINO | C12: AFORO | D12: COMISION POR APERTURA | G12: H25*N29
A13: 1 | B13: ADQUISICION | C13: =E10 -> 0.9 | D13: =IF(I6="SI",0%,1%) -> 0.01 | E13: 1
A14: 2 | B14: APOYO INFONAVIT | C14: =E10 -> 0.9 | D14: =IF(I6="SI",0%,1%) -> 0.01 | E14: 2 | F14: TABLA DE AFOROS POR MONTO DE CREDITO | J14: 2.2.6. Esquema Aforo al 90% Adquisición Vivienda Nueva
A15: 3 | B15: COFINAVIT | C15: =E10 -> 0.9 | D15: =IF(I6="SI",0%,1%) -> 0.01 | E15: 3 | F15: Mayor de | G15: 8000000 | H15: 1 | J15: Monto solicitado total<= $3MM=90%
A16: 4 | B16: SUSTITUCION | C16: =F11 -> 0.9 | D16: =IF(I7="SI",0%,1%) -> 0.01 | E16: 4 | F16: Mayor de | G16: 7000000 | H16: 1 | J16: Monto solicitado total>= $3MM=80%
A17: 5 | B17: REMODELACION | C17: =IF($C$3=1,0.4,0.4) -> 0.4 | D17: 0.01 | E17: 5 | F17: Mayor de | G17: 7000000 | H17: 1
A18: 6 | B18: SUSTITUCIÓN + REMODELACION | C18: =IF(AND($C$2=6,I7="SI"),0.7,0.8) -> 0.8 | D18: =IF(I7="SI",0%,1%) -> 0.01 | E18: 6 | F18: Mayor de | G18: 5000000 | H18: 1 | L18: Gastos Supuestos para TU CASA2
A19: 7 | B19: CONSTRUCCION | C19: 0.7 | D19: 0.01 | E19: 7 | F19: Menor a | G19: 6000000 | H19: 1 | L19: Comisión de apertura: | M19: =N19*C8 -> 20 | N19: =(Simulación!H22*1.04)+M20+M21 -> 2000
A20: 11 | B20: LIQUIDEZ | C20: 0.6 | D20: 0.015 | E20: 11 | L20: Avalúos | M20: =F6 -> 2000
A21: 12 | B21: LIQUIDEZ GOLD | C21: 0.6 | D21: 0.015 | E21: 12 | L21: Gastos notariales aprox | M21: =(Simulación!H22*Simulación!N29)+(Simulación!H23*N21) -> 0 | N21: =Simulación!N29*0.75 -> 0.0375
A22: 8 | B22: TU CASA2 | C22: =IF($C$3=1,0.6999,0.8) -> 0.8 | D22: 0.01 | E22: 8 | L22: =M22/G4 -> 1 | M22: =SUM(M19:M21) -> 2020 | N22: =M22*-1 -> -2020
A23: 9 | B23: TERRENO | C23: 0.8 | D23: 0.01 | E23: 9
A24: 10 | B24: TERRENO + CONSTRUCCION | C24: 0.7 | D24: 0.01 | E24: 10
D26: ,=SI(I6="SI",0%,1%) | E26: nomina adq apoyo y cofi siempre apertura 0% | I26: Valor de Vivienda | J26: =Simulación!H23 -> 0 | K26: valor viv 2 | L26: =Simulación!H22 -> 0
D27: ,=SI(I6="SI",0%,1%) | I27: Factor | J27: =+IF(J26<=E33,F33,IF(J26<=E34,F34,IF(J26<=E35,F35,IF(J26<=E36,F36,IF(J26<=E37,F37,"Se Cotiza"))))) -> 3 | L27: =+IF(J26<=E33,F33,IF(J26<=E34,F34,IF(J26<=E35,F35,IF(J26<=E36,F36,IF(J26<=E37,F37,"Se Cotiza"))))) -> 3
D28: ,=SI(Y(I6="SI",I11=8.9%),0%,1%) | I28: Minimo | J28: =+IF(J26<=E33,G33,IF(J26<=E34,G34,IF(J26<=E35,G35,IF(J26<=E36,G36,IF(J26<=E37,G37,"Se Cotiza"))))) -> 2000 | L28: =+IF(J26<=E33,G33,IF(J26<=E34,G34,IF(J26<=E35,G35,IF(J26<=E36,G36,IF(J26<=E37,G37,"Se Cotiza"))))) -> 2000
I29: Calculo | J29: =IF((J26*J27/1000)<J28,J28,(J26*J27/1000)) -> 2000 | L29: =IF((J26*J27/1000)<J28,J28,(J26*J27/1000)) -> 2000
I30: Resultado | J30: =IF(J28="Se Cotiza", "Se Cotiza",IF(OR(C2=4,C2=6),IF(J26<=3000000,0,J29),J29)) -> 2000 | L30: =IF(J28="Se Cotiza", "Se Cotiza",IF(OR(C2=4,C2=6),IF(J26<=3000000,0,J29-12500),J29)) -> 2000
E32: TABLA DE COSTOS AVALUO
E33: 1000000 | F33: 3 | G33: 2000
E34: 5000000 | F34: 2.5 | G34: 3000
E35: 10000000 | F35: 2 | G35: 12500
E36: 20000000 | F36: 1.75 | G36: 20000
E37: 100000000 | F37: 1.5 | G37: 30000
I42: ,=SI(Y(C60="<=3M",C52="si"),9.7%,SI(C60=">3M",C52="si",10.2%))
I43: ,=SI(Y(C60="<=3M",C52="si"),10.2%,SI(C60=">3M",C52="si",10.8%))
L44: LIQ | M44: =Simulación!J21 -> NO
I45: ,=SI(C60="<=3M",9.5%,9.8%) | L45: SUSTI SOLA | M45: SUSTI CON LIQ
I46: ,=SI(C52="si",i46,i48) | L46: =IF(C62="<=3M",0.0995,0.1035) -> 0.0995 | M46: =IF(C62="<=3M",0.104,0.109) -> 0.104 | N46: =IF(C62="<=3M",0.0995,0.1035) -> 0.0995
J47: ,=SI(C52="si",i47,i49) | K47: ,=SI(C52="si",i47,i50) | L47: =IF(C62="<=3M",0.1025,0.1065) -> 0.1025 | N47: =IF(C62="<=3M",0.1025,0.1065) -> 0.1025
H48: nomina si, <= 60% | I48: =IF(C62="<=3M",0.0995,0.1045) -> 0.0995 | L48: =IF(C62="<=3M",0.11,0.1125) -> 0.11 | N48: =IF(C62="<=3M",0.11,0.1125) -> 0.11
H49: nomina si, <= 70% y <= 90% | I49: =IF(C62="<=3M",0.1115,0.115) -> 0.1115 | L49: =IF(C62="<=3M",0.113,0.1165) -> 0.113 | N49: =IF(C62="<=3M",0.113,0.1165) -> 0.113
H50: nomina no, <= 60% | I50: =IF(C62="<=3M",0.0995,0.1035) -> 0.0995
D51: SI(Q9=8.55%,D15,SI(Q9=8.90%,D16,SI(Q9=9.90%,D17))) | H51: nomina no, <= 70% | I51: =IF(C62="<=3M",0.1015,0.107) -> 0.1015
H52: nomina no, <= 90% | I52: =IF(C62="<=3M",0.12,0.123) -> 0.12
B53: MEJORA | C53: =Simulación!N31 -> NO | H53: 5 años
B54: Nomina? | C54: =+Simulación!N21 -> NO | E54: 5 años | F54: =INDEX(I55:T58,MATCH(C57,H55:H58,0),MATCH(C55,I54:T54,0)) -> 0.0995 | H54: Aforo | I54: ADQUISICION | J54: APOYO INFONAVIT | K54: COFINAVIT | L54: SUSTITUCION | M54: REMODELACION | N54: SUSTITUCIÓN + REMODELACION | O54: CONSTRUCCION | P54: TU CASA2 | Q54: TERRENO | R54: TERRENO + CONSTRUCCION | S54: LIQUIDEZ | T54: LIQUIDEZ GOLD
B55: Destino | C55: =+Simulación!H21 -> ADQUISICION | E55: > 5 años | F55: =INDEX(I62:T65,MATCH(C57,H62:H65,0),MATCH(C55,I61:T61,0)) -> 0.0995 | H55: <=50%
B56: Aforo | C56: =+Simulación!N23 -> 0 | H56: <= 60% | I56: =IF(C54="si",I48,I50) -> 0.0995 | J56: =IF(C54="si",I48,I50) -> 0.0995 | K56: =IF(C54="si",I48,I50) -> 0.0995 | L56: =IF(M44="SI",M46,L68) -> 0.1025 | M56: =IF(C62="<=3M",0.0995,0.1035) -> 0.0995 | N56: =IF(C53="SI",N46,N47) -> 0.1025 | O56: =IF(C62="<=3M",0.101,0.106) -> 0.101 | P56: =IF(C62="<=3M",0.0995,0.1035) -> 0.0995 | Q56: =IF(C62="<=3M",0.102,0.106) -> 0.102 | R56: =IF(C62="<=3M",0.101,0.106) -> 0.101 | S56: =IF(C62="<=3M",0.135,0.144) -> 0.135 | T56: =IF(C62="<=3M",0.12,0.13) -> 0.12
B57: RangoAforo | C57: =IF(C56<=0.6,"<= 60%",IF(C56<=0.7,"<= 70%","<= 90%")) -> <= 60% | H57: <= 70% | I57: =IF(C54="si",I49,I51) -> 0.1015 | J57: =IF(C54="si",I49,I51) -> 0.1015 | K57: =IF(C54="si",I49,I51) -> 0.1015 | L57: =IF(M44="SI",M46,L69) -> 0.113 | M57: =IF(C62="<=3M",0.103,0.1065) -> 0.103 | N57: =IF(C53="SI",N48,N49) -> 0.113 | O57: =IF(C62="<=3M",0.104,0.1095) -> 0.104 | P57: =IF(C62="<=3M",0.1015,0.107) -> 0.1015 | Q57: =IF(C62="<=3M",0.102,0.106) -> 0.102 | R57: =IF(C62="<=3M",0.104,0.109) -> 0.104 | S57: =IF(C62="<=3M",0.135,0.144) -> 0.135 | T57: =IF(C62="<=3M",0.12,0.13) -> 0.12
B58: Plazo | C58: =+PLAZO_SIMULACION -> 20 | H58: <= 90% | I58: =IF(C54="si",I49,I52) -> 0.12 | J58: =IF(C54="si",I49,I52) -> 0.12 | K58: =IF(C54="si",I49,I52) -> 0.12 | L58: =IF(M44="SI",M46,L70) -> 0.113 | M58: =IF(C62="<=3M",0.12,0.123) -> 0.12 | N58: =IF(C53="SI",N48,N49) -> 0.113 | O58: =IF(C62="<=3M",0.12,0.123) -> 0.12 | P58: =IF(C62="<=3M",0.12,0.123) -> 0.12 | Q58: =IF(C62="<=3M",0.102,0.106) -> 0.102 | R58: =IF(C62="<=3M",0.12,0.123) -> 0.12 | S58: =IF(C62="<=3M",0.135,0.144) -> 0.135 | T58: =IF(C62="<=3M",0.12,0.13) -> 0.12
B59: RangoPlazo | C59: =IF(C58=5,"5 años","> 5 años") -> > 5 años | L59: ,=SI(C51="SI",9.25%,9.50%)
B60: Tasa OK | C60: =VLOOKUP(C59,E$54:$F55,2,FALSE) -> 0.0995 | H60: > 5 años
B61: Monto | C61: =Simulación!H25 -> 0 | E61: > $3000000 | F61: 0.109 | H61: Aforo | I61: ADQUISICION | J61: APOYO INFONAVIT | K61: COFINAVIT | L61: SUSTITUCION | M61: REMODELACION | N61: SUSTITUCIÓN + REMODELACION | O61: CONSTRUCCION | P61: TU CASA2 | Q61: TERRENO | R61: TERRENO + CONSTRUCCION | S61: LIQUIDEZ | T61: LIQUIDEZ GOLD
B62: 3M+ | C62: =IF(C61>3000000,">3M","<=3M") -> <=3M | E62: <= $3000000 | F62: 0.104 | H62: <=50% | S62: =IF(C62="<=3M",0.135,0.144) -> 0.135 | T62: =IF(C62="<=3M",0.12,0.13) -> 0.12
H63: <= 60% | I63: =IF(C54="si",I48,I50) -> 0.0995 | J63: =IF(C54="si",I48,I50) -> 0.0995 | K63: =IF(C54="si",I48,I50) -> 0.0995 | L63: =IF(M44="SI",M46,L68) -> 0.1025 | M63: =IF(C62="<=3M",0.0995,0.1035) -> 0.0995 | N63: =IF(C53="SI",N46,N47) -> 0.1025 | O63: =IF(C62="<=3M",0.101,0.106) -> 0.101 | P63: =IF(C62="<=3M",0.0995,0.1035) -> 0.0995 | Q63: =IF(C62="<=3M",0.102,0.106) -> 0.102 | R63: =IF(C62="<=3M",0.101,0.106) -> 0.101 | S63: =IF(C62="<=3M",0.135,0.144) -> 0.135 | T63: =IF(C62="<=3M",0.12,0.13) -> 0.12
H64: <= 70% | I64: =IF(C54="si",I49,I51) -> 0.1015 | J64: =IF(C54="si",I49,I51) -> 0.1015 | K64: =IF(C54="si",I49,I51) -> 0.1015 | L64: =IF(M44="SI",M46,L69) -> 0.113 | M64: =IF(C62="<=3M",0.103,0.1065) -> 0.103 | N64: =IF(C53="SI",N48,N49) -> 0.113 | O64: =IF(C62="<=3M",0.104,0.1095) -> 0.104 | P64: =IF(C62="<=3M",0.1015,0.107) -> 0.1015 | Q64: =IF(C62="<=3M",0.102,0.106) -> 0.102 | R64: =IF(C62="<=3M",0.104,0.109) -> 0.104 | S64: =IF(C62="<=3M",0.135,0.144) -> 0.135 | T64: =IF(C62="<=3M",0.12,0.13) -> 0.12
B65: En caso incluir algun destino o modificar los nombres es necesario ajustar el encabezado de cada tabla. | H65: <= 90% | I65: =IF(C54="si",I49,I52) -> 0.12 | J65: =IF(C54="si",I49,I52) -> 0.12 | K65: =IF(C54="si",I49,I52) -> 0.12 | L65: =IF(M44="SI",M46,L70) -> 0.113 | M65: =IF(C62="<=3M",0.12,0.123) -> 0.12 | N65: =IF(C53="SI",N48,N49) -> 0.113 | O65: =IF(C62="<=3M",0.12,0.123) -> 0.12 | P65: =IF(C62="<=3M",0.12,0.123) -> 0.12 | Q65: =IF(C62="<=3M",0.102,0.106) -> 0.102 | R65: =IF(C62="<=3M",0.12,0.123) -> 0.12 | S65: =IF(C62="<=3M",0.135,0.144) -> 0.135 | T65: =IF(C62="<=3M",0.12,0.13) -> 0.12
B66: Se obtienen las tasas del producto y aforo calculado en la hoja Simulación.
B67: De acuerdo al rango de plazo donde se encuentra el plazo indicado en Simulación se selecciona la tasa correspondiente.
B68: Terreno 9.80% a 10.20% | L68: =IF(C53="SI",L46,L47) -> 0.1025
L69: =IF(C53="SI",L48,L49) -> 0.113
B70: IMPORTE DEL CRÉDITO: | C70: =Simulación!H25 -> 0 | L70: =IF(C53="SI",L48,L49) -> 0.113
B71: Importe de Liquidez deseado | C71: =Simulación!H42 -> 0 | E71: TASA PORC LIQ
B79: es necessario bloquear la celda:Simulacion!L25 para que no se modifique la tasa calculada..
H80: plazo | I80: aforo | J80: TRAD, COFI y APOYO INFONAVIT + nomina SI y nomina NO
B81: Explicar a que corresponde esta alerta =SI(D18="EL AFORO SUPERA AL MÁXIMO PARA EL PRODUCTO",'Parametro Destino'!C6,"") | H81: 5 años | I81: <=50% | J81: ,=SI(C52="SI",8.90%,7.90%)
B82: que esta en Simulacion!M23 y el * de Simulacion!L26 | H82: desde 5 hasta20 | I82: <= 60% | J82: ,=SI(C52="SI",8.90%,8.90%) | L82: 0.089
B83: para el terreno y la tasa de 7.90%.. | H83: desde 5 hasta20 | I83: <= 70% | J83: ,=SI(C52="SI",9.50%,9.25%)
H84: desde 5 hasta 15 | I84: <= 90% | J84: ,=SI(C52="SI",9.50%,10.15%)
H85: desde 16 hasta 20 | J85: ,=SI(C52="SI",9.5%,10.35%)
B86: Probar solucion de Tasa Creciente para Terreno y Elite
B88: Promocion menor a 5M cero avaluo y arriba de 5M, calculo menos $12,500

Sheet Tabla Amortización Liquidez (hidden)
B1: Tabla de Amortización >> Hipotecario >> Reestructura
B3: Monto Solicitado | C3: Plazo Meses | D3: Tasa Inicial | E3: Tasa Incumplimiento | L3: % Comisión Apert | M3: Comisión Apertura sin iva | N3: CAT
B4: =IF('Parametro Destino'!C2>=11,MIN(Simulación!H25,'Parametro Destino'!C7),MIN(Simulación!H42,'Parametro Destino'!C7)) -> 0 | C4: =12*Simulación!H46 -> 240 | D4: ='Parametro Destino'!C60 -> 0.0995 | E4: 0.099 | L4: 0.015 | M4: =MTO_SOLICITADO*L4 -> 0 | N4: =(1+IRR(AG20:AG2667,0))^(360/30)-1 -> 
B6: Tipo Financiamiento | C6: Incremento Amortizacion | D6: Meses incremento | M6: Comisión Avaluo sin iva
B7: FIJO | C7: 0 | D7: 12 | M7: =Simulación!$M$88 -> 2000
B9: Suma Asegurada Daños | C9: Factor Seguro Vida | D9: Factor Seguro Daños | E9: Factor Seguro Desempleo | F9: Factor Seguro Interiores
B10: =Simulación!$H$23*0.7 -> 0 | C10: 0.0008 | D10: 1.1 | E10: =IF(G10="si",0.0098,0) -> 0.0098 | F10: =IF(H10="si",98,0) -> 98 | G10: si | H10: si
B12: Mto. Comisión Admon. | C12: Fecha Apertura | D12: Fecha 1er Pago | E12: Aplica IVA Interes | F12: Es Frontera | G12: IVA | L12: Suma Inversos | M12: Cuota Nivelada Base | AG12: Monto Inicial CAT
B13: =H13 -> 399 | C13: =Simulación!$N$8 -> 2023-12-11 | D13: =IF(DAY(FECHA_APERTURA)<= 19, DATE(YEAR(DATE(YEAR(FECHA_APERTURA),MONTH(FECHA_APERTURA)+2,)), MONTH(DATE(YEAR(FECHA_APERTURA),MONTH(FECHA_APERTURA)+2,)), 4), DATE(YEAR(DATE(YEAR(FECHA_APERTURA),MONTH(FECHA_APERTURA)+3,)), MONTH(DATE(YEAR(FECHA_APERTURA),MONTH(FECHA_APERTURA)+3,)), 4)) -> 2024-01-04 | E13: si | F13: NO | G13: 0.16 | H13: =IF(OR('Parametro Destino'!C2=11,'Parametro Destino'!C2=12),0,399) -> 399 | L13: =SUMIF(B21:B2673, CONCATENATE("<",PLAZO),L21:L2673) -> 87.02314444 | M13: =TOTAL_FINANCIADO/SUMA_INV -> 0 | AG13: =MTO_SOLICITADO - M4-M7 -> -2000
AD14: INTERES_SIM_PP | AE14: FLUJO_SIM_PP
B15: Período de Gracia
B16: 0
O17: =SUMIF($B$21:$B$831,CONCATENATE("<",PLAZO),O21:O831) -> 0 | P17: 0 | Q17: 0 | R17: 95760 | S17: 15321.6 | T17: 0 | U17: 0 | V17: 0 | W17: 20275.2 | X17: 3244.8 | Y17: 1320 | Z17: 211.2 | AA17: 136132.8
B18: INDEX | C18: FECHA_PAGO | D18: DIAS_AMORT | E18: TASA_ANUAL | G18: PRORRATEO | H18: FACTOR_ACUM_PRE | I18: FACTOR_ACUM | J18: APLICA_INCR | K18: AJUSTE_AMORT | L18: FACTOR_ACUM_FIN | M18: CUOTA_NIVELADA_CREDITO | N18: SALDO_SIM | O18: CAPITAL_SIM | P18: INTERES_SIM | Q18: IVA SIM | R18: COMISION_FIN | T18: SEG_DANIOS_FIN | V18: SEGURO_FIN | W18: SEGURO_INTERIORES | Y18: SEGURO_DESEMPLEO | AA18: FLUJO_SIM | AC18: Tabla Incumplimiento | AG18: FLUJO_SIM_CAT
B19: Pago | C19: Fecha | D19: Dias Reales | E19: Tasa Periodo | F19: Tasa Periodo IVA | G19: Prorrateo | H19: Potencia | I19: Inverso | J19: Aplica Incremento | K19: Ajuste | L19: Inverso Ajuste | M19: Cuota Nivelada Periodo | N19: Saldo | O19: Capital | P19: Interés (Dias Reales) | Q19: IVA Interés | R19: Comision | S19: IVA Comisión | T19: Seguro Daños | U19: IVA Seguro Daños | V19: Seguro Vida | W19: Seguro Interiores | X19: IVA Seguro Interiores | Y19: Seguro Desempleo | Z19: IVA Seguro Desempleo | AA19: Total a Pagar | AB19: Retraso en pago | AC19: Tasa | AD19: Interés | AE19: Total a Pagar con Incumplimiento | AG19: Total CAT
AG20: =AG13*-1 -> 2000
B21: 0 | C21: =IF(B21=0,FECHA_1ER_PAGO,EDATE(C20,1)) -> 2024-01-04 | D21: =IF(B21=0,FECHA_1ER_PAGO-FECHA_APERTURA+1, C21-C20) -> 25 | E21: =IF(B21=0,TASA,IF(B21=MESES_INC_TASA,E20+INCREMENTO_TASA,E20)) -> 0.0995 | F21: =E21*(1+$G$13) -> 0.11542 | G21: =IF(B21<MESES_GRACIA, 0, 1 + D21 * F21 / 360 + FACTOR_SEG_DEUD) -> 1.008815278 | H21: =IF(B21 = 0, 0, IF(H20=0, G21, H20 * G21 )) -> 0 | I21: =IF(H21=0, 0, 1/H21) -> 0 | J21: =MOD(B21, MESES_INC)=0 -> TRUE | K21: =IF(B21=0, 1, IF(J21,K19*(1+INCREMENTO),K19)) -> 1 | L21: =I21*K21 -> 0 | M21: =ROUND(CUOTA_INIT*K21,2) -> 0 | N21: =IF(B21=0,TOTAL_FINANCIADO, ROUND(N20-O20,2)) -> 0 | O21: =IF(B21=0, 0, IF((B21+1) = PLAZO, N21, IF(B21<MESES_GRACIA, 0, M21-P21-V21-Q21))) -> 0 | P21: =IF(B21<MESES_GRACIA, 0, ROUND(N21 * D21 *E21 /360,2)) -> 0 | Q21: =ROUND(P21*$G$13,2) -> 0 | R21: =COMISION_AMORT -> 399 | S21: =ROUND(R21*IVA,2) -> 63.84 | T21: =SEGURO_DAÑOS_MENS -> 0 | U21: =T21*IVA -> 0 | V21: =ROUND(N21 * FACTOR_SEG_DEUD,2) -> 0 | W21: =ROUND(SEGURO_INTERIORES/(1+IVA),2) -> 84.48 | X21: =ROUND(W21*IVA,2) -> 13.52 | Y21: =ROUND((SUM(O21:X21)-Q21) * FACTOR_SEG_DESEMPLEO,2) -> 5.5 | Z21: =ROUND(Y21*IVA,2) -> 0.88 | AA21: =IF(B21>=PLAZO,0,ROUND(SUM(O21:Z21),2)) -> 567.22 | AC21: =IF(AB21="SI",TASA_PP,TASA) -> 0.0995 | AD21: =N21 * D21 * AC21 /360 -> 0 | AE21: =IF(B21>=PLAZO, 0, O21+R21+S21+T21+U21+V21+W21+X21+Y21+Z21+AD21) -> 567.22 | AG21: =IF(N21> 0,O21+P21+V21+R21+T21+W21+Y21, 0) -> 0
B22: 1 | C22: =IF(B22=0,FECHA_1ER_PAGO,EDATE(C21,1)) -> 2024-02-04 | D22: =IF(B22=0,FECHA_1ER_PAGO-FECHA_APERTURA, C22-C21) -> 31 | E22: =IF(B22=0,TASA,IF(B22=MESES_INC_TASA,E21+INCREMENTO_TASA,E21)) -> 0.0995 | F22: =E22*(1+$G$13) -> 0.11542 | G22: =IF(B22<MESES_GRACIA, 0, 1 + D22 * F22 / 360 + FACTOR_SEG_DEUD) -> 1.010738944 | H22: =IF(B22 = 0, 0, IF(H21=0, G22, H21 * G22 )) -> 1.010738944 | I22: =IF(H22=0, 0, 1/H22) -> 0.9893751552 | J22: FALSE | K22: =IF(B22=0, 1, IF(J22,K21*(1+INCREMENTO),K21)) -> 1 | L22: =I22*K22 -> 0.9893751552 | M22: =ROUND(CUOTA_INIT*K22,2) -> 0 | N22: 0 | O22: 0 | P22: 0 | Q22: =ROUND(P22*$G$13,2) -> 0 | R22: =COMISION_AMORT -> 399 | S22: =ROUND(R22*IVA,2) -> 63.84 | T22: =SEGURO_DAÑOS_MENS -> 0 | U22: =T22*IVA -> 0 | V22: 0 | W22: 84.48 | X22: 13.52 | Y22: =ROUND((SUM(O22:X22)-Q22) * FACTOR_SEG_DESEMPLEO,2) -> 5.5 | Z22: 0.88 | AA22: 567.22 | AC22: 0.0995 | AD22: 0 | AE22: 567.22 | AG22: =IF(N22> 0,O22+P22+V22+R22+T22+W22+Y22, 0) -> 0
B23: 2 | C23: 2024-03-04 | D23: 29 | E23: 0.0995 | F23: 0.11542 | G23: 1.010097722 | H23: 1.020945106 | I23: =IF(H23=0, 0, 1/H23) -> 0.9794845918 | J23: FALSE | K23: 1 | L23: =I23*K23 -> 0.9794845918 | M23: 0 | N23: 0 | O23: 0 | P23: 0 | Q23: 0 | R23: 399 | S23: =ROUND(R23*IVA,2) -> 63.84 | T23: 0 | U23: 0 | V23: 0 | W23: 84.48 | X23: 13.52 | Y23: 5.5 | Z23: 0.88 | AA23: 567.22 | AC23: 0.0995 | AD23: 0 | AE23: 567.22 | AG23: 0
B24: 3 | C24: 2024-04-04 | D24: 31 | E24: 0.0995 | F24: 0.11542 | G24: 1.010738944 | H24: =IF(B24 = 0, 0, IF(H23=0, G24, H23 * G24 )) -> 1.031908978 | I24: =IF(H24=0, 0, 1/H24) -> 0.96907772 | J24: FALSE | K24: 1 | L24: 0.96907772 | M24: 0 | N24: 0 | O24: 0 | P24: 0 | Q24: 0 | R24: 399 | S24: 63.84 | T24: 0 | U24: 0 | V24: 0 | W24: 84.48 | X24: 13.52 | Y24: =ROUND((SUM(O24:X24)-Q24) * FACTOR_SEG_DESEMPLEO,2) -> 5.5 | Z24: 0.88 | AA24: 567.22 | AC24: 0.0995 | AD24: 0 | AE24: 567.22 | AG24: 0
B25: 4 | C25: 2024-05-04 | D25: 30 | E25: 0.0995 | F25: 0.11542 | G25: 1.010418333 | H25: 1.04265975 | I25: 0.9590856461 | J25: FALSE | K25: 1 | L25: 0.9590856461 | M25: 0 | N25: 0 | O25: 0 | P25: 0 | Q25: 0 | R25: 399 | S25: 63.84 | T25: 0 | U25: 0 | V25: 0 | W25: 84.48 | X25: 13.52 | Y25: 5.5 | Z25: =ROUND(Y25*IVA,2) -> 0.88 | AA25: 567.22 | AC25: 0.0995 | AD25: 0 | AE25: 567.22 | AG25: 0
B26: 5 | C26: 2024-06-04 | D26: 31 | E26: 0.0995 | F26: 0.11542 | G26: 1.010738944 | H26: 1.053856815 | I26: 0.9488955099 | J26: FALSE | K26: 1 | L26: 0.9488955099 | M26: 0 | N26: 0 | O26: 0 | P26: 0 | Q26: 0 | R26: 399 | S26: 63.84 | T26: 0 | U26: 0 | V26: 0 | W26: 84.48 | X26: 13.52 | Y26: 5.5 | Z26: 0.88 | AA26: 567.22 | AC26: 0.0995 | AD26: 0 | AE26: 567.22 | AG26: 0
B27: 6 | C27: 2024-07-04 | D27: 30 | E27: 0.0995 | F27: 0.11542 | G27: 1.010418333 | H27: 1.064836247 | I27: 0.9391115329 | J27: FALSE | K27: 1 | L27: 0.9391115329 | M27: 0 | N27: 0 | O27: 0 | P27: 0 | Q27: 0 | R27: 399 | S27: 63.84 | T27: 0 | U27: 0 | V27: 0 | W27: 84.48 | X27: 13.52 | Y27: 5.5 | Z27: 0.88 | AA27: 567.22 | AC27: 0.0995 | AD27: 0 | AE27: 567.22 | AG27: 0
B28: 7 | C28: 2024-08-04 | D28: 31 | E28: 0.0995 | F28: 0.11542 | G28: 1.010738944 | H28: 1.076271464 | I28: 0.9291336186 | J28: FALSE | K28: 1 | L28: 0.9291336186 | M28: 0 | N28: 0 | O28: 0 | P28: 0 | Q28: 0 | R28: 399 | S28: 63.84 | T28: 0 | U28: 0 | V28: 0 | W28: 84.48 | X28: 13.52 | Y28: 5.5 | Z28: 0.88 | AA28: 567.22 | AC28: 0.0995 | AD28: 0 | AE28: 567.22 | AG28: 0
B29: 8 | C29: 2024-09-04 | D29: 31 | E29: 0.0995 | F29: 0.11542 | G29: 1.010738944 | H29: 1.087829483 | I29: 0.9192617181 | J29: FALSE | K29: 1 | L29: 0.9192617181 | M29: 0 | N29: 0 | O29: 0 | P29: 0 | Q29: 0 | R29: 399 | S29: 63.84 | T29: 0 | U29: 0 | V29: 0 | W29: 84.48 | X29: 13.52 | Y29: 5.5 | Z29: 0.88 | AA29: 567.22 | AC29: 0.0995 | AD29: 0 | AE29: 567.22 | AG29: 0
B30: 9 | C30: 2024-10-04 | D30: 30 | E30: 0.0995 | F30: 0.11542 | G30: 1.010418333 | H30: 1.099162854 | I30: 0.9097832925 | J30: FALSE | K30: 1 | L30: 0.9097832925 | M30: 0 | N30: 0 | O30: 0 | P30: 0 | Q30: 0 | R30: 399 | S30: 63.84 | T30: 0 | U30: 0 | V30: 0 | W30: 84.48 | X30: 13.52 | Y30: 5.5 | Z30: 0.88 | AA30: 567.22 | AC30: 0.0995 | AD30: 0 | AE30: 567.22 | AG30: 0
B31: 10 | C31: 2024-11-04 | D31: 31 | E31: 0.0995 | F31: 0.11542 | G31: 1.010738944 | H31: 1.110966702 | I31: 0.9001169862 | J31: FALSE | K31: 1 | L31: 0.9001169862 | M31: 0 | N31: 0 | O31: 0 | P31: 0 | Q31: 0 | R31: 399 | S31: 63.84 | T31: 0 | U31: 0 | V31: 0 | W31: 84.48 | X31: 13.52 | Y31: 5.5 | Z31: 0.88 | AA31: 567.22 | AC31: 0.0995 | AD31: 0 | AE31: 567.22 | AG31: 0
B32: 11 | C32: 2024-12-04 | D32: 30 | E32: 0.0995 | F32: 0.11542 | G32: 1.010418333 | H32: 1.122541124 | I32: 0.8908359602 | J32: FALSE | K32: 1 | L32: 0.8908359602 | M32: 0 | N32: 0 | O32: 0 | P32: 0 | Q32: 0 | R32: 399 | S32: 63.84 | T32: 0 | U32: 0 | V32: 0 | W32: 84.48 | X32: 13.52 | Y32: 5.5 | Z32: 0.88 | AA32: 567.22 | AC32: 0.0995 | AD32: 0 | AE32: 567.22 | AG32: 0
B33: 12 | C33: 2025-01-04 | D33: 31 | E33: 0.0995 | F33: 0.11542 | G33: 1.010738944 | H33: 1.134596031 | I33: 0.8813709664 | J33: TRUE | K33: =IF(B33=0, 1, IF(J33,K32*(1+INCREMENTO),K32)) -> 1 | L33: 0.8813709664 | M33: 0 | N33: 0 | O33: 0 | P33: 0 | Q33: 0 | R33: 399 | S33: 63.84 | T33: 0 | U33: 0 | V33: 0 | W33: 84.48 | X33: 13.52 | Y33: 5.5 | Z33: 0.88 | AA33: 567.22 | AC33: 0.0995 | AD33: 0 | AE33: 567.22 | AG33: 0
B34: 13 | C34: 2025-02-04 | D34: 31 | E34: 0.0995 | F34: 0.11542 | G34: 1.010738944 | H34: 1.146780394 | I34: 0.8720065366 | J34: FALSE | K34: 1 | L34: 0.8720065366 | M34: 0 | N34: 0 | O34: 0 | P34: 0 | Q34: 0 | R34: 399 | S34: 63.84 | T34: 0 | U34: 0 | V34: 0 | W34: 84.48 | X34: 13.52 | Y34: 5.5 | Z34: 0.88 | AA34: 567.22 | AC34: 0.0995 | AD34: 0 | AE34: 567.22 | AG34: 0
B35: 14 | C35: 2025-03-04 | D35: 28 | E35: 0.0995 | F35: 0.11542 | G35: 1.009777111 | H35: 1.157992594 | I35: 0.8635633815 | J35: FALSE | K35: 1 | L35: 0.8635633815 | M35: 0 | N35: 0 | O35: 0 | P35: 0 | Q35: 0 | R35: 399 | S35: 63.84 | T35: 0 | U35: 0 | V35: 0 | W35: 84.48 | X35: 13.52 | Y35: 5.5 | Z35: 0.88 | AA35: 567.22 | AC35: 0.0995 | AD35: 0 | AE35: 567.22 | AG35: 0
B36: 15 | C36: 2025-04-04 | D36: 31 | E36: 0.0995 | F36: 0.11542 | G36: 1.010738944 | H36: 1.170428212 | I36: 0.8543881546 | J36: FALSE | K36: 1 | L36: 0.8543881546 | M36: 0 | N36: 0 | O36: 0 | P36: 0 | Q36: 0 | R36: 399 | S36: 63.84 | T36: 0 | U36: 0 | V36: 0 | W36: 84.48 | X36: 13.52 | Y36: 5.5 | Z36: 0.88 | AA36: 567.22 | AC36: 0.0995 | AD36: 0 | AE36: 567.22 | AG36: 0
B37: 16 | C37: 2025-05-04 | D37: 30 | E37: 0.0995 | F37: 0.11542 | G37: 1.010418333 | H37: 1.182622123 | I37: 0.8455786345 | J37: FALSE | K37: 1 | L37: 0.8455786345 | M37: 0 | N37: 0 | O37: 0 | P37: 0 | Q37: 0 | R37: 399 | S37: 63.84 | T37: 0 | U37: 0 | V37: 0 | W37: 84.48 | X37: 13.52 | Y37: 5.5 | Z37: 0.88 | AA37: 567.22 | AC37: 0.0995 | AD37: 0 | AE37: 567.22 | AG37: 0
B38: 17 | C38: 2025-06-04 | D38: 31 | E38: 0.0995 | F38: 0.11542 | G38: 1.010738944 | H38: 1.195322236 | I38: 0.8365944927 | J38: FALSE | K38: 1 | L38: 0.8365944927 | M38: 0 | N38: 0 | O38: 0 | P38: 0 | Q38: 0 | R38: 399 | S38: 63.84 | T38: 0 | U38: 0 | V38: 0 | W38: 84.48 | X38: 13.52 | Y38: 5.5 | Z38: 0.88 | AA38: 567.22 | AC38: 0.0995 | AD38: 0 | AE38: 567.22 | AG38: 0
B39: 18 | C39: 2025-07-04 | D39: 30 | E39: 0.0995 | F39: 0.11542 | G39: 1.010418333 | H39: 1.207775502 | I39: 0.8279684415 | J39: FALSE | K39: 1 | L39: 0.8279684415 | M39: 0 | N39: 0 | O39: 0 | P39: 0 | Q39: 0 | R39: 399 | S39: 63.84 | T39: 0 | U39: 0 | V39: 0 | W39: 84.48 | X39: 13.52 | Y39: 5.5 | Z39: 0.88 | AA39: 567.22 | AC39: 0.0995 | AD39: 0 | AE39: 567.22 | AG39: 0
B40: 19 | C40: 2025-08-04 | D40: 31 | E40: 0.0995 | F40: 0.11542 | G40: 1.010738944 | H40: 1.220745736 | I40: 0.8191714053 | J40: FALSE | K40: 1 | L40: 0.8191714053 | M40: 0 | N40: 0 | O40: 0 | P40: 0 | Q40: 0 | R40: 399 | S40: 63.84 | T40: 0 | U40: 0 | V40: 0 | W40: 84.48 | X40: 13.52 | Y40: 5.5 | Z40: 0.88 | AA40: 567.22 | AC40: 0.0995 | AD40: 0 | AE40: 567.22 | AG40: 0
B41: 20 | C41: 2025-09-04 | D41: 31 | E41: 0.0995 | F41: 0.11542 | G41: 1.010738944 | H41: 1.233855257 | I41: 0.8104678362 | J41: FALSE | K41: 1 | L41: 0.8104678362 | M41: 0 | N41: 0 | O41: 0 | P41: 0 | Q41: 0 | R41: 399 | S41: 63.84 | T41: 0 | U41: 0 | V41: 0 | W41: 84.48 | X41: 13.52 | Y41: 5.5 | Z41: 0.88 | AA41: 567.22 | AC41: 0.0995 | AD41: 0 | AE41: 567.22 | AG41: 0
B42: 21 | C42: 2025-10-04 | D42: 30 | E42: 0.0995 | F42: 0.11542 | G42: 1.010418333 | H42: 1.246709972 | I42: 0.8021111746 | J42: FALSE | K42: 1 | L42: 0.8021111746 | M42: 0 | N42: 0 | O42: 0 | P42: 0 | Q42: 0 | R42: 399 | S42: 63.84 | T42: 0 | U42: 0 | V42: 0 | W42: 84.48 | X42: 13.52 | Y42: 5.5 | Z42: 0.88 | AA42: 567.22 | AC42: 0.0995 | AD42: 0 | AE42: 567.22 | AG42: 0
B43: 22 | C43: 2025-11-04 | D43: 31 | E43: 0.0995 | F43: 0.11542 | G43: 1.010738944 | H43: 1.260098321 | I43: 0.7935888679 | J43: FALSE | K43: 1 | L43: 0.7935888679 | M43: 0 | N43: 0 | O43: 0 | P43: 0 | Q43: 0 | R43: 399 | S43: 63.84 | T43: 0 | U43: 0 | V43: 0 | W43: 84.48 | X43: 13.52 | Y43: 5.5 | Z43: 0.88 | AA43: 567.22 | AC43: 0.0995 | AD43: 0 | AE43: 567.22 | AG43: 0
B44: 23 | C44: 2025-12-04 | D44: 30 | E44: 0.0995 | F44: 0.11542 | G44: 1.010418333 | H44: 1.273226445 | I44: 0.7854062438 | J44: FALSE | K44: 1 | L44: 0.7854062438 | M44: 0 | N44: 0 | O44: 0 | P44: 0 | Q44: 0 | R44: 399 | S44: 63.84 | T44: 0 | U44: 0 | V44: 0 | W44: 84.48 | X44: 13.52 | Y44: 5.5 | Z44: 0.88 | AA44: 567.22 | AC44: 0.0995 | AD44: 0 | AE44: 567.22 | AG44: 0
B45: 24 | C45: 2026-01-04 | D45: 31 | E45: 0.0995 | F45: 0.11542 | G45: 1.010738944 | H45: 1.286899553 | I45: 0.7770614244 | J45: TRUE | K45: 1 | L45: 0.7770614244 | M45: 0 | N45: 0 | O45: 0 | P45: 0 | Q45: 0 | R45: 399 | S45: 63.84 | T45: 0 | U45: 0 | V45: 0 | W45: 84.48 | X45: 13.52 | Y45: 5.5 | Z45: 0.88 | AA45: 567.22 | AC45: 0.0995 | AD45: 0 | AE45: 567.22 | AG45: 0
B46: 25 | C46: 2026-02-04 | D46: 31 | E46: 0.0995 | F46: 0.11542 | G46: 1.010738944 | H46: 1.300719496 | I46: 0.7688052673 | J46: FALSE | K46: 1 | L46: 0.7688052673 | M46: 0 | N46: 0 | O46: 0 | P46: 0 | Q46: 0 | R46: 399 | S46: 63.84 | T46: 0 | U46: 0 | V46: 0 | W46: 84.48 | X46: 13.52 | Y46: 5.5 | Z46: 0.88 | AA46: 567.22 | AC46: 0.0995 | AD46: 0 | AE46: 567.22 | AG46: 0
B47: 26 | C47: 2026-03-04 | D47: 28 | E47: 0.0995 | F47: 0.11542 | G47: 1.009777111 | H47: 1.313436775 | I47: 0.7613613528 | J47: FALSE | K47: 1 | L47: 0.7613613528 | M47: 0 | N47: 0 | O47: 0 | P47: 0 | Q47: 0 | R47: 399 | S47: 63.84 | T47: 0 | U47: 0 | V47: 0 | W47: 84.48 | X47: 13.52 | Y47: 5.5 | Z47: 0.88 | AA47: 567.22 | AC47: 0.0995 | AD47: 0 | AE47: 567.22 | AG47: 0
B48: 27 | C48: 2026-04-04 | D48: 31 | E48: 0.0995 | F48: 0.11542 | G48: 1.010738944 | H48: 1.3275417 | I48: 0.7532720065 | J48: FALSE | K48: 1 | L48: 0.7532720065 | M48: 0 | N48: 0 | O48: 0 | P48: 0 | Q48: 0 | R48: 399 | S48: 63.84 | T48: 0 | U48: 0 | V48: 0 | W48: 84.48 | X48: 13.52 | Y48: 5.5 | Z48: 0.88 | AA48: 567.22 | AC48: 0.0995 | AD48: 0 | AE48: 567.22 | AG48: 0
B49: 28 | C49: 2026-05-04 | D49: 30 | E49: 0.0995 | F49: 0.11542 | G49: 1.010418333 | H49: 1.341372472 | I49: 0.745505086 | J49: FALSE | K49: 1 | L49: 0.745505086 | M49: 0 | N49: 0 | O49: 0 | P49: 0 | Q49: 0 | R49: 399 | S49: 63.84 | T49: 0 | U49: 0 | V49: 0 | W49: 84.48 | X49: 13.52 | Y49: 5.5 | Z49: 0.88 | AA49: 567.22 | AC49: 0.0995 | AD49: 0 | AE49: 567.22 | AG49: 0
B50: 29 | C50: 2026-06-04 | D50: 31 | E50: 0.0995 | F50: 0.11542 | G50: 1.010738944 | H50: 1.355777396 | I50: 0.7375842102 | J50: FALSE | K50: 1 | L50: 0.7375842102 | M50: 0 | N50: 0 | O50: 0 | P50: 0 | Q50: 0 | R50: 399 | S50: 63.84 | T50: 0 | U50: 0 | V50: 0 | W50: 84.48 | X50: 13.52 | Y50: 5.5 | Z50: 0.88 | AA50: 567.22 | AC50: 0.0995 | AD50: 0 | AE50: 567.22 | AG50: 0
B51: 30 | C51: 2026-07-04 | D51: 30 | E51: 0.0995 | F51: 0.11542 | G51: 1.010418333 | H51: 1.369902337 | I51: 0.7299790452 | J51: FALSE | K51: 1 | L51: 0.7299790452 | M51: 0 | N51: 0 | O51: 0 | P51: 0 | Q51: 0 | R51: 399 | S51: 63.84 | T51: 0 | U51: 0 | V51: 0 | W51: 84.48 | X51: 13.52 | Y51: 5.5 | Z51: 0.88 | AA51: 567.22 | AC51: 0.0995 | AD51: 0 | AE51: 567.22 | AG51: 0
B52: 31 | C52: 2026-08-04 | D52: 31 | E52: 0.0995 | F52: 0.11542 | G52: 1.010738944 | H52: 1.384613642 | I52: 0.7222231311 | J52: FALSE | K52: 1 | L52: 0.7222231311 | M52: 0 | N52: 0 | O52: 0 | P52: 0 | Q52: 0 | R52: 399 | S52: 63.84 | T52: 0 | U52: 0 | V52: 0 | W52: 84.48 | X52: 13.52 | Y52: 5.5 | Z52: 0.88 | AA52: 567.22 | AC52: 0.0995 | AD52: 0 | AE52: 567.22 | AG52: 0
B53: 32 | C53: =IF(B53=0,FECHA_1ER_PAGO,EDATE(C52,1)) -> 2026-09-04 | D53: 31 | E53: 0.0995 | F53: 0.11542 | G53: 1.010738944 | H53: 1.399482931 | I53: 0.7145496224 | J53: FALSE | K53: 1 | L53: 0.7145496224 | M53: 0 | N53: 0 | O53: 0 | P53: 0 | Q53: 0 | R53: 399 | S53: 63.84 | T53: 0 | U53: 0 | V53: 0 | W53: 84.48 | X53: 13.52 | Y53: 5.5 | Z53: 0.88 | AA53: 567.22 | AC53: 0.0995 | AD53: 0 | AE53: 567.22 | AG53: 0
B54: 33 | C54: 2026-10-04 | D54: 30 | E54: 0.0995 | F54: 0.11542 | G54: 1.010418333 | H54: 1.414063211 | I54: 0.7071819649 | J54: FALSE | K54: 1 | L54: 0.7071819649 | M54: 0 | N54: 0 | O54: 0 | P54: 0 | Q54: 0 | R54: 399 | S54: 63.84 | T54: 0 | U54: 0 | V54: 0 | W54: 84.48 | X54: 13.52 | Y54: 5.5 | Z54: 0.88 | AA54: 567.22 | AC54: 0.0995 | AD54: 0 | AE54: 567.22 | AG54: 0
B55: 34 | C55: 2026-11-04 | D55: 31 | E55: 0.0995 | F55: 0.11542 | G55: 1.010738944 | H55: 1.429248757 | I55: 0.6996682663 | J55: FALSE | K55: 1 | L55: 0.6996682663 | M55: 0 | N55: 0 | O55: 0 | P55: 0 | Q55: 0 | R55: 399 | S55: 63.84 | T55: 0 | U55: 0 | V55: 0 | W55: 84.48 | X55: 13.52 | Y55: 5.5 | Z55: 0.88 | AA55: 567.22 | AC55: 0.0995 | AD55: 0 | AE55: 567.22 | AG55: 0
B56: 35 | C56: 2026-12-04 | D56: 30 | E56: 0.0995 | F56: 0.11542 | G56: 1.010418333 | H56: 1.444139147 | I56: 0.6924540492 | J56: FALSE | K56: 1 | L56: 0.6924540492 | M56: 0 | N56: 0 | O56: 0 | P56: 0 | Q56: 0 | R56: 399 | S56: 63.84 | T56: 0 | U56: 0 | V56: 0 | W56: 84.48 | X56: 13.52 | Y56: 5.5 | Z56: 0.88 | AA56: 567.22 | AC56: 0.0995 | AD56: 0 | AE56: 567.22 | AG56: 0
B57: 36 | C57: 2027-01-04 | D57: 31 | E57: 0.0995 | F57: 0.11542 | G57: 1.010738944 | H57: 1.459647677 | I57: 0.6850968324 | J57: TRUE | K57: 1 | L57: 0.6850968324 | M57: 0 | N57: 0 | O57: 0 | P57: 0 | Q57: 0 | R57: 399 | S57: 63.84 | T57: 0 | U57: 0 | V57: 0 | W57: 84.48 | X57: 13.52 | Y57: 5.5 | Z57: 0.88 | AA57: 567.22 | AC57: 0.0995 | AD57: 0 | AE57: 567.22 | AG57: 0
B58: 37 | C58: 2027-02-04 | D58: 31 | E58: 0.0995 | F58: 0.11542 | G58: 1.010738944 | H58: 1.475322752 | I58: 0.6778177848 | J58: FALSE | K58: 1 | L58: 0.6778177848 | M58: 0 | N58: 0 | O58: 0 | P58: 0 | Q58: 0 | R58: 399 | S58: 63.84 | T58: 0 | U58: 0 | V58: 0 | W58: 84.48 | X58: 13.52 | Y58: 5.5 | Z58: 0.88 | AA58: 567.22 | AC58: 0.0995 | AD58: 0 | AE58: 567.22 | AG58: 0
B59: 38 | C59: 2027-03-04 | D59: 28 | E59: 0.0995 | F59: 0.11542 | G59: 1.009777111 | H59: 1.489747147 | I59: 0.6712548516 | J59: FALSE | K59: 1 | L59: 0.6712548516 | M59: 0 | N59: 0 | O59: 0 | P59: 0 | Q59: 0 | R59: 399 | S59: 63.84 | T59: 0 | U59: 0 | V59: 0 | W59: 84.48 | X59: 13.52 | Y59: 5.5 | Z59: 0.88 | AA59: 567.22 | AC59: 0.0995 | AD59: 0 | AE59: 567.22 | AG59: 0
B60: 39 | C60: 2027-04-04 | D60: 31 | E60: 0.0995 | F60: 0.11542 | G60: 1.010738944 | H60: 1.505745459 | I60: 0.6641228729 | J60: FALSE | K60: 1 | L60: 0.6641228729 | M60: 0 | N60: 0 | O60: 0 | P60: 0 | Q60: 0 | R60: 399 | S60: 63.84 | T60: 0 | U60: 0 | V60: 0 | W60: 84.48 | X60: 13.52 | Y60: 5.5 | Z60: 0.88 | AA60: 567.22 | AC60: 0.0995 | AD60: 0 | AE60: 567.22 | AG60: 0
B61: 40 | C61: 2027-05-04 | D61: 30 | E61: 0.0995 | F61: 0.11542 | G61: 1.010418333 | H61: 1.521432817 | I61: 0.6572751612 | J61: FALSE | K61: 1 | L61: 0.6572751612 | M61: 0 | N61: 0 | O61: 0 | P61: 0 | Q61: 0 | R61: 399 | S61: 63.84 | T61: 0 | U61: 0 | V61: 0 | W61: 84.48 | X61: 13.52 | Y61: 5.5 | Z61: 0.88 | AA61: 567.22 | AC61: 0.0995 | AD61: 0 | AE61: 567.22 | AG61: 0
B62: 41 | C62: 2027-06-04 | D62: 31 | E62: 0.0995 | F62: 0.11542 | G62: 1.010738944 | H62: 1.537771399 | I62: 0.6502917146 | J62: FALSE | K62: 1 | L62: 0.6502917146 | M62: 0 | N62: 0 | O62: 0 | P62: 0 | Q62: 0 | R62: 399 | S62: 63.84 | T62: 0 | U62: 0 | V62: 0 | W62: 84.48 | X62: 13.52 | Y62: 5.5 | Z62: 0.88 | AA62: 567.22 | AC62: 0.0995 | AD62: 0 | AE62: 567.22 | AG62: 0
B63: 42 | C63: 2027-07-04 | D63: 30 | E63: 0.0995 | F63: 0.11542 | G63: 1.010418333 | H63: 1.553792414 | I63: 0.6435866147 | J63: FALSE | K63: 1 | L63: 0.6435866147 | M63: 0 | N63: 0 | O63: 0 | P63: 0 | Q63: 0 | R63: 399 | S63: 63.84 | T63: 0 | U63: 0 | V63: 0 | W63: 84.48 | X63: 13.52 | Y63: 5.5 | Z63: 0.88 | AA63: 567.22 | AC63: 0.0995 | AD63: 0 | AE63: 567.22 | AG63: 0
B64: 43 | C64: 2027-08-04 | D64: 31 | E64: 0.0995 | F64: 0.11542 | G64: 1.010738944 | H64: 1.570478505 | I64: 0.6367486068 | J64: FALSE | K64: 1 | L64: 0.6367486068 | M64: 0 | N64: 0 | O64: 0 | P64: 0 | Q64: 0 | R64: 399 | S64: 63.84 | T64: 0 | U64: 0 | V64: 0 | W64: 84.48 | X64: 13.52 | Y64: 5.5 | Z64: 0.88 | AA64: 567.22 | AC64: 0.0995 | AD64: 0 | AE64: 567.22 | AG64: 0
B65: 44 | C65: 2027-09-04 | D65: 31 | E65: 0.0995 | F65: 0.11542 | G65: 1.010738944 | H65: 1.587343786 | I65: 0.6299832517 | J65: FALSE | K65: 1 | L65: 0.6299832517 | M65: 0 | N65: 0 | O65: 0 | P65: 0 | Q65: 0 | R65: 399 | S65: 63.84 | T65: 0 | U65: 0 | V65: 0 | W65: 84.48 | X65: 13.52 | Y65: 5.5 | Z65: 0.88 | AA65: 567.22 | AC65: 0.0995 | AD65: 0 | AE65: 567.22 | AG65: 0
B66: 45 | C66: 2027-10-04 | D66: 30 | E66: 0.0995 | F66: 0.11542 | G66: 1.010418333 | H66: 1.603881263 | I66: 0.6234875506 | J66: FALSE | K66: 1 | L66: 0.6234875506 | M66: 0 | N66: 0 | O66: 0 | P66: 0 | Q66: 0 | R66: 399 | S66: 63.84 | T66: 0 | U66: 0 | V66: 0 | W66: 84.48 | X66: 13.52 | Y66: 5.5 | Z66: 0.88 | AA66: 567.22 | AC66: 0.0995 | AD66: 0 | AE66: 567.22 | AG66: 0
B67: 46 | C67: 2027-11-04 | D67: 31 | E67: 0.0995 | F67: 0.11542 | G67: 1.010738944 | H67: 1.621105255 | I67: 0.6168630921 | J67: FALSE | K67: 1 | L67: 0.6168630921 | M67: 0 | N67: 0 | O67: 0 | P67: 0 | Q67: 0 | R67: 399 | S67: 63.84 | T67: 0 | U67: 0 | V67: 0 | W67: 84.48 | X67: 13.52 | Y67: 5.5 | Z67: 0.88 | AA67: 567.22 | AC67: 0.0995 | AD67: 0 | AE67: 567.22 | AG67: 0
B68: 47 | C68: 2027-12-04 | D68: 30 | E68: 0.0995 | F68: 0.11542 | G68: 1.010418333 | H68: 1.63799447 | I68: 0.6105026717 | J68: FALSE | K68: 1 | L68: 0.6105026717 | M68: 0 | N68: 0 | O68: 0 | P68: 0 | Q68: 0 | R68: 399 | S68: 63.84 | T68: 0 | U68: 0 | V68: 0 | W68: 84.48 | X68: 13.52 | Y68: 5.5 | Z68: 0.88 | AA68: 567.22 | AC68: 0.0995 | AD68: 0 | AE68: 567.22 | AG68: 0
B69: 48 | C69: 2028-01-04 | D69: 31 | E69: 0.0995 | F69: 0.11542 | G69: 1.010738944 | H69: 1.655584801 | I69: 0.6040161756 | J69: TRUE | K69: 1 | L69: 0.6040161756 | M69: 0 | N69: 0 | O69: 0 | P69: 0 | Q69: 0 | R69: 399 | S69: 63.84 | T69: 0 | U69: 0 | V69: 0 | W69: 84.48 | X69: 13.52 | Y69: 5.5 | Z69: 0.88 | AA69: 567.22 | AC69: 0.0995 | AD69: 0 | AE69: 567.22 | AG69: 0
B70: 49 | C70: 2028-02-04 | D70: 31 | E70: 0.0995 | F70: 0.11542 | G70: 1.010738944 | H70: 1.673364034 | I70: 0.5975985975 | J70: FALSE | K70: 1 | L70: 0.5975985975 | M70: 0 | N70: 0 | O70: 0 | P70: 0 | Q70: 0 | R70: 399 | S70: 63.84 | T70: 0 | U70: 0 | V70: 0 | W70: 84.48 | X70: 13.52 | Y70: 5.5 | Z70: 0.88 | AA70: 567.22 | AC70: 0.0995 | AD70: 0 | AE70: 567.22 | AG70: 0
B71: 50 | C71: 2028-03-04 | D71: 29 | E71: 0.0995 | F71: 0.11542 | G71: 1.010097722 | H71: 1.6902612 | I71: 0.5916245372 | J71: FALSE | K71: 1 | L71: 0.5916245372 | M71: 0 | N71: 0 | O71: 0 | P71: 0 | Q71: 0 | R71: 399 | S71: 63.84 | T71: 0 | U71: 0 | V71: 0 | W71: 84.48 | X71: 13.52 | Y71: 5.5 | Z71: 0.88 | AA71: 567.22 | AC71: 0.0995 | AD71: 0 | AE71: 567.22 | AG71: 0
B72: 51 | C72: 2028-04-04 | D72: 31 | E72: 0.0995 | F72: 0.11542 | G72: 1.010738944 | H72: 1.708412821 | I72: 0.5853386183 | J72: FALSE | K72: 1 | L72: 0.5853386183 | M72: 0 | N72: 0 | O72: 0 | P72: 0 | Q72: 0 | R72: 399 | S72: 63.84 | T72: 0 | U72: 0 | V72: 0 | W72: 84.48 | X72: 13.52 | Y72: 5.5 | Z72: 0.88 | AA72: 567.22 | AC72: 0.0995 | AD72: 0 | AE72: 567.22 | AG72: 0
B73: 52 | C73: 2028-05-04 | D73: 30 | E73: 0.0995 | F73: 0.11542 | G73: 1.010418333 | H73: 1.726211635 | I73: 0.579303244 | J73: FALSE | K73: 1 | L73: 0.579303244 | M73: 0 | N73: 0 | O73: 0 | P73: 0 | Q73: 0 | R73: 399 | S73: 63.84 | T73: 0 | U73: 0 | V73: 0 | W73: 84.48 | X73: 13.52 | Y73: 5.5 | Z73: 0.88 | AA73: 567.22 | AC73: 0.0995 | AD73: 0 | AE73: 567.22 | AG73: 0
B74: 53 | C74: 2028-06-04 | D74: 31 | E74: 0.0995 | F74: 0.11542 | G74: 1.010738944 | H74: 1.744749326 | I74: 0.5731482369 | J74: FALSE | K74: 1 | L74: 0.5731482369 | M74: 0 | N74: 0 | O74: 0 | P74: 0 | Q74: 0 | R74: 399 | S74: 63.84 | T74: 0 | U74: 0 | V74: 0 | W74: 84.48 | X74: 13.52 | Y74: 5.5 | Z74: 0.88 | AA74: 567.22 | AC74: 0.0995 | AD74: 0 | AE74: 567.22 | AG74: 0
B75: 54 | C75: 2028-07-04 | D75: 30 | E75: 0.0995 | F75: 0.11542 | G75: 1.010418333 | H75: 1.762926706 | I75: 0.5672385566 | J75: FALSE | K75: 1 | L75: 0.5672385566 | M75: 0 | N75: 0 | O75: 0 | P75: 0 | Q75: 0 | R75: 399 | S75: 63.84 | T75: 0 | U75: 0 | V75: 0 | W75: 84.48 | X75: 13.52 | Y75: 5.5 | Z75: 0.88 | AA75: 567.22 | AC75: 0.0995 | AD75: 0 | AE75: 567.22 | AG75: 0
B76: 55 | C76: 2028-08-04 | D76: 31 | E76: 0.0995 | F76: 0.11542 | G76: 1.010738944 | H76: 1.781858678 | I76: 0.5612117349 | J76: FALSE | K76: 1 | L76: 0.5612117349 | M76: 0 | N76: 0 | O76: 0 | P76: 0 | Q76: 0 | R76: 399 | S76: 63.84 | T76: 0 | U76: 0 | V76: 0 | W76: 84.48 | X76: 13.52 | Y76: 5.5 | Z76: 0.88 | AA76: 567.22 | AC76: 0.0995 | AD76: 0 | AE76: 567.22 | AG76: 0
B77: 56 | C77: 2028-09-04 | D77: 31 | E77: 0.0995 | F77: 0.11542 | G77: 1.010738944 | H77: 1.800993959 | I77: 0.5552489473 | J77: FALSE | K77: 1 | L77: 0.5552489473 | M77: 0 | N77: 0 | O77: 0 | P77: 0 | Q77: 0 | R77: 399 | S77: 63.84 | T77: 0 | U77: 0 | V77: 0 | W77: 84.48 | X77: 13.52 | Y77: 5.5 | Z77: 0.88 | AA77: 567.22 | AC77: 0.0995 | AD77: 0 | AE77: 567.22 | AG77: 0
B78: 57 | C78: 2028-10-04 | D78: 30 | E78: 0.0995 | F78: 0.11542 | G78: 1.010418333 | H78: 1.819757315 | I78: 0.549523825 | J78: FALSE | K78: 1 | L78: 0.549523825 | M78: 0 | N78: 0 | O78: 0 | P78: 0 | Q78: 0 | R78: 399 | S78: 63.84 | T78: 0 | U78: 0 | V78: 0 | W78: 84.48 | X78: 13.52 | Y78: 5.5 | Z78: 0.88 | AA78: 567.22 | AC78: 0.0995 | AD78: 0 | AE78: 567.22 | AG78: 0
B79: 58 | C79: 2028-11-04 | D79: 31 | E79: 0.0995 | F79: 0.11542 | G79: 1.010738944 | H79: 1.839299587 | I79: 0.5436852196 | J79: FALSE | K79: 1 | L79: 0.5436852196 | M79: 0 | N79: 0 | O79: 0 | P79: 0 | Q79: 0 | R79: 399 | S79: 63.84 | T79: 0 | U79: 0 | V79: 0 | W79: 84.48 | X79: 13.52 | Y79: 5.5 | Z79: 0.88 | AA79: 567.22 | AC79: 0.0995 | AD79: 0 | AE79: 567.22 | AG79: 0
B80: 59 | C80: 2028-12-04 | D80: 30 | E80: 0.0995 | F80: 0.11542 | G80: 1.010418333 | H80: 1.858462023 | I80: 0.5380793298 | J80: FALSE | K80: 1 | L80: 0.5380793298 | M80: 0 | N80: 0 | O80: 0 | P80: 0 | Q80: 0 | R80: 399 | S80: 63.84 | T80: 0 | U80: 0 | V80: 0 | W80: 84.48 | X80: 13.52 | Y80: 5.5 | Z80: 0.88 | AA80: 567.22 | AC80: 0.0995 | AD80: 0 | AE80: 567.22 | AG80: 0
B81: 60 | C81: 2029-01-04 | D81: 31 | E81: 0.0995 | F81: 0.11542 | G81: 1.010738944 | H81: 1.878419944 | I81: 0.5323623204 | J81: TRUE | K81: 1 | L81: 0.5323623204 | M81: 0 | N81: 0 | O81: 0 | P81: 0 | Q81: 0 | R81: 399 | S81: 63.84 | T81: 0 | U81: 0 | V81: 0 | W81: 84.48 | X81: 13.52 | Y81: 5.5 | Z81: 0.88 | AA81: 567.22 | AC81: 0.0995 | AD81: 0 | AE81: 567.22 | AG81: 0
B82: 61 | C82: 2029-02-04 | D82: 31 | E82: 0.0995 | F82: 0.11542 | G82: 1.010738944 | H82: 1.898592191 | I82: 0.5267060533 | J82: FALSE | K82: 1 | L82: 0.5267060533 | M82: 0 | N82: 0 | O82: 0 | P82: 0 | Q82: 0 | R82: 399 | S82: 63.84 | T82: 0 | U82: 0 | V82: 0 | W82: 84.48 | X82: 13.52 | Y82: 5.5 | Z82: 0.88 | AA82: 567.22 | AC82: 0.0995 | AD82: 0 | AE82: 567.22 | AG82: 0
B83: 62 | C83: 2029-03-04 | D83: 28 | E83: 0.0995 | F83: 0.11542 | G83: 1.009777111 | H83: 1.917154938 | I83: 0.5216062511 | J83: FALSE | K83: 1 | L83: 0.5216062511 | M83: 0 | N83: 0 | O83: 0 | P83: 0 | Q83: 0 | R83: 399 | S83: 63.84 | T83: 0 | U83: 0 | V83: 0 | W83: 84.48 | X83: 13.52 | Y83: 5.5 | Z83: 0.88 | AA83: 567.22 | AC83: 0.0995 | AD83: 0 | AE83: 567.22 | AG83: 0
B84: 63 | C84: 2029-04-04 | D84: 31 | E84: 0.0995 | F84: 0.11542 | G84: 1.010738944 | H84: 1.937743159 | I84: 0.5160642656 | J84: FALSE | K84: 1 | L84: 0.5160642656 | M84: 0 | N84: 0 | O84: 0 | P84: 0 | Q84: 0 | R84: 399 | S84: 63.84 | T84: 0 | U84: 0 | V84: 0 | W84: 84.48 | X84: 13.52 | Y84: 5.5 | Z84: 0.88 | AA84: 567.22 | AC84: 0.0995 | AD84: 0 | AE84: 567.22 | AG84: 0
B85: 64 | C85: =IF(B85=0,FECHA_1ER_PAGO,EDATE(C84,1)) -> 2029-05-04 | D85: =IF(B85=0,FECHA_1ER_PAGO-FECHA_APERTURA, C85-C84) -> 30 | E85: =IF(B85=0,TASA,IF(B85=MESES_INC_TASA,E84+INCREMENTO_TASA,E84)) -> 0.0995 | F85: 0.11542 | G85: =IF(B85<MESES_GRACIA, 0, 1 + D85 * F85 / 360 + FACTOR_SEG_DEUD) -> 1.010418333 | H85: =IF(B85 = 0, 0, IF(H84=0, G85, H84 * G85 )) -> 1.957931213 | I85: 0.510743173 | J85: =MOD(B85, MESES_INC)=0 -> FALSE | K85: 1 | L85: 0.510743173 | M85: =ROUND(CUOTA_INIT*K85,2) -> 0 | N85: =IF(B85=0,TOTAL_FINANCIADO, ROUND(N84-O84,2)) -> 0 | O85: =IF(B85=0, 0, IF((B85+1) = PLAZO, N85, IF(B85<MESES_GRACIA, 0, M85-P85-V85-Q85))) -> 0 | P85: =IF(B85<MESES_GRACIA, 0, ROUND(N85 * D85 *E85 /360,2)) -> 0 | Q85: 0 | R85: =COMISION_AMORT -> 399 | S85: =ROUND(R85*IVA,2) -> 63.84 | T85: =SEGURO_DAÑOS_MENS -> 0 | U85: =T85*IVA -> 0 | V85: =ROUND(N85 * FACTOR_SEG_DEUD,2) -> 0 | W85: =ROUND(SEGURO_INTERIORES/(1+IVA),2) -> 84.48 | X85: =ROUND(W85*IVA,2) -> 13.52 | Y85: =ROUND((SUM(O85:X85)-Q85) * FACTOR_SEG_DESEMPLEO,2) -> 5.5 | Z85: =ROUND(Y85*IVA,2) -> 0.88 | AA85: =IF(B85>=PLAZO,0,ROUND(SUM(O85:Z85),2)) -> 567.22 | AC85: =IF(AB85="SI",TASA_PP,TASA) -> 0.0995 | AD85: =N85 * D85 * AC85 /360 -> 0 | AE85: =IF(B85>=PLAZO, 0, O85+R85+S85+T85+U85+V85+W85+X85+Y85+Z85+AD85) -> 567.22 | AG85: 0
B86: 65 | C86: 2029-06-04 | D86: 31 | E86: 0.0995 | F86: =E86*(1+$G$13) -> 0.11542 | G86: 1.010738944 | H86: 1.978957327 | I86: 0.505316606 | J86: FALSE | K86: =IF(B86=0, 1, IF(J86,K85*(1+INCREMENTO),K85)) -> 1 | L86: 0.505316606 | M86: 0 | N86: 0 | O86: 0 | P86: 0 | Q86: =ROUND(P86*$G$13,2) -> 0 | R86: 399 | S86: 63.84 | T86: 0 | U86: 0 | V86: 0 | W86: 84.48 | X86: 13.52 | Y86: 5.5 | Z86: 0.88 | AA86: 567.22 | AC86: 0.0995 | AD86: 0 | AE86: 567.22 | AG86: =IF(N86> 0,O86+P86+V86+R86+T86+W86+Y86, 0) -> 0
B87: 66 | C87: 2029-07-04 | D87: 30 | E87: 0.0995 | F87: 0.11542 | G87: 1.010418333 | H87: 1.999574764 | I87: 0.5001063315 | J87: FALSE | K87: 1 | L87: =I87*K87 -> 0.5001063315 | M87: 0 | N87: 0 | O87: 0 | P87: 0 | Q87: 0 | R87: 399 | S87: 63.84 | T87: 0 | U87: 0 | V87: 0 | W87: 84.48 | X87: 13.52 | Y87: 5.5 | Z87: 0.88 | AA87: 567.22 | AC87: 0.0995 | AD87: 0 | AE87: 567.22 | AG87: 0
B88: 67 | C88: 2029-08-04 | D88: 31 | E88: 0.0995 | F88: 0.11542 | G88: 1.010738944 | H88: 2.021048087 | I88: =IF(H88=0, 0, 1/H88) -> 0.4947927794 | J88: FALSE | K88: 1 | L88: 0.4947927794 | M88: 0 | N88: 0 | O88: 0 | P88: 0 | Q88: 0 | R88: 399 | S88: 63.84 | T88: 0 | U88: 0 | V88: 0 | W88: 84.48 | X88: 13.52 | Y88: 5.5 | Z88: 0.88 | AA88: 567.22 | AC88: 0.0995 | AD88: 0 | AE88: 567.22 | AG88: 0
B89: 68 | C89: 2029-09-04 | D89: 31 | E89: 0.0995 | F89: 0.11542 | G89: 1.010738944 | H89: 2.04275201 | I89: 0.4895356829 | J89: FALSE | K89: 1 | L89: 0.4895356829 | M89: 0 | N89: 0 | O89: 0 | P89: 0 | Q89: 0 | R89: 399 | S89: 63.84 | T89: 0 | U89: 0 | V89: 0 | W89: 84.48 | X89: 13.52 | Y89: 5.5 | Z89: 0.88 | AA89: 567.22 | AC89: 0.0995 | AD89: 0 | AE89: 567.22 | AG89: 0
B90: 69 | C90: 2029-10-04 | D90: 30 | E90: 0.0995 | F90: 0.11542 | G90: 1.010418333 | H90: 2.064034081 | I90: 0.4844881241 | J90: FALSE | K90: 1 | L90: 0.4844881241 | M90: 0 | N90: 0 | O90: 0 | P90: 0 | Q90: 0 | R90: 399 | S90: 63.84 | T90: 0 | U90: 0 | V90: 0 | W90: 84.48 | X90: 13.52 | Y90: 5.5 | Z90: 0.88 | AA90: 567.22 | AC90: 0.0995 | AD90: 0 | AE90: 567.22 | AG90: 0
B91: 70 | C91: 2029-11-04 | D91: 31 | E91: 0.0995 | F91: 0.11542 | G91: 1.010738944 | H91: 2.086199628 | I91: 0.479340513 | J91: FALSE | K91: 1 | L91: 0.479340513 | M91: 0 | N91: 0 | O91: 0 | P91: 0 | Q91: 0 | R91: 399 | S91: 63.84 | T91: 0 | U91: 0 | V91: 0 | W91: 84.48 | X91: 13.52 | Y91: 5.5 | Z91: 0.88 | AA91: 567.22 | AC91: 0.0995 | AD91: 0 | AE91: 567.22 | AG91: 0
B92: 71 | C92: 2029-12-04 | D92: 30 | E92: 0.0995 | F92: 0.11542 | G92: 1.010418333 | H92: 2.107934351 | I92: 0.4743980757 | J92: FALSE | K92: 1 | L92: 0.4743980757 | M92: 0 | N92: 0 | O92: 0 | P92: 0 | Q92: 0 | R92: 399 | S92: 63.84 | T92: 0 | U92: 0 | V92: 0 | W92: 84.48 | X92: 13.52 | Y92: 5.5 | Z92: 0.88 | AA92: 567.22 | AC92: 0.0995 | AD92: 0 | AE92: 567.22 | AG92: 0
B93: 72 | C93: 2030-01-04 | D93: 31 | E93: 0.0995 | F93: 0.11542 | G93: 1.010738944 | H93: 2.130571341 | I93: 0.4693576697 | J93: TRUE | K93: 1 | L93: 0.4693576697 | M93: 0 | N93: 0 | O93: 0 | P93: 0 | Q93: 0 | R93: 399 | S93: 63.84 | T93: 0 | U93: 0 | V93: 0 | W93: 84.48 | X93: 13.52 | Y93: 5.5 | Z93: 0.88 | AA93: 567.22 | AC93: 0.0995 | AD93: 0 | AE93: 567.22 | AG93: 0
B94: 73 | C94: 2030-02-04 | D94: 31 | E94: 0.0995 | F94: 0.11542 | G94: 1.010738944 | H94: 2.153451429 | I94: 0.4643708173 | J94: FALSE | K94: 1 | L94: 0.4643708173 | M94: 0 | N94: 0 | O94: 0 | P94: 0 | Q94: 0 | R94: 399 | S94: 63.84 | T94: 0 | U94: 0 | V94: 0 | W94: 84.48 | X94: 13.52 | Y94: 5.5 | Z94: 0.88 | AA94: 567.22 | AC94: 0.0995 | AD94: 0 | AE94: 567.22 | AG94: 0
B95: 74 | C95: 2030-03-04 | D95: 28 | E95: 0.0995 | F95: 0.11542 | G95: 1.009777111 | H95: 2.174505963 | I95: 0.4598745725 | J95: FALSE | K95: 1 | L95: 0.4598745725 | M95: 0 | N95: 0 | O95: 0 | P95: 0 | Q95: 0 | R95: 399 | S95: 63.84 | T95: 0 | U95: 0 | V95: 0 | W95: 84.48 | X95: 13.52 | Y95: 5.5 | Z95: 0.88 | AA95: 567.22 | AC95: 0.0995 | AD95: 0 | AE95: 567.22 | AG95: 0
B96: 75 | C96: 2030-04-04 | D96: 31 | E96: 0.0995 | F96: 0.11542 | G96: 1.010738944 | H96: 2.197857861 | I96: 0.4549884766 | J96: FALSE | K96: 1 | L96: 0.4549884766 | M96: 0 | N96: 0 | O96: 0 | P96: 0 | Q96: 0 | R96: 399 | S96: 63.84 | T96: 0 | U96: 0 | V96: 0 | W96: 84.48 | X96: 13.52 | Y96: 5.5 | Z96: 0.88 | AA96: 567.22 | AC96: 0.0995 | AD96: 0 | AE96: 567.22 | AG96: 0
B97: 76 | C97: 2030-05-04 | D97: 30 | E97: 0.0995 | F97: 0.11542 | G97: 1.010418333 | H97: 2.220755877 | I97: 0.450297131 | J97: FALSE | K97: 1 | L97: 0.450297131 | M97: 0 | N97: 0 | O97: 0 | P97: 0 | Q97: 0 | R97: 399 | S97: 63.84 | T97: 0 | U97: 0 | V97: 0 | W97: 84.48 | X97: 13.52 | Y97: 5.5 | Z97: 0.88 | AA97: 567.22 | AC97: 0.0995 | AD97: 0 | AE97: 567.22 | AG97: 0
B98: 77 | C98: 2030-06-04 | D98: 31 | E98: 0.0995 | F98: 0.11542 | G98: 1.010738944 | H98: 2.244604451 | I98: 0.4455127938 | J98: FALSE | K98: 1 | L98: 0.4455127938 | M98: 0 | N98: 0 | O98: 0 | P98: 0 | Q98: 0 | R98: 399 | S98: 63.84 | T98: 0 | U98: 0 | V98: 0 | W98: 84.48 | X98: 13.52 | Y98: 5.5 | Z98: 0.88 | AA98: 567.22 | AC98: 0.0995 | AD98: 0 | AE98: 567.22 | AG98: 0
B99: 78 | C99: 2030-07-04 | D99: 30 | E99: 0.0995 | F99: 0.11542 | G99: 1.010418333 | H99: 2.267989488 | I99: 0.4409191511 | J99: FALSE | K99: 1 | L99: 0.4409191511 | M99: 0 | N99: 0 | O99: 0 | P99: 0 | Q99: 0 | R99: 399 | S99: 63.84 | T99: 0 | U99: 0 | V99: 0 | W99: 84.48 | X99: 13.52 | Y99: 5.5 | Z99: 0.88 | AA99: 567.22 | AC99: 0.0995 | AD99: 0 | AE99: 567.22 | AG99: 0
B100: 79 | C100: 2030-08-04 | D100: 31 | E100: 0.0995 | F100: 0.11542 | G100: 1.010738944 | H100: 2.292345302 | I100: 0.4362344536 | J100: FALSE | K100: 1 | L100: 0.4362344536 | M100: 0 | N100: 0 | O100: 0 | P100: 0 | Q100: 0 | R100: 399 | S100: 63.84 | T100: 0 | U100: 0 | V100: 0 | W100: 84.48 | X100: 13.52 | Y100: 5.5 | Z100: 0.88 | AA100: 567.22 | AC100: 0.0995 | AD100: 0 | AE100: 567.22 | AG100: 0
B101: 80 | C101: 2030-09-04 | D101: 31 | E101: 0.0995 | F101: 0.11542 | G101: 1.010738944 | H101: 2.31696267 | I101: 0.4315995302 | J101: FALSE | K101: 1 | L101: 0.4315995302 | M101: 0 | N101: 0 | O101: 0 | P101: 0 | Q101: 0 | R101: 399 | S101: 63.84 | T101: 0 | U101: 0 | V101: 0 | W101: 84.48 | X101: 13.52 | Y101: 5.5 | Z101: 0.88 | AA101: 567.22 | AC101: 0.0995 | AD101: 0 | AE101: 567.22 | AG101: 0
B102: 81 | C102: 2030-10-04 | D102: 30 | E102: 0.0995 | F102: 0.11542 | G102: 1.010418333 | H102: 2.34110156 | I102: 0.4271493459 | J102: FALSE | K102: 1 | L102: 0.4271493459 | M102: 0 | N102: 0 | O102: 0 | P102: 0 | Q102: 0 | R102: 399 | S102: 63.84 | T102: 0 | U102: 0 | V102: 0 | W102: 84.48 | X102: 13.52 | Y102: 5.5 | Z102: 0.88 | AA102: 567.22 | AC102: 0.0995 | AD102: 0 | AE102: 567.22 | AG102: 0
B103: 82 | C103: 2030-11-04 | D103: 31 | E103: 0.0995 | F103: 0.11542 | G103: 1.010738944 | H103: 2.366242519 | I103: 0.4226109504 | J103: FALSE | K103: 1 | L103: 0.4226109504 | M103: 0 | N103: 0 | O103: 0 | P103: 0 | Q103: 0 | R103: 399 | S103: 63.84 | T103: 0 | U103: 0 | V103: 0 | W103: 84.48 | X103: 13.52 | Y103: 5.5 | Z103: 0.88 | AA103: 567.22 | AC103: 0.0995 | AD103: 0 | AE103: 567.22 | AG103: 0
B104: 83 | C104: 2030-12-04 | D104: 30 | E104: 0.0995 | F104: 0.11542 | G104: 1.010418333 | H104: 2.390894823 | I104: 0.4182534466 | J104: FALSE | K104: 1 | L104: 0.4182534466 | M104: 0 | N104: 0 | O104: 0 | P104: 0 | Q104: 0 | R104: 399 | S104: 63.84 | T104: 0 | U104: 0 | V104: 0 | W104: 84.48 | X104: 13.52 | Y104: 5.5 | Z104: 0.88 | AA104: 567.22 | AC104: 0.0995 | AD104: 0 | AE104: 567.22 | AG104: 0
B105: 84 | C105: 2031-01-04 | D105: 31 | E105: 0.0995 | F105: 0.11542 | G105: 1.010738944 | H105: 2.416570509 | I105: 0.4138095686 | J105: TRUE | K105: 1 | L105: 0.4138095686 | M105: 0 | N105: 0 | O105: 0 | P105: 0 | Q105: 0 | R105: 399 | S105: 63.84 | T105: 0 | U105: 0 | V105: 0 | W105: 84.48 | X105: 13.52 | Y105: 5.5 | Z105: 0.88 | AA105: 567.22 | AC105: 0.0995 | AD105: 0 | AE105: 567.22 | AG105: 0
B106: 85 | C106: 2031-02-04 | D106: 31 | E106: 0.0995 | F106: 0.11542 | G106: 1.010738944 | H106: 2.442521926 | I106: 0.4094129061 | J106: FALSE | K106: 1 | L106: 0.4094129061 | M106: 0 | N106: 0 | O106: 0 | P106: 0 | Q106: 0 | R106: 399 | S106: 63.84 | T106: 0 | U106: 0 | V106: 0 | W106: 84.48 | X106: 13.52 | Y106: 5.5 | Z106: 0.88 | AA106: 567.22 | AC106: 0.0995 | AD106: 0 | AE106: 567.22 | AG106: 0
B107: 86 | C107: 2031-03-04 | D107: 28 | E107: 0.0995 | F107: 0.11542 | G107: 1.009777111 | H107: 2.466402734 | I107: 0.4054487883 | J107: FALSE | K107: 1 | L107: 0.4054487883 | M107: 0 | N107: 0 | O107: 0 | P107: 0 | Q107: 0 | R107: 399 | S107: 63.84 | T107: 0 | U107: 0 | V107: 0 | W107: 84.48 | X107: 13.52 | Y107: 5.5 | Z107: 0.88 | AA107: 567.22 | AC107: 0.0995 | AD107: 0 | AE107: 567.22 | AG107: 0
B108: 87 | C108: 2031-04-04 | D108: 31 | E108: 0.0995 | F108: 0.11542 | G108: 1.010738944 | H108: 2.492889296 | I108: 0.4011409578 | J108: FALSE | K108: 1 | L108: 0.4011409578 | M108: 0 | N108: 0 | O108: 0 | P108: 0 | Q108: 0 | R108: 399 | S108: 63.84 | T108: 0 | U108: 0 | V108: 0 | W108: 84.48 | X108: 13.52 | Y108: 5.5 | Z108: 0.88 | AA108: 567.22 | AC108: 0.0995 | AD108: 0 | AE108: 567.22 | AG108: 0
B109: 88 | C109: 2031-05-04 | D109: 30 | E109: 0.0995 | F109: 0.11542 | G109: 1.010418333 | H109: 2.518861048 | I109: 0.3970048292 | J109: FALSE | K109: 1 | L109: 0.3970048292 | M109: 0 | N109: 0 | O109: 0 | P109: 0 | Q109: 0 | R109: 399 | S109: 63.84 | T109: 0 | U109: 0 | V109: 0 | W109: 84.48 | X109: 13.52 | Y109: 5.5 | Z109: 0.88 | AA109: 567.22 | AC109: 0.0995 | AD109: 0 | AE109: 567.22 | AG109: 0
B110: 89 | C110: 2031-06-04 | D110: 31 | E110: 0.0995 | F110: 0.11542 | G110: 1.010738944 | H110: 2.545910957 | I110: 0.3927867145 | J110: FALSE | K110: 1 | L110: 0.3927867145 | M110: 0 | N110: 0 | O110: 0 | P110: 0 | Q110: 0 | R110: 399 | S110: 63.84 | T110: 0 | U110: 0 | V110: 0 | W110: 84.48 | X110: 13.52 | Y110: 5.5 | Z110: 0.88 | AA110: 567.22 | AC110: 0.0995 | AD110: 0 | AE110: 567.22 | AG110: 0
B111: 90 | C111: 2031-07-04 | D111: 30 | E111: 0.0995 | F111: 0.11542 | G111: 1.010418333 | H111: 2.572435106 | I111: 0.3887367257 | J111: FALSE | K111: 1 | L111: 0.3887367257 | M111: 0 | N111: 0 | O111: 0 | P111: 0 | Q111: 0 | R111: 399 | S111: 63.84 | T111: 0 | U111: 0 | V111: 0 | W111: 84.48 | X111: 13.52 | Y111: 5.5 | Z111: 0.88 | AA111: 567.22 | AC111: 0.0995 | AD111: 0 | AE111: 567.22 | AG111: 0
B112: 91 | C112: 2031-08-04 | D112: 31 | E112: 0.0995 | F112: 0.11542 | G112: 1.010738944 | H112: 2.600060343 | I112: 0.3846064583 | J112: FALSE | K112: 1 | L112: 0.3846064583 | M112: 0 | N112: 0 | O112: 0 | P112: 0 | Q112: 0 | R112: 399 | S112: 63.84 | T112: 0 | U112: 0 | V112: 0 | W112: 84.48 | X112: 13.52 | Y112: 5.5 | Z112: 0.88 | AA112: 567.22 | AC112: 0.0995 | AD112: 0 | AE112: 567.22 | AG112: 0
B113: 92 | C113: 2031-09-04 | D113: 31 | E113: 0.0995 | F113: 0.11542 | G113: 1.010738944 | H113: 2.627982247 | I113: 0.3805200744 | J113: FALSE | K113: 1 | L113: 0.3805200744 | M113: 0 | N113: 0 | O113: 0 | P113: 0 | Q113: 0 | R113: 399 | S113: 63.84 | T113: 0 | U113: 0 | V113: 0 | W113: 84.48 | X113: 13.52 | Y113: 5.5 | Z113: 0.88 | AA113: 567.22 | AC113: 0.0995 | AD113: 0 | AE113: 567.22 | AG113: 0
B114: 93 | C114: 2031-10-04 | D114: 30 | E114: 0.0995 | F114: 0.11542 | G114: 1.010418333 | H114: 2.655361442 | I114: 0.3765965658 | J114: FALSE | K114: 1 | L114: 0.3765965658 | M114: 0 | N114: 0 | O114: 0 | P114: 0 | Q114: 0 | R114: 399 | S114: 63.84 | T114: 0 | U114: 0 | V114: 0 | W114: 84.48 | X114: 13.52 | Y114: 5.5 | Z114: 0.88 | AA114: 567.22 | AC114: 0.0995 | AD114: 0 | AE114: 567.22 | AG114: 0
B115: 94 | C115: 2031-11-04 | D115: 31 | E115: 0.0995 | F115: 0.11542 | G115: 1.010738944 | H115: 2.683877221 | I115: 0.3725952857 | J115: FALSE | K115: 1 | L115: 0.3725952857 | M115: 0 | N115: 0 | O115: 0 | P115: 0 | Q115: 0 | R115: 399 | S115: 63.84 | T115: 0 | U115: 0 | V115: 0 | W115: 84.48 | X115: 13.52 | Y115: 5.5 | Z115: 0.88 | AA115: 567.22 | AC115: 0.0995 | AD115: 0 | AE115: 567.22 | AG115: 0
B116: 95 | C116: 2031-12-04 | D116: 30 | E116: 0.0995 | F116: 0.11542 | G116: 1.010418333 | H116: 2.711838748 | I116: 0.368753489 | J116: FALSE | K116: 1 | L116: 0.368753489 | M116: 0 | N116: 0 | O116: 0 | P116: 0 | Q116: 0 | R116: 399 | S116: 63.84 | T116: 0 | U116: 0 | V116: 0 | W116: 84.48 | X116: 13.52 | Y116: 5.5 | Z116: 0.88 | AA116: 567.22 | AC116: 0.0995 | AD116: 0 | AE116: 567.22 | AG116: 0
B117: 96 | C117: 2032-01-04 | D117: 31 | E117: 0.0995 | F117: 0.11542 | G117: 1.010738944 | H117: 2.740961034 | I117: 0.3648355404 | J117: TRUE | K117: 1 | L117: 0.3648355404 | M117: 0 | N117: 0 | O117: 0 | P117: 0 | Q117: 0 | R117: 399 | S117: 63.84 | T117: 0 | U117: 0 | V117: 0 | W117: 84.48 | X117: 13.52 | Y117: 5.5 | Z117: 0.88 | AA117: 567.22 | AC117: 0.0995 | AD117: 0 | AE117: 567.22 | AG117: 0
B118: 97 | C118: 2032-02-04 | D118: 31 | E118: 0.0995 | F118: 0.11542 | G118: 1.010738944 | H118: 2.770396062 | I118: 0.3609592194 | J118: FALSE | K118: 1 | L118: 0.3609592194 | M118: 0 | N118: 0 | O118: 0 | P118: 0 | Q118: 0 | R118: 399 | S118: 63.84 | T118: 0 | U118: 0 | V118: 0 | W118: 84.48 | X118: 13.52 | Y118: 5.5 | Z118: 0.88 | AA118: 567.22 | AC118: 0.0995 | AD118: 0 | AE118: 567.22 | AG118: 0
B119: 98 | C119: 2032-03-04 | D119: 29 | E119: 0.0995 | F119: 0.11542 | G119: 1.010097722 | H119: 2.798370752 | I119: 0.3573507904 | J119: FALSE | K119: 1 | L119: 0.3573507904 | M119: 0 | N119: 0 | O119: 0 | P119: 0 | Q119: 0 | R119: 399 | S119: 63.84 | T119: 0 | U119: 0 | V119: 0 | W119: 84.48 | X119: 13.52 | Y119: 5.5 | Z119: 0.88 | AA119: 567.22 | AC119: 0.0995 | AD119: 0 | AE119: 567.22 | AG119: 0
B120: 99 | C120: 2032-04-04 | D120: 31 | E120: 0.0995 | F120: 0.11542 | G120: 1.010738944 | H120: 2.8284223 | I120: 0.3535539937 | J120: FALSE | K120: 1 | L120: 0.3535539937 | M120: 0 | N120: 0 | O120: 0 | P120: 0 | Q120: 0 | R120: 399 | S120: 63.84 | T120: 0 | U120: 0 | V120: 0 | W120: 84.48 | X120: 13.52 | Y120: 5.5 | Z120: 0.88 | AA120: 567.22 | AC120: 0.0995 | AD120: 0 | AE120: 567.22 | AG120: 0
B121: 100 | C121: 2032-05-04 | D121: 30 | E121: 0.0995 | F121: 0.11542 | G121: 1.010418333 | H121: 2.857889747 | I121: 0.34990853 | J121: FALSE | K121: 1 | L121: 0.34990853 | M121: 0 | N121: 0 | O121: 0 | P121: 0 | Q121: 0 | R121: 399 | S121: 63.84 | T121: 0 | U121: 0 | V121: 0 | W121: 84.48 | X121: 13.52 | Y121: 5.5 | Z121: 0.88 | AA121: 567.22 | AC121: 0.0995 | AD121: 0 | AE121: 567.22 | AG121: 0
B122: 101 | C122: 2032-06-04 | D122: 31 | E122: 0.0995 | F122: 0.11542 | G122: 1.010738944 | H122: 2.888580466 | I122: 0.3461908061 | J122: FALSE | K122: 1 | L122: 0.3461908061 | M122: 0 | N122: 0 | O122: 0 | P122: 0 | Q122: 0 | R122: 399 | S122: 63.84 | T122: 0 | U122: 0 | V122: 0 | W122: 84.48 | X122: 13.52 | Y122: 5.5 | Z122: 0.88 | AA122: 567.22 | AC122: 0.0995 | AD122: 0 | AE122: 567.22 | AG122: 0
B123: 102 | C123: 2032-07-04 | D123: 30 | E123: 0.0995 | F123: 0.11542 | G123: 1.010418333 | H123: 2.91867466 | I123: 0.3426212636 | J123: FALSE | K123: 1 | L123: 0.3426212636 | M123: 0 | N123: 0 | O123: 0 | P123: 0 | Q123: 0 | R123: 399 | S123: 63.84 | T123: 0 | U123: 0 | V123: 0 | W123: 84.48 | X123: 13.52 | Y123: 5.5 | Z123: 0.88 | AA123: 567.22 | AC123: 0.0995 | AD123: 0 | AE123: 567.22 | AG123: 0
B124: 103 | C124: 2032-08-04 | D124: 31 | E124: 0.0995 | F124: 0.11542 | G124: 1.010738944 | H124: 2.950018145 | I124: 0.3389809658 | J124: FALSE | K124: 1 | L124: 0.3389809658 | M124: 0 | N124: 0 | O124: 0 | P124: 0 | Q124: 0 | R124: 399 | S124: 63.84 | T124: 0 | U124: 0 | V124: 0 | W124: 84.48 | X124: 13.52 | Y124: 5.5 | Z124: 0.88 | AA124: 567.22 | AC124: 0.0995 | AD124: 0 | AE124: 567.22 | AG124: 0
B125: 104 | C125: 2032-09-04 | D125: 31 | E125: 0.0995 | F125: 0.11542 | G125: 1.010738944 | H125: 2.981698226 | I125: 0.3353793457 | J125: FALSE | K125: 1 | L125: 0.3353793457 | M125: 0 | N125: 0 | O125: 0 | P125: 0 | Q125: 0 | R125: 399 | S125: 63.84 | T125: 0 | U125: 0 | V125: 0 | W125: 84.48 | X125: 13.52 | Y125: 5.5 | Z125: 0.88 | AA125: 567.22 | AC125: 0.0995 | AD125: 0 | AE125: 567.22 | AG125: 0
B126: 105 | C126: 2032-10-04 | D126: 30 | E126: 0.0995 | F126: 0.11542 | G126: 1.010418333 | H126: 3.012762552 | I126: 0.3319212791 | J126: FALSE | K126: 1 | L126: 0.3319212791 | M126: 0 | N126: 0 | O126: 0 | P126: 0 | Q126: 0 | R126: 399 | S126: 63.84 | T126: 0 | U126: 0 | V126: 0 | W126: 84.48 | X126: 13.52 | Y126: 5.5 | Z126: 0.88 | AA126: 567.22 | AC126: 0.0995 | AD126: 0 | AE126: 567.22 | AG126: 0
B127: 106 | C127: 2032-11-04 | D127: 31 | E127: 0.0995 | F127: 0.11542 | G127: 1.010738944 | H127: 3.045116442 | I127: 0.3283946671 | J127: FALSE | K127: 1 | L127: 0.3283946671 | M127: 0 | N127: 0 | O127: 0 | P127: 0 | Q127: 0 | R127: 399 | S127: 63.84 | T127: 0 | U127: 0 | V127: 0 | W127: 84.48 | X127: 13.52 | Y127: 5.5 | Z127: 0.88 | AA127: 567.22 | AC127: 0.0995 | AD127: 0 | AE127: 567.22 | AG127: 0
B128: 107 | C128: 2032-12-04 | D128: 30 | E128: 0.0995 | F128: 0.11542 | G128: 1.010418333 | H128: 3.07684148 | I128: 0.3250086189 | J128: FALSE | K128: 1 | L128: 0.3250086189 | M128: 0 | N128: 0 | O128: 0 | P128: 0 | Q128: 0 | R128: 399 | S128: 63.84 | T128: 0 | U128: 0 | V128: 0 | W128: 84.48 | X128: 13.52 | Y128: 5.5 | Z128: 0.88 | AA128: 567.22 | AC128: 0.0995 | AD128: 0 | AE128: 567.22 | AG128: 0
B129: 108 | C129: 2033-01-04 | D129: 31 | E129: 0.0995 | F129: 0.11542 | G129: 1.010738944 | H129: 3.109883509 | I129: 0.3215554528 | J129: TRUE | K129: 1 | L129: 0.3215554528 | M129: 0 | N129: 0 | O129: 0 | P129: 0 | Q129: 0 | R129: 399 | S129: 63.84 | T129: 0 | U129: 0 | V129: 0 | W129: 84.48 | X129: 13.52 | Y129: 5.5 | Z129: 0.88 | AA129: 567.22 | AC129: 0.0995 | AD129: 0 | AE129: 567.22 | AG129: 0
B130: 109 | C130: 2033-02-04 | D130: 31 | E130: 0.0995 | F130: 0.11542 | G130: 1.010738944 | H130: 3.143280376 | I130: 0.318138976 | J130: FALSE | K130: 1 | L130: 0.318138976 | M130: 0 | N130: 0 | O130: 0 | P130: 0 | Q130: 0 | R130: 399 | S130: 63.84 | T130: 0 | U130: 0 | V130: 0 | W130: 84.48 | X130: 13.52 | Y130: 5.5 | Z130: 0.88 | AA130: 567.22 | AC130: 0.0995 | AD130: 0 | AE130: 567.22 | AG130: 0
B131: 110 | C131: 2033-03-04 | D131: 28 | E131: 0.0995 | F131: 0.11542 | G131: 1.009777111 | H131: 3.174012577 | I131: 0.3150586129 | J131: FALSE | K131: 1 | L131: 0.3150586129 | M131: 0 | N131: 0 | O131: 0 | P131: 0 | Q131: 0 | R131: 399 | S131: 63.84 | T131: 0 | U131: 0 | V131: 0 | W131: 84.48 | X131: 13.52 | Y131: 5.5 | Z131: 0.88 | AA131: 567.22 | AC131: 0.0995 | AD131: 0 | AE131: 567.22 | AG131: 0
B132: 111 | C132: 2033-04-04 | D132: 31 | E132: 0.0995 | F132: 0.11542 | G132: 1.010738944 | H132: 3.208098122 | I132: 0.3117111641 | J132: FALSE | K132: 1 | L132: 0.3117111641 | M132: 0 | N132: 0 | O132: 0 | P132: 0 | Q132: 0 | R132: 399 | S132: 63.84 | T132: 0 | U132: 0 | V132: 0 | W132: 84.48 | X132: 13.52 | Y132: 5.5 | Z132: 0.88 | AA132: 567.22 | AC132: 0.0995 | AD132: 0 | AE132: 567.22 | AG132: 0
B133: 112 | C133: 2033-05-04 | D133: 30 | E133: 0.0995 | F133: 0.11542 | G133: 1.010418333 | H133: 3.241521157 | I133: 0.308497138 | J133: FALSE | K133: 1 | L133: 0.308497138 | M133: 0 | N133: 0 | O133: 0 | P133: 0 | Q133: 0 | R133: 399 | S133: 63.84 | T133: 0 | U133: 0 | V133: 0 | W133: 84.48 | X133: 13.52 | Y133: 5.5 | Z133: 0.88 | AA133: 567.22 | AC133: 0.0995 | AD133: 0 | AE133: 567.22 | AG133: 0
B134: 113 | C134: 2033-06-04 | D134: 31 | E134: 0.0995 | F134: 0.11542 | G134: 1.010738944 | H134: 3.276331673 | I134: 0.3052194038 | J134: FALSE | K134: 1 | L134: 0.3052194038 | M134: 0 | N134: 0 | O134: 0 | P134: 0 | Q134: 0 | R134: 399 | S134: 63.84 | T134: 0 | U134: 0 | V134: 0 | W134: 84.48 | X134: 13.52 | Y134: 5.5 | Z134: 0.88 | AA134: 567.22 | AC134: 0.0995 | AD134: 0 | AE134: 567.22 | AG134: 0
B135: 114 | C135: 2033-07-04 | D135: 30 | E135: 0.0995 | F135: 0.11542 | G135: 1.010418333 | H135: 3.310465589 | I135: 0.3020723138 | J135: FALSE | K135: 1 | L135: 0.3020723138 | M135: 0 | N135: 0 | O135: 0 | P135: 0 | Q135: 0 | R135: 399 | S135: 63.84 | T135: 0 | U135: 0 | V135: 0 | W135: 84.48 | X135: 13.52 | Y135: 5.5 | Z135: 0.88 | AA135: 567.22 | AC135: 0.0995 | AD135: 0 | AE135: 567.22 | AG135: 0
B136: 115 | C136: 2033-08-04 | D136: 31 | E136: 0.0995 | F136: 0.11542 | G136: 1.010738944 | H136: 3.346016495 | I136: 0.2988628423 | J136: FALSE | K136: 1 | L136: 0.2988628423 | M136: 0 | N136: 0 | O136: 0 | P136: 0 | Q136: 0 | R136: 399 | S136: 63.84 | T136: 0 | U136: 0 | V136: 0 | W136: 84.48 | X136: 13.52 | Y136: 5.5 | Z136: 0.88 | AA136: 567.22 | AC136: 0.0995 | AD136: 0 | AE136: 567.22 | AG136: 0
B137: 116 | C137: 2033-09-04 | D137: 31 | E137: 0.0995 | F137: 0.11542 | G137: 1.010738944 | H137: 3.38194918 | I137: 0.295687471 | J137: FALSE | K137: 1 | L137: 0.295687471 | M137: 0 | N137: 0 | O137: 0 | P137: 0 | Q137: 0 | R137: 399 | S137: 63.84 | T137: 0 | U137: 0 | V137: 0 | W137: 84.48 | X137: 13.52 | Y137: 5.5 | Z137: 0.88 | AA137: 567.22 | AC137: 0.0995 | AD137: 0 | AE137: 567.22 | AG137: 0
B138: 117 | C138: 2033-10-04 | D138: 30 | E138: 0.0995 | F138: 0.11542 | G138: 1.010418333 | H138: 3.417183454 | I138: 0.2926386638 | J138: FALSE | K138: 1 | L138: 0.2926386638 | M138: 0 | N138: 0 | O138: 0 | P138: 0 | Q138: 0 | R138: 399 | S138: 63.84 | T138: 0 | U138: 0 | V138: 0 | W138: 84.48 | X138: 13.52 | Y138: 5.5 | Z138: 0.88 | AA138: 567.22 | AC138: 0.0995 | AD138: 0 | AE138: 567.22 | AG138: 0
B139: 118 | C139: 2033-11-04 | D139: 31 | E139: 0.0995 | F139: 0.11542 | G139: 1.010738944 | H139: 3.453880397 | I139: 0.2895294234 | J139: FALSE | K139: 1 | L139: 0.2895294234 | M139: 0 | N139: 0 | O139: 0 | P139: 0 | Q139: 0 | R139: 399 | S139: 63.84 | T139: 0 | U139: 0 | V139: 0 | W139: 84.48 | X139: 13.52 | Y139: 5.5 | Z139: 0.88 | AA139: 567.22 | AC139: 0.0995 | AD139: 0 | AE139: 567.22 | AG139: 0
B140: 119 | C140: 2033-12-04 | D140: 30 | E140: 0.0995 | F140: 0.11542 | G140: 1.010418333 | H140: 3.489864074 | I140: 0.2865441114 | J140: FALSE | K140: 1 | L140: 0.2865441114 | M140: 0 | N140: 0 | O140: 0 | P140: 0 | Q140: 0 | R140: 399 | S140: 63.84 | T140: 0 | U140: 0 | V140: 0 | W140: 84.48 | X140: 13.52 | Y140: 5.5 | Z140: 0.88 | AA140: 567.22 | AC140: 0.0995 | AD140: 0 | AE140: 567.22 | AG140: 0
B141: 120 | C141: 2034-01-04 | D141: 31 | E141: 0.0995 | F141: 0.11542 | G141: 1.010738944 | H141: 3.527341531 | I141: 0.2834996247 | J141: TRUE | K141: 1 | L141: 0.2834996247 | M141: 0 | N141: 0 | O141: 0 | P141: 0 | Q141: 0 | R141: 399 | S141: 63.84 | T141: 0 | U141: 0 | V141: 0 | W141: 84.48 | X141: 13.52 | Y141: 5.5 | Z141: 0.88 | AA141: 567.22 | AC141: 0.0995 | AD141: 0 | AE141: 567.22 | AG141: 0
B142: 121 | C142: 2034-02-04 | D142: 31 | E142: 0.0995 | F142: 0.11542 | G142: 1.010738944 | H142: 3.565221455 | I142: 0.2804874851 | J142: FALSE | K142: 1 | L142: 0.2804874851 | M142: 0 | N142: 0 | O142: 0 | P142: 0 | Q142: 0 | R142: 399 | S142: 63.84 | T142: 0 | U142: 0 | V142: 0 | W142: 84.48 | X142: 13.52 | Y142: 5.5 | Z142: 0.88 | AA142: 567.22 | AC142: 0.0995 | AD142: 0 | AE142: 567.22 | AG142: 0
B143: 122 | C143: 2034-03-04 | D143: 28 | E143: 0.0995 | F143: 0.11542 | G143: 1.009777111 | H143: 3.600079022 | I143: 0.2777716806 | J143: FALSE | K143: 1 | L143: 0.2777716806 | M143: 0 | N143: 0 | O143: 0 | P143: 0 | Q143: 0 | R143: 399 | S143: 63.84 | T143: 0 | U143: 0 | V143: 0 | W143: 84.48 | X143: 13.52 | Y143: 5.5 | Z143: 0.88 | AA143: 567.22 | AC143: 0.0995 | AD143: 0 | AE143: 567.22 | AG143: 0
B144: 123 | C144: 2034-04-04 | D144: 31 | E144: 0.0995 | F144: 0.11542 | G144: 1.010738944 | H144: 3.63874007 | I144: 0.2748203996 | J144: FALSE | K144: 1 | L144: 0.2748203996 | M144: 0 | N144: 0 | O144: 0 | P144: 0 | Q144: 0 | R144: 399 | S144: 63.84 | T144: 0 | U144: 0 | V144: 0 | W144: 84.48 | X144: 13.52 | Y144: 5.5 | Z144: 0.88 | AA144: 567.22 | AC144: 0.0995 | AD144: 0 | AE144: 567.22 | AG144: 0
B145: 124 | C145: 2034-05-04 | D145: 30 | E145: 0.0995 | F145: 0.11542 | G145: 1.010418333 | H145: 3.676649677 | I145: 0.2719867509 | J145: FALSE | K145: 1 | L145: 0.2719867509 | M145: 0 | N145: 0 | O145: 0 | P145: 0 | Q145: 0 | R145: 399 | S145: 63.84 | T145: 0 | U145: 0 | V145: 0 | W145: 84.48 | X145: 13.52 | Y145: 5.5 | Z145: 0.88 | AA145: 567.22 | AC145: 0.0995 | AD145: 0 | AE145: 567.22 | AG145: 0
B146: 125 | C146: 2034-06-04 | D146: 31 | E146: 0.0995 | F146: 0.11542 | G146: 1.010738944 | H146: 3.716133014 | I146: 0.2690969339 | J146: FALSE | K146: 1 | L146: 0.2690969339 | M146: 0 | N146: 0 | O146: 0 | P146: 0 | Q146: 0 | R146: 399 | S146: 63.84 | T146: 0 | U146: 0 | V146: 0 | W146: 84.48 | X146: 13.52 | Y146: 5.5 | Z146: 0.88 | AA146: 567.22 | AC146: 0.0995 | AD146: 0 | AE146: 567.22 | AG146: 0
B147: 126 | C147: 2034-07-04 | D147: 30 | E147: 0.0995 | F147: 0.11542 | G147: 1.010418333 | H147: 3.754848926 | I147: 0.2663222994 | J147: FALSE | K147: 1 | L147: 0.2663222994 | M147: 0 | N147: 0 | O147: 0 | P147: 0 | Q147: 0 | R147: 399 | S147: 63.84 | T147: 0 | U147: 0 | V147: 0 | W147: 84.48 | X147: 13.52 | Y147: 5.5 | Z147: 0.88 | AA147: 567.22 | AC147: 0.0995 | AD147: 0 | AE147: 567.22 | AG147: 0
B148: 127 | C148: 2034-08-04 | D148: 31 | E148: 0.0995 | F148: 0.11542 | G148: 1.010738944 | H148: 3.79517204 | I148: 0.2634926663 | J148: FALSE | K148: 1 | L148: 0.2634926663 | M148: 0 | N148: 0 | O148: 0 | P148: 0 | Q148: 0 | R148: 399 | S148: 63.84 | T148: 0 | U148: 0 | V148: 0 | W148: 84.48 | X148: 13.52 | Y148: 5.5 | Z148: 0.88 | AA148: 567.22 | AC148: 0.0995 | AD148: 0 | AE148: 567.22 | AG148: 0
B149: 128 | C149: =IF(B149=0,FECHA_1ER_PAGO,EDATE(C148,1)) -> 2034-09-04 | D149: =IF(B149=0,FECHA_1ER_PAGO-FECHA_APERTURA, C149-C148) -> 31 | E149: =IF(B149=0,TASA,IF(B149=MESES_INC_TASA,E148+INCREMENTO_TASA,E148)) -> 0.0995 | F149: 0.11542 | G149: =IF(B149<MESES_GRACIA, 0, 1 + D149 * F149 / 360 + FACTOR_SEG_DEUD) -> 1.010738944 | H149: =IF(B149 = 0, 0, IF(H148=0, G149, H148 * G149 )) -> 3.835928182 | I149: 0.2606930976 | J149: =MOD(B149, MESES_INC)=0 -> FALSE | K149: 1 | L149: 0.2606930976 | M149: =ROUND(CUOTA_INIT*K149,2) -> 0 | N149: =IF(B149=0,TOTAL_FINANCIADO, ROUND(N148-O148,2)) -> 0 | O149: =IF(B149=0, 0, IF((B149+1) = PLAZO, N149, IF(B149<MESES_GRACIA, 0, M149-P149-V149-Q149))) -> 0 | P149: =IF(B149<MESES_GRACIA, 0, ROUND(N149 * D149 *E149 /360,2)) -> 0 | Q149: 0 | R149: =COMISION_AMORT -> 399 | S149: =ROUND(R149*IVA,2) -> 63.84 | T149: =SEGURO_DAÑOS_MENS -> 0 | U149: =T149*IVA -> 0 | V149: =ROUND(N149 * FACTOR_SEG_DEUD,2) -> 0 | W149: =ROUND(SEGURO_INTERIORES/(1+IVA),2) -> 84.48 | X149: =ROUND(W149*IVA,2) -> 13.52 | Y149: =ROUND((SUM(O149:X149)-Q149) * FACTOR_SEG_DESEMPLEO,2) -> 5.5 | Z149: =ROUND(Y149*IVA,2) -> 0.88 | AA149: =IF(B149>=PLAZO,0,ROUND(SUM(O149:Z149),2)) -> 567.22 | AC149: =IF(AB149="SI",TASA_PP,TASA) -> 0.0995 | AD149: =N149 * D149 * AC149 /360 -> 0 | AE149: =IF(B149>=PLAZO, 0, O149+R149+S149+T149+U149+V149+W149+X149+Y149+Z149+AD149) -> 567.22 | AG149: 0
B150: 129 | C150: 2034-10-04 | D150: 30 | E150: 0.0995 | F150: =E150*(1+$G$13) -> 0.11542 | G150: 1.010418333 | H150: 3.875892161 | I150: 0.2580051143 | J150: FALSE | K150: =IF(B150=0, 1, IF(J150,K149*(1+INCREMENTO),K149)) -> 1 | L150: 0.2580051143 | M150: 0 | N150: 0 | O150: 0 | P150: 0 | Q150: =ROUND(P150*$G$13,2) -> 0 | R150: 399 | S150: 63.84 | T150: 0 | U150: 0 | V150: 0 | W150: 84.48 | X150: 13.52 | Y150: 5.5 | Z150: 0.88 | AA150: 567.22 | AC150: 0.0995 | AD150: 0 | AE150: 567.22 | AG150: =IF(N150> 0,O150+P150+V150+R150+T150+W150+Y150, 0) -> 0
B151: 130 | C151: 2034-11-04 | D151: 31 | E151: 0.0995 | F151: 0.11542 | G151: 1.010738944 | H151: 3.917515151 | I151: 0.25526385 | J151: FALSE | K151: 1 | L151: =I151*K151 -> 0.25526385 | M151: 0 | N151: 0 | O151: 0 | P151: 0 | Q151: 0 | R151: 399 | S151: 63.84 | T151: 0 | U151: 0 | V151: 0 | W151: 84.48 | X151: 13.52 | Y151: 5.5 | Z151: 0.88 | AA151: 567.22 | AC151: 0.0995 | AD151: 0 | AE151: 567.22 | AG151: 0
B152: 131 | C152: 2034-12-04 | D152: 30 | E152: 0.0995 | F152: 0.11542 | G152: 1.010418333 | H152: 3.95832913 | I152: =IF(H152=0, 0, 1/H152) -> 0.2526318472 | J152: FALSE | K152: 1 | L152: 0.2526318472 | M152: 0 | N152: 0 | O152: 0 | P152: 0 | Q152: 0 | R152: 399 | S152: 63.84 | T152: 0 | U152: 0 | V152: 0 | W152: 84.48 | X152: 13.52 | Y152: 5.5 | Z152: 0.88 | AA152: 567.22 | AC152: 0.0995 | AD152: 0 | AE152: 567.22 | AG152: 0
B153: 132 | C153: 2035-01-04 | D153: 31 | E153: 0.0995 | F153: 0.11542 | G153: 1.010738944 | H153: 4.000837406 | I153: 0.2499476731 | J153: TRUE | K153: 1 | L153: 0.2499476731 | M153: 0 | N153: 0 | O153: 0 | P153: 0 | Q153: 0 | R153: 399 | S153: 63.84 | T153: 0 | U153: 0 | V153: 0 | W153: 84.48 | X153: 13.52 | Y153: 5.5 | Z153: 0.88 | AA153: 567.22 | AC153: 0.0995 | AD153: 0 | AE153: 567.22 | AG153: 0
B154: 133 | C154: 2035-02-04 | D154: 31 | E154: 0.0995 | F154: 0.11542 | G154: 1.010738944 | H154: 4.043802177 | I154: 0.2472920178 | J154: FALSE | K154: 1 | L154: 0.2472920178 | M154: 0 | N154: 0 | O154: 0 | P154: 0 | Q154: 0 | R154: 399 | S154: 63.84 | T154: 0 | U154: 0 | V154: 0 | W154: 84.48 | X154: 13.52 | Y154: 5.5 | Z154: 0.88 | AA154: 567.22 | AC154: 0.0995 | AD154: 0 | AE154: 567.22 | AG154: 0
B155: 134 | C155: 2035-03-04 | D155: 28 | E155: 0.0995 | F155: 0.11542 | G155: 1.009777111 | H155: 4.08333888 | I155: 0.2448976265 | J155: FALSE | K155: 1 | L155: 0.2448976265 | M155: 0 | N155: 0 | O155: 0 | P155: 0 | Q155: 0 | R155: 399 | S155: 63.84 | T155: 0 | U155: 0 | V155: 0 | W155: 84.48 | X155: 13.52 | Y155: 5.5 | Z155: 0.88 | AA155: 567.22 | AC155: 0.0995 | AD155: 0 | AE155: 567.22 | AG155: 0
B156: 135 | C156: 2035-04-04 | D156: 31 | E156: 0.0995 | F156: 0.11542 | G156: 1.010738944 | H156: 4.12718963 | I156: 0.2422956272 | J156: FALSE | K156: 1 | L156: 0.2422956272 | M156: 0 | N156: 0 | O156: 0 | P156: 0 | Q156: 0 | R156: 399 | S156: 63.84 | T156: 0 | U156: 0 | V156: 0 | W156: 84.48 | X156: 13.52 | Y156: 5.5 | Z156: 0.88 | AA156: 567.22 | AC156: 0.0995 | AD156: 0 | AE156: 567.22 | AG156: 0
B157: 136 | C157: 2035-05-04 | D157: 30 | E157: 0.0995 | F157: 0.11542 | G157: 1.010418333 | H157: 4.170188067 | I157: 0.2397973386 | J157: FALSE | K157: 1 | L157: 0.2397973386 | M157: 0 | N157: 0 | O157: 0 | P157: 0 | Q157: 0 | R157: 399 | S157: 63.84 | T157: 0 | U157: 0 | V157: 0 | W157: 84.48 | X157: 13.52 | Y157: 5.5 | Z157: 0.88 | AA157: 567.22 | AC157: 0.0995 | AD157: 0 | AE157: 567.22 | AG157: 0
B158: 137 | C158: 2035-06-04 | D158: 31 | E158: 0.0995 | F158: 0.11542 | G158: 1.010738944 | H158: 4.214971485 | I158: 0.2372495291 | J158: FALSE | K158: 1 | L158: 0.2372495291 | M158: 0 | N158: 0 | O158: 0 | P158: 0 | Q158: 0 | R158: 399 | S158: 63.84 | T158: 0 | U158: 0 | V158: 0 | W158: 84.48 | X158: 13.52 | Y158: 5.5 | Z158: 0.88 | AA158: 567.22 | AC158: 0.0995 | AD158: 0 | AE158: 567.22 | AG158: 0
B159: 138 | C159: 2035-07-04 | D159: 30 | E159: 0.0995 | F159: 0.11542 | G159: 1.010418333 | H159: 4.258884463 | I159: 0.2348032704 | J159: FALSE | K159: 1 | L159: 0.2348032704 | M159: 0 | N159: 0 | O159: 0 | P159: 0 | Q159: 0 | R159: 399 | S159: 63.84 | T159: 0 | U159: 0 | V159: 0 | W159: 84.48 | X159: 13.52 | Y159: 5.5 | Z159: 0.88 | AA159: 567.22 | AC159: 0.0995 | AD159: 0 | AE159: 567.22 | AG159: 0
B160: 139 | C160: 2035-08-04 | D160: 31 | E160: 0.0995 | F160: 0.11542 | G160: 1.010738944 | H160: 4.304620387 | I160: 0.2323085221 | J160: FALSE | K160: 1 | L160: 0.2323085221 | M160: 0 | N160: 0 | O160: 0 | P160: 0 | Q160: 0 | R160: 399 | S160: 63.84 | T160: 0 | U160: 0 | V160: 0 | W160: 84.48 | X160: 13.52 | Y160: 5.5 | Z160: 0.88 | AA160: 567.22 | AC160: 0.0995 | AD160: 0 | AE160: 567.22 | AG160: 0
B161: 140 | C161: 2035-09-04 | D161: 31 | E161: 0.0995 | F161: 0.11542 | G161: 1.010738944 | H161: 4.350847466 | I161: 0.2298402801 | J161: FALSE | K161: 1 | L161: 0.2298402801 | M161: 0 | N161: 0 | O161: 0 | P161: 0 | Q161: 0 | R161: 399 | S161: 63.84 | T161: 0 | U161: 0 | V161: 0 | W161: 84.48 | X161: 13.52 | Y161: 5.5 | Z161: 0.88 | AA161: 567.22 | AC161: 0.0995 | AD161: 0 | AE161: 567.22 | AG161: 0
B162: 141 | C162: 2035-10-04 | D162: 30 | E162: 0.0995 | F162: 0.11542 | G162: 1.010418333 | H162: 4.396176045 | I162: 0.2274704174 | J162: FALSE | K162: 1 | L162: 0.2274704174 | M162: 0 | N162: 0 | O162: 0 | P162: 0 | Q162: 0 | R162: 399 | S162: 63.84 | T162: 0 | U162: 0 | V162: 0 | W162: 84.48 | X162: 13.52 | Y162: 5.5 | Z162: 0.88 | AA162: 567.22 | AC162: 0.0995 | AD162: 0 | AE162: 567.22 | AG162: 0
B163: 142 | C163: 2035-11-04 | D163: 31 | E163: 0.0995 | F163: 0.11542 | G163: 1.010738944 | H163: 4.443386335 | I163: 0.2250535795 | J163: FALSE | K163: 1 | L163: 0.2250535795 | M163: 0 | N163: 0 | O163: 0 | P163: 0 | Q163: 0 | R163: 399 | S163: 63.84 | T163: 0 | U163: 0 | V163: 0 | W163: 84.48 | X163: 13.52 | Y163: 5.5 | Z163: 0.88 | AA163: 567.22 | AC163: 0.0995 | AD163: 0 | AE163: 567.22 | AG163: 0
B164: 143 | C164: 2035-12-04 | D164: 30 | E164: 0.0995 | F164: 0.11542 | G164: 1.010418333 | H164: 4.489679015 | I164: 0.2227330721 | J164: FALSE | K164: 1 | L164: 0.2227330721 | M164: 0 | N164: 0 | O164: 0 | P164: 0 | Q164: 0 | R164: 399 | S164: 63.84 | T164: 0 | U164: 0 | V164: 0 | W164: 84.48 | X164: 13.52 | Y164: 5.5 | Z164: 0.88 | AA164: 567.22 | AC164: 0.0995 | AD164: 0 | AE164: 567.22 | AG164: 0
B165: 144 | C165: 2036-01-04 | D165: 31 | E165: 0.0995 | F165: 0.11542 | G165: 1.010738944 | H165: 4.537893429 | I165: 0.2203665678 | J165: TRUE | K165: 1 | L165: 0.2203665678 | M165: 0 | N165: 0 | O165: 0 | P165: 0 | Q165: 0 | R165: 399 | S165: 63.84 | T165: 0 | U165: 0 | V165: 0 | W165: 84.48 | X165: 13.52 | Y165: 5.5 | Z165: 0.88 | AA165: 567.22 | AC165: 0.0995 | AD165: 0 | AE165: 567.22 | AG165: 0
B166: 145 | C166: 2036-02-04 | D166: 31 | E166: 0.0995 | F166: 0.11542 | G166: 1.010738944 | H166: 4.586625614 | I166: 0.2180252072 | J166: FALSE | K166: 1 | L166: 0.2180252072 | M166: 0 | N166: 0 | O166: 0 | P166: 0 | Q166: 0 | R166: 399 | S166: 63.84 | T166: 0 | U166: 0 | V166: 0 | W166: 84.48 | X166: 13.52 | Y166: 5.5 | Z166: 0.88 | AA166: 567.22 | AC166: 0.0995 | AD166: 0 | AE166: 567.22 | AG166: 0
B167: 146 | C167: 2036-03-04 | D167: 29 | E167: 0.0995 | F167: 0.11542 | G167: 1.010097722 | H167: 4.632940085 | I167: 0.2158456577 | J167: FALSE | K167: 1 | L167: 0.2158456577 | M167: 0 | N167: 0 | O167: 0 | P167: 0 | Q167: 0 | R167: 399 | S167: 63.84 | T167: 0 | U167: 0 | V167: 0 | W167: 84.48 | X167: 13.52 | Y167: 5.5 | Z167: 0.88 | AA167: 567.22 | AC167: 0.0995 | AD167: 0 | AE167: 567.22 | AG167: 0
B168: 147 | C168: 2036-04-04 | D168: 31 | E168: 0.0995 | F168: 0.11542 | G168: 1.010738944 | H168: 4.682692972 | I168: 0.2135523311 | J168: FALSE | K168: 1 | L168: 0.2135523311 | M168: 0 | N168: 0 | O168: 0 | P168: 0 | Q168: 0 | R168: 399 | S168: 63.84 | T168: 0 | U168: 0 | V168: 0 | W168: 84.48 | X168: 13.52 | Y168: 5.5 | Z168: 0.88 | AA168: 567.22 | AC168: 0.0995 | AD168: 0 | AE168: 567.22 | AG168: 0
B169: 148 | C169: 2036-05-04 | D169: 30 | E169: 0.0995 | F169: 0.11542 | G169: 1.010418333 | H169: 4.731478828 | I169: 0.2113504121 | J169: FALSE | K169: 1 | L169: 0.2113504121 | M169: 0 | N169: 0 | O169: 0 | P169: 0 | Q169: 0 | R169: 399 | S169: 63.84 | T169: 0 | U169: 0 | V169: 0 | W169: 84.48 | X169: 13.52 | Y169: 5.5 | Z169: 0.88 | AA169: 567.22 | AC169: 0.0995 | AD169: 0 | AE169: 567.22 | AG169: 0
B170: 149 | C170: 2036-06-04 | D170: 31 | E170: 0.0995 | F170: 0.11542 | G170: 1.010738944 | H170: 4.782289916 | I170: 0.2091048467 | J170: FALSE | K170: 1 | L170: 0.2091048467 | M170: 0 | N170: 0 | O170: 0 | P170: 0 | Q170: 0 | R170: 399 | S170: 63.84 | T170: 0 | U170: 0 | V170: 0 | W170: 84.48 | X170: 13.52 | Y170: 5.5 | Z170: 0.88 | AA170: 567.22 | AC170: 0.0995 | AD170: 0 | AE170: 567.22 | AG170: 0
B171: 150 | C171: 2036-07-04 | D171: 30 | E171: 0.0995 | F171: 0.11542 | G171: 1.010418333 | H171: 4.832113407 | I171: 0.2069487853 | J171: FALSE | K171: 1 | L171: 0.2069487853 | M171: 0 | N171: 0 | O171: 0 | P171: 0 | Q171: 0 | R171: 399 | S171: 63.84 | T171: 0 | U171: 0 | V171: 0 | W171: 84.48 | X171: 13.52 | Y171: 5.5 | Z171: 0.88 | AA171: 567.22 | AC171: 0.0995 | AD171: 0 | AE171: 567.22 | AG171: 0
B172: 151 | C172: 2036-08-04 | D172: 31 | E172: 0.0995 | F172: 0.11542 | G172: 1.010738944 | H172: 4.884005204 | I172: 0.2047499866 | J172: FALSE | K172: 1 | L172: 0.2047499866 | M172: 0 | N172: 0 | O172: 0 | P172: 0 | Q172: 0 | R172: 399 | S172: 63.84 | T172: 0 | U172: 0 | V172: 0 | W172: 84.48 | X172: 13.52 | Y172: 5.5 | Z172: 0.88 | AA172: 567.22 | AC172: 0.0995 | AD172: 0 | AE172: 567.22 | AG172: 0
B173: 152 | C173: 2036-09-04 | D173: 31 | E173: 0.0995 | F173: 0.11542 | G173: 1.010738944 | H173: 4.936454265 | I173: 0.2025745497 | J173: FALSE | K173: 1 | L173: 0.2025745497 | M173: 0 | N173: 0 | O173: 0 | P173: 0 | Q173: 0 | R173: 399 | S173: 63.84 | T173: 0 | U173: 0 | V173: 0 | W173: 84.48 | X173: 13.52 | Y173: 5.5 | Z173: 0.88 | AA173: 567.22 | AC173: 0.0995 | AD173: 0 | AE173: 567.22 | AG173: 0
B174: 153 | C174: 2036-10-04 | D174: 30 | E174: 0.0995 | F174: 0.11542 | G174: 1.010418333 | H174: 4.987883891 | I174: 0.2004858216 | J174: FALSE | K174: 1 | L174: 0.2004858216 | M174: 0 | N174: 0 | O174: 0 | P174: 0 | Q174: 0 | R174: 399 | S174: 63.84 | T174: 0 | U174: 0 | V174: 0 | W174: 84.48 | X174: 13.52 | Y174: 5.5 | Z174: 0.88 | AA174: 567.22 | AC174: 0.0995 | AD174: 0 | AE174: 567.22 | AG174: 0
B175: 154 | C175: 2036-11-04 | D175: 31 | E175: 0.0995 | F175: 0.11542 | G175: 1.010738944 | H175: 5.041448499 | I175: 0.1983556909 | J175: FALSE | K175: 1 | L175: 0.1983556909 | M175: 0 | N175: 0 | O175: 0 | P175: 0 | Q175: 0 | R175: 399 | S175: 63.84 | T175: 0 | U175: 0 | V175: 0 | W175: 84.48 | X175: 13.52 | Y175: 5.5 | Z175: 0.88 | AA175: 567.22 | AC175: 0.0995 | AD175: 0 | AE175: 567.22 | AG175: 0
B176: 155 | C176: 2036-12-04 | D176: 30 | E176: 0.0995 | F176: 0.11542 | G176: 1.010418333 | H176: 5.09397199 | I176: 0.196310463 | J176: FALSE | K176: 1 | L176: 0.196310463 | M176: 0 | N176: 0 | O176: 0 | P176: 0 | Q176: 0 | R176: 399 | S176: 63.84 | T176: 0 | U176: 0 | V176: 0 | W176: 84.48 | X176: 13.52 | Y176: 5.5 | Z176: 0.88 | AA176: 567.22 | AC176: 0.0995 | AD176: 0 | AE176: 567.22 | AG176: 0
B177: 156 | C177: 2037-01-04 | D177: 31 | E177: 0.0995 | F177: 0.11542 | G177: 1.010738944 | H177: 5.148675872 | I177: 0.1942246948 | J177: TRUE | K177: 1 | L177: 0.1942246948 | M177: 0 | N177: 0 | O177: 0 | P177: 0 | Q177: 0 | R177: 399 | S177: 63.84 | T177: 0 | U177: 0 | V177: 0 | W177: 84.48 | X177: 13.52 | Y177: 5.5 | Z177: 0.88 | AA177: 567.22 | AC177: 0.0995 | AD177: 0 | AE177: 567.22 | AG177: 0
B178: 157 | C178: 2037-02-04 | D178: 31 | E178: 0.0995 | F178: 0.11542 | G178: 1.010738944 | H178: 5.203967216 | I178: 0.1921610876 | J178: FALSE | K178: 1 | L178: 0.1921610876 | M178: 0 | N178: 0 | O178: 0 | P178: 0 | Q178: 0 | R178: 399 | S178: 63.84 | T178: 0 | U178: 0 | V178: 0 | W178: 84.48 | X178: 13.52 | Y178: 5.5 | Z178: 0.88 | AA178: 567.22 | AC178: 0.0995 | AD178: 0 | AE178: 567.22 | AG178: 0
B179: 158 | C179: 2037-03-04 | D179: 28 | E179: 0.0995 | F179: 0.11542 | G179: 1.009777111 | H179: 5.254846982 | I179: 0.1903004985 | J179: FALSE | K179: 1 | L179: 0.1903004985 | M179: 0 | N179: 0 | O179: 0 | P179: 0 | Q179: 0 | R179: 399 | S179: 63.84 | T179: 0 | U179: 0 | V179: 0 | W179: 84.48 | X179: 13.52 | Y179: 5.5 | Z179: 0.88 | AA179: 567.22 | AC179: 0.0995 | AD179: 0 | AE179: 567.22 | AG179: 0
B180: 159 | C180: 2037-04-04 | D180: 31 | E180: 0.0995 | F180: 0.11542 | G180: 1.010738944 | H180: 5.311278491 | I180: 0.1882785852 | J180: FALSE | K180: 1 | L180: 0.1882785852 | M180: 0 | N180: 0 | O180: 0 | P180: 0 | Q180: 0 | R180: 399 | S180: 63.84 | T180: 0 | U180: 0 | V180: 0 | W180: 84.48 | X180: 13.52 | Y180: 5.5 | Z180: 0.88 | AA180: 567.22 | AC180: 0.0995 | AD180: 0 | AE180: 567.22 | AG180: 0
B181: 160 | C181: 2037-05-04 | D181: 30 | E181: 0.0995 | F181: 0.11542 | G181: 1.010418333 | H181: 5.366613161 | I181: 0.1863372615 | J181: FALSE | K181: 1 | L181: 0.1863372615 | M181: 0 | N181: 0 | O181: 0 | P181: 0 | Q181: 0 | R181: 399 | S181: 63.84 | T181: 0 | U181: 0 | V181: 0 | W181: 84.48 | X181: 13.52 | Y181: 5.5 | Z181: 0.88 | AA181: 567.22 | AC181: 0.0995 | AD181: 0 | AE181: 567.22 | AG181: 0
B182: 161 | C182: 2037-06-04 | D182: 31 | E182: 0.0995 | F182: 0.11542 | G182: 1.010738944 | H182: 5.424244922 | I182: 0.184357457 | J182: FALSE | K182: 1 | L182: 0.184357457 | M182: 0 | N182: 0 | O182: 0 | P182: 0 | Q182: 0 | R182: 399 | S182: 63.84 | T182: 0 | U182: 0 | V182: 0 | W182: 84.48 | X182: 13.52 | Y182: 5.5 | Z182: 0.88 | AA182: 567.22 | AC182: 0.0995 | AD182: 0 | AE182: 567.22 | AG182: 0
B183: 162 | C183: 2037-07-04 | D183: 30 | E183: 0.0995 | F183: 0.11542 | G183: 1.010418333 | H183: 5.480756513 | I183: 0.1824565637 | J183: FALSE | K183: 1 | L183: 0.1824565637 | M183: 0 | N183: 0 | O183: 0 | P183: 0 | Q183: 0 | R183: 399 | S183: 63.84 | T183: 0 | U183: 0 | V183: 0 | W183: 84.48 | X183: 13.52 | Y183: 5.5 | Z183: 0.88 | AA183: 567.22 | AC183: 0.0995 | AD183: 0 | AE183: 567.22 | AG183: 0
B184: 163 | C184: 2037-08-04 | D184: 31 | E184: 0.0995 | F184: 0.11542 | G184: 1.010738944 | H184: 5.539614053 | I184: 0.180517991 | J184: FALSE | K184: 1 | L184: 0.180517991 | M184: 0 | N184: 0 | O184: 0 | P184: 0 | Q184: 0 | R184: 399 | S184: 63.84 | T184: 0 | U184: 0 | V184: 0 | W184: 84.48 | X184: 13.52 | Y184: 5.5 | Z184: 0.88 | AA184: 567.22 | AC184: 0.0995 | AD184: 0 | AE184: 567.22 | AG184: 0
B185: 164 | C185: 2037-09-04 | D185: 31 | E185: 0.0995 | F185: 0.11542 | G185: 1.010738944 | H185: 5.599103661 | I185: 0.1786000154 | J185: FALSE | K185: 1 | L185: 0.1786000154 | M185: 0 | N185: 0 | O185: 0 | P185: 0 | Q185: 0 | R185: 399 | S185: 63.84 | T185: 0 | U185: 0 | V185: 0 | W185: 84.48 | X185: 13.52 | Y185: 5.5 | Z185: 0.88 | AA185: 567.22 | AC185: 0.0995 | AD185: 0 | AE185: 567.22 | AG185: 0
B186: 165 | C186: 2037-10-04 | D186: 30 | E186: 0.0995 | F186: 0.11542 | G186: 1.010418333 | H186: 5.657436989 | I186: 0.1767584866 | J186: FALSE | K186: 1 | L186: 0.1767584866 | M186: 0 | N186: 0 | O186: 0 | P186: 0 | Q186: 0 | R186: 399 | S186: 63.84 | T186: 0 | U186: 0 | V186: 0 | W186: 84.48 | X186: 13.52 | Y186: 5.5 | Z186: 0.88 | AA186: 567.22 | AC186: 0.0995 | AD186: 0 | AE186: 567.22 | AG186: 0
B187: 166 | C187: 2037-11-04 | D187: 31 | E187: 0.0995 | F187: 0.11542 | G187: 1.010738944 | H187: 5.718191891 | I187: 0.1748804551 | J187: FALSE | K187: 1 | L187: 0.1748804551 | M187: 0 | N187: 0 | O187: 0 | P187: 0 | Q187: 0 | R187: 399 | S187: 63.84 | T187: 0 | U187: 0 | V187: 0 | W187: 84.48 | X187: 13.52 | Y187: 5.5 | Z187: 0.88 | AA187: 567.22 | AC187: 0.0995 | AD187: 0 | AE187: 567.22 | AG187: 0
B188: 167 | C188: 2037-12-04 | D188: 30 | E188: 0.0995 | F188: 0.11542 | G188: 1.010418333 | H188: 5.77776592 | I188: 0.1730772783 | J188: FALSE | K188: 1 | L188: 0.1730772783 | M188: 0 | N188: 0 | O188: 0 | P188: 0 | Q188: 0 | R188: 399 | S188: 63.84 | T188: 0 | U188: 0 | V188: 0 | W188: 84.48 | X188: 13.52 | Y188: 5.5 | Z188: 0.88 | AA188: 567.22 | AC188: 0.0995 | AD188: 0 | AE188: 567.22 | AG188: 0
B189: 168 | C189: 2038-01-04 | D189: 31 | E189: 0.0995 | F189: 0.11542 | G189: 1.010738944 | H189: 5.839813027 | I189: 0.1712383591 | J189: TRUE | K189: 1 | L189: 0.1712383591 | M189: 0 | N189: 0 | O189: 0 | P189: 0 | Q189: 0 | R189: 399 | S189: 63.84 | T189: 0 | U189: 0 | V189: 0 | W189: 84.48 | X189: 13.52 | Y189: 5.5 | Z189: 0.88 | AA189: 567.22 | AC189: 0.0995 | AD189: 0 | AE189: 567.22 | AG189: 0
B190: 169 | C190: 2038-02-04 | D190: 31 | E190: 0.0995 | F190: 0.11542 | G190: 1.010738944 | H190: 5.902526455 | I190: 0.1694189781 | J190: FALSE | K190: 1 | L190: 0.1694189781 | M190: 0 | N190: 0 | O190: 0 | P190: 0 | Q190: 0 | R190: 399 | S190: 63.84 | T190: 0 | U190: 0 | V190: 0 | W190: 84.48 | X190: 13.52 | Y190: 5.5 | Z190: 0.88 | AA190: 567.22 | AC190: 0.0995 | AD190: 0 | AE190: 567.22 | AG190: 0
B191: 170 | C191: 2038-03-04 | D191: 28 | E191: 0.0995 | F191: 0.11542 | G191: 1.009777111 | H191: 5.960236112 | I191: 0.1677785882 | J191: FALSE | K191: 1 | L191: 0.1677785882 | M191: 0 | N191: 0 | O191: 0 | P191: 0 | Q191: 0 | R191: 399 | S191: 63.84 | T191: 0 | U191: 0 | V191: 0 | W191: 84.48 | X191: 13.52 | Y191: 5.5 | Z191: 0.88 | AA191: 567.22 | AC191: 0.0995 | AD191: 0 | AE191: 567.22 | AG191: 0
B192: 171 | C192: 2038-04-04 | D192: 31 | E192: 0.0995 | F192: 0.11542 | G192: 1.010738944 | H192: 6.024242756 | I192: 0.1659959667 | J192: FALSE | K192: 1 | L192: 0.1659959667 | M192: 0 | N192: 0 | O192: 0 | P192: 0 | Q192: 0 | R192: 399 | S192: 63.84 | T192: 0 | U192: 0 | V192: 0 | W192: 84.48 | X192: 13.52 | Y192: 5.5 | Z192: 0.88 | AA192: 567.22 | AC192: 0.0995 | AD192: 0 | AE192: 567.22 | AG192: 0
B193: 172 | C193: 2038-05-04 | D193: 30 | E193: 0.0995 | F193: 0.11542 | G193: 1.010418333 | H193: 6.087005325 | I193: 0.1642843971 | J193: FALSE | K193: 1 | L193: 0.1642843971 | M193: 0 | N193: 0 | O193: 0 | P193: 0 | Q193: 0 | R193: 399 | S193: 63.84 | T193: 0 | U193: 0 | V193: 0 | W193: 84.48 | X193: 13.52 | Y193: 5.5 | Z193: 0.88 | AA193: 567.22 | AC193: 0.0995 | AD193: 0 | AE193: 567.22 | AG193: 0
B194: 173 | C194: 2038-06-04 | D194: 31 | E194: 0.0995 | F194: 0.11542 | G194: 1.010738944 | H194: 6.152373337 | I194: 0.1625389009 | J194: FALSE | K194: 1 | L194: 0.1625389009 | M194: 0 | N194: 0 | O194: 0 | P194: 0 | Q194: 0 | R194: 399 | S194: 63.84 | T194: 0 | U194: 0 | V194: 0 | W194: 84.48 | X194: 13.52 | Y194: 5.5 | Z194: 0.88 | AA194: 567.22 | AC194: 0.0995 | AD194: 0 | AE194: 567.22 | AG194: 0
B195: 174 | C195: 2038-07-04 | D195: 30 | E195: 0.0995 | F195: 0.11542 | G195: 1.010418333 | H195: 6.216470813 | I195: 0.1608629768 | J195: FALSE | K195: 1 | L195: 0.1608629768 | M195: 0 | N195: 0 | O195: 0 | P195: 0 | Q195: 0 | R195: 399 | S195: 63.84 | T195: 0 | U195: 0 | V195: 0 | W195: 84.48 | X195: 13.52 | Y195: 5.5 | Z195: 0.88 | AA195: 567.22 | AC195: 0.0995 | AD195: 0 | AE195: 567.22 | AG195: 0
B196: 175 | C196: 2038-08-04 | D196: 31 | E196: 0.0995 | F196: 0.11542 | G196: 1.010738944 | H196: 6.283229148 | I196: 0.1591538326 | J196: FALSE | K196: 1 | L196: 0.1591538326 | M196: 0 | N196: 0 | O196: 0 | P196: 0 | Q196: 0 | R196: 399 | S196: 63.84 | T196: 0 | U196: 0 | V196: 0 | W196: 84.48 | X196: 13.52 | Y196: 5.5 | Z196: 0.88 | AA196: 567.22 | AC196: 0.0995 | AD196: 0 | AE196: 567.22 | AG196: 0
B197: 176 | C197: 2038-09-04 | D197: 31 | E197: 0.0995 | F197: 0.11542 | G197: 1.010738944 | H197: 6.350704397 | I197: 0.1574628478 | J197: FALSE | K197: 1 | L197: 0.1574628478 | M197: 0 | N197: 0 | O197: 0 | P197: 0 | Q197: 0 | R197: 399 | S197: 63.84 | T197: 0 | U197: 0 | V197: 0 | W197: 84.48 | X197: 13.52 | Y197: 5.5 | Z197: 0.88 | AA197: 567.22 | AC197: 0.0995 | AD197: 0 | AE197: 567.22 | AG197: 0
B198: 177 | C198: 2038-10-04 | D198: 30 | E198: 0.0995 | F198: 0.11542 | G198: 1.010418333 | H198: 6.416868152 | I198: 0.1558392624 | J198: FALSE | K198: 1 | L198: 0.1558392624 | M198: 0 | N198: 0 | O198: 0 | P198: 0 | Q198: 0 | R198: 399 | S198: 63.84 | T198: 0 | U198: 0 | V198: 0 | W198: 84.48 | X198: 13.52 | Y198: 5.5 | Z198: 0.88 | AA198: 567.22 | AC198: 0.0995 | AD198: 0 | AE198: 567.22 | AG198: 0
B199: 178 | C199: 2038-11-04 | D199: 31 | E199: 0.0995 | F199: 0.11542 | G199: 1.010738944 | H199: 6.485778543 | I199: 0.1541834945 | J199: FALSE | K199: 1 | L199: 0.1541834945 | M199: 0 | N199: 0 | O199: 0 | P199: 0 | Q199: 0 | R199: 399 | S199: 63.84 | T199: 0 | U199: 0 | V199: 0 | W199: 84.48 | X199: 13.52 | Y199: 5.5 | Z199: 0.88 | AA199: 567.22 | AC199: 0.0995 | AD199: 0 | AE199: 567.22 | AG199: 0
B200: 179 | C200: 2038-12-04 | D200: 30 | E200: 0.0995 | F200: 0.11542 | G200: 1.010418333 | H200: 6.553349546 | I200: 0.1525937222 | J200: FALSE | K200: 1 | L200: 0.1525937222 | M200: 0 | N200: 0 | O200: 0 | P200: 0 | Q200: 0 | R200: 399 | S200: 63.84 | T200: 0 | U200: 0 | V200: 0 | W200: 84.48 | X200: 13.52 | Y200: 5.5 | Z200: 0.88 | AA200: 567.22 | AC200: 0.0995 | AD200: 0 | AE200: 567.22 | AG200: 0
B201: 180 | C201: 2039-01-04 | D201: 31 | E201: 0.0995 | F201: 0.11542 | G201: 1.010738944 | H201: 6.623725602 | I201: 0.1509724376 | J201: TRUE | K201: 1 | L201: 0.1509724376 | M201: 0 | N201: 0 | O201: 0 | P201: 0 | Q201: 0 | R201: 399 | S201: 63.84 | T201: 0 | U201: 0 | V201: 0 | W201: 84.48 | X201: 13.52 | Y201: 5.5 | Z201: 0.88 | AA201: 567.22 | AC201: 0.0995 | AD201: 0 | AE201: 567.22 | AG201: 0
B202: 181 | C202: 2039-02-04 | D202: 31 | E202: 0.0995 | F202: 0.11542 | G202: 1.010738944 | H202: 6.694857424 | I202: 0.1493683789 | J202: FALSE | K202: 1 | L202: 0.1493683789 | M202: 0 | N202: 0 | O202: 0 | P202: 0 | Q202: 0 | R202: 399 | S202: 63.84 | T202: 0 | U202: 0 | V202: 0 | W202: 84.48 | X202: 13.52 | Y202: 5.5 | Z202: 0.88 | AA202: 567.22 | AC202: 0.0995 | AD202: 0 | AE202: 567.22 | AG202: 0
B203: 182 | C203: 2039-03-04 | D203: 28 | E203: 0.0995 | F203: 0.11542 | G203: 1.009777111 | H203: 6.760313788 | I203: 0.1479221278 | J203: FALSE | K203: 1 | L203: 0.1479221278 | M203: 0 | N203: 0 | O203: 0 | P203: 0 | Q203: 0 | R203: 399 | S203: 63.84 | T203: 0 | U203: 0 | V203: 0 | W203: 84.48 | X203: 13.52 | Y203: 5.5 | Z203: 0.88 | AA203: 567.22 | AC203: 0.0995 | AD203: 0 | AE203: 567.22 | AG203: 0
B204: 183 | C204: 2039-04-04 | D204: 31 | E204: 0.0995 | F204: 0.11542 | G204: 1.010738944 | H204: 6.832912423 | I204: 0.1463504781 | J204: FALSE | K204: 1 | L204: 0.1463504781 | M204: 0 | N204: 0 | O204: 0 | P204: 0 | Q204: 0 | R204: 399 | S204: 63.84 | T204: 0 | U204: 0 | V204: 0 | W204: 84.48 | X204: 13.52 | Y204: 5.5 | Z204: 0.88 | AA204: 567.22 | AC204: 0.0995 | AD204: 0 | AE204: 567.22 | AG204: 0
... 2469 more rows

Sheet Tabla Liquidez
E1: TABLA DE AMORTIZACIONES
D2: =IF(Simulación!J21="SI", 1) -> FALSE | E2: =IF(D2=1, "Crédito de Liquidez combinado con Sustitución (porción Liquidez)","CREDITO HIPOTECARIO LIQUIDEZ") -> CREDITO HIPOTECARIO LIQUIDEZ
C4: Destino | D4: =IF(D2=1,"Liquidez Combinada con Sustitución",'Parametros Fijo'!E27) -> ADQUISICION | F4: Tasa | G4: =ESQUEMA -> 0.0995 | M4: =IF(N4="","","CAT") ->  | N4: ='Tabla Amortización Liquidez'!N4 ->  | Q4: MENOS PLAZO
F5: Plazo | G5: =PLAZO_SIMULACION -> 20 | M5: =IF(OR('Parametro Destino'!C2=11,'Parametro Destino'!C2=12),0,399) -> 399 | Q5: MENOS CUOTA | R5: =IRR(R7:R247,0) -> 
A7: Mes | B7: FECHA PAGO | C7: Saldo | D7: Amortización | E7: Prepagos | F7: Intereses | G7: IVA Intereses | H7: Pago del crédito | I7: Apoyo Infonavit | J7: Seguro de Vida | K7: Seguro de daños | L7: =IF('Parametros Fijo'!E27="TERRENO","Seguro de desempleo","Seguro de desempleo y contenidos") -> Seguro de desempleo y contenidos | M7: Comisión Mensual | N7: =IF(OR('Parametro Destino'!C2=11,'Parametro Destino'!C2=12),"IVA de Seguros","IVA de comisión y Seguros") -> IVA de comisión y Seguros | O7: Pago Mensual | R7: =-C8+Simulación!M87+Simulación!M88 -> 2000
A8: 1 | B8: ='Tabla Amortización Fijo'!C14 -> 2024-01-04 | C8: ='Tabla Amortización Liquidez'!MTO_SOLICITADO -> 0 | D8: ='Tabla Amortización Liquidez'!O21 -> 0 | F8: ='Tabla Amortización Liquidez'!P21 -> 0 | G8: ='Tabla Amortización Liquidez'!Q21 -> 0 | H8: =+G8+F8+D8 -> 0 | J8: =(C8*0.8/1000) -> 0 | K8: =SD_PRIM_CUOTA -> 0 | L8: ='Tabla Amortización Liquidez'!Y21+'Tabla Amortización Liquidez'!Z21 -> 6.38 | M8: =M5 -> 399 | N8: =IF(C8=0,0,'Tabla Amortización Liquidez'!Z21+IVA_SI_PRIM_CUOTA+IVA_SD_PRIM_CUOTA+IVA_COMISION_PRIM_CUOTA) -> 0 | O8: =H8+L8+K8+M8+N8+J8 -> 405.38 | Q8: =C8-D8-E8-I8 -> 0 | R8: =O8-N8+I8+E8 -> 405.38
A9: 2 | B9: ='Tabla Amortización Fijo'!C15 -> 2024-02-04 | C9: =IF(Q8<0.01,0,Q8) -> 0 | D9: =IF(C9<=0,0,IF(C9<D8,C9,'Tabla Amortización Liquidez'!O22)) -> 0 | F9: ='Tabla Amortización Liquidez'!P22 -> 0 | G9: ='Tabla Amortización Liquidez'!Q22 -> 0 | H9: =+G9+F9+D9 -> 0 | J9: =IF(C9<=0,0,(C9*0.8/1000)) -> 0 | K9: 0 | L9: ='Tabla Amortización Liquidez'!Y22+'Tabla Amortización Liquidez'!Z22 -> 6.38 | M9: =IF(OR($M$8=0,C9<=0),0,399) -> 0 | N9: =IF(C9=0,0,'Tabla Amortización Liquidez'!Z22+IVA_SI_PRIM_CUOTA+IVA_SD_PRIM_CUOTA+IVA_COMISION_PRIM_CUOTA) -> 0 | O9: =H9+L9+K9+M9+N9+J9 -> 6.38 | Q9: =C9-D9-E9-I9 -> 0 | R9: =O9-N9+I9+E9 -> 6.38
A10: 3 | B10: ='Tabla Amortización Fijo'!C16 -> 2024-03-04 | C10: =IF(Q9<=0.01,0,Q9) -> 0 | D10: =IF(C10<=0,0,IF(C10<D9,C10,'Tabla Amortización Liquidez'!O23)) -> 0 | F10: ='Tabla Amortización Liquidez'!P23 -> 0 | G10: ='Tabla Amortización Liquidez'!Q23 -> 0 | H10: =+G10+F10+D10 -> 0 | J10: 0 | K10: 0 | L10: ='Tabla Amortización Liquidez'!Y23+'Tabla Amortización Liquidez'!Z23 -> 6.38 | M10: =IF(OR($M$8=0,C10<=0),0,399) -> 0 | N10: =IF(C10=0,0,'Tabla Amortización Liquidez'!Z23+IVA_SI_PRIM_CUOTA+IVA_SD_PRIM_CUOTA+IVA_COMISION_PRIM_CUOTA) -> 0 | O10: =H10+L10+K10+M10+N10+J10 -> 6.38 | Q10: =C10-D10-E10-I10 -> 0 | R10: =O10-N10+I10+E10 -> 6.38
A11: 4 | B11: ='Tabla Amortización Fijo'!C17 -> 2024-04-04 | C11: =IF(Q10<=0.01,0,Q10) -> 0 | D11: =IF(C11<=0,0,IF(C11<D10,C11,'Tabla Amortización Liquidez'!O24)) -> 0 | F11: ='Tabla Amortización Liquidez'!P24 -> 0 | G11: ='Tabla Amortización Liquidez'!Q24 -> 0 | H11: 0 | J11: 0 | K11: 0 | L11: ='Tabla Amortización Liquidez'!Y24+'Tabla Amortización Liquidez'!Z24 -> 6.38 | M11: 0 | N11: =IF(C11=0,0,'Tabla Amortización Liquidez'!Z24+IVA_SI_PRIM_CUOTA+IVA_SD_PRIM_CUOTA+IVA_COMISION_PRIM_CUOTA) -> 0 | O11: =H11+L11+K11+M11+N11+J11 -> 6.38 | Q11: 0 | R11: 6.38
A12: 5 | B12: ='Tabla Amortización Fijo'!C18 -> 2024-05-04 | C12: 0 | D12: =IF(C12<=0,0,IF(C12<D11,C12,'Tabla Amortización Liquidez'!O25)) -> 0 | F12: ='Tabla Amortización Liquidez'!P25 -> 0 | G12: ='Tabla Amortización Liquidez'!Q25 -> 0 | H12: 0 | J12: 0 | K12: 0 | L12: ='Tabla Amortización Liquidez'!Y25+'Tabla Amortización Liquidez'!Z25 -> 6.38 | M12: 0 | N12: =IF(C12=0,0,'Tabla Amortización Liquidez'!Z25+IVA_SI_PRIM_CUOTA+IVA_SD_PRIM_CUOTA+IVA_COMISION_PRIM_CUOTA) -> 0 | O12: =H12+L12+K12+M12+N12+J12 -> 6.38 | Q12: 0 | R12: =O12-N12+I12+E12 -> 6.38
A13: 6 | B13: ='Tabla Amortización Fijo'!C19 -> 2024-06-04 | C13: 0 | D13: =IF(C13<=0,0,IF(C13<D12,C13,'Tabla Amortización Liquidez'!O26)) -> 0 | F13: ='Tabla Amortización Liquidez'!P26 -> 0 | G13: ='Tabla Amortización Liquidez'!Q26 -> 0 | H13: 0 | J13: 0 | K13: 0 | L13: ='Tabla Amortización Liquidez'!Y26+'Tabla Amortización Liquidez'!Z26 -> 6.38 | M13: 0 | N13: =IF(C13=0,0,'Tabla Amortización Liquidez'!Z26+IVA_SI_PRIM_CUOTA+IVA_SD_PRIM_CUOTA+IVA_COMISION_PRIM_CUOTA) -> 0 | O13: 6.38 | Q13: 0 | R13: 6.38
A14: 7 | B14: ='Tabla Amortización Fijo'!C20 -> 2024-07-04 | C14: 0 | D14: =IF(C14<=0,0,IF(C14<D13,C14,'Tabla Amortización Liquidez'!O27)) -> 0 | F14: ='Tabla Amortización Liquidez'!P27 -> 0 | G14: ='Tabla Amortización Liquidez'!Q27 -> 0 | H14: 0 | J14: 0 | K14: 0 | L14: ='Tabla Amortización Liquidez'!Y27+'Tabla Amortización Liquidez'!Z27 -> 6.38 | M14: 0 | N14: =IF(C14=0,0,'Tabla Amortización Liquidez'!Z27+IVA_SI_PRIM_CUOTA+IVA_SD_PRIM_CUOTA+IVA_COMISION_PRIM_CUOTA) -> 0 | O14: 6.38 | Q14: 0 | R14: 6.38
A15: 8 | B15: ='Tabla Amortización Fijo'!C21 -> 2024-08-04 | C15: 0 | D15: =IF(C15<=0,0,IF(C15<D14,C15,'Tabla Amortización Liquidez'!O28)) -> 0 | F15: ='Tabla Amortización Liquidez'!P28 -> 0 | G15: ='Tabla Amortización Liquidez'!Q28 -> 0 | H15: 0 | J15: 0 | K15: 0 | L15: ='Tabla Amortización Liquidez'!Y28+'Tabla Amortización Liquidez'!Z28 -> 6.38 | M15: 0 | N15: =IF(C15=0,0,'Tabla Amortización Liquidez'!Z28+IVA_SI_PRIM_CUOTA+IVA_SD_PRIM_CUOTA+IVA_COMISION_PRIM_CUOTA) -> 0 | O15: 6.38 | Q15: 0 | R15: 6.38
A16: 9 | B16: ='Tabla Amortización Fijo'!C22 -> 2024-09-04 | C16: 0 | D16: =IF(C16<=0,0,IF(C16<D15,C16,'Tabla Amortización Liquidez'!O29)) -> 0 | F16: ='Tabla Amortización Liquidez'!P29 -> 0 | G16: ='Tabla Amortización Liquidez'!Q29 -> 0 | H16: 0 | J16: 0 | K16: 0 | L16: ='Tabla Amortización Liquidez'!Y29+'Tabla Amortización Liquidez'!Z29 -> 6.38 | M16: 0 | N16: =IF(C16=0,0,'Tabla Amortización Liquidez'!Z29+IVA_SI_PRIM_CUOTA+IVA_SD_PRIM_CUOTA+IVA_COMISION_PRIM_CUOTA) -> 0 | O16: 6.38 | Q16: 0 | R16: 6.38
A17: 10 | B17: ='Tabla Amortización Fijo'!C23 -> 2024-10-04 | C17: 0 | D17: =IF(C17<=0,0,IF(C17<D16,C17,'Tabla Amortización Liquidez'!O30)) -> 0 | F17: ='Tabla Amortización Liquidez'!P30 -> 0 | G17: ='Tabla Amortización Liquidez'!Q30 -> 0 | H17: 0 | J17: 0 | K17: 0 | L17: ='Tabla Amortización Liquidez'!Y30+'Tabla Amortización Liquidez'!Z30 -> 6.38 | M17: 0 | N17: =IF(C17=0,0,'Tabla Amortización Liquidez'!Z30+IVA_SI_PRIM_CUOTA+IVA_SD_PRIM_CUOTA+IVA_COMISION_PRIM_CUOTA) -> 0 | O17: 6.38 | Q17: 0 | R17: 6.38
A18: 11 | B18: ='Tabla Amortización Fijo'!C24 -> 2024-11-04 | C18: 0 | D18: =IF(C18<=0,0,IF(C18<D17,C18,'Tabla Amortización Liquidez'!O31)) -> 0 | F18: ='Tabla Amortización Liquidez'!P31 -> 0 | G18: ='Tabla Amortización Liquidez'!Q31 -> 0 | H18: 0 | J18: 0 | K18: 0 | L18: ='Tabla Amortización Liquidez'!Y31+'Tabla Amortización Liquidez'!Z31 -> 6.38 | M18: 0 | N18: =IF(C18=0,0,'Tabla Amortización Liquidez'!Z31+IVA_SI_PRIM_CUOTA+IVA_SD_PRIM_CUOTA+IVA_COMISION_PRIM_CUOTA) -> 0 | O18: 6.38 | Q18: 0 | R18: 6.38
A19: 12 | B19: ='Tabla Amortización Fijo'!C25 -> 2024-12-04 | C19: 0 | D19: =IF(C19<=0,0,IF(C19<D18,C19,'Tabla Amortización Liquidez'!O32)) -> 0 | F19: ='Tabla Amortización Liquidez'!P32 -> 0 | G19: ='Tabla Amortización Liquidez'!Q32 -> 0 | H19: 0 | J19: 0 | K19: 0 | L19: ='Tabla Amortización Liquidez'!Y32+'Tabla Amortización Liquidez'!Z32 -> 6.38 | M19: 0 | N19: =IF(C19=0,0,'Tabla Amortización Liquidez'!Z32+IVA_SI_PRIM_CUOTA+IVA_SD_PRIM_CUOTA+IVA_COMISION_PRIM_CUOTA) -> 0 | O19: 6.38 | Q19: 0 | R19: 6.38
A20: 13 | B20: ='Tabla Amortización Fijo'!C26 -> 2025-01-04 | C20: 0 | D20: =IF(C20<=0,0,IF(C20<D19,C20,'Tabla Amortización Liquidez'!O33)) -> 0 | F20: ='Tabla Amortización Liquidez'!P33 -> 0 | G20: ='Tabla Amortización Liquidez'!Q33 -> 0 | H20: 0 | J20: 0 | K20: 0 | L20: ='Tabla Amortización Liquidez'!Y33+'Tabla Amortización Liquidez'!Z33 -> 6.38 | M20: 0 | N20: =IF(C20=0,0,'Tabla Amortización Liquidez'!Z33+IVA_SI_PRIM_CUOTA+IVA_SD_PRIM_CUOTA+IVA_COMISION_PRIM_CUOTA) -> 0 | O20: 6.38 | Q20: 0 | R20: 6.38
A21: 14 | B21: ='Tabla Amortización Fijo'!C27 -> 2025-02-04 | C21: 0 | D21: =IF(C21<=0,0,IF(C21<D20,C21,'Tabla Amortización Liquidez'!O34)) -> 0 | F21: ='Tabla Amortización Liquidez'!P34 -> 0 | G21: ='Tabla Amortización Liquidez'!Q34 -> 0 | H21: 0 | J21: 0 | K21: 0 | L21: ='Tabla Amortización Liquidez'!Y34+'Tabla Amortización Liquidez'!Z34 -> 6.38 | M21: 0 | N21: =IF(C21=0,0,'Tabla Amortización Liquidez'!Z34+IVA_SI_PRIM_CUOTA+IVA_SD_PRIM_CUOTA+IVA_COMISION_PRIM_CUOTA) -> 0 | O21: 6.38 | Q21: 0 | R21: 6.38
A22: 15 | B22: ='Tabla Amortización Fijo'!C28 -> 2025-03-04 | C22: 0 | D22: =IF(C22<=0,0,IF(C22<D21,C22,'Tabla Amortización Liquidez'!O35)) -> 0 | F22: ='Tabla Amortización Liquidez'!P35 -> 0 | G22: ='Tabla Amortización Liquidez'!Q35 -> 0 | H22: 0 | J22: 0 | K22: 0 | L22: ='Tabla Amortización Liquidez'!Y35+'Tabla Amortización Liquidez'!Z35 -> 6.38 | M22: 0 | N22: =IF(C22=0,0,'Tabla Amortización Liquidez'!Z35+IVA_SI_PRIM_CUOTA+IVA_SD_PRIM_CUOTA+IVA_COMISION_PRIM_CUOTA) -> 0 | O22: 6.38 | Q22: 0 | R22: 6.38
A23: 16 | B23: ='Tabla Amortización Fijo'!C29 -> 2025-04-04 | C23: 0 | D23: =IF(C23<=0,0,IF(C23<D22,C23,'Tabla Amortización Liquidez'!O36)) -> 0 | F23: ='Tabla Amortización Liquidez'!P36 -> 0 | G23: ='Tabla Amortización Liquidez'!Q36 -> 0 | H23: 0 | J23: 0 | K23: 0 | L23: ='Tabla Amortización Liquidez'!Y36+'Tabla Amortización Liquidez'!Z36 -> 6.38 | M23: 0 | N23: =IF(C23=0,0,'Tabla Amortización Liquidez'!Z36+IVA_SI_PRIM_CUOTA+IVA_SD_PRIM_CUOTA+IVA_COMISION_PRIM_CUOTA) -> 0 | O23: 6.38 | Q23: 0 | R23: 6.38
A24: 17 | B24: ='Tabla Amortización Fijo'!C30 -> 2025-05-04 | C24: 0 | D24: =IF(C24<=0,0,IF(C24<D23,C24,'Tabla Amortización Liquidez'!O37)) -> 0 | F24: ='Tabla Amortización Liquidez'!P37 -> 0 | G24: ='Tabla Amortización Liquidez'!Q37 -> 0 | H24: 0 | J24: 0 | K24: 0 | L24: ='Tabla Amortización Liquidez'!Y37+'Tabla Amortización Liquidez'!Z37 -> 6.38 | M24: 0 | N24: =IF(C24=0,0,'Tabla Amortización Liquidez'!Z37+IVA_SI_PRIM_CUOTA+IVA_SD_PRIM_CUOTA+IVA_COMISION_PRIM_CUOTA) -> 0 | O24: 6.38 | Q24: 0 | R24: 6.38
A25: 18 | B25: ='Tabla Amortización Fijo'!C31 -> 2025-06-04 | C25: 0 | D25: =IF(C25<=0,0,IF(C25<D24,C25,'Tabla Amortización Liquidez'!O38)) -> 0 | F25: ='Tabla Amortización Liquidez'!P38 -> 0 | G25: ='Tabla Amortización Liquidez'!Q38 -> 0 | H25: 0 | J25: 0 | K25: 0 | L25: ='Tabla Amortización Liquidez'!Y38+'Tabla Amortización Liquidez'!Z38 -> 6.38 | M25: 0 | N25: =IF(C25=0,0,'Tabla Amortización Liquidez'!Z38+IVA_SI_PRIM_CUOTA+IVA_SD_PRIM_CUOTA+IVA_COMISION_PRIM_CUOTA) -> 0 | O25: 6.38 | Q25: 0 | R25: 6.38
A26: 19 | B26: ='Tabla Amortización Fijo'!C32 -> 2025-07-04 | C26: 0 | D26: =IF(C26<=0,0,IF(C26<D25,C26,'Tabla Amortización Liquidez'!O39)) -> 0 | F26: ='Tabla Amortización Liquidez'!P39 -> 0 | G26: ='Tabla Amortización Liquidez'!Q39 -> 0 | H26: 0 | J26: 0 | K26: 0 | L26: ='Tabla Amortización Liquidez'!Y39+'Tabla Amortización Liquidez'!Z39 -> 6.38 | M26: 0 | N26: =IF(C26=0,0,'Tabla Amortización Liquidez'!Z39+IVA_SI_PRIM_CUOTA+IVA_SD_PRIM_CUOTA+IVA_COMISION_PRIM_CUOTA) -> 0 | O26: 6.38 | Q26: 0 | R26: 6.38
A27: 20 | B27: ='Tabla Amortización Fijo'!C33 -> 2025-08-04 | C27: 0 | D27: =IF(C27<=0,0,IF(C27<D26,C27,'Tabla Amortización Liquidez'!O40)) -> 0 | F27: ='Tabla Amortización Liquidez'!P40 -> 0 | G27: ='Tabla Amortización Liquidez'!Q40 -> 0 | H27: 0 | J27: 0 | K27: 0 | L27: ='Tabla Amortización Liquidez'!Y40+'Tabla Amortización Liquidez'!Z40 -> 6.38 | M27: 0 | N27: =IF(C27=0,0,'Tabla Amortización Liquidez'!Z40+IVA_SI_PRIM_CUOTA+IVA_SD_PRIM_CUOTA+IVA_COMISION_PRIM_CUOTA) -> 0 | O27: 6.38 | Q27: 0 | R27: 6.38
A28: 21 | B28: ='Tabla Amortización Fijo'!C34 -> 2025-09-04 | C28: 0 | D28: =IF(C28<=0,0,IF(C28<D27,C28,'Tabla Amortización Liquidez'!O41)) -> 0 | F28: ='Tabla Amortización Liquidez'!P41 -> 0 | G28: ='Tabla Amortización Liquidez'!Q41 -> 0 | H28: 0 | J28: 0 | K28: 0 | L28: ='Tabla Amortización Liquidez'!Y41+'Tabla Amortización Liquidez'!Z41 -> 6.38 | M28: 0 | N28: =IF(C28=0,0,'Tabla Amortización Liquidez'!Z41+IVA_SI_PRIM_CUOTA+IVA_SD_PRIM_CUOTA+IVA_COMISION_PRIM_CUOTA) -> 0 | O28: 6.38 | Q28: 0 | R28: 6.38
A29: 22 | B29: ='Tabla Amortización Fijo'!C35 -> 2025-10-04 | C29: 0 | D29: =IF(C29<=0,0,IF(C29<D28,C29,'Tabla Amortización Liquidez'!O42)) -> 0 | F29: ='Tabla Amortización Liquidez'!P42 -> 0 | G29: ='Tabla Amortización Liquidez'!Q42 -> 0 | H29: 0 | J29: 0 | K29: 0 | L29: ='Tabla Amortización Liquidez'!Y42+'Tabla Amortización Liquidez'!Z42 -> 6.38 | M29: 0 | N29: =IF(C29=0,0,'Tabla Amortización Liquidez'!Z42+IVA_SI_PRIM_CUOTA+IVA_SD_PRIM_CUOTA+IVA_COMISION_PRIM_CUOTA) -> 0 | O29: 6.38 | Q29: 0 | R29: 6.38
A30: 23 | B30: ='Tabla Amortización Fijo'!C36 -> 2025-11-04 | C30: 0 | D30: =IF(C30<=0,0,IF(C30<D29,C30,'Tabla Amortización Liquidez'!O43)) -> 0 | F30: ='Tabla Amortización Liquidez'!P43 -> 0 | G30: ='Tabla Amortización Liquidez'!Q43 -> 0 | H30: 0 | J30: 0 | K30: 0 | L30: ='Tabla Amortización Liquidez'!Y43+'Tabla Amortización Liquidez'!Z43 -> 6.38 | M30: 0 | N30: =IF(C30=0,0,'Tabla Amortización Liquidez'!Z43+IVA_SI_PRIM_CUOTA+IVA_SD_PRIM_CUOTA+IVA_COMISION_PRIM_CUOTA) -> 0 | O30: 6.38 | Q30: 0 | R30: 6.38
A31: 24 | B31: ='Tabla Amortización Fijo'!C37 -> 2025-12-04 | C31: 0 | D31: =IF(C31<=0,0,IF(C31<D30,C31,'Tabla Amortización Liquidez'!O44)) -> 0 | F31: ='Tabla Amortización Liquidez'!P44 -> 0 | G31: ='Tabla Amortización Liquidez'!Q44 -> 0 | H31: 0 | J31: 0 | K31: 0 | L31: ='Tabla Amortización Liquidez'!Y44+'Tabla Amortización Liquidez'!Z44 -> 6.38 | M31: 0 | N31: =IF(C31=0,0,'Tabla Amortización Liquidez'!Z44+IVA_SI_PRIM_CUOTA+IVA_SD_PRIM_CUOTA+IVA_COMISION_PRIM_CUOTA) -> 0 | O31: 6.38 | Q31: 0 | R31: 6.38
A32: 25 | B32: ='Tabla Amortización Fijo'!C38 -> 2026-01-04 | C32: 0 | D32: =IF(C32<=0,0,IF(C32<D31,C32,'Tabla Amortización Liquidez'!O45)) -> 0 | F32: ='Tabla Amortización Liquidez'!P45 -> 0 | G32: ='Tabla Amortización Liquidez'!Q45 -> 0 | H32: 0 | J32: 0 | K32: 0 | L32: ='Tabla Amortización Liquidez'!Y45+'Tabla Amortización Liquidez'!Z45 -> 6.38 | M32: 0 | N32: =IF(C32=0,0,'Tabla Amortización Liquidez'!Z45+IVA_SI_PRIM_CUOTA+IVA_SD_PRIM_CUOTA+IVA_COMISION_PRIM_CUOTA) -> 0 | O32: 6.38 | Q32: 0 | R32: 6.38
A33: 26 | B33: ='Tabla Amortización Fijo'!C39 -> 2026-02-04 | C33: 0 | D33: =IF(C33<=0,0,IF(C33<D32,C33,'Tabla Amortización Liquidez'!O46)) -> 0 | F33: ='Tabla Amortización Liquidez'!P46 -> 0 | G33: ='Tabla Amortización Liquidez'!Q46 -> 0 | H33: 0 | J33: 0 | K33: 0 | L33: ='Tabla Amortización Liquidez'!Y46+'Tabla Amortización Liquidez'!Z46 -> 6.38 | M33: 0 | N33: =IF(C33=0,0,'Tabla Amortización Liquidez'!Z46+IVA_SI_PRIM_CUOTA+IVA_SD_PRIM_CUOTA+IVA_COMISION_PRIM_CUOTA) -> 0 | O33: 6.38 | Q33: 0 | R33: 6.38
A34: 27 | B34: ='Tabla Amortización Fijo'!C40 -> 2026-03-04 | C34: 0 | D34: =IF(C34<=0,0,IF(C34<D33,C34,'Tabla Amortización Liquidez'!O47)) -> 0 | F34: ='Tabla Amortización Liquidez'!P47 -> 0 | G34: ='Tabla Amortización Liquidez'!Q47 -> 0 | H34: 0 | J34: 0 | K34: 0 | L34: ='Tabla Amortización Liquidez'!Y47+'Tabla Amortización Liquidez'!Z47 -> 6.38 | M34: 0 | N34: =IF(C34=0,0,'Tabla Amortización Liquidez'!Z47+IVA_SI_PRIM_CUOTA+IVA_SD_PRIM_CUOTA+IVA_COMISION_PRIM_CUOTA) -> 0 | O34: 6.38 | Q34: 0 | R34: 6.38
A35: 28 | B35: ='Tabla Amortización Fijo'!C41 -> 2026-04-04 | C35: 0 | D35: =IF(C35<=0,0,IF(C35<D34,C35,'Tabla Amortización Liquidez'!O48)) -> 0 | F35: ='Tabla Amortización Liquidez'!P48 -> 0 | G35: ='Tabla Amortización Liquidez'!Q48 -> 0 | H35: 0 | J35: 0 | K35: 0 | L35: ='Tabla Amortización Liquidez'!Y48+'Tabla Amortización Liquidez'!Z48 -> 6.38 | M35: 0 | N35: =IF(C35=0,0,'Tabla Amortización Liquidez'!Z48+IVA_SI_PRIM_CUOTA+IVA_SD_PRIM_CUOTA+IVA_COMISION_PRIM_CUOTA) -> 0 | O35: 6.38 | Q35: 0 | R35: 6.38
A36: 29 | B36: ='Tabla Amortización Fijo'!C42 -> 2026-05-04 | C36: 0 | D36: =IF(C36<=0,0,IF(C36<D35,C36,'Tabla Amortización Liquidez'!O49)) -> 0 | F36: ='Tabla Amortización Liquidez'!P49 -> 0 | G36: ='Tabla Amortización Liquidez'!Q49 -> 0 | H36: 0 | J36: 0 | K36: 0 | L36: ='Tabla Amortización Liquidez'!Y49+'Tabla Amortización Liquidez'!Z49 -> 6.38 | M36: 0 | N36: =IF(C36=0,0,'Tabla Amortización Liquidez'!Z49+IVA_SI_PRIM_CUOTA+IVA_SD_PRIM_CUOTA+IVA_COMISION_PRIM_CUOTA) -> 0 | O36: 6.38 | Q36: 0 | R36: 6.38
A37: 30 | B37: ='Tabla Amortización Fijo'!C43 -> 2026-06-04 | C37: 0 | D37: =IF(C37<=0,0,IF(C37<D36,C37,'Tabla Amortización Liquidez'!O50)) -> 0 | F37: ='Tabla Amortización Liquidez'!P50 -> 0 | G37: ='Tabla Amortización Liquidez'!Q50 -> 0 | H37: 0 | J37: 0 | K37: 0 | L37: ='Tabla Amortización Liquidez'!Y50+'Tabla Amortización Liquidez'!Z50 -> 6.38 | M37: 0 | N37: =IF(C37=0,0,'Tabla Amortización Liquidez'!Z50+IVA_SI_PRIM_CUOTA+IVA_SD_PRIM_CUOTA+IVA_COMISION_PRIM_CUOTA) -> 0 | O37: 6.38 | Q37: 0 | R37: 6.38
A38: 31 | B38: ='Tabla Amortización Fijo'!C44 -> 2026-07-04 | C38: 0 | D38: =IF(C38<=0,0,IF(C38<D37,C38,'Tabla Amortización Liquidez'!O51)) -> 0 | F38: ='Tabla Amortización Liquidez'!P51 -> 0 | G38: ='Tabla Amortización Liquidez'!Q51 -> 0 | H38: 0 | J38: 0 | K38: 0 | L38: ='Tabla Amortización Liquidez'!Y51+'Tabla Amortización Liquidez'!Z51 -> 6.38 | M38: 0 | N38: =IF(C38=0,0,'Tabla Amortización Liquidez'!Z51+IVA_SI_PRIM_CUOTA+IVA_SD_PRIM_CUOTA+IVA_COMISION_PRIM_CUOTA) -> 0 | O38: 6.38 | Q38: 0 | R38: 6.38
A39: 32 | B39: ='Tabla Amortización Fijo'!C45 -> 2026-08-04 | C39: 0 | D39: =IF(C39<=0,0,IF(C39<D38,C39,'Tabla Amortización Liquidez'!O52)) -> 0 | F39: ='Tabla Amortización Liquidez'!P52 -> 0 | G39: ='Tabla Amortización Liquidez'!Q52 -> 0 | H39: 0 | J39: 0 | K39: 0 | L39: ='Tabla Amortización Liquidez'!Y52+'Tabla Amortización Liquidez'!Z52 -> 6.38 | M39: 0 | N39: =IF(C39=0,0,'Tabla Amortización Liquidez'!Z52+IVA_SI_PRIM_CUOTA+IVA_SD_PRIM_CUOTA+IVA_COMISION_PRIM_CUOTA) -> 0 | O39: 6.38 | Q39: 0 | R39: 6.38
A40: 33 | B40: ='Tabla Amortización Fijo'!C46 -> 2026-09-04 | C40: 0 | D40: =IF(C40<=0,0,IF(C40<D39,C40,'Tabla Amortización Liquidez'!O53)) -> 0 | F40: ='Tabla Amortización Liquidez'!P53 -> 0 | G40: ='Tabla Amortización Liquidez'!Q53 -> 0 | H40: 0 | J40: 0 | K40: 0 | L40: ='Tabla Amortización Liquidez'!Y53+'Tabla Amortización Liquidez'!Z53 -> 6.38 | M40: 0 | N40: =IF(C40=0,0,'Tabla Amortización Liquidez'!Z53+IVA_SI_PRIM_CUOTA+IVA_SD_PRIM_CUOTA+IVA_COMISION_PRIM_CUOTA) -> 0 | O40: 6.38 | Q40: 0 | R40: 6.38
A41: 34 | B41: ='Tabla Amortización Fijo'!C47 -> 2026-10-04 | C41: 0 | D41: =IF(C41<=0,0,IF(C41<D40,C41,'Tabla Amortización Liquidez'!O54)) -> 0 | F41: ='Tabla Amortización Liquidez'!P54 -> 0 | G41: ='Tabla Amortización Liquidez'!Q54 -> 0 | H41: 0 | J41: 0 | K41: 0 | L41: ='Tabla Amortización Liquidez'!Y54+'Tabla Amortización Liquidez'!Z54 -> 6.38 | M41: 0 | N41: =IF(C41=0,0,'Tabla Amortización Liquidez'!Z54+IVA_SI_PRIM_CUOTA+IVA_SD_PRIM_CUOTA+IVA_COMISION_PRIM_CUOTA) -> 0 | O41: 6.38 | Q41: 0 | R41: 6.38
A42: 35 | B42: ='Tabla Amortización Fijo'!C48 -> 2026-11-04 | C42: 0 | D42: =IF(C42<=0,0,IF(C42<D41,C42,'Tabla Amortización Liquidez'!O55)) -> 0 | F42: ='Tabla Amortización Liquidez'!P55 -> 0 | G42: ='Tabla Amortización Liquidez'!Q55 -> 0 | H42: 0 | J42: 0 | K42: 0 | L42: ='Tabla Amortización Liquidez'!Y55+'Tabla Amortización Liquidez'!Z55 -> 6.38 | M42: 0 | N42: =IF(C42=0,0,'Tabla Amortización Liquidez'!Z55+IVA_SI_PRIM_CUOTA+IVA_SD_PRIM_CUOTA+IVA_COMISION_PRIM_CUOTA) -> 0 | O42: 6.38 | Q42: 0 | R42: 6.38
A43: 36 | B43: ='Tabla Amortización Fijo'!C49 -> 2026-12-04 | C43: 0 | D43: =IF(C43<=0,0,IF(C43<D42,C43,'Tabla Amortización Liquidez'!O56)) -> 0 | F43: ='Tabla Amortización Liquidez'!P56 -> 0 | G43: ='Tabla Amortización Liquidez'!Q56 -> 0 | H43: 0 | J43: 0 | K43: 0 | L43: ='Tabla Amortización Liquidez'!Y56+'Tabla Amortización Liquidez'!Z56 -> 6.38 | M43: 0 | N43: =IF(C43=0,0,'Tabla Amortización Liquidez'!Z56+IVA_SI_PRIM_CUOTA+IVA_SD_PRIM_CUOTA+IVA_COMISION_PRIM_CUOTA) -> 0 | O43: 6.38 | Q43: 0 | R43: 6.38
A44: 37 | B44: ='Tabla Amortización Fijo'!C50 -> 2027-01-04 | C44: 0 | D44: =IF(C44<=0,0,IF(C44<D43,C44,'Tabla Amortización Liquidez'!O57)) -> 0 | F44: ='Tabla Amortización Liquidez'!P57 -> 0 | G44: ='Tabla Amortización Liquidez'!Q57 -> 0 | H44: 0 | J44: 0 | K44: 0 | L44: ='Tabla Amortización Liquidez'!Y57+'Tabla Amortización Liquidez'!Z57 -> 6.38 | M44: 0 | N44: =IF(C44=0,0,'Tabla Amortización Liquidez'!Z57+IVA_SI_PRIM_CUOTA+IVA_SD_PRIM_CUOTA+IVA_COMISION_PRIM_CUOTA) -> 0 | O44: 6.38 | Q44: 0 | R44: 6.38
A45: 38 | B45: ='Tabla Amortización Fijo'!C51 -> 2027-02-04 | C45: 0 | D45: =IF(C45<=0,0,IF(C45<D44,C45,'Tabla Amortización Liquidez'!O58)) -> 0 | F45: ='Tabla Amortización Liquidez'!P58 -> 0 | G45: ='Tabla Amortización Liquidez'!Q58 -> 0 | H45: 0 | J45: 0 | K45: 0 | L45: ='Tabla Amortización Liquidez'!Y58+'Tabla Amortización Liquidez'!Z58 -> 6.38 | M45: 0 | N45: =IF(C45=0,0,'Tabla Amortización Liquidez'!Z58+IVA_SI_PRIM_CUOTA+IVA_SD_PRIM_CUOTA+IVA_COMISION_PRIM_CUOTA) -> 0 | O45: 6.38 | Q45: 0 | R45: 6.38
A46: 39 | B46: ='Tabla Amortización Fijo'!C52 -> 2027-03-04 | C46: 0 | D46: =IF(C46<=0,0,IF(C46<D45,C46,'Tabla Amortización Liquidez'!O59)) -> 0 | F46: ='Tabla Amortización Liquidez'!P59 -> 0 | G46: ='Tabla Amortización Liquidez'!Q59 -> 0 | H46: 0 | J46: 0 | K46: 0 | L46: ='Tabla Amortización Liquidez'!Y59+'Tabla Amortización Liquidez'!Z59 -> 6.38 | M46: 0 | N46: =IF(C46=0,0,'Tabla Amortización Liquidez'!Z59+IVA_SI_PRIM_CUOTA+IVA_SD_PRIM_CUOTA+IVA_COMISION_PRIM_CUOTA) -> 0 | O46: 6.38 | Q46: 0 | R46: 6.38
A47: 40 | B47: ='Tabla Amortización Fijo'!C53 -> 2027-04-04 | C47: 0 | D47: =IF(C47<=0,0,IF(C47<D46,C47,'Tabla Amortización Liquidez'!O60)) -> 0 | F47: ='Tabla Amortización Liquidez'!P60 -> 0 | G47: ='Tabla Amortización Liquidez'!Q60 -> 0 | H47: 0 | J47: 0 | K47: 0 | L47: ='Tabla Amortización Liquidez'!Y60+'Tabla Amortización Liquidez'!Z60 -> 6.38 | M47: 0 | N47: =IF(C47=0,0,'Tabla Amortización Liquidez'!Z60+IVA_SI_PRIM_CUOTA+IVA_SD_PRIM_CUOTA+IVA_COMISION_PRIM_CUOTA) -> 0 | O47: 6.38 | Q47: 0 | R47: 6.38
A48: 41 | B48: ='Tabla Amortización Fijo'!C54 -> 2027-05-04 | C48: 0 | D48: =IF(C48<=0,0,IF(C48<D47,C48,'Tabla Amortización Liquidez'!O61)) -> 0 | F48: ='Tabla Amortización Liquidez'!P61 -> 0 | G48: ='Tabla Amortización Liquidez'!Q61 -> 0 | H48: 0 | J48: 0 | K48: 0 | L48: ='Tabla Amortización Liquidez'!Y61+'Tabla Amortización Liquidez'!Z61 -> 6.38 | M48: 0 | N48: =IF(C48=0,0,'Tabla Amortización Liquidez'!Z61+IVA_SI_PRIM_CUOTA+IVA_SD_PRIM_CUOTA+IVA_COMISION_PRIM_CUOTA) -> 0 | O48: 6.38 | Q48: 0 | R48: 6.38
A49: 42 | B49: ='Tabla Amortización Fijo'!C55 -> 2027-06-04 | C49: 0 | D49: =IF(C49<=0,0,IF(C49<D48,C49,'Tabla Amortización Liquidez'!O62)) -> 0 | F49: ='Tabla Amortización Liquidez'!P62 -> 0 | G49: ='Tabla Amortización Liquidez'!Q62 -> 0 | H49: 0 | J49: 0 | K49: 0 | L49: ='Tabla Amortización Liquidez'!Y62+'Tabla Amortización Liquidez'!Z62 -> 6.38 | M49: 0 | N49: =IF(C49=0,0,'Tabla Amortización Liquidez'!Z62+IVA_SI_PRIM_CUOTA+IVA_SD_PRIM_CUOTA+IVA_COMISION_PRIM_CUOTA) -> 0 | O49: 6.38 | Q49: 0 | R49: 6.38
A50: 43 | B50: ='Tabla Amortización Fijo'!C56 -> 2027-07-04 | C50: 0 | D50: =IF(C50<=0,0,IF(C50<D49,C50,'Tabla Amortización Liquidez'!O63)) -> 0 | F50: ='Tabla Amortización Liquidez'!P63 -> 0 | G50: ='Tabla Amortización Liquidez'!Q63 -> 0 | H50: 0 | J50: 0 | K50: 0 | L50: ='Tabla Amortización Liquidez'!Y63+'Tabla Amortización Liquidez'!Z63 -> 6.38 | M50: 0 | N50: =IF(C50=0,0,'Tabla Amortización Liquidez'!Z63+IVA_SI_PRIM_CUOTA+IVA_SD_PRIM_CUOTA+IVA_COMISION_PRIM_CUOTA) -> 0 | O50: 6.38 | Q50: 0 | R50: 6.38
A51: 44 | B51: ='Tabla Amortización Fijo'!C57 -> 2027-08-04 | C51: 0 | D51: =IF(C51<=0,0,IF(C51<D50,C51,'Tabla Amortización Liquidez'!O64)) -> 0 | F51: ='Tabla Amortización Liquidez'!P64 -> 0 | G51: ='Tabla Amortización Liquidez'!Q64 -> 0 | H51: 0 | J51: 0 | K51: 0 | L51: ='Tabla Amortización Liquidez'!Y64+'Tabla Amortización Liquidez'!Z64 -> 6.38 | M51: 0 | N51: =IF(C51=0,0,'Tabla Amortización Liquidez'!Z64+IVA_SI_PRIM_CUOTA+IVA_SD_PRIM_CUOTA+IVA_COMISION_PRIM_CUOTA) -> 0 | O51: 6.38 | Q51: 0 | R51: 6.38
A52: 45 | B52: ='Tabla Amortización Fijo'!C58 -> 2027-09-04 | C52: 0 | D52: =IF(C52<=0,0,IF(C52<D51,C52,'Tabla Amortización Liquidez'!O65)) -> 0 | F52: ='Tabla Amortización Liquidez'!P65 -> 0 | G52: ='Tabla Amortización Liquidez'!Q65 -> 0 | H52: 0 | J52: 0 | K52: 0 | L52: ='Tabla Amortización Liquidez'!Y65+'Tabla Amortización Liquidez'!Z65 -> 6.38 | M52: 0 | N52: =IF(C52=0,0,'Tabla Amortización Liquidez'!Z65+IVA_SI_PRIM_CUOTA+IVA_SD_PRIM_CUOTA+IVA_COMISION_PRIM_CUOTA) -> 0 | O52: 6.38 | Q52: 0 | R52: 6.38
A53: 46 | B53: ='Tabla Amortización Fijo'!C59 -> 2027-10-04 | C53: 0 | D53: =IF(C53<=0,0,IF(C53<D52,C53,'Tabla Amortización Liquidez'!O66)) -> 0 | F53: ='Tabla Amortización Liquidez'!P66 -> 0 | G53: ='Tabla Amortización Liquidez'!Q66 -> 0 | H53: 0 | J53: 0 | K53: 0 | L53: ='Tabla Amortización Liquidez'!Y66+'Tabla Amortización Liquidez'!Z66 -> 6.38 | M53: 0 | N53: =IF(C53=0,0,'Tabla Amortización Liquidez'!Z66+IVA_SI_PRIM_CUOTA+IVA_SD_PRIM_CUOTA+IVA_COMISION_PRIM_CUOTA) -> 0 | O53: 6.38 | Q53: 0 | R53: 6.38
A54: 47 | B54: ='Tabla Amortización Fijo'!C60 -> 2027-11-04 | C54: 0 | D54: =IF(C54<=0,0,IF(C54<D53,C54,'Tabla Amortización Liquidez'!O67)) -> 0 | F54: ='Tabla Amortización Liquidez'!P67 -> 0 | G54: ='Tabla Amortización Liquidez'!Q67 -> 0 | H54: 0 | J54: 0 | K54: 0 | L54: ='Tabla Amortización Liquidez'!Y67+'Tabla Amortización Liquidez'!Z67 -> 6.38 | M54: 0 | N54: =IF(C54=0,0,'Tabla Amortización Liquidez'!Z67+IVA_SI_PRIM_CUOTA+IVA_SD_PRIM_CUOTA+IVA_COMISION_PRIM_CUOTA) -> 0 | O54: 6.38 | Q54: 0 | R54: 6.38
A55: 48 | B55: ='Tabla Amortización Fijo'!C61 -> 2027-12-04 | C55: 0 | D55: =IF(C55<=0,0,IF(C55<D54,C55,'Tabla Amortización Liquidez'!O68)) -> 0 | F55: ='Tabla Amortización Liquidez'!P68 -> 0 | G55: ='Tabla Amortización Liquidez'!Q68 -> 0 | H55: 0 | J55: 0 | K55: 0 | L55: ='Tabla Amortización Liquidez'!Y68+'Tabla Amortización Liquidez'!Z68 -> 6.38 | M55: 0 | N55: =IF(C55=0,0,'Tabla Amortización Liquidez'!Z68+IVA_SI_PRIM_CUOTA+IVA_SD_PRIM_CUOTA+IVA_COMISION_PRIM_CUOTA) -> 0 | O55: 6.38 | Q55: 0 | R55: 6.38
A56: 49 | B56: ='Tabla Amortización Fijo'!C62 -> 2028-01-04 | C56: 0 | D56: =IF(C56<=0,0,IF(C56<D55,C56,'Tabla Amortización Liquidez'!O69)) -> 0 | F56: ='Tabla Amortización Liquidez'!P69 -> 0 | G56: ='Tabla Amortización Liquidez'!Q69 -> 0 | H56: 0 | J56: 0 | K56: 0 | L56: ='Tabla Amortización Liquidez'!Y69+'Tabla Amortización Liquidez'!Z69 -> 6.38 | M56: 0 | N56: =IF(C56=0,0,'Tabla Amortización Liquidez'!Z69+IVA_SI_PRIM_CUOTA+IVA_SD_PRIM_CUOTA+IVA_COMISION_PRIM_CUOTA) -> 0 | O56: 6.38 | Q56: 0 | R56: 6.38
A57: 50 | B57: ='Tabla Amortización Fijo'!C63 -> 2028-02-04 | C57: 0 | D57: =IF(C57<=0,0,IF(C57<D56,C57,'Tabla Amortización Liquidez'!O70)) -> 0 | F57: ='Tabla Amortización Liquidez'!P70 -> 0 | G57: ='Tabla Amortización Liquidez'!Q70 -> 0 | H57: 0 | J57: 0 | K57: 0 | L57: ='Tabla Amortización Liquidez'!Y70+'Tabla Amortización Liquidez'!Z70 -> 6.38 | M57: 0 | N57: =IF(C57=0,0,'Tabla Amortización Liquidez'!Z70+IVA_SI_PRIM_CUOTA+IVA_SD_PRIM_CUOTA+IVA_COMISION_PRIM_CUOTA) -> 0 | O57: 6.38 | Q57: 0 | R57: 6.38
A58: 51 | B58: ='Tabla Amortización Fijo'!C64 -> 2028-03-04 | C58: 0 | D58: =IF(C58<=0,0,IF(C58<D57,C58,'Tabla Amortización Liquidez'!O71)) -> 0 | F58: ='Tabla Amortización Liquidez'!P71 -> 0 | G58: ='Tabla Amortización Liquidez'!Q71 -> 0 | H58: 0 | J58: 0 | K58: 0 | L58: ='Tabla Amortización Liquidez'!Y71+'Tabla Amortización Liquidez'!Z71 -> 6.38 | M58: 0 | N58: =IF(C58=0,0,'Tabla Amortización Liquidez'!Z71+IVA_SI_PRIM_CUOTA+IVA_SD_PRIM_CUOTA+IVA_COMISION_PRIM_CUOTA) -> 0 | O58: 6.38 | Q58: 0 | R58: 6.38
A59: 52 | B59: ='Tabla Amortización Fijo'!C65 -> 2028-04-04 | C59: 0 | D59: =IF(C59<=0,0,IF(C59<D58,C59,'Tabla Amortización Liquidez'!O72)) -> 0 | F59: ='Tabla Amortización Liquidez'!P72 -> 0 | G59: ='Tabla Amortización Liquidez'!Q72 -> 0 | H59: 0 | J59: 0 | K59: 0 | L59: ='Tabla Amortización Liquidez'!Y72+'Tabla Amortización Liquidez'!Z72 -> 6.38 | M59: 0 | N59: =IF(C59=0,0,'Tabla Amortización Liquidez'!Z72+IVA_SI_PRIM_CUOTA+IVA_SD_PRIM_CUOTA+IVA_COMISION_PRIM_CUOTA) -> 0 | O59: 6.38 | Q59: 0 | R59: 6.38
A60: 53 | B60: ='Tabla Amortización Fijo'!C66 -> 2028-05-04 | C60: 0 | D60: =IF(C60<=0,0,IF(C60<D59,C60,'Tabla Amortización Liquidez'!O73)) -> 0 | F60: ='Tabla Amortización Liquidez'!P73 -> 0 | G60: ='Tabla Amortización Liquidez'!Q73 -> 0 | H60: 0 | J60: 0 | K60: 0 | L60: ='Tabla Amortización Liquidez'!Y73+'Tabla Amortización Liquidez'!Z73 -> 6.38 | M60: 0 | N60: =IF(C60=0,0,'Tabla Amortización Liquidez'!Z73+IVA_SI_PRIM_CUOTA+IVA_SD_PRIM_CUOTA+IVA_COMISION_PRIM_CUOTA) -> 0 | O60: 6.38 | Q60: 0 | R60: 6.38
A61: 54 | B61: ='Tabla Amortización Fijo'!C67 -> 2028-06-04 | C61: 0 | D61: =IF(C61<=0,0,IF(C61<D60,C61,'Tabla Amortización Liquidez'!O74)) -> 0 | F61: ='Tabla Amortización Liquidez'!P74 -> 0 | G61: ='Tabla Amortización Liquidez'!Q74 -> 0 | H61: 0 | J61: 0 | K61: 0 | L61: ='Tabla Amortización Liquidez'!Y74+'Tabla Amortización Liquidez'!Z74 -> 6.38 | M61: 0 | N61: =IF(C61=0,0,'Tabla Amortización Liquidez'!Z74+IVA_SI_PRIM_CUOTA+IVA_SD_PRIM_CUOTA+IVA_COMISION_PRIM_CUOTA) -> 0 | O61: 6.38 | Q61: 0 | R61: 6.38
A62: 55 | B62: ='Tabla Amortización Fijo'!C68 -> 2028-07-04 | C62: 0 | D62: =IF(C62<=0,0,IF(C62<D61,C62,'Tabla Amortización Liquidez'!O75)) -> 0 | F62: ='Tabla Amortización Liquidez'!P75 -> 0 | G62: ='Tabla Amortización Liquidez'!Q75 -> 0 | H62: 0 | J62: 0 | K62: 0 | L62: ='Tabla Amortización Liquidez'!Y75+'Tabla Amortización Liquidez'!Z75 -> 6.38 | M62: 0 | N62: =IF(C62=0,0,'Tabla Amortización Liquidez'!Z75+IVA_SI_PRIM_CUOTA+IVA_SD_PRIM_CUOTA+IVA_COMISION_PRIM_CUOTA) -> 0 | O62: 6.38 | Q62: 0 | R62: 6.38
A63: 56 | B63: ='Tabla Amortización Fijo'!C69 -> 2028-08-04 | C63: 0 | D63: =IF(C63<=0,0,IF(C63<D62,C63,'Tabla Amortización Liquidez'!O76)) -> 0 | F63: ='Tabla Amortización Liquidez'!P76 -> 0 | G63: ='Tabla Amortización Liquidez'!Q76 -> 0 | H63: 0 | J63: 0 | K63: 0 | L63: ='Tabla Amortización Liquidez'!Y76+'Tabla Amortización Liquidez'!Z76 -> 6.38 | M63: 0 | N63: =IF(C63=0,0,'Tabla Amortización Liquidez'!Z76+IVA_SI_PRIM_CUOTA+IVA_SD_PRIM_CUOTA+IVA_COMISION_PRIM_CUOTA) -> 0 | O63: 6.38 | Q63: 0 | R63: 6.38
A64: 57 | B64: ='Tabla Amortización Fijo'!C70 -> 2028-09-04 | C64: 0 | D64: =IF(C64<=0,0,IF(C64<D63,C64,'Tabla Amortización Liquidez'!O77)) -> 0 | F64: ='Tabla Amortización Liquidez'!P77 -> 0 | G64: ='Tabla Amortización Liquidez'!Q77 -> 0 | H64: 0 | J64: 0 | K64: 0 | L64: ='Tabla Amortización Liquidez'!Y77+'Tabla Amortización Liquidez'!Z77 -> 6.38 | M64: 0 | N64: =IF(C64=0,0,'Tabla Amortización Liquidez'!Z77+IVA_SI_PRIM_CUOTA+IVA_SD_PRIM_CUOTA+IVA_COMISION_PRIM_CUOTA) -> 0 | O64: 6.38 | Q64: 0 | R64: 6.38
A65: 58 | B65: ='Tabla Amortización Fijo'!C71 -> 2028-10-04 | C65: 0 | D65: =IF(C65<=0,0,IF(C65<D64,C65,'Tabla Amortización Liquidez'!O78)) -> 0 | F65: ='Tabla Amortización Liquidez'!P78 -> 0 | G65: ='Tabla Amortización Liquidez'!Q78 -> 0 | H65: 0 | J65: 0 | K65: 0 | L65: ='Tabla Amortización Liquidez'!Y78+'Tabla Amortización Liquidez'!Z78 -> 6.38 | M65: 0 | N65: =IF(C65=0,0,'Tabla Amortización Liquidez'!Z78+IVA_SI_PRIM_CUOTA+IVA_SD_PRIM_CUOTA+IVA_COMISION_PRIM_CUOTA) -> 0 | O65: 6.38 | Q65: 0 | R65: 6.38
A66: 59 | B66: ='Tabla Amortización Fijo'!C72 -> 2028-11-04 | C66: 0 | D66: =IF(C66<=0,0,IF(C66<D65,C66,'Tabla Amortización Liquidez'!O79)) -> 0 | F66: ='Tabla Amortización Liquidez'!P79 -> 0 | G66: ='Tabla Amortización Liquidez'!Q79 -> 0 | H66: 0 | J66: 0 | K66: 0 | L66: ='Tabla Amortización Liquidez'!Y79+'Tabla Amortización Liquidez'!Z79 -> 6.38 | M66: 0 | N66: =IF(C66=0,0,'Tabla Amortización Liquidez'!Z79+IVA_SI_PRIM_CUOTA+IVA_SD_PRIM_CUOTA+IVA_COMISION_PRIM_CUOTA) -> 0 | O66: 6.38 | Q66: 0 | R66: 6.38
A67: 60 | B67: ='Tabla Amortización Fijo'!C73 -> 2028-12-04 | C67: 0 | D67: =IF(C67<=0,0,IF(C67<D66,C67,'Tabla Amortización Liquidez'!O80)) -> 0 | F67: ='Tabla Amortización Liquidez'!P80 -> 0 | G67: ='Tabla Amortización Liquidez'!Q80 -> 0 | H67: 0 | J67: 0 | K67: 0 | L67: ='Tabla Amortización Liquidez'!Y80+'Tabla Amortización Liquidez'!Z80 -> 6.38 | M67: 0 | N67: =IF(C67=0,0,'Tabla Amortización Liquidez'!Z80+IVA_SI_PRIM_CUOTA+IVA_SD_PRIM_CUOTA+IVA_COMISION_PRIM_CUOTA) -> 0 | O67: 6.38 | Q67: 0 | R67: 6.38
A68: 61 | B68: ='Tabla Amortización Fijo'!C74 -> 2029-01-04 | C68: 0 | D68: =IF(C68<=0,0,IF(C68<D67,C68,'Tabla Amortización Liquidez'!O81)) -> 0 | F68: ='Tabla Amortización Liquidez'!P81 -> 0 | G68: ='Tabla Amortización Liquidez'!Q81 -> 0 | H68: 0 | J68: 0 | K68: 0 | L68: ='Tabla Amortización Liquidez'!Y81+'Tabla Amortización Liquidez'!Z81 -> 6.38 | M68: 0 | N68: =IF(C68=0,0,'Tabla Amortización Liquidez'!Z81+IVA_SI_PRIM_CUOTA+IVA_SD_PRIM_CUOTA+IVA_COMISION_PRIM_CUOTA) -> 0 | O68: 6.38 | Q68: 0 | R68: 6.38
A69: 62 | B69: ='Tabla Amortización Fijo'!C75 -> 2029-02-04 | C69: 0 | D69: =IF(C69<=0,0,IF(C69<D68,C69,'Tabla Amortización Liquidez'!O82)) -> 0 | F69: ='Tabla Amortización Liquidez'!P82 -> 0 | G69: ='Tabla Amortización Liquidez'!Q82 -> 0 | H69: 0 | J69: 0 | K69: 0 | L69: ='Tabla Amortización Liquidez'!Y82+'Tabla Amortización Liquidez'!Z82 -> 6.38 | M69: 0 | N69: =IF(C69=0,0,'Tabla Amortización Liquidez'!Z82+IVA_SI_PRIM_CUOTA+IVA_SD_PRIM_CUOTA+IVA_COMISION_PRIM_CUOTA) -> 0 | O69: 6.38 | Q69: 0 | R69: 6.38
A70: 63 | B70: ='Tabla Amortización Fijo'!C76 -> 2029-03-04 | C70: 0 | D70: =IF(C70<=0,0,IF(C70<D69,C70,'Tabla Amortización Liquidez'!O83)) -> 0 | F70: ='Tabla Amortización Liquidez'!P83 -> 0 | G70: ='Tabla Amortización Liquidez'!Q83 -> 0 | H70: 0 | J70: 0 | K70: 0 | L70: ='Tabla Amortización Liquidez'!Y83+'Tabla Amortización Liquidez'!Z83 -> 6.38 | M70: 0 | N70: =IF(C70=0,0,'Tabla Amortización Liquidez'!Z83+IVA_SI_PRIM_CUOTA+IVA_SD_PRIM_CUOTA+IVA_COMISION_PRIM_CUOTA) -> 0 | O70: 6.38 | Q70: 0 | R70: 6.38
A71: 64 | B71: ='Tabla Amortización Fijo'!C77 -> 2029-04-04 | C71: 0 | D71: =IF(C71<=0,0,IF(C71<D70,C71,'Tabla Amortización Liquidez'!O84)) -> 0 | F71: ='Tabla Amortización Liquidez'!P84 -> 0 | G71: ='Tabla Amortización Liquidez'!Q84 -> 0 | H71: 0 | J71: 0 | K71: 0 | L71: ='Tabla Amortización Liquidez'!Y84+'Tabla Amortización Liquidez'!Z84 -> 6.38 | M71: 0 | N71: =IF(C71=0,0,'Tabla Amortización Liquidez'!Z84+IVA_SI_PRIM_CUOTA+IVA_SD_PRIM_CUOTA+IVA_COMISION_PRIM_CUOTA) -> 0 | O71: 6.38 | Q71: 0 | R71: 6.38
A72: 65 | B72: ='Tabla Amortización Fijo'!C78 -> 2029-05-04 | C72: 0 | D72: =IF(C72<=0,0,IF(C72<D71,C72,'Tabla Amortización Liquidez'!O85)) -> 0 | F72: ='Tabla Amortización Liquidez'!P85 -> 0 | G72: ='Tabla Amortización Liquidez'!Q85 -> 0 | H72: 0 | J72: 0 | K72: =SD_PRIM_CUOTA -> 0 | L72: ='Tabla Amortización Liquidez'!Y85+'Tabla Amortización Liquidez'!Z85 -> 6.38 | M72: 0 | N72: =IF(C72=0,0,'Tabla Amortización Liquidez'!Z85+IVA_SI_PRIM_CUOTA+IVA_SD_PRIM_CUOTA+IVA_COMISION_PRIM_CUOTA) -> 0 | O72: 6.38 | Q72: 0 | R72: 6.38
A73: 66 | B73: ='Tabla Amortización Fijo'!C79 -> 2029-06-04 | C73: 0 | D73: =IF(C73<=0,0,IF(C73<D72,C73,'Tabla Amortización Liquidez'!O86)) -> 0 | F73: ='Tabla Amortización Liquidez'!P86 -> 0 | G73: ='Tabla Amortización Liquidez'!Q86 -> 0 | H73: =+G73+F73+D73 -> 0 | J73: =IF(C73<=0,0,(C73*0.8/1000)) -> 0 | K73: 0 | L73: ='Tabla Amortización Liquidez'!Y86+'Tabla Amortización Liquidez'!Z86 -> 6.38 | M73: 0 | N73: =IF(C73=0,0,'Tabla Amortización Liquidez'!Z86+IVA_SI_PRIM_CUOTA+IVA_SD_PRIM_CUOTA+IVA_COMISION_PRIM_CUOTA) -> 0 | O73: 6.38 | Q73: 0 | R73: 6.38
A74: 67 | B74: ='Tabla Amortización Fijo'!C80 -> 2029-07-04 | C74: 0 | D74: =IF(C74<=0,0,IF(C74<D73,C74,'Tabla Amortización Liquidez'!O87)) -> 0 | F74: ='Tabla Amortización Liquidez'!P87 -> 0 | G74: ='Tabla Amortización Liquidez'!Q87 -> 0 | H74: 0 | J74: 0 | K74: 0 | L74: ='Tabla Amortización Liquidez'!Y87+'Tabla Amortización Liquidez'!Z87 -> 6.38 | M74: =IF(OR($M$8=0,C74<=0),0,399) -> 0 | N74: =IF(C74=0,0,'Tabla Amortización Liquidez'!Z87+IVA_SI_PRIM_CUOTA+IVA_SD_PRIM_CUOTA+IVA_COMISION_PRIM_CUOTA) -> 0 | O74: 6.38 | Q74: =C74-D74-E74-I74 -> 0 | R74: =O74-N74+I74+E74 -> 6.38
A75: 68 | B75: ='Tabla Amortización Fijo'!C81 -> 2029-08-04 | C75: =IF(Q74<=0.01,0,Q74) -> 0 | D75: =IF(C75<=0,0,IF(C75<D74,C75,'Tabla Amortización Liquidez'!O88)) -> 0 | F75: ='Tabla Amortización Liquidez'!P88 -> 0 | G75: ='Tabla Amortización Liquidez'!Q88 -> 0 | H75: 0 | J75: 0 | K75: 0 | L75: ='Tabla Amortización Liquidez'!Y88+'Tabla Amortización Liquidez'!Z88 -> 6.38 | M75: 0 | N75: =IF(C75=0,0,'Tabla Amortización Liquidez'!Z88+IVA_SI_PRIM_CUOTA+IVA_SD_PRIM_CUOTA+IVA_COMISION_PRIM_CUOTA) -> 0 | O75: 6.38 | Q75: 0 | R75: 6.38
A76: 69 | B76: ='Tabla Amortización Fijo'!C82 -> 2029-09-04 | C76: 0 | D76: =IF(C76<=0,0,IF(C76<D75,C76,'Tabla Amortización Liquidez'!O89)) -> 0 | F76: ='Tabla Amortización Liquidez'!P89 -> 0 | G76: ='Tabla Amortización Liquidez'!Q89 -> 0 | H76: 0 | J76: 0 | K76: 0 | L76: ='Tabla Amortización Liquidez'!Y89+'Tabla Amortización Liquidez'!Z89 -> 6.38 | M76: 0 | N76: =IF(C76=0,0,'Tabla Amortización Liquidez'!Z89+IVA_SI_PRIM_CUOTA+IVA_SD_PRIM_CUOTA+IVA_COMISION_PRIM_CUOTA) -> 0 | O76: =H76+L76+K76+M76+N76+J76 -> 6.38 | Q76: 0 | R76: 6.38
A77: 70 | B77: ='Tabla Amortización Fijo'!C83 -> 2029-10-04 | C77: 0 | D77: =IF(C77<=0,0,IF(C77<D76,C77,'Tabla Amortización Liquidez'!O90)) -> 0 | F77: ='Tabla Amortización Liquidez'!P90 -> 0 | G77: ='Tabla Amortización Liquidez'!Q90 -> 0 | H77: 0 | J77: 0 | K77: 0 | L77: ='Tabla Amortización Liquidez'!Y90+'Tabla Amortización Liquidez'!Z90 -> 6.38 | M77: 0 | N77: =IF(C77=0,0,'Tabla Amortización Liquidez'!Z90+IVA_SI_PRIM_CUOTA+IVA_SD_PRIM_CUOTA+IVA_COMISION_PRIM_CUOTA) -> 0 | O77: 6.38 | Q77: 0 | R77: 6.38
A78: 71 | B78: ='Tabla Amortización Fijo'!C84 -> 2029-11-04 | C78: 0 | D78: =IF(C78<=0,0,IF(C78<D77,C78,'Tabla Amortización Liquidez'!O91)) -> 0 | F78: ='Tabla Amortización Liquidez'!P91 -> 0 | G78: ='Tabla Amortización Liquidez'!Q91 -> 0 | H78: 0 | J78: 0 | K78: 0 | L78: ='Tabla Amortización Liquidez'!Y91+'Tabla Amortización Liquidez'!Z91 -> 6.38 | M78: 0 | N78: =IF(C78=0,0,'Tabla Amortización Liquidez'!Z91+IVA_SI_PRIM_CUOTA+IVA_SD_PRIM_CUOTA+IVA_COMISION_PRIM_CUOTA) -> 0 | O78: 6.38 | Q78: 0 | R78: 6.38
A79: 72 | B79: ='Tabla Amortización Fijo'!C85 -> 2029-12-04 | C79: 0 | D79: =IF(C79<=0,0,IF(C79<D78,C79,'Tabla Amortización Liquidez'!O92)) -> 0 | F79: ='Tabla Amortización Liquidez'!P92 -> 0 | G79: ='Tabla Amortización Liquidez'!Q92 -> 0 | H79: 0 | J79: 0 | K79: 0 | L79: ='Tabla Amortización Liquidez'!Y92+'Tabla Amortización Liquidez'!Z92 -> 6.38 | M79: 0 | N79: =IF(C79=0,0,'Tabla Amortización Liquidez'!Z92+IVA_SI_PRIM_CUOTA+IVA_SD_PRIM_CUOTA+IVA_COMISION_PRIM_CUOTA) -> 0 | O79: 6.38 | Q79: 0 | R79: 6.38
A80: 73 | B80: ='Tabla Amortización Fijo'!C86 -> 2030-01-04 | C80: 0 | D80: =IF(C80<=0,0,IF(C80<D79,C80,'Tabla Amortización Liquidez'!O93)) -> 0 | F80: ='Tabla Amortización Liquidez'!P93 -> 0 | G80: ='Tabla Amortización Liquidez'!Q93 -> 0 | H80: 0 | J80: 0 | K80: 0 | L80: ='Tabla Amortización Liquidez'!Y93+'Tabla Amortización Liquidez'!Z93 -> 6.38 | M80: 0 | N80: =IF(C80=0,0,'Tabla Amortización Liquidez'!Z93+IVA_SI_PRIM_CUOTA+IVA_SD_PRIM_CUOTA+IVA_COMISION_PRIM_CUOTA) -> 0 | O80: 6.38 | Q80: 0 | R80: 6.38
A81: 74 | B81: ='Tabla Amortización Fijo'!C87 -> 2030-02-04 | C81: 0 | D81: =IF(C81<=0,0,IF(C81<D80,C81,'Tabla Amortización Liquidez'!O94)) -> 0 | F81: ='Tabla Amortización Liquidez'!P94 -> 0 | G81: ='Tabla Amortización Liquidez'!Q94 -> 0 | H81: 0 | J81: 0 | K81: 0 | L81: ='Tabla Amortización Liquidez'!Y94+'Tabla Amortización Liquidez'!Z94 -> 6.38 | M81: 0 | N81: =IF(C81=0,0,'Tabla Amortización Liquidez'!Z94+IVA_SI_PRIM_CUOTA+IVA_SD_PRIM_CUOTA+IVA_COMISION_PRIM_CUOTA) -> 0 | O81: 6.38 | Q81: 0 | R81: 6.38
A82: 75 | B82: ='Tabla Amortización Fijo'!C88 -> 2030-03-04 | C82: 0 | D82: =IF(C82<=0,0,IF(C82<D81,C82,'Tabla Amortización Liquidez'!O95)) -> 0 | F82: ='Tabla Amortización Liquidez'!P95 -> 0 | G82: ='Tabla Amortización Liquidez'!Q95 -> 0 | H82: 0 | J82: 0 | K82: 0 | L82: ='Tabla Amortización Liquidez'!Y95+'Tabla Amortización Liquidez'!Z95 -> 6.38 | M82: 0 | N82: =IF(C82=0,0,'Tabla Amortización Liquidez'!Z95+IVA_SI_PRIM_CUOTA+IVA_SD_PRIM_CUOTA+IVA_COMISION_PRIM_CUOTA) -> 0 | O82: 6.38 | Q82: 0 | R82: 6.38
A83: 76 | B83: ='Tabla Amortización Fijo'!C89 -> 2030-04-04 | C83: 0 | D83: =IF(C83<=0,0,IF(C83<D82,C83,'Tabla Amortización Liquidez'!O96)) -> 0 | F83: ='Tabla Amortización Liquidez'!P96 -> 0 | G83: ='Tabla Amortización Liquidez'!Q96 -> 0 | H83: 0 | J83: 0 | K83: 0 | L83: ='Tabla Amortización Liquidez'!Y96+'Tabla Amortización Liquidez'!Z96 -> 6.38 | M83: 0 | N83: =IF(C83=0,0,'Tabla Amortización Liquidez'!Z96+IVA_SI_PRIM_CUOTA+IVA_SD_PRIM_CUOTA+IVA_COMISION_PRIM_CUOTA) -> 0 | O83: 6.38 | Q83: 0 | R83: 6.38
A84: 77 | B84: ='Tabla Amortización Fijo'!C90 -> 2030-05-04 | C84: 0 | D84: =IF(C84<=0,0,IF(C84<D83,C84,'Tabla Amortización Liquidez'!O97)) -> 0 | F84: ='Tabla Amortización Liquidez'!P97 -> 0 | G84: ='Tabla Amortización Liquidez'!Q97 -> 0 | H84: 0 | J84: 0 | K84: 0 | L84: ='Tabla Amortización Liquidez'!Y97+'Tabla Amortización Liquidez'!Z97 -> 6.38 | M84: 0 | N84: =IF(C84=0,0,'Tabla Amortización Liquidez'!Z97+IVA_SI_PRIM_CUOTA+IVA_SD_PRIM_CUOTA+IVA_COMISION_PRIM_CUOTA) -> 0 | O84: 6.38 | Q84: 0 | R84: 6.38
A85: 78 | B85: ='Tabla Amortización Fijo'!C91 -> 2030-06-04 | C85: 0 | D85: =IF(C85<=0,0,IF(C85<D84,C85,'Tabla Amortización Liquidez'!O98)) -> 0 | F85: ='Tabla Amortización Liquidez'!P98 -> 0 | G85: ='Tabla Amortización Liquidez'!Q98 -> 0 | H85: 0 | J85: 0 | K85: 0 | L85: ='Tabla Amortización Liquidez'!Y98+'Tabla Amortización Liquidez'!Z98 -> 6.38 | M85: 0 | N85: =IF(C85=0,0,'Tabla Amortización Liquidez'!Z98+IVA_SI_PRIM_CUOTA+IVA_SD_PRIM_CUOTA+IVA_COMISION_PRIM_CUOTA) -> 0 | O85: 6.38 | Q85: 0 | R85: 6.38
A86: 79 | B86: ='Tabla Amortización Fijo'!C92 -> 2030-07-04 | C86: 0 | D86: =IF(C86<=0,0,IF(C86<D85,C86,'Tabla Amortización Liquidez'!O99)) -> 0 | F86: ='Tabla Amortización Liquidez'!P99 -> 0 | G86: ='Tabla Amortización Liquidez'!Q99 -> 0 | H86: 0 | J86: 0 | K86: 0 | L86: ='Tabla Amortización Liquidez'!Y99+'Tabla Amortización Liquidez'!Z99 -> 6.38 | M86: 0 | N86: =IF(C86=0,0,'Tabla Amortización Liquidez'!Z99+IVA_SI_PRIM_CUOTA+IVA_SD_PRIM_CUOTA+IVA_COMISION_PRIM_CUOTA) -> 0 | O86: 6.38 | Q86: 0 | R86: 6.38
A87: 80 | B87: ='Tabla Amortización Fijo'!C93 -> 2030-08-04 | C87: 0 | D87: =IF(C87<=0,0,IF(C87<D86,C87,'Tabla Amortización Liquidez'!O100)) -> 0 | F87: ='Tabla Amortización Liquidez'!P100 -> 0 | G87: ='Tabla Amortización Liquidez'!Q100 -> 0 | H87: 0 | J87: 0 | K87: 0 | L87: ='Tabla Amortización Liquidez'!Y100+'Tabla Amortización Liquidez'!Z100 -> 6.38 | M87: 0 | N87: =IF(C87=0,0,'Tabla Amortización Liquidez'!Z100+IVA_SI_PRIM_CUOTA+IVA_SD_PRIM_CUOTA+IVA_COMISION_PRIM_CUOTA) -> 0 | O87: 6.38 | Q87: 0 | R87: 6.38
A88: 81 | B88: ='Tabla Amortización Fijo'!C94 -> 2030-09-04 | C88: 0 | D88: =IF(C88<=0,0,IF(C88<D87,C88,'Tabla Amortización Liquidez'!O101)) -> 0 | F88: ='Tabla Amortización Liquidez'!P101 -> 0 | G88: ='Tabla Amortización Liquidez'!Q101 -> 0 | H88: 0 | J88: 0 | K88: 0 | L88: ='Tabla Amortización Liquidez'!Y101+'Tabla Amortización Liquidez'!Z101 -> 6.38 | M88: 0 | N88: =IF(C88=0,0,'Tabla Amortización Liquidez'!Z101+IVA_SI_PRIM_CUOTA+IVA_SD_PRIM_CUOTA+IVA_COMISION_PRIM_CUOTA) -> 0 | O88: 6.38 | Q88: 0 | R88: 6.38
A89: 82 | B89: ='Tabla Amortización Fijo'!C95 -> 2030-10-04 | C89: 0 | D89: =IF(C89<=0,0,IF(C89<D88,C89,'Tabla Amortización Liquidez'!O102)) -> 0 | F89: ='Tabla Amortización Liquidez'!P102 -> 0 | G89: ='Tabla Amortización Liquidez'!Q102 -> 0 | H89: 0 | J89: 0 | K89: 0 | L89: ='Tabla Amortización Liquidez'!Y102+'Tabla Amortización Liquidez'!Z102 -> 6.38 | M89: 0 | N89: =IF(C89=0,0,'Tabla Amortización Liquidez'!Z102+IVA_SI_PRIM_CUOTA+IVA_SD_PRIM_CUOTA+IVA_COMISION_PRIM_CUOTA) -> 0 | O89: 6.38 | Q89: 0 | R89: 6.38
A90: 83 | B90: ='Tabla Amortización Fijo'!C96 -> 2030-11-04 | C90: 0 | D90: =IF(C90<=0,0,IF(C90<D89,C90,'Tabla Amortización Liquidez'!O103)) -> 0 | F90: ='Tabla Amortización Liquidez'!P103 -> 0 | G90: ='Tabla Amortización Liquidez'!Q103 -> 0 | H90: 0 | J90: 0 | K90: 0 | L90: ='Tabla Amortización Liquidez'!Y103+'Tabla Amortización Liquidez'!Z103 -> 6.38 | M90: 0 | N90: =IF(C90=0,0,'Tabla Amortización Liquidez'!Z103+IVA_SI_PRIM_CUOTA+IVA_SD_PRIM_CUOTA+IVA_COMISION_PRIM_CUOTA) -> 0 | O90: 6.38 | Q90: 0 | R90: 6.38
A91: 84 | B91: ='Tabla Amortización Fijo'!C97 -> 2030-12-04 | C91: 0 | D91: =IF(C91<=0,0,IF(C91<D90,C91,'Tabla Amortización Liquidez'!O104)) -> 0 | F91: ='Tabla Amortización Liquidez'!P104 -> 0 | G91: ='Tabla Amortización Liquidez'!Q104 -> 0 | H91: 0 | J91: 0 | K91: 0 | L91: ='Tabla Amortización Liquidez'!Y104+'Tabla Amortización Liquidez'!Z104 -> 6.38 | M91: 0 | N91: =IF(C91=0,0,'Tabla Amortización Liquidez'!Z104+IVA_SI_PRIM_CUOTA+IVA_SD_PRIM_CUOTA+IVA_COMISION_PRIM_CUOTA) -> 0 | O91: 6.38 | Q91: 0 | R91: 6.38
A92: 85 | B92: ='Tabla Amortización Fijo'!C98 -> 2031-01-04 | C92: 0 | D92: =IF(C92<=0,0,IF(C92<D91,C92,'Tabla Amortización Liquidez'!O105)) -> 0 | F92: ='Tabla Amortización Liquidez'!P105 -> 0 | G92: ='Tabla Amortización Liquidez'!Q105 -> 0 | H92: 0 | J92: 0 | K92: 0 | L92: ='Tabla Amortización Liquidez'!Y105+'Tabla Amortización Liquidez'!Z105 -> 6.38 | M92: 0 | N92: =IF(C92=0,0,'Tabla Amortización Liquidez'!Z105+IVA_SI_PRIM_CUOTA+IVA_SD_PRIM_CUOTA+IVA_COMISION_PRIM_CUOTA) -> 0 | O92: 6.38 | Q92: 0 | R92: 6.38
A93: 86 | B93: ='Tabla Amortización Fijo'!C99 -> 2031-02-04 | C93: 0 | D93: =IF(C93<=0,0,IF(C93<D92,C93,'Tabla Amortización Liquidez'!O106)) -> 0 | F93: ='Tabla Amortización Liquidez'!P106 -> 0 | G93: ='Tabla Amortización Liquidez'!Q106 -> 0 | H93: 0 | J93: 0 | K93: 0 | L93: ='Tabla Amortización Liquidez'!Y106+'Tabla Amortización Liquidez'!Z106 -> 6.38 | M93: 0 | N93: =IF(C93=0,0,'Tabla Amortización Liquidez'!Z106+IVA_SI_PRIM_CUOTA+IVA_SD_PRIM_CUOTA+IVA_COMISION_PRIM_CUOTA) -> 0 | O93: 6.38 | Q93: 0 | R93: 6.38
A94: 87 | B94: ='Tabla Amortización Fijo'!C100 -> 2031-03-04 | C94: 0 | D94: =IF(C94<=0,0,IF(C94<D93,C94,'Tabla Amortización Liquidez'!O107)) -> 0 | F94: ='Tabla Amortización Liquidez'!P107 -> 0 | G94: ='Tabla Amortización Liquidez'!Q107 -> 0 | H94: 0 | J94: 0 | K94: 0 | L94: ='Tabla Amortización Liquidez'!Y107+'Tabla Amortización Liquidez'!Z107 -> 6.38 | M94: 0 | N94: =IF(C94=0,0,'Tabla Amortización Liquidez'!Z107+IVA_SI_PRIM_CUOTA+IVA_SD_PRIM_CUOTA+IVA_COMISION_PRIM_CUOTA) -> 0 | O94: 6.38 | Q94: 0 | R94: 6.38
A95: 88 | B95: ='Tabla Amortización Fijo'!C101 -> 2031-04-04 | C95: 0 | D95: =IF(C95<=0,0,IF(C95<D94,C95,'Tabla Amortización Liquidez'!O108)) -> 0 | F95: ='Tabla Amortización Liquidez'!P108 -> 0 | G95: ='Tabla Amortización Liquidez'!Q108 -> 0 | H95: 0 | J95: 0 | K95: 0 | L95: ='Tabla Amortización Liquidez'!Y108+'Tabla Amortización Liquidez'!Z108 -> 6.38 | M95: 0 | N95: =IF(C95=0,0,'Tabla Amortización Liquidez'!Z108+IVA_SI_PRIM_CUOTA+IVA_SD_PRIM_CUOTA+IVA_COMISION_PRIM_CUOTA) -> 0 | O95: 6.38 | Q95: 0 | R95: 6.38
A96: 89 | B96: ='Tabla Amortización Fijo'!C102 -> 2031-05-04 | C96: 0 | D96: =IF(C96<=0,0,IF(C96<D95,C96,'Tabla Amortización Liquidez'!O109)) -> 0 | F96: ='Tabla Amortización Liquidez'!P109 -> 0 | G96: ='Tabla Amortización Liquidez'!Q109 -> 0 | H96: 0 | J96: 0 | K96: 0 | L96: ='Tabla Amortización Liquidez'!Y109+'Tabla Amortización Liquidez'!Z109 -> 6.38 | M96: 0 | N96: =IF(C96=0,0,'Tabla Amortización Liquidez'!Z109+IVA_SI_PRIM_CUOTA+IVA_SD_PRIM_CUOTA+IVA_COMISION_PRIM_CUOTA) -> 0 | O96: 6.38 | Q96: 0 | R96: 6.38
A97: 90 | B97: ='Tabla Amortización Fijo'!C103 -> 2031-06-04 | C97: 0 | D97: =IF(C97<=0,0,IF(C97<D96,C97,'Tabla Amortización Liquidez'!O110)) -> 0 | F97: ='Tabla Amortización Liquidez'!P110 -> 0 | G97: ='Tabla Amortización Liquidez'!Q110 -> 0 | H97: 0 | J97: 0 | K97: 0 | L97: ='Tabla Amortización Liquidez'!Y110+'Tabla Amortización Liquidez'!Z110 -> 6.38 | M97: 0 | N97: =IF(C97=0,0,'Tabla Amortización Liquidez'!Z110+IVA_SI_PRIM_CUOTA+IVA_SD_PRIM_CUOTA+IVA_COMISION_PRIM_CUOTA) -> 0 | O97: 6.38 | Q97: 0 | R97: 6.38
A98: 91 | B98: ='Tabla Amortización Fijo'!C104 -> 2031-07-04 | C98: 0 | D98: =IF(C98<=0,0,IF(C98<D97,C98,'Tabla Amortización Liquidez'!O111)) -> 0 | F98: ='Tabla Amortización Liquidez'!P111 -> 0 | G98: ='Tabla Amortización Liquidez'!Q111 -> 0 | H98: 0 | J98: 0 | K98: 0 | L98: ='Tabla Amortización Liquidez'!Y111+'Tabla Amortización Liquidez'!Z111 -> 6.38 | M98: 0 | N98: =IF(C98=0,0,'Tabla Amortización Liquidez'!Z111+IVA_SI_PRIM_CUOTA+IVA_SD_PRIM_CUOTA+IVA_COMISION_PRIM_CUOTA) -> 0 | O98: 6.38 | Q98: 0 | R98: 6.38
A99: 92 | B99: ='Tabla Amortización Fijo'!C105 -> 2031-08-04 | C99: 0 | D99: =IF(C99<=0,0,IF(C99<D98,C99,'Tabla Amortización Liquidez'!O112)) -> 0 | F99: ='Tabla Amortización Liquidez'!P112 -> 0 | G99: ='Tabla Amortización Liquidez'!Q112 -> 0 | H99: 0 | J99: 0 | K99: 0 | L99: ='Tabla Amortización Liquidez'!Y112+'Tabla Amortización Liquidez'!Z112 -> 6.38 | M99: 0 | N99: =IF(C99=0,0,'Tabla Amortización Liquidez'!Z112+IVA_SI_PRIM_CUOTA+IVA_SD_PRIM_CUOTA+IVA_COMISION_PRIM_CUOTA) -> 0 | O99: 6.38 | Q99: 0 | R99: 6.38
A100: 93 | B100: ='Tabla Amortización Fijo'!C106 -> 2031-09-04 | C100: 0 | D100: =IF(C100<=0,0,IF(C100<D99,C100,'Tabla Amortización Liquidez'!O113)) -> 0 | F100: ='Tabla Amortización Liquidez'!P113 -> 0 | G100: ='Tabla Amortización Liquidez'!Q113 -> 0 | H100: 0 | J100: 0 | K100: 0 | L100: ='Tabla Amortización Liquidez'!Y113+'Tabla Amortización Liquidez'!Z113 -> 6.38 | M100: 0 | N100: =IF(C100=0,0,'Tabla Amortización Liquidez'!Z113+IVA_SI_PRIM_CUOTA+IVA_SD_PRIM_CUOTA+IVA_COMISION_PRIM_CUOTA) -> 0 | O100: 6.38 | Q100: 0 | R100: 6.38
A101: 94 | B101: ='Tabla Amortización Fijo'!C107 -> 2031-10-04 | C101: 0 | D101: =IF(C101<=0,0,IF(C101<D100,C101,'Tabla Amortización Liquidez'!O114)) -> 0 | F101: ='Tabla Amortización Liquidez'!P114 -> 0 | G101: ='Tabla Amortización Liquidez'!Q114 -> 0 | H101: 0 | J101: 0 | K101: 0 | L101: ='Tabla Amortización Liquidez'!Y114+'Tabla Amortización Liquidez'!Z114 -> 6.38 | M101: 0 | N101: =IF(C101=0,0,'Tabla Amortización Liquidez'!Z114+IVA_SI_PRIM_CUOTA+IVA_SD_PRIM_CUOTA+IVA_COMISION_PRIM_CUOTA) -> 0 | O101: 6.38 | Q101: 0 | R101: 6.38
A102: 95 | B102: ='Tabla Amortización Fijo'!C108 -> 2031-11-04 | C102: 0 | D102: =IF(C102<=0,0,IF(C102<D101,C102,'Tabla Amortización Liquidez'!O115)) -> 0 | F102: ='Tabla Amortización Liquidez'!P115 -> 0 | G102: ='Tabla Amortización Liquidez'!Q115 -> 0 | H102: 0 | J102: 0 | K102: 0 | L102: ='Tabla Amortización Liquidez'!Y115+'Tabla Amortización Liquidez'!Z115 -> 6.38 | M102: 0 | N102: =IF(C102=0,0,'Tabla Amortización Liquidez'!Z115+IVA_SI_PRIM_CUOTA+IVA_SD_PRIM_CUOTA+IVA_COMISION_PRIM_CUOTA) -> 0 | O102: 6.38 | Q102: 0 | R102: 6.38
A103: 96 | B103: ='Tabla Amortización Fijo'!C109 -> 2031-12-04 | C103: 0 | D103: =IF(C103<=0,0,IF(C103<D102,C103,'Tabla Amortización Liquidez'!O116)) -> 0 | F103: ='Tabla Amortización Liquidez'!P116 -> 0 | G103: ='Tabla Amortización Liquidez'!Q116 -> 0 | H103: 0 | J103: 0 | K103: 0 | L103: ='Tabla Amortización Liquidez'!Y116+'Tabla Amortización Liquidez'!Z116 -> 6.38 | M103: 0 | N103: =IF(C103=0,0,'Tabla Amortización Liquidez'!Z116+IVA_SI_PRIM_CUOTA+IVA_SD_PRIM_CUOTA+IVA_COMISION_PRIM_CUOTA) -> 0 | O103: 6.38 | Q103: 0 | R103: 6.38
A104: 97 | B104: ='Tabla Amortización Fijo'!C110 -> 2032-01-04 | C104: 0 | D104: =IF(C104<=0,0,IF(C104<D103,C104,'Tabla Amortización Liquidez'!O117)) -> 0 | F104: ='Tabla Amortización Liquidez'!P117 -> 0 | G104: ='Tabla Amortización Liquidez'!Q117 -> 0 | H104: 0 | J104: 0 | K104: 0 | L104: ='Tabla Amortización Liquidez'!Y117+'Tabla Amortización Liquidez'!Z117 -> 6.38 | M104: 0 | N104: =IF(C104=0,0,'Tabla Amortización Liquidez'!Z117+IVA_SI_PRIM_CUOTA+IVA_SD_PRIM_CUOTA+IVA_COMISION_PRIM_CUOTA) -> 0 | O104: 6.38 | Q104: 0 | R104: 6.38
A105: 98 | B105: ='Tabla Amortización Fijo'!C111 -> 2032-02-04 | C105: 0 | D105: =IF(C105<=0,0,IF(C105<D104,C105,'Tabla Amortización Liquidez'!O118)) -> 0 | F105: ='Tabla Amortización Liquidez'!P118 -> 0 | G105: ='Tabla Amortización Liquidez'!Q118 -> 0 | H105: 0 | J105: 0 | K105: 0 | L105: ='Tabla Amortización Liquidez'!Y118+'Tabla Amortización Liquidez'!Z118 -> 6.38 | M105: 0 | N105: =IF(C105=0,0,'Tabla Amortización Liquidez'!Z118+IVA_SI_PRIM_CUOTA+IVA_SD_PRIM_CUOTA+IVA_COMISION_PRIM_CUOTA) -> 0 | O105: 6.38 | Q105: 0 | R105: 6.38
A106: 99 | B106: ='Tabla Amortización Fijo'!C112 -> 2032-03-04 | C106: 0 | D106: =IF(C106<=0,0,IF(C106<D105,C106,'Tabla Amortización Liquidez'!O119)) -> 0 | F106: ='Tabla Amortización Liquidez'!P119 -> 0 | G106: ='Tabla Amortización Liquidez'!Q119 -> 0 | H106: 0 | J106: 0 | K106: 0 | L106: ='Tabla Amortización Liquidez'!Y119+'Tabla Amortización Liquidez'!Z119 -> 6.38 | M106: 0 | N106: =IF(C106=0,0,'Tabla Amortización Liquidez'!Z119+IVA_SI_PRIM_CUOTA+IVA_SD_PRIM_CUOTA+IVA_COMISION_PRIM_CUOTA) -> 0 | O106: 6.38 | Q106: 0 | R106: 6.38
A107: 100 | B107: ='Tabla Amortización Fijo'!C113 -> 2032-04-04 | C107: 0 | D107: =IF(C107<=0,0,IF(C107<D106,C107,'Tabla Amortización Liquidez'!O120)) -> 0 | F107: ='Tabla Amortización Liquidez'!P120 -> 0 | G107: ='Tabla Amortización Liquidez'!Q120 -> 0 | H107: 0 | J107: 0 | K107: 0 | L107: ='Tabla Amortización Liquidez'!Y120+'Tabla Amortización Liquidez'!Z120 -> 6.38 | M107: 0 | N107: =IF(C107=0,0,'Tabla Amortización Liquidez'!Z120+IVA_SI_PRIM_CUOTA+IVA_SD_PRIM_CUOTA+IVA_COMISION_PRIM_CUOTA) -> 0 | O107: 6.38 | Q107: 0 | R107: 6.38
A108: 101 | B108: ='Tabla Amortización Fijo'!C114 -> 2032-05-04 | C108: 0 | D108: =IF(C108<=0,0,IF(C108<D107,C108,'Tabla Amortización Liquidez'!O121)) -> 0 | F108: ='Tabla Amortización Liquidez'!P121 -> 0 | G108: ='Tabla Amortización Liquidez'!Q121 -> 0 | H108: 0 | J108: 0 | K108: 0 | L108: ='Tabla Amortización Liquidez'!Y121+'Tabla Amortización Liquidez'!Z121 -> 6.38 | M108: 0 | N108: =IF(C108=0,0,'Tabla Amortización Liquidez'!Z121+IVA_SI_PRIM_CUOTA+IVA_SD_PRIM_CUOTA+IVA_COMISION_PRIM_CUOTA) -> 0 | O108: 6.38 | Q108: 0 | R108: 6.38
A109: 102 | B109: ='Tabla Amortización Fijo'!C115 -> 2032-06-04 | C109: 0 | D109: =IF(C109<=0,0,IF(C109<D108,C109,'Tabla Amortización Liquidez'!O122)) -> 0 | F109: ='Tabla Amortización Liquidez'!P122 -> 0 | G109: ='Tabla Amortización Liquidez'!Q122 -> 0 | H109: 0 | J109: 0 | K109: 0 | L109: ='Tabla Amortización Liquidez'!Y122+'Tabla Amortización Liquidez'!Z122 -> 6.38 | M109: 0 | N109: =IF(C109=0,0,'Tabla Amortización Liquidez'!Z122+IVA_SI_PRIM_CUOTA+IVA_SD_PRIM_CUOTA+IVA_COMISION_PRIM_CUOTA) -> 0 | O109: 6.38 | Q109: 0 | R109: 6.38
A110: 103 | B110: ='Tabla Amortización Fijo'!C116 -> 2032-07-04 | C110: 0 | D110: =IF(C110<=0,0,IF(C110<D109,C110,'Tabla Amortización Liquidez'!O123)) -> 0 | F110: ='Tabla Amortización Liquidez'!P123 -> 0 | G110: ='Tabla Amortización Liquidez'!Q123 -> 0 | H110: 0 | J110: 0 | K110: 0 | L110: ='Tabla Amortización Liquidez'!Y123+'Tabla Amortización Liquidez'!Z123 -> 6.38 | M110: 0 | N110: =IF(C110=0,0,'Tabla Amortización Liquidez'!Z123+IVA_SI_PRIM_CUOTA+IVA_SD_PRIM_CUOTA+IVA_COMISION_PRIM_CUOTA) -> 0 | O110: 6.38 | Q110: 0 | R110: 6.38
A111: 104 | B111: ='Tabla Amortización Fijo'!C117 -> 2032-08-04 | C111: 0 | D111: =IF(C111<=0,0,IF(C111<D110,C111,'Tabla Amortización Liquidez'!O124)) -> 0 | F111: ='Tabla Amortización Liquidez'!P124 -> 0 | G111: ='Tabla Amortización Liquidez'!Q124 -> 0 | H111: 0 | J111: 0 | K111: 0 | L111: ='Tabla Amortización Liquidez'!Y124+'Tabla Amortización Liquidez'!Z124 -> 6.38 | M111: 0 | N111: =IF(C111=0,0,'Tabla Amortización Liquidez'!Z124+IVA_SI_PRIM_CUOTA+IVA_SD_PRIM_CUOTA+IVA_COMISION_PRIM_CUOTA) -> 0 | O111: 6.38 | Q111: 0 | R111: 6.38
A112: 105 | B112: ='Tabla Amortización Fijo'!C118 -> 2032-09-04 | C112: 0 | D112: =IF(C112<=0,0,IF(C112<D111,C112,'Tabla Amortización Liquidez'!O125)) -> 0 | F112: ='Tabla Amortización Liquidez'!P125 -> 0 | G112: ='Tabla Amortización Liquidez'!Q125 -> 0 | H112: 0 | J112: 0 | K112: 0 | L112: ='Tabla Amortización Liquidez'!Y125+'Tabla Amortización Liquidez'!Z125 -> 6.38 | M112: 0 | N112: =IF(C112=0,0,'Tabla Amortización Liquidez'!Z125+IVA_SI_PRIM_CUOTA+IVA_SD_PRIM_CUOTA+IVA_COMISION_PRIM_CUOTA) -> 0 | O112: 6.38 | Q112: 0 | R112: 6.38
A113: 106 | B113: ='Tabla Amortización Fijo'!C119 -> 2032-10-04 | C113: 0 | D113: =IF(C113<=0,0,IF(C113<D112,C113,'Tabla Amortización Liquidez'!O126)) -> 0 | F113: ='Tabla Amortización Liquidez'!P126 -> 0 | G113: ='Tabla Amortización Liquidez'!Q126 -> 0 | H113: 0 | J113: 0 | K113: 0 | L113: ='Tabla Amortización Liquidez'!Y126+'Tabla Amortización Liquidez'!Z126 -> 6.38 | M113: 0 | N113: =IF(C113=0,0,'Tabla Amortización Liquidez'!Z126+IVA_SI_PRIM_CUOTA+IVA_SD_PRIM_CUOTA+IVA_COMISION_PRIM_CUOTA) -> 0 | O113: 6.38 | Q113: 0 | R113: 6.38
A114: 107 | B114: ='Tabla Amortización Fijo'!C120 -> 2032-11-04 | C114: 0 | D114: =IF(C114<=0,0,IF(C114<D113,C114,'Tabla Amortización Liquidez'!O127)) -> 0 | F114: ='Tabla Amortización Liquidez'!P127 -> 0 | G114: ='Tabla Amortización Liquidez'!Q127 -> 0 | H114: 0 | J114: 0 | K114: 0 | L114: ='Tabla Amortización Liquidez'!Y127+'Tabla Amortización Liquidez'!Z127 -> 6.38 | M114: 0 | N114: =IF(C114=0,0,'Tabla Amortización Liquidez'!Z127+IVA_SI_PRIM_CUOTA+IVA_SD_PRIM_CUOTA+IVA_COMISION_PRIM_CUOTA) -> 0 | O114: 6.38 | Q114: 0 | R114: 6.38
A115: 108 | B115: ='Tabla Amortización Fijo'!C121 -> 2032-12-04 | C115: 0 | D115: =IF(C115<=0,0,IF(C115<D114,C115,'Tabla Amortización Liquidez'!O128)) -> 0 | F115: ='Tabla Amortización Liquidez'!P128 -> 0 | G115: ='Tabla Amortización Liquidez'!Q128 -> 0 | H115: 0 | J115: 0 | K115: 0 | L115: ='Tabla Amortización Liquidez'!Y128+'Tabla Amortización Liquidez'!Z128 -> 6.38 | M115: 0 | N115: =IF(C115=0,0,'Tabla Amortización Liquidez'!Z128+IVA_SI_PRIM_CUOTA+IVA_SD_PRIM_CUOTA+IVA_COMISION_PRIM_CUOTA) -> 0 | O115: 6.38 | Q115: 0 | R115: 6.38
A116: 109 | B116: ='Tabla Amortización Fijo'!C122 -> 2033-01-04 | C116: 0 | D116: =IF(C116<=0,0,IF(C116<D115,C116,'Tabla Amortización Liquidez'!O129)) -> 0 | F116: ='Tabla Amortización Liquidez'!P129 -> 0 | G116: ='Tabla Amortización Liquidez'!Q129 -> 0 | H116: 0 | J116: 0 | K116: 0 | L116: ='Tabla Amortización Liquidez'!Y129+'Tabla Amortización Liquidez'!Z129 -> 6.38 | M116: 0 | N116: =IF(C116=0,0,'Tabla Amortización Liquidez'!Z129+IVA_SI_PRIM_CUOTA+IVA_SD_PRIM_CUOTA+IVA_COMISION_PRIM_CUOTA) -> 0 | O116: 6.38 | Q116: 0 | R116: 6.38
A117: 110 | B117: ='Tabla Amortización Fijo'!C123 -> 2033-02-04 | C117: 0 | D117: =IF(C117<=0,0,IF(C117<D116,C117,'Tabla Amortización Liquidez'!O130)) -> 0 | F117: ='Tabla Amortización Liquidez'!P130 -> 0 | G117: ='Tabla Amortización Liquidez'!Q130 -> 0 | H117: 0 | J117: 0 | K117: 0 | L117: ='Tabla Amortización Liquidez'!Y130+'Tabla Amortización Liquidez'!Z130 -> 6.38 | M117: 0 | N117: =IF(C117=0,0,'Tabla Amortización Liquidez'!Z130+IVA_SI_PRIM_CUOTA+IVA_SD_PRIM_CUOTA+IVA_COMISION_PRIM_CUOTA) -> 0 | O117: 6.38 | Q117: 0 | R117: 6.38
A118: 111 | B118: ='Tabla Amortización Fijo'!C124 -> 2033-03-04 | C118: 0 | D118: =IF(C118<=0,0,IF(C118<D117,C118,'Tabla Amortización Liquidez'!O131)) -> 0 | F118: ='Tabla Amortización Liquidez'!P131 -> 0 | G118: ='Tabla Amortización Liquidez'!Q131 -> 0 | H118: 0 | J118: 0 | K118: 0 | L118: ='Tabla Amortización Liquidez'!Y131+'Tabla Amortización Liquidez'!Z131 -> 6.38 | M118: 0 | N118: =IF(C118=0,0,'Tabla Amortización Liquidez'!Z131+IVA_SI_PRIM_CUOTA+IVA_SD_PRIM_CUOTA+IVA_COMISION_PRIM_CUOTA) -> 0 | O118: 6.38 | Q118: 0 | R118: 6.38
A119: 112 | B119: ='Tabla Amortización Fijo'!C125 -> 2033-04-04 | C119: 0 | D119: =IF(C119<=0,0,IF(C119<D118,C119,'Tabla Amortización Liquidez'!O132)) -> 0 | F119: ='Tabla Amortización Liquidez'!P132 -> 0 | G119: ='Tabla Amortización Liquidez'!Q132 -> 0 | H119: 0 | J119: 0 | K119: 0 | L119: ='Tabla Amortización Liquidez'!Y132+'Tabla Amortización Liquidez'!Z132 -> 6.38 | M119: 0 | N119: =IF(C119=0,0,'Tabla Amortización Liquidez'!Z132+IVA_SI_PRIM_CUOTA+IVA_SD_PRIM_CUOTA+IVA_COMISION_PRIM_CUOTA) -> 0 | O119: 6.38 | Q119: 0 | R119: 6.38
A120: 113 | B120: ='Tabla Amortización Fijo'!C126 -> 2033-05-04 | C120: 0 | D120: =IF(C120<=0,0,IF(C120<D119,C120,'Tabla Amortización Liquidez'!O133)) -> 0 | F120: ='Tabla Amortización Liquidez'!P133 -> 0 | G120: ='Tabla Amortización Liquidez'!Q133 -> 0 | H120: 0 | J120: 0 | K120: 0 | L120: ='Tabla Amortización Liquidez'!Y133+'Tabla Amortización Liquidez'!Z133 -> 6.38 | M120: 0 | N120: =IF(C120=0,0,'Tabla Amortización Liquidez'!Z133+IVA_SI_PRIM_CUOTA+IVA_SD_PRIM_CUOTA+IVA_COMISION_PRIM_CUOTA) -> 0 | O120: 6.38 | Q120: 0 | R120: 6.38
A121: 114 | B121: ='Tabla Amortización Fijo'!C127 -> 2033-06-04 | C121: 0 | D121: =IF(C121<=0,0,IF(C121<D120,C121,'Tabla Amortización Liquidez'!O134)) -> 0 | F121: ='Tabla Amortización Liquidez'!P134 -> 0 | G121: ='Tabla Amortización Liquidez'!Q134 -> 0 | H121: 0 | J121: 0 | K121: 0 | L121: ='Tabla Amortización Liquidez'!Y134+'Tabla Amortización Liquidez'!Z134 -> 6.38 | M121: 0 | N121: =IF(C121=0,0,'Tabla Amortización Liquidez'!Z134+IVA_SI_PRIM_CUOTA+IVA_SD_PRIM_CUOTA+IVA_COMISION_PRIM_CUOTA) -> 0 | O121: 6.38 | Q121: 0 | R121: 6.38
A122: 115 | B122: ='Tabla Amortización Fijo'!C128 -> 2033-07-04 | C122: 0 | D122: =IF(C122<=0,0,IF(C122<D121,C122,'Tabla Amortización Liquidez'!O135)) -> 0 | F122: ='Tabla Amortización Liquidez'!P135 -> 0 | G122: ='Tabla Amortización Liquidez'!Q135 -> 0 | H122: 0 | J122: 0 | K122: 0 | L122: ='Tabla Amortización Liquidez'!Y135+'Tabla Amortización Liquidez'!Z135 -> 6.38 | M122: 0 | N122: =IF(C122=0,0,'Tabla Amortización Liquidez'!Z135+IVA_SI_PRIM_CUOTA+IVA_SD_PRIM_CUOTA+IVA_COMISION_PRIM_CUOTA) -> 0 | O122: 6.38 | Q122: 0 | R122: 6.38
A123: 116 | B123: ='Tabla Amortización Fijo'!C129 -> 2033-08-04 | C123: 0 | D123: =IF(C123<=0,0,IF(C123<D122,C123,'Tabla Amortización Liquidez'!O136)) -> 0 | F123: ='Tabla Amortización Liquidez'!P136 -> 0 | G123: ='Tabla Amortización Liquidez'!Q136 -> 0 | H123: 0 | J123: 0 | K123: 0 | L123: ='Tabla Amortización Liquidez'!Y136+'Tabla Amortización Liquidez'!Z136 -> 6.38 | M123: 0 | N123: =IF(C123=0,0,'Tabla Amortización Liquidez'!Z136+IVA_SI_PRIM_CUOTA+IVA_SD_PRIM_CUOTA+IVA_COMISION_PRIM_CUOTA) -> 0 | O123: 6.38 | Q123: 0 | R123: 6.38
A124: 117 | B124: ='Tabla Amortización Fijo'!C130 -> 2033-09-04 | C124: 0 | D124: =IF(C124<=0,0,IF(C124<D123,C124,'Tabla Amortización Liquidez'!O137)) -> 0 | F124: ='Tabla Amortización Liquidez'!P137 -> 0 | G124: ='Tabla Amortización Liquidez'!Q137 -> 0 | H124: 0 | J124: 0 | K124: 0 | L124: ='Tabla Amortización Liquidez'!Y137+'Tabla Amortización Liquidez'!Z137 -> 6.38 | M124: 0 | N124: =IF(C124=0,0,'Tabla Amortización Liquidez'!Z137+IVA_SI_PRIM_CUOTA+IVA_SD_PRIM_CUOTA+IVA_COMISION_PRIM_CUOTA) -> 0 | O124: 6.38 | Q124: 0 | R124: 6.38
A125: 118 | B125: ='Tabla Amortización Fijo'!C131 -> 2033-10-04 | C125: 0 | D125: =IF(C125<=0,0,IF(C125<D124,C125,'Tabla Amortización Liquidez'!O138)) -> 0 | F125: ='Tabla Amortización Liquidez'!P138 -> 0 | G125: ='Tabla Amortización Liquidez'!Q138 -> 0 | H125: 0 | J125: 0 | K125: 0 | L125: ='Tabla Amortización Liquidez'!Y138+'Tabla Amortización Liquidez'!Z138 -> 6.38 | M125: 0 | N125: =IF(C125=0,0,'Tabla Amortización Liquidez'!Z138+IVA_SI_PRIM_CUOTA+IVA_SD_PRIM_CUOTA+IVA_COMISION_PRIM_CUOTA) -> 0 | O125: 6.38 | Q125: 0 | R125: 6.38
A126: 119 | B126: ='Tabla Amortización Fijo'!C132 -> 2033-11-04 | C126: 0 | D126: =IF(C126<=0,0,IF(C126<D125,C126,'Tabla Amortización Liquidez'!O139)) -> 0 | F126: ='Tabla Amortización Liquidez'!P139 -> 0 | G126: ='Tabla Amortización Liquidez'!Q139 -> 0 | H126: 0 | J126: 0 | K126: 0 | L126: ='Tabla Amortización Liquidez'!Y139+'Tabla Amortización Liquidez'!Z139 -> 6.38 | M126: 0 | N126: =IF(C126=0,0,'Tabla Amortización Liquidez'!Z139+IVA_SI_PRIM_CUOTA+IVA_SD_PRIM_CUOTA+IVA_COMISION_PRIM_CUOTA) -> 0 | O126: 6.38 | Q126: 0 | R126: 6.38
A127: 120 | B127: ='Tabla Amortización Fijo'!C133 -> 2033-12-04 | C127: 0 | D127: =IF(C127<=0,0,IF(C127<D126,C127,'Tabla Amortización Liquidez'!O140)) -> 0 | F127: ='Tabla Amortización Liquidez'!P140 -> 0 | G127: ='Tabla Amortización Liquidez'!Q140 -> 0 | H127: 0 | J127: 0 | K127: 0 | L127: ='Tabla Amortización Liquidez'!Y140+'Tabla Amortización Liquidez'!Z140 -> 6.38 | M127: 0 | N127: =IF(C127=0,0,'Tabla Amortización Liquidez'!Z140+IVA_SI_PRIM_CUOTA+IVA_SD_PRIM_CUOTA+IVA_COMISION_PRIM_CUOTA) -> 0 | O127: 6.38 | Q127: 0 | R127: 6.38
A128: 121 | B128: ='Tabla Amortización Fijo'!C134 -> 2034-01-04 | C128: 0 | D128: =IF(C128<=0,0,IF(C128<D127,C128,'Tabla Amortización Liquidez'!O141)) -> 0 | F128: ='Tabla Amortización Liquidez'!P141 -> 0 | G128: ='Tabla Amortización Liquidez'!Q141 -> 0 | H128: 0 | J128: 0 | K128: 0 | L128: ='Tabla Amortización Liquidez'!Y141+'Tabla Amortización Liquidez'!Z141 -> 6.38 | M128: 0 | N128: =IF(C128=0,0,'Tabla Amortización Liquidez'!Z141+IVA_SI_PRIM_CUOTA+IVA_SD_PRIM_CUOTA+IVA_COMISION_PRIM_CUOTA) -> 0 | O128: 6.38 | Q128: 0 | R128: 6.38
A129: 122 | B129: ='Tabla Amortización Fijo'!C135 -> 2034-02-04 | C129: 0 | D129: =IF(C129<=0,0,IF(C129<D128,C129,'Tabla Amortización Liquidez'!O142)) -> 0 | F129: ='Tabla Amortización Liquidez'!P142 -> 0 | G129: ='Tabla Amortización Liquidez'!Q142 -> 0 | H129: 0 | J129: 0 | K129: 0 | L129: ='Tabla Amortización Liquidez'!Y142+'Tabla Amortización Liquidez'!Z142 -> 6.38 | M129: 0 | N129: =IF(C129=0,0,'Tabla Amortización Liquidez'!Z142+IVA_SI_PRIM_CUOTA+IVA_SD_PRIM_CUOTA+IVA_COMISION_PRIM_CUOTA) -> 0 | O129: 6.38 | Q129: 0 | R129: 6.38
A130: 123 | B130: ='Tabla Amortización Fijo'!C136 -> 2034-03-04 | C130: 0 | D130: =IF(C130<=0,0,IF(C130<D129,C130,'Tabla Amortización Liquidez'!O143)) -> 0 | F130: ='Tabla Amortización Liquidez'!P143 -> 0 | G130: ='Tabla Amortización Liquidez'!Q143 -> 0 | H130: 0 | J130: 0 | K130: 0 | L130: ='Tabla Amortización Liquidez'!Y143+'Tabla Amortización Liquidez'!Z143 -> 6.38 | M130: 0 | N130: =IF(C130=0,0,'Tabla Amortización Liquidez'!Z143+IVA_SI_PRIM_CUOTA+IVA_SD_PRIM_CUOTA+IVA_COMISION_PRIM_CUOTA) -> 0 | O130: 6.38 | Q130: 0 | R130: 6.38
A131: 124 | B131: ='Tabla Amortización Fijo'!C137 -> 2034-04-04 | C131: 0 | D131: =IF(C131<=0,0,IF(C131<D130,C131,'Tabla Amortización Liquidez'!O144)) -> 0 | F131: ='Tabla Amortización Liquidez'!P144 -> 0 | G131: ='Tabla Amortización Liquidez'!Q144 -> 0 | H131: 0 | J131: 0 | K131: 0 | L131: ='Tabla Amortización Liquidez'!Y144+'Tabla Amortización Liquidez'!Z144 -> 6.38 | M131: 0 | N131: =IF(C131=0,0,'Tabla Amortización Liquidez'!Z144+IVA_SI_PRIM_CUOTA+IVA_SD_PRIM_CUOTA+IVA_COMISION_PRIM_CUOTA) -> 0 | O131: 6.38 | Q131: 0 | R131: 6.38
A132: 125 | B132: ='Tabla Amortización Fijo'!C138 -> 2034-05-04 | C132: 0 | D132: =IF(C132<=0,0,IF(C132<D131,C132,'Tabla Amortización Liquidez'!O145)) -> 0 | F132: ='Tabla Amortización Liquidez'!P145 -> 0 | G132: ='Tabla Amortización Liquidez'!Q145 -> 0 | H132: 0 | J132: 0 | K132: 0 | L132: ='Tabla Amortización Liquidez'!Y145+'Tabla Amortización Liquidez'!Z145 -> 6.38 | M132: 0 | N132: =IF(C132=0,0,'Tabla Amortización Liquidez'!Z145+IVA_SI_PRIM_CUOTA+IVA_SD_PRIM_CUOTA+IVA_COMISION_PRIM_CUOTA) -> 0 | O132: 6.38 | Q132: 0 | R132: 6.38
A133: 126 | B133: ='Tabla Amortización Fijo'!C139 -> 2034-06-04 | C133: 0 | D133: =IF(C133<=0,0,IF(C133<D132,C133,'Tabla Amortización Liquidez'!O146)) -> 0 | F133: ='Tabla Amortización Liquidez'!P146 -> 0 | G133: ='Tabla Amortización Liquidez'!Q146 -> 0 | H133: 0 | J133: 0 | K133: 0 | L133: ='Tabla Amortización Liquidez'!Y146+'Tabla Amortización Liquidez'!Z146 -> 6.38 | M133: 0 | N133: =IF(C133=0,0,'Tabla Amortización Liquidez'!Z146+IVA_SI_PRIM_CUOTA+IVA_SD_PRIM_CUOTA+IVA_COMISION_PRIM_CUOTA) -> 0 | O133: 6.38 | Q133: 0 | R133: 6.38
A134: 127 | B134: ='Tabla Amortización Fijo'!C140 -> 2034-07-04 | C134: 0 | D134: =IF(C134<=0,0,IF(C134<D133,C134,'Tabla Amortización Liquidez'!O147)) -> 0 | F134: ='Tabla Amortización Liquidez'!P147 -> 0 | G134: ='Tabla Amortización Liquidez'!Q147 -> 0 | H134: 0 | J134: 0 | K134: 0 | L134: ='Tabla Amortización Liquidez'!Y147+'Tabla Amortización Liquidez'!Z147 -> 6.38 | M134: 0 | N134: =IF(C134=0,0,'Tabla Amortización Liquidez'!Z147+IVA_SI_PRIM_CUOTA+IVA_SD_PRIM_CUOTA+IVA_COMISION_PRIM_CUOTA) -> 0 | O134: 6.38 | Q134: 0 | R134: 6.38
A135: 128 | B135: ='Tabla Amortización Fijo'!C141 -> 2034-08-04 | C135: 0 | D135: =IF(C135<=0,0,IF(C135<D134,C135,'Tabla Amortización Liquidez'!O148)) -> 0 | F135: ='Tabla Amortización Liquidez'!P148 -> 0 | G135: ='Tabla Amortización Liquidez'!Q148 -> 0 | H135: 0 | J135: 0 | K135: 0 | L135: ='Tabla Amortización Liquidez'!Y148+'Tabla Amortización Liquidez'!Z148 -> 6.38 | M135: 0 | N135: =IF(C135=0,0,'Tabla Amortización Liquidez'!Z148+IVA_SI_PRIM_CUOTA+IVA_SD_PRIM_CUOTA+IVA_COMISION_PRIM_CUOTA) -> 0 | O135: 6.38 | Q135: 0 | R135: 6.38
A136: 129 | B136: ='Tabla Amortización Fijo'!C142 -> 2034-09-04 | C136: 0 | D136: =IF(C136<=0,0,IF(C136<D135,C136,'Tabla Amortización Liquidez'!O149)) -> 0 | F136: ='Tabla Amortización Liquidez'!P149 -> 0 | G136: ='Tabla Amortización Liquidez'!Q149 -> 0 | H136: 0 | J136: 0 | K136: =SD_PRIM_CUOTA -> 0 | L136: ='Tabla Amortización Liquidez'!Y149+'Tabla Amortización Liquidez'!Z149 -> 6.38 | M136: 0 | N136: =IF(C136=0,0,'Tabla Amortización Liquidez'!Z149+IVA_SI_PRIM_CUOTA+IVA_SD_PRIM_CUOTA+IVA_COMISION_PRIM_CUOTA) -> 0 | O136: 6.38 | Q136: 0 | R136: 6.38
A137: 130 | B137: ='Tabla Amortización Fijo'!C143 -> 2034-10-04 | C137: 0 | D137: =IF(C137<=0,0,IF(C137<D136,C137,'Tabla Amortización Liquidez'!O150)) -> 0 | F137: ='Tabla Amortización Liquidez'!P150 -> 0 | G137: ='Tabla Amortización Liquidez'!Q150 -> 0 | H137: =+G137+F137+D137 -> 0 | J137: =IF(C137<=0,0,(C137*0.8/1000)) -> 0 | K137: 0 | L137: ='Tabla Amortización Liquidez'!Y150+'Tabla Amortización Liquidez'!Z150 -> 6.38 | M137: 0 | N137: =IF(C137=0,0,'Tabla Amortización Liquidez'!Z150+IVA_SI_PRIM_CUOTA+IVA_SD_PRIM_CUOTA+IVA_COMISION_PRIM_CUOTA) -> 0 | O137: 6.38 | Q137: 0 | R137: 6.38
A138: 131 | B138: ='Tabla Amortización Fijo'!C144 -> 2034-11-04 | C138: 0 | D138: =IF(C138<=0,0,IF(C138<D137,C138,'Tabla Amortización Liquidez'!O151)) -> 0 | F138: ='Tabla Amortización Liquidez'!P151 -> 0 | G138: ='Tabla Amortización Liquidez'!Q151 -> 0 | H138: 0 | J138: 0 | K138: 0 | L138: ='Tabla Amortización Liquidez'!Y151+'Tabla Amortización Liquidez'!Z151 -> 6.38 | M138: =IF(OR($M$8=0,C138<=0),0,399) -> 0 | N138: =IF(C138=0,0,'Tabla Amortización Liquidez'!Z151+IVA_SI_PRIM_CUOTA+IVA_SD_PRIM_CUOTA+IVA_COMISION_PRIM_CUOTA) -> 0 | O138: 6.38 | Q138: =C138-D138-E138-I138 -> 0 | R138: =O138-N138+I138+E138 -> 6.38
A139: 132 | B139: ='Tabla Amortización Fijo'!C145 -> 2034-12-04 | C139: =IF(Q138<=0.01,0,Q138) -> 0 | D139: =IF(C139<=0,0,IF(C139<D138,C139,'Tabla Amortización Liquidez'!O152)) -> 0 | F139: ='Tabla Amortización Liquidez'!P152 -> 0 | G139: ='Tabla Amortización Liquidez'!Q152 -> 0 | H139: 0 | J139: 0 | K139: 0 | L139: ='Tabla Amortización Liquidez'!Y152+'Tabla Amortización Liquidez'!Z152 -> 6.38 | M139: 0 | N139: =IF(C139=0,0,'Tabla Amortización Liquidez'!Z152+IVA_SI_PRIM_CUOTA+IVA_SD_PRIM_CUOTA+IVA_COMISION_PRIM_CUOTA) -> 0 | O139: 6.38 | Q139: 0 | R139: 6.38
A140: 133 | B140: ='Tabla Amortización Fijo'!C146 -> 2035-01-04 | C140: 0 | D140: =IF(C140<=0,0,IF(C140<D139,C140,'Tabla Amortización Liquidez'!O153)) -> 0 | F140: ='Tabla Amortización Liquidez'!P153 -> 0 | G140: ='Tabla Amortización Liquidez'!Q153 -> 0 | H140: 0 | J140: 0 | K140: 0 | L140: ='Tabla Amortización Liquidez'!Y153+'Tabla Amortización Liquidez'!Z153 -> 6.38 | M140: 0 | N140: =IF(C140=0,0,'Tabla Amortización Liquidez'!Z153+IVA_SI_PRIM_CUOTA+IVA_SD_PRIM_CUOTA+IVA_COMISION_PRIM_CUOTA) -> 0 | O140: =H140+L140+K140+M140+N140+J140 -> 6.38 | Q140: 0 | R140: 6.38
A141: 134 | B141: ='Tabla Amortización Fijo'!C147 -> 2035-02-04 | C141: 0 | D141: =IF(C141<=0,0,IF(C141<D140,C141,'Tabla Amortización Liquidez'!O154)) -> 0 | F141: ='Tabla Amortización Liquidez'!P154 -> 0 | G141: ='Tabla Amortización Liquidez'!Q154 -> 0 | H141: 0 | J141: 0 | K141: 0 | L141: ='Tabla Amortización Liquidez'!Y154+'Tabla Amortización Liquidez'!Z154 -> 6.38 | M141: 0 | N141: =IF(C141=0,0,'Tabla Amortización Liquidez'!Z154+IVA_SI_PRIM_CUOTA+IVA_SD_PRIM_CUOTA+IVA_COMISION_PRIM_CUOTA) -> 0 | O141: 6.38 | Q141: 0 | R141: 6.38
A142: 135 | B142: ='Tabla Amortización Fijo'!C148 -> 2035-03-04 | C142: 0 | D142: =IF(C142<=0,0,IF(C142<D141,C142,'Tabla Amortización Liquidez'!O155)) -> 0 | F142: ='Tabla Amortización Liquidez'!P155 -> 0 | G142: ='Tabla Amortización Liquidez'!Q155 -> 0 | H142: 0 | J142: 0 | K142: 0 | L142: ='Tabla Amortización Liquidez'!Y155+'Tabla Amortización Liquidez'!Z155 -> 6.38 | M142: 0 | N142: =IF(C142=0,0,'Tabla Amortización Liquidez'!Z155+IVA_SI_PRIM_CUOTA+IVA_SD_PRIM_CUOTA+IVA_COMISION_PRIM_CUOTA) -> 0 | O142: 6.38 | Q142: 0 | R142: 6.38
A143: 136 | B143: ='Tabla Amortización Fijo'!C149 -> 2035-04-04 | C143: 0 | D143: =IF(C143<=0,0,IF(C143<D142,C143,'Tabla Amortización Liquidez'!O156)) -> 0 | F143: ='Tabla Amortización Liquidez'!P156 -> 0 | G143: ='Tabla Amortización Liquidez'!Q156 -> 0 | H143: 0 | J143: 0 | K143: 0 | L143: ='Tabla Amortización Liquidez'!Y156+'Tabla Amortización Liquidez'!Z156 -> 6.38 | M143: 0 | N143: =IF(C143=0,0,'Tabla Amortización Liquidez'!Z156+IVA_SI_PRIM_CUOTA+IVA_SD_PRIM_CUOTA+IVA_COMISION_PRIM_CUOTA) -> 0 | O143: 6.38 | Q143: 0 | R143: 6.38
A144: 137 | B144: ='Tabla Amortización Fijo'!C150 -> 2035-05-04 | C144: 0 | D144: =IF(C144<=0,0,IF(C144<D143,C144,'Tabla Amortización Liquidez'!O157)) -> 0 | F144: ='Tabla Amortización Liquidez'!P157 -> 0 | G144: ='Tabla Amortización Liquidez'!Q157 -> 0 | H144: 0 | J144: 0 | K144: 0 | L144: ='Tabla Amortización Liquidez'!Y157+'Tabla Amortización Liquidez'!Z157 -> 6.38 | M144: 0 | N144: =IF(C144=0,0,'Tabla Amortización Liquidez'!Z157+IVA_SI_PRIM_CUOTA+IVA_SD_PRIM_CUOTA+IVA_COMISION_PRIM_CUOTA) -> 0 | O144: 6.38 | Q144: 0 | R144: 6.38
A145: 138 | B145: ='Tabla Amortización Fijo'!C151 -> 2035-06-04 | C145: 0 | D145: =IF(C145<=0,0,IF(C145<D144,C145,'Tabla Amortización Liquidez'!O158)) -> 0 | F145: ='Tabla Amortización Liquidez'!P158 -> 0 | G145: ='Tabla Amortización Liquidez'!Q158 -> 0 | H145: 0 | J145: 0 | K145: 0 | L145: ='Tabla Amortización Liquidez'!Y158+'Tabla Amortización Liquidez'!Z158 -> 6.38 | M145: 0 | N145: =IF(C145=0,0,'Tabla Amortización Liquidez'!Z158+IVA_SI_PRIM_CUOTA+IVA_SD_PRIM_CUOTA+IVA_COMISION_PRIM_CUOTA) -> 0 | O145: 6.38 | Q145: 0 | R145: 6.38
A146: 139 | B146: ='Tabla Amortización Fijo'!C152 -> 2035-07-04 | C146: 0 | D146: =IF(C146<=0,0,IF(C146<D145,C146,'Tabla Amortización Liquidez'!O159)) -> 0 | F146: ='Tabla Amortización Liquidez'!P159 -> 0 | G146: ='Tabla Amortización Liquidez'!Q159 -> 0 | H146: 0 | J146: 0 | K146: 0 | L146: ='Tabla Amortización Liquidez'!Y159+'Tabla Amortización Liquidez'!Z159 -> 6.38 | M146: 0 | N146: =IF(C146=0,0,'Tabla Amortización Liquidez'!Z159+IVA_SI_PRIM_CUOTA+IVA_SD_PRIM_CUOTA+IVA_COMISION_PRIM_CUOTA) -> 0 | O146: 6.38 | Q146: 0 | R146: 6.38
A147: 140 | B147: ='Tabla Amortización Fijo'!C153 -> 2035-08-04 | C147: 0 | D147: =IF(C147<=0,0,IF(C147<D146,C147,'Tabla Amortización Liquidez'!O160)) -> 0 | F147: ='Tabla Amortización Liquidez'!P160 -> 0 | G147: ='Tabla Amortización Liquidez'!Q160 -> 0 | H147: 0 | J147: 0 | K147: 0 | L147: ='Tabla Amortización Liquidez'!Y160+'Tabla Amortización Liquidez'!Z160 -> 6.38 | M147: 0 | N147: =IF(C147=0,0,'Tabla Amortización Liquidez'!Z160+IVA_SI_PRIM_CUOTA+IVA_SD_PRIM_CUOTA+IVA_COMISION_PRIM_CUOTA) -> 0 | O147: 6.38 | Q147: 0 | R147: 6.38
A148: 141 | B148: ='Tabla Amortización Fijo'!C154 -> 2035-09-04 | C148: 0 | D148: =IF(C148<=0,0,IF(C148<D147,C148,'Tabla Amortización Liquidez'!O161)) -> 0 | F148: ='Tabla Amortización Liquidez'!P161 -> 0 | G148: ='Tabla Amortización Liquidez'!Q161 -> 0 | H148: 0 | J148: 0 | K148: 0 | L148: ='Tabla Amortización Liquidez'!Y161+'Tabla Amortización Liquidez'!Z161 -> 6.38 | M148: 0 | N148: =IF(C148=0,0,'Tabla Amortización Liquidez'!Z161+IVA_SI_PRIM_CUOTA+IVA_SD_PRIM_CUOTA+IVA_COMISION_PRIM_CUOTA) -> 0 | O148: 6.38 | Q148: 0 | R148: 6.38
A149: 142 | B149: ='Tabla Amortización Fijo'!C155 -> 2035-10-04 | C149: 0 | D149: =IF(C149<=0,0,IF(C149<D148,C149,'Tabla Amortización Liquidez'!O162)) -> 0 | F149: ='Tabla Amortización Liquidez'!P162 -> 0 | G149: ='Tabla Amortización Liquidez'!Q162 -> 0 | H149: 0 | J149: 0 | K149: 0 | L149: ='Tabla Amortización Liquidez'!Y162+'Tabla Amortización Liquidez'!Z162 -> 6.38 | M149: 0 | N149: =IF(C149=0,0,'Tabla Amortización Liquidez'!Z162+IVA_SI_PRIM_CUOTA+IVA_SD_PRIM_CUOTA+IVA_COMISION_PRIM_CUOTA) -> 0 | O149: 6.38 | Q149: 0 | R149: 6.38
A150: 143 | B150: ='Tabla Amortización Fijo'!C156 -> 2035-11-04 | C150: 0 | D150: =IF(C150<=0,0,IF(C150<D149,C150,'Tabla Amortización Liquidez'!O163)) -> 0 | F150: ='Tabla Amortización Liquidez'!P163 -> 0 | G150: ='Tabla Amortización Liquidez'!Q163 -> 0 | H150: 0 | J150: 0 | K150: 0 | L150: ='Tabla Amortización Liquidez'!Y163+'Tabla Amortización Liquidez'!Z163 -> 6.38 | M150: 0 | N150: =IF(C150=0,0,'Tabla Amortización Liquidez'!Z163+IVA_SI_PRIM_CUOTA+IVA_SD_PRIM_CUOTA+IVA_COMISION_PRIM_CUOTA) -> 0 | O150: 6.38 | Q150: 0 | R150: 6.38
A151: 144 | B151: ='Tabla Amortización Fijo'!C157 -> 2035-12-04 | C151: 0 | D151: =IF(C151<=0,0,IF(C151<D150,C151,'Tabla Amortización Liquidez'!O164)) -> 0 | F151: ='Tabla Amortización Liquidez'!P164 -> 0 | G151: ='Tabla Amortización Liquidez'!Q164 -> 0 | H151: 0 | J151: 0 | K151: 0 | L151: ='Tabla Amortización Liquidez'!Y164+'Tabla Amortización Liquidez'!Z164 -> 6.38 | M151: 0 | N151: =IF(C151=0,0,'Tabla Amortización Liquidez'!Z164+IVA_SI_PRIM_CUOTA+IVA_SD_PRIM_CUOTA+IVA_COMISION_PRIM_CUOTA) -> 0 | O151: 6.38 | Q151: 0 | R151: 6.38
A152: 145 | B152: ='Tabla Amortización Fijo'!C158 -> 2036-01-04 | C152: 0 | D152: =IF(C152<=0,0,IF(C152<D151,C152,'Tabla Amortización Liquidez'!O165)) -> 0 | F152: ='Tabla Amortización Liquidez'!P165 -> 0 | G152: ='Tabla Amortización Liquidez'!Q165 -> 0 | H152: 0 | J152: 0 | K152: 0 | L152: ='Tabla Amortización Liquidez'!Y165+'Tabla Amortización Liquidez'!Z165 -> 6.38 | M152: 0 | N152: =IF(C152=0,0,'Tabla Amortización Liquidez'!Z165+IVA_SI_PRIM_CUOTA+IVA_SD_PRIM_CUOTA+IVA_COMISION_PRIM_CUOTA) -> 0 | O152: 6.38 | Q152: 0 | R152: 6.38
A153: 146 | B153: ='Tabla Amortización Fijo'!C159 -> 2036-02-04 | C153: 0 | D153: =IF(C153<=0,0,IF(C153<D152,C153,'Tabla Amortización Liquidez'!O166)) -> 0 | F153: ='Tabla Amortización Liquidez'!P166 -> 0 | G153: ='Tabla Amortización Liquidez'!Q166 -> 0 | H153: 0 | J153: 0 | K153: 0 | L153: ='Tabla Amortización Liquidez'!Y166+'Tabla Amortización Liquidez'!Z166 -> 6.38 | M153: 0 | N153: =IF(C153=0,0,'Tabla Amortización Liquidez'!Z166+IVA_SI_PRIM_CUOTA+IVA_SD_PRIM_CUOTA+IVA_COMISION_PRIM_CUOTA) -> 0 | O153: 6.38 | Q153: 0 | R153: 6.38
A154: 147 | B154: ='Tabla Amortización Fijo'!C160 -> 2036-03-04 | C154: 0 | D154: =IF(C154<=0,0,IF(C154<D153,C154,'Tabla Amortización Liquidez'!O167)) -> 0 | F154: ='Tabla Amortización Liquidez'!P167 -> 0 | G154: ='Tabla Amortización Liquidez'!Q167 -> 0 | H154: 0 | J154: 0 | K154: 0 | L154: ='Tabla Amortización Liquidez'!Y167+'Tabla Amortización Liquidez'!Z167 -> 6.38 | M154: 0 | N154: =IF(C154=0,0,'Tabla Amortización Liquidez'!Z167+IVA_SI_PRIM_CUOTA+IVA_SD_PRIM_CUOTA+IVA_COMISION_PRIM_CUOTA) -> 0 | O154: 6.38 | Q154: 0 | R154: 6.38
A155: 148 | B155: ='Tabla Amortización Fijo'!C161 -> 2036-04-04 | C155: 0 | D155: =IF(C155<=0,0,IF(C155<D154,C155,'Tabla Amortización Liquidez'!O168)) -> 0 | F155: ='Tabla Amortización Liquidez'!P168 -> 0 | G155: ='Tabla Amortización Liquidez'!Q168 -> 0 | H155: 0 | J155: 0 | K155: 0 | L155: ='Tabla Amortización Liquidez'!Y168+'Tabla Amortización Liquidez'!Z168 -> 6.38 | M155: 0 | N155: =IF(C155=0,0,'Tabla Amortización Liquidez'!Z168+IVA_SI_PRIM_CUOTA+IVA_SD_PRIM_CUOTA+IVA_COMISION_PRIM_CUOTA) -> 0 | O155: 6.38 | Q155: 0 | R155: 6.38
A156: 149 | B156: ='Tabla Amortización Fijo'!C162 -> 2036-05-04 | C156: 0 | D156: =IF(C156<=0,0,IF(C156<D155,C156,'Tabla Amortización Liquidez'!O169)) -> 0 | F156: ='Tabla Amortización Liquidez'!P169 -> 0 | G156: ='Tabla Amortización Liquidez'!Q169 -> 0 | H156: 0 | J156: 0 | K156: 0 | L156: ='Tabla Amortización Liquidez'!Y169+'Tabla Amortización Liquidez'!Z169 -> 6.38 | M156: 0 | N156: =IF(C156=0,0,'Tabla Amortización Liquidez'!Z169+IVA_SI_PRIM_CUOTA+IVA_SD_PRIM_CUOTA+IVA_COMISION_PRIM_CUOTA) -> 0 | O156: 6.38 | Q156: 0 | R156: 6.38
A157: 150 | B157: ='Tabla Amortización Fijo'!C163 -> 2036-06-04 | C157: 0 | D157: =IF(C157<=0,0,IF(C157<D156,C157,'Tabla Amortización Liquidez'!O170)) -> 0 | F157: ='Tabla Amortización Liquidez'!P170 -> 0 | G157: ='Tabla Amortización Liquidez'!Q170 -> 0 | H157: 0 | J157: 0 | K157: 0 | L157: ='Tabla Amortización Liquidez'!Y170+'Tabla Amortización Liquidez'!Z170 -> 6.38 | M157: 0 | N157: =IF(C157=0,0,'Tabla Amortización Liquidez'!Z170+IVA_SI_PRIM_CUOTA+IVA_SD_PRIM_CUOTA+IVA_COMISION_PRIM_CUOTA) -> 0 | O157: 6.38 | Q157: 0 | R157: 6.38
A158: 151 | B158: ='Tabla Amortización Fijo'!C164 -> 2036-07-04 | C158: 0 | D158: =IF(C158<=0,0,IF(C158<D157,C158,'Tabla Amortización Liquidez'!O171)) -> 0 | F158: ='Tabla Amortización Liquidez'!P171 -> 0 | G158: ='Tabla Amortización Liquidez'!Q171 -> 0 | H158: 0 | J158: 0 | K158: 0 | L158: ='Tabla Amortización Liquidez'!Y171+'Tabla Amortización Liquidez'!Z171 -> 6.38 | M158: 0 | N158: =IF(C158=0,0,'Tabla Amortización Liquidez'!Z171+IVA_SI_PRIM_CUOTA+IVA_SD_PRIM_CUOTA+IVA_COMISION_PRIM_CUOTA) -> 0 | O158: 6.38 | Q158: 0 | R158: 6.38
A159: 152 | B159: ='Tabla Amortización Fijo'!C165 -> 2036-08-04 | C159: 0 | D159: =IF(C159<=0,0,IF(C159<D158,C159,'Tabla Amortización Liquidez'!O172)) -> 0 | F159: ='Tabla Amortización Liquidez'!P172 -> 0 | G159: ='Tabla Amortización Liquidez'!Q172 -> 0 | H159: 0 | J159: 0 | K159: 0 | L159: ='Tabla Amortización Liquidez'!Y172+'Tabla Amortización Liquidez'!Z172 -> 6.38 | M159: 0 | N159: =IF(C159=0,0,'Tabla Amortización Liquidez'!Z172+IVA_SI_PRIM_CUOTA+IVA_SD_PRIM_CUOTA+IVA_COMISION_PRIM_CUOTA) -> 0 | O159: 6.38 | Q159: 0 | R159: 6.38
A160: 153 | B160: ='Tabla Amortización Fijo'!C166 -> 2036-09-04 | C160: 0 | D160: =IF(C160<=0,0,IF(C160<D159,C160,'Tabla Amortización Liquidez'!O173)) -> 0 | F160: ='Tabla Amortización Liquidez'!P173 -> 0 | G160: ='Tabla Amortización Liquidez'!Q173 -> 0 | H160: 0 | J160: 0 | K160: 0 | L160: ='Tabla Amortización Liquidez'!Y173+'Tabla Amortización Liquidez'!Z173 -> 6.38 | M160: 0 | N160: =IF(C160=0,0,'Tabla Amortización Liquidez'!Z173+IVA_SI_PRIM_CUOTA+IVA_SD_PRIM_CUOTA+IVA_COMISION_PRIM_CUOTA) -> 0 | O160: 6.38 | Q160: 0 | R160: 6.38
A161: 154 | B161: ='Tabla Amortización Fijo'!C167 -> 2036-10-04 | C161: 0 | D161: =IF(C161<=0,0,IF(C161<D160,C161,'Tabla Amortización Liquidez'!O174)) -> 0 | F161: ='Tabla Amortización Liquidez'!P174 -> 0 | G161: ='Tabla Amortización Liquidez'!Q174 -> 0 | H161: 0 | J161: 0 | K161: 0 | L161: ='Tabla Amortización Liquidez'!Y174+'Tabla Amortización Liquidez'!Z174 -> 6.38 | M161: 0 | N161: =IF(C161=0,0,'Tabla Amortización Liquidez'!Z174+IVA_SI_PRIM_CUOTA+IVA_SD_PRIM_CUOTA+IVA_COMISION_PRIM_CUOTA) -> 0 | O161: 6.38 | Q161: 0 | R161: 6.38
A162: 155 | B162: ='Tabla Amortización Fijo'!C168 -> 2036-11-04 | C162: 0 | D162: =IF(C162<=0,0,IF(C162<D161,C162,'Tabla Amortización Liquidez'!O175)) -> 0 | F162: ='Tabla Amortización Liquidez'!P175 -> 0 | G162: ='Tabla Amortización Liquidez'!Q175 -> 0 | H162: 0 | J162: 0 | K162: 0 | L162: ='Tabla Amortización Liquidez'!Y175+'Tabla Amortización Liquidez'!Z175 -> 6.38 | M162: 0 | N162: =IF(C162=0,0,'Tabla Amortización Liquidez'!Z175+IVA_SI_PRIM_CUOTA+IVA_SD_PRIM_CUOTA+IVA_COMISION_PRIM_CUOTA) -> 0 | O162: 6.38 | Q162: 0 | R162: 6.38
A163: 156 | B163: ='Tabla Amortización Fijo'!C169 -> 2036-12-04 | C163: 0 | D163: =IF(C163<=0,0,IF(C163<D162,C163,'Tabla Amortización Liquidez'!O176)) -> 0 | F163: ='Tabla Amortización Liquidez'!P176 -> 0 | G163: ='Tabla Amortización Liquidez'!Q176 -> 0 | H163: 0 | J163: 0 | K163: 0 | L163: ='Tabla Amortización Liquidez'!Y176+'Tabla Amortización Liquidez'!Z176 -> 6.38 | M163: 0 | N163: =IF(C163=0,0,'Tabla Amortización Liquidez'!Z176+IVA_SI_PRIM_CUOTA+IVA_SD_PRIM_CUOTA+IVA_COMISION_PRIM_CUOTA) -> 0 | O163: 6.38 | Q163: 0 | R163: 6.38
A164: 157 | B164: ='Tabla Amortización Fijo'!C170 -> 2037-01-04 | C164: 0 | D164: =IF(C164<=0,0,IF(C164<D163,C164,'Tabla Amortización Liquidez'!O177)) -> 0 | F164: ='Tabla Amortización Liquidez'!P177 -> 0 | G164: ='Tabla Amortización Liquidez'!Q177 -> 0 | H164: 0 | J164: 0 | K164: 0 | L164: ='Tabla Amortización Liquidez'!Y177+'Tabla Amortización Liquidez'!Z177 -> 6.38 | M164: 0 | N164: =IF(C164=0,0,'Tabla Amortización Liquidez'!Z177+IVA_SI_PRIM_CUOTA+IVA_SD_PRIM_CUOTA+IVA_COMISION_PRIM_CUOTA) -> 0 | O164: 6.38 | Q164: 0 | R164: 6.38
A165: 158 | B165: ='Tabla Amortización Fijo'!C171 -> 2037-02-04 | C165: 0 | D165: =IF(C165<=0,0,IF(C165<D164,C165,'Tabla Amortización Liquidez'!O178)) -> 0 | F165: ='Tabla Amortización Liquidez'!P178 -> 0 | G165: ='Tabla Amortización Liquidez'!Q178 -> 0 | H165: 0 | J165: 0 | K165: 0 | L165: ='Tabla Amortización Liquidez'!Y178+'Tabla Amortización Liquidez'!Z178 -> 6.38 | M165: 0 | N165: =IF(C165=0,0,'Tabla Amortización Liquidez'!Z178+IVA_SI_PRIM_CUOTA+IVA_SD_PRIM_CUOTA+IVA_COMISION_PRIM_CUOTA) -> 0 | O165: 6.38 | Q165: 0 | R165: 6.38
A166: 159 | B166: ='Tabla Amortización Fijo'!C172 -> 2037-03-04 | C166: 0 | D166: =IF(C166<=0,0,IF(C166<D165,C166,'Tabla Amortización Liquidez'!O179)) -> 0 | F166: ='Tabla Amortización Liquidez'!P179 -> 0 | G166: ='Tabla Amortización Liquidez'!Q179 -> 0 | H166: 0 | J166: 0 | K166: 0 | L166: ='Tabla Amortización Liquidez'!Y179+'Tabla Amortización Liquidez'!Z179 -> 6.38 | M166: 0 | N166: =IF(C166=0,0,'Tabla Amortización Liquidez'!Z179+IVA_SI_PRIM_CUOTA+IVA_SD_PRIM_CUOTA+IVA_COMISION_PRIM_CUOTA) -> 0 | O166: 6.38 | Q166: 0 | R166: 6.38
A167: 160 | B167: ='Tabla Amortización Fijo'!C173 -> 2037-04-04 | C167: 0 | D167: =IF(C167<=0,0,IF(C167<D166,C167,'Tabla Amortización Liquidez'!O180)) -> 0 | F167: ='Tabla Amortización Liquidez'!P180 -> 0 | G167: ='Tabla Amortización Liquidez'!Q180 -> 0 | H167: 0 | J167: 0 | K167: 0 | L167: ='Tabla Amortización Liquidez'!Y180+'Tabla Amortización Liquidez'!Z180 -> 6.38 | M167: 0 | N167: =IF(C167=0,0,'Tabla Amortización Liquidez'!Z180+IVA_SI_PRIM_CUOTA+IVA_SD_PRIM_CUOTA+IVA_COMISION_PRIM_CUOTA) -> 0 | O167: 6.38 | Q167: 0 | R167: 6.38
A168: 161 | B168: ='Tabla Amortización Fijo'!C174 -> 2037-05-04 | C168: 0 | D168: =IF(C168<=0,0,IF(C168<D167,C168,'Tabla Amortización Liquidez'!O181)) -> 0 | F168: ='Tabla Amortización Liquidez'!P181 -> 0 | G168: ='Tabla Amortización Liquidez'!Q181 -> 0 | H168: 0 | J168: 0 | K168: 0 | L168: ='Tabla Amortización Liquidez'!Y181+'Tabla Amortización Liquidez'!Z181 -> 6.38 | M168: 0 | N168: =IF(C168=0,0,'Tabla Amortización Liquidez'!Z181+IVA_SI_PRIM_CUOTA+IVA_SD_PRIM_CUOTA+IVA_COMISION_PRIM_CUOTA) -> 0 | O168: 6.38 | Q168: 0 | R168: 6.38
A169: 162 | B169: ='Tabla Amortización Fijo'!C175 -> 2037-06-04 | C169: 0 | D169: =IF(C169<=0,0,IF(C169<D168,C169,'Tabla Amortización Liquidez'!O182)) -> 0 | F169: ='Tabla Amortización Liquidez'!P182 -> 0 | G169: ='Tabla Amortización Liquidez'!Q182 -> 0 | H169: 0 | J169: 0 | K169: 0 | L169: ='Tabla Amortización Liquidez'!Y182+'Tabla Amortización Liquidez'!Z182 -> 6.38 | M169: 0 | N169: =IF(C169=0,0,'Tabla Amortización Liquidez'!Z182+IVA_SI_PRIM_CUOTA+IVA_SD_PRIM_CUOTA+IVA_COMISION_PRIM_CUOTA) -> 0 | O169: 6.38 | Q169: 0 | R169: 6.38
A170: 163 | B170: ='Tabla Amortización Fijo'!C176 -> 2037-07-04 | C170: 0 | D170: =IF(C170<=0,0,IF(C170<D169,C170,'Tabla Amortización Liquidez'!O183)) -> 0 | F170: ='Tabla Amortización Liquidez'!P183 -> 0 | G170: ='Tabla Amortización Liquidez'!Q183 -> 0 | H170: 0 | J170: 0 | K170: 0 | L170: ='Tabla Amortización Liquidez'!Y183+'Tabla Amortización Liquidez'!Z183 -> 6.38 | M170: 0 | N170: =IF(C170=0,0,'Tabla Amortización Liquidez'!Z183+IVA_SI_PRIM_CUOTA+IVA_SD_PRIM_CUOTA+IVA_COMISION_PRIM_CUOTA) -> 0 | O170: 6.38 | Q170: 0 | R170: 6.38
A171: 164 | B171: ='Tabla Amortización Fijo'!C177 -> 2037-08-04 | C171: 0 | D171: =IF(C171<=0,0,IF(C171<D170,C171,'Tabla Amortización Liquidez'!O184)) -> 0 | F171: ='Tabla Amortización Liquidez'!P184 -> 0 | G171: ='Tabla Amortización Liquidez'!Q184 -> 0 | H171: 0 | J171: 0 | K171: 0 | L171: ='Tabla Amortización Liquidez'!Y184+'Tabla Amortización Liquidez'!Z184 -> 6.38 | M171: 0 | N171: =IF(C171=0,0,'Tabla Amortización Liquidez'!Z184+IVA_SI_PRIM_CUOTA+IVA_SD_PRIM_CUOTA+IVA_COMISION_PRIM_CUOTA) -> 0 | O171: 6.38 | Q171: 0 | R171: 6.38
A172: 165 | B172: ='Tabla Amortización Fijo'!C178 -> 2037-09-04 | C172: 0 | D172: =IF(C172<=0,0,IF(C172<D171,C172,'Tabla Amortización Liquidez'!O185)) -> 0 | F172: ='Tabla Amortización Liquidez'!P185 -> 0 | G172: ='Tabla Amortización Liquidez'!Q185 -> 0 | H172: 0 | J172: 0 | K172: 0 | L172: ='Tabla Amortización Liquidez'!Y185+'Tabla Amortización Liquidez'!Z185 -> 6.38 | M172: 0 | N172: =IF(C172=0,0,'Tabla Amortización Liquidez'!Z185+IVA_SI_PRIM_CUOTA+IVA_SD_PRIM_CUOTA+IVA_COMISION_PRIM_CUOTA) -> 0 | O172: 6.38 | Q172: 0 | R172: 6.38
A173: 166 | B173: ='Tabla Amortización Fijo'!C179 -> 2037-10-04 | C173: 0 | D173: =IF(C173<=0,0,IF(C173<D172,C173,'Tabla Amortización Liquidez'!O186)) -> 0 | F173: ='Tabla Amortización Liquidez'!P186 -> 0 | G173: ='Tabla Amortización Liquidez'!Q186 -> 0 | H173: 0 | J173: 0 | K173: 0 | L173: ='Tabla Amortización Liquidez'!Y186+'Tabla Amortización Liquidez'!Z186 -> 6.38 | M173: 0 | N173: =IF(C173=0,0,'Tabla Amortización Liquidez'!Z186+IVA_SI_PRIM_CUOTA+IVA_SD_PRIM_CUOTA+IVA_COMISION_PRIM_CUOTA) -> 0 | O173: 6.38 | Q173: 0 | R173: 6.38
A174: 167 | B174: ='Tabla Amortización Fijo'!C180 -> 2037-11-04 | C174: 0 | D174: =IF(C174<=0,0,IF(C174<D173,C174,'Tabla Amortización Liquidez'!O187)) -> 0 | F174: ='Tabla Amortización Liquidez'!P187 -> 0 | G174: ='Tabla Amortización Liquidez'!Q187 -> 0 | H174: 0 | J174: 0 | K174: 0 | L174: ='Tabla Amortización Liquidez'!Y187+'Tabla Amortización Liquidez'!Z187 -> 6.38 | M174: 0 | N174: =IF(C174=0,0,'Tabla Amortización Liquidez'!Z187+IVA_SI_PRIM_CUOTA+IVA_SD_PRIM_CUOTA+IVA_COMISION_PRIM_CUOTA) -> 0 | O174: 6.38 | Q174: 0 | R174: 6.38
A175: 168 | B175: ='Tabla Amortización Fijo'!C181 -> 2037-12-04 | C175: 0 | D175: =IF(C175<=0,0,IF(C175<D174,C175,'Tabla Amortización Liquidez'!O188)) -> 0 | F175: ='Tabla Amortización Liquidez'!P188 -> 0 | G175: ='Tabla Amortización Liquidez'!Q188 -> 0 | H175: 0 | J175: 0 | K175: 0 | L175: ='Tabla Amortización Liquidez'!Y188+'Tabla Amortización Liquidez'!Z188 -> 6.38 | M175: 0 | N175: =IF(C175=0,0,'Tabla Amortización Liquidez'!Z188+IVA_SI_PRIM_CUOTA+IVA_SD_PRIM_CUOTA+IVA_COMISION_PRIM_CUOTA) -> 0 | O175: 6.38 | Q175: 0 | R175: 6.38
A176: 169 | B176: ='Tabla Amortización Fijo'!C182 -> 2038-01-04 | C176: 0 | D176: =IF(C176<=0,0,IF(C176<D175,C176,'Tabla Amortización Liquidez'!O189)) -> 0 | F176: ='Tabla Amortización Liquidez'!P189 -> 0 | G176: ='Tabla Amortización Liquidez'!Q189 -> 0 | H176: 0 | J176: 0 | K176: 0 | L176: ='Tabla Amortización Liquidez'!Y189+'Tabla Amortización Liquidez'!Z189 -> 6.38 | M176: 0 | N176: =IF(C176=0,0,'Tabla Amortización Liquidez'!Z189+IVA_SI_PRIM_CUOTA+IVA_SD_PRIM_CUOTA+IVA_COMISION_PRIM_CUOTA) -> 0 | O176: 6.38 | Q176: 0 | R176: 6.38
A177: 170 | B177: ='Tabla Amortización Fijo'!C183 -> 2038-02-04 | C177: 0 | D177: =IF(C177<=0,0,IF(C177<D176,C177,'Tabla Amortización Liquidez'!O190)) -> 0 | F177: ='Tabla Amortización Liquidez'!P190 -> 0 | G177: ='Tabla Amortización Liquidez'!Q190 -> 0 | H177: 0 | J177: 0 | K177: 0 | L177: ='Tabla Amortización Liquidez'!Y190+'Tabla Amortización Liquidez'!Z190 -> 6.38 | M177: 0 | N177: =IF(C177=0,0,'Tabla Amortización Liquidez'!Z190+IVA_SI_PRIM_CUOTA+IVA_SD_PRIM_CUOTA+IVA_COMISION_PRIM_CUOTA) -> 0 | O177: 6.38 | Q177: 0 | R177: 6.38
A178: 171 | B178: ='Tabla Amortización Fijo'!C184 -> 2038-03-04 | C178: 0 | D178: =IF(C178<=0,0,IF(C178<D177,C178,'Tabla Amortización Liquidez'!O191)) -> 0 | F178: ='Tabla Amortización Liquidez'!P191 -> 0 | G178: ='Tabla Amortización Liquidez'!Q191 -> 0 | H178: 0 | J178: 0 | K178: 0 | L178: ='Tabla Amortización Liquidez'!Y191+'Tabla Amortización Liquidez'!Z191 -> 6.38 | M178: 0 | N178: =IF(C178=0,0,'Tabla Amortización Liquidez'!Z191+IVA_SI_PRIM_CUOTA+IVA_SD_PRIM_CUOTA+IVA_COMISION_PRIM_CUOTA) -> 0 | O178: 6.38 | Q178: 0 | R178: 6.38
A179: 172 | B179: ='Tabla Amortización Fijo'!C185 -> 2038-04-04 | C179: 0 | D179: =IF(C179<=0,0,IF(C179<D178,C179,'Tabla Amortización Liquidez'!O192)) -> 0 | F179: ='Tabla Amortización Liquidez'!P192 -> 0 | G179: ='Tabla Amortización Liquidez'!Q192 -> 0 | H179: 0 | J179: 0 | K179: 0 | L179: ='Tabla Amortización Liquidez'!Y192+'Tabla Amortización Liquidez'!Z192 -> 6.38 | M179: 0 | N179: =IF(C179=0,0,'Tabla Amortización Liquidez'!Z192+IVA_SI_PRIM_CUOTA+IVA_SD_PRIM_CUOTA+IVA_COMISION_PRIM_CUOTA) -> 0 | O179: 6.38 | Q179: 0 | R179: 6.38
A180: 173 | B180: ='Tabla Amortización Fijo'!C186 -> 2038-05-04 | C180: 0 | D180: =IF(C180<=0,0,IF(C180<D179,C180,'Tabla Amortización Liquidez'!O193)) -> 0 | F180: ='Tabla Amortización Liquidez'!P193 -> 0 | G180: ='Tabla Amortización Liquidez'!Q193 -> 0 | H180: 0 | J180: 0 | K180: 0 | L180: ='Tabla Amortización Liquidez'!Y193+'Tabla Amortización Liquidez'!Z193 -> 6.38 | M180: 0 | N180: =IF(C180=0,0,'Tabla Amortización Liquidez'!Z193+IVA_SI_PRIM_CUOTA+IVA_SD_PRIM_CUOTA+IVA_COMISION_PRIM_CUOTA) -> 0 | O180: 6.38 | Q180: 0 | R180: 6.38
A181: 174 | B181: ='Tabla Amortización Fijo'!C187 -> 2038-06-04 | C181: 0 | D181: =IF(C181<=0,0,IF(C181<D180,C181,'Tabla Amortización Liquidez'!O194)) -> 0 | F181: ='Tabla Amortización Liquidez'!P194 -> 0 | G181: ='Tabla Amortización Liquidez'!Q194 -> 0 | H181: 0 | J181: 0 | K181: 0 | L181: ='Tabla Amortización Liquidez'!Y194+'Tabla Amortización Liquidez'!Z194 -> 6.38 | M181: 0 | N181: =IF(C181=0,0,'Tabla Amortización Liquidez'!Z194+IVA_SI_PRIM_CUOTA+IVA_SD_PRIM_CUOTA+IVA_COMISION_PRIM_CUOTA) -> 0 | O181: 6.38 | Q181: 0 | R181: 6.38
A182: 175 | B182: ='Tabla Amortización Fijo'!C188 -> 2038-07-04 | C182: 0 | D182: =IF(C182<=0,0,IF(C182<D181,C182,'Tabla Amortización Liquidez'!O195)) -> 0 | F182: ='Tabla Amortización Liquidez'!P195 -> 0 | G182: ='Tabla Amortización Liquidez'!Q195 -> 0 | H182: 0 | J182: 0 | K182: 0 | L182: ='Tabla Amortización Liquidez'!Y195+'Tabla Amortización Liquidez'!Z195 -> 6.38 | M182: 0 | N182: =IF(C182=0,0,'Tabla Amortización Liquidez'!Z195+IVA_SI_PRIM_CUOTA+IVA_SD_PRIM_CUOTA+IVA_COMISION_PRIM_CUOTA) -> 0 | O182: 6.38 | Q182: 0 | R182: 6.38
A183: 176 | B183: ='Tabla Amortización Fijo'!C189 -> 2038-08-04 | C183: 0 | D183: =IF(C183<=0,0,IF(C183<D182,C183,'Tabla Amortización Liquidez'!O196)) -> 0 | F183: ='Tabla Amortización Liquidez'!P196 -> 0 | G183: ='Tabla Amortización Liquidez'!Q196 -> 0 | H183: 0 | J183: 0 | K183: 0 | L183: ='Tabla Amortización Liquidez'!Y196+'Tabla Amortización Liquidez'!Z196 -> 6.38 | M183: 0 | N183: =IF(C183=0,0,'Tabla Amortización Liquidez'!Z196+IVA_SI_PRIM_CUOTA+IVA_SD_PRIM_CUOTA+IVA_COMISION_PRIM_CUOTA) -> 0 | O183: 6.38 | Q183: 0 | R183: 6.38
A184: 177 | B184: ='Tabla Amortización Fijo'!C190 -> 2038-09-04 | C184: 0 | D184: =IF(C184<=0,0,IF(C184<D183,C184,'Tabla Amortización Liquidez'!O197)) -> 0 | F184: ='Tabla Amortización Liquidez'!P197 -> 0 | G184: ='Tabla Amortización Liquidez'!Q197 -> 0 | H184: 0 | J184: 0 | K184: 0 | L184: ='Tabla Amortización Liquidez'!Y197+'Tabla Amortización Liquidez'!Z197 -> 6.38 | M184: 0 | N184: =IF(C184=0,0,'Tabla Amortización Liquidez'!Z197+IVA_SI_PRIM_CUOTA+IVA_SD_PRIM_CUOTA+IVA_COMISION_PRIM_CUOTA) -> 0 | O184: 6.38 | Q184: 0 | R184: 6.38
A185: 178 | B185: ='Tabla Amortización Fijo'!C191 -> 2038-10-04 | C185: 0 | D185: =IF(C185<=0,0,IF(C185<D184,C185,'Tabla Amortización Liquidez'!O198)) -> 0 | F185: ='Tabla Amortización Liquidez'!P198 -> 0 | G185: ='Tabla Amortización Liquidez'!Q198 -> 0 | H185: 0 | J185: 0 | K185: 0 | L185: ='Tabla Amortización Liquidez'!Y198+'Tabla Amortización Liquidez'!Z198 -> 6.38 | M185: 0 | N185: =IF(C185=0,0,'Tabla Amortización Liquidez'!Z198+IVA_SI_PRIM_CUOTA+IVA_SD_PRIM_CUOTA+IVA_COMISION_PRIM_CUOTA) -> 0 | O185: 6.38 | Q185: 0 | R185: 6.38
A186: 179 | B186: ='Tabla Amortización Fijo'!C192 -> 2038-11-04 | C186: 0 | D186: =IF(C186<=0,0,IF(C186<D185,C186,'Tabla Amortización Liquidez'!O199)) -> 0 | F186: ='Tabla Amortización Liquidez'!P199 -> 0 | G186: ='Tabla Amortización Liquidez'!Q199 -> 0 | H186: 0 | J186: 0 | K186: 0 | L186: ='Tabla Amortización Liquidez'!Y199+'Tabla Amortización Liquidez'!Z199 -> 6.38 | M186: 0 | N186: =IF(C186=0,0,'Tabla Amortización Liquidez'!Z199+IVA_SI_PRIM_CUOTA+IVA_SD_PRIM_CUOTA+IVA_COMISION_PRIM_CUOTA) -> 0 | O186: 6.38 | Q186: 0 | R186: 6.38
A187: 180 | B187: ='Tabla Amortización Fijo'!C193 -> 2038-12-04 | C187: 0 | D187: =IF(C187<=0,0,IF(C187<D186,C187,'Tabla Amortización Liquidez'!O200)) -> 0 | F187: ='Tabla Amortización Liquidez'!P200 -> 0 | G187: ='Tabla Amortización Liquidez'!Q200 -> 0 | H187: 0 | J187: 0 | K187: 0 | L187: ='Tabla Amortización Liquidez'!Y200+'Tabla Amortización Liquidez'!Z200 -> 6.38 | M187: 0 | N187: =IF(C187=0,0,'Tabla Amortización Liquidez'!Z200+IVA_SI_PRIM_CUOTA+IVA_SD_PRIM_CUOTA+IVA_COMISION_PRIM_CUOTA) -> 0 | O187: 6.38 | Q187: 0 | R187: 6.38
A188: 181 | B188: ='Tabla Amortización Fijo'!C194 -> 2039-01-04 | C188: 0 | D188: =IF(C188<=0,0,IF(C188<D187,C188,'Tabla Amortización Liquidez'!O201)) -> 0 | F188: ='Tabla Amortización Liquidez'!P201 -> 0 | G188: ='Tabla Amortización Liquidez'!Q201 -> 0 | H188: 0 | J188: 0 | K188: 0 | L188: ='Tabla Amortización Liquidez'!Y201+'Tabla Amortización Liquidez'!Z201 -> 6.38 | M188: 0 | N188: =IF(C188=0,0,'Tabla Amortización Liquidez'!Z201+IVA_SI_PRIM_CUOTA+IVA_SD_PRIM_CUOTA+IVA_COMISION_PRIM_CUOTA) -> 0 | O188: 6.38 | Q188: 0 | R188: 6.38
A189: 182 | B189: ='Tabla Amortización Fijo'!C195 -> 2039-02-04 | C189: 0 | D189: =IF(C189<=0,0,IF(C189<D188,C189,'Tabla Amortización Liquidez'!O202)) -> 0 | F189: ='Tabla Amortización Liquidez'!P202 -> 0 | G189: ='Tabla Amortización Liquidez'!Q202 -> 0 | H189: 0 | J189: 0 | K189: 0 | L189: ='Tabla Amortización Liquidez'!Y202+'Tabla Amortización Liquidez'!Z202 -> 6.38 | M189: 0 | N189: =IF(C189=0,0,'Tabla Amortización Liquidez'!Z202+IVA_SI_PRIM_CUOTA+IVA_SD_PRIM_CUOTA+IVA_COMISION_PRIM_CUOTA) -> 0 | O189: 6.38 | Q189: 0 | R189: 6.38
A190: 183 | B190: ='Tabla Amortización Fijo'!C196 -> 2039-03-04 | C190: 0 | D190: =IF(C190<=0,0,IF(C190<D189,C190,'Tabla Amortización Liquidez'!O203)) -> 0 | F190: ='Tabla Amortización Liquidez'!P203 -> 0 | G190: ='Tabla Amortización Liquidez'!Q203 -> 0 | H190: 0 | J190: 0 | K190: 0 | L190: ='Tabla Amortización Liquidez'!Y203+'Tabla Amortización Liquidez'!Z203 -> 6.38 | M190: 0 | N190: =IF(C190=0,0,'Tabla Amortización Liquidez'!Z203+IVA_SI_PRIM_CUOTA+IVA_SD_PRIM_CUOTA+IVA_COMISION_PRIM_CUOTA) -> 0 | O190: 6.38 | Q190: 0 | R190: 6.38
A191: 184 | B191: ='Tabla Amortización Fijo'!C197 -> 2039-04-04 | C191: 0 | D191: =IF(C191<=0,0,IF(C191<D190,C191,'Tabla Amortización Liquidez'!O204)) -> 0 | F191: ='Tabla Amortización Liquidez'!P204 -> 0 | G191: ='Tabla Amortización Liquidez'!Q204 -> 0 | H191: 0 | J191: 0 | K191: 0 | L191: ='Tabla Amortización Liquidez'!Y204+'Tabla Amortización Liquidez'!Z204 -> 6.38 | M191: 0 | N191: =IF(C191=0,0,'Tabla Amortización Liquidez'!Z204+IVA_SI_PRIM_CUOTA+IVA_SD_PRIM_CUOTA+IVA_COMISION_PRIM_CUOTA) -> 0 | O191: 6.38 | Q191: 0 | R191: 6.38
A192: 185 | B192: ='Tabla Amortización Fijo'!C198 -> 2039-05-04 | C192: 0 | D192: =IF(C192<=0,0,IF(C192<D191,C192,'Tabla Amortización Liquidez'!O205)) -> 0 | F192: ='Tabla Amortización Liquidez'!P205 -> 0 | G192: ='Tabla Amortización Liquidez'!Q205 -> 0 | H192: 0 | J192: 0 | K192: 0 | L192: ='Tabla Amortización Liquidez'!Y205+'Tabla Amortización Liquidez'!Z205 -> 6.38 | M192: 0 | N192: =IF(C192=0,0,'Tabla Amortización Liquidez'!Z205+IVA_SI_PRIM_CUOTA+IVA_SD_PRIM_CUOTA+IVA_COMISION_PRIM_CUOTA) -> 0 | O192: 6.38 | Q192: 0 | R192: 6.38
A193: 186 | B193: ='Tabla Amortización Fijo'!C199 -> 2039-06-04 | C193: 0 | D193: =IF(C193<=0,0,IF(C193<D192,C193,'Tabla Amortización Liquidez'!O206)) -> 0 | F193: ='Tabla Amortización Liquidez'!P206 -> 0 | G193: ='Tabla Amortización Liquidez'!Q206 -> 0 | H193: 0 | J193: 0 | K193: 0 | L193: ='Tabla Amortización Liquidez'!Y206+'Tabla Amortización Liquidez'!Z206 -> 6.38 | M193: 0 | N193: =IF(C193=0,0,'Tabla Amortización Liquidez'!Z206+IVA_SI_PRIM_CUOTA+IVA_SD_PRIM_CUOTA+IVA_COMISION_PRIM_CUOTA) -> 0 | O193: 6.38 | Q193: 0 | R193: 6.38
A194: 187 | B194: ='Tabla Amortización Fijo'!C200 -> 2039-07-04 | C194: 0 | D194: =IF(C194<=0,0,IF(C194<D193,C194,'Tabla Amortización Liquidez'!O207)) -> 0 | F194: ='Tabla Amortización Liquidez'!P207 -> 0 | G194: ='Tabla Amortización Liquidez'!Q207 -> 0 | H194: 0 | J194: 0 | K194: 0 | L194: ='Tabla Amortización Liquidez'!Y207+'Tabla Amortización Liquidez'!Z207 -> 6.38 | M194: 0 | N194: =IF(C194=0,0,'Tabla Amortización Liquidez'!Z207+IVA_SI_PRIM_CUOTA+IVA_SD_PRIM_CUOTA+IVA_COMISION_PRIM_CUOTA) -> 0 | O194: 6.38 | Q194: 0 | R194: 6.38
A195: 188 | B195: ='Tabla Amortización Fijo'!C201 -> 2039-08-04 | C195: 0 | D195: =IF(C195<=0,0,IF(C195<D194,C195,'Tabla Amortización Liquidez'!O208)) -> 0 | F195: ='Tabla Amortización Liquidez'!P208 -> 0 | G195: ='Tabla Amortización Liquidez'!Q208 -> 0 | H195: 0 | J195: 0 | K195: 0 | L195: ='Tabla Amortización Liquidez'!Y208+'Tabla Amortización Liquidez'!Z208 -> 6.38 | M195: 0 | N195: =IF(C195=0,0,'Tabla Amortización Liquidez'!Z208+IVA_SI_PRIM_CUOTA+IVA_SD_PRIM_CUOTA+IVA_COMISION_PRIM_CUOTA) -> 0 | O195: 6.38 | Q195: 0 | R195: 6.38
A196: 189 | B196: ='Tabla Amortización Fijo'!C202 -> 2039-09-04 | C196: 0 | D196: =IF(C196<=0,0,IF(C196<D195,C196,'Tabla Amortización Liquidez'!O209)) -> 0 | F196: ='Tabla Amortización Liquidez'!P209 -> 0 | G196: ='Tabla Amortización Liquidez'!Q209 -> 0 | H196: 0 | J196: 0 | K196: 0 | L196: ='Tabla Amortización Liquidez'!Y209+'Tabla Amortización Liquidez'!Z209 -> 6.38 | M196: 0 | N196: =IF(C196=0,0,'Tabla Amortización Liquidez'!Z209+IVA_SI_PRIM_CUOTA+IVA_SD_PRIM_CUOTA+IVA_COMISION_PRIM_CUOTA) -> 0 | O196: 6.38 | Q196: 0 | R196: 6.38
A197: 190 | B197: ='Tabla Amortización Fijo'!C203 -> 2039-10-04 | C197: 0 | D197: =IF(C197<=0,0,IF(C197<D196,C197,'Tabla Amortización Liquidez'!O210)) -> 0 | F197: ='Tabla Amortización Liquidez'!P210 -> 0 | G197: ='Tabla Amortización Liquidez'!Q210 -> 0 | H197: 0 | J197: 0 | K197: 0 | L197: ='Tabla Amortización Liquidez'!Y210+'Tabla Amortización Liquidez'!Z210 -> 6.38 | M197: 0 | N197: =IF(C197=0,0,'Tabla Amortización Liquidez'!Z210+IVA_SI_PRIM_CUOTA+IVA_SD_PRIM_CUOTA+IVA_COMISION_PRIM_CUOTA) -> 0 | O197: 6.38 | Q197: 0 | R197: 6.38
A198: 191 | B198: ='Tabla Amortización Fijo'!C204 -> 2039-11-04 | C198: 0 | D198: =IF(C198<=0,0,IF(C198<D197,C198,'Tabla Amortización Liquidez'!O211)) -> 0 | F198: ='Tabla Amortización Liquidez'!P211 -> 0 | G198: ='Tabla Amortización Liquidez'!Q211 -> 0 | H198: 0 | J198: 0 | K198: 0 | L198: ='Tabla Amortización Liquidez'!Y211+'Tabla Amortización Liquidez'!Z211 -> 6.38 | M198: 0 | N198: =IF(C198=0,0,'Tabla Amortización Liquidez'!Z211+IVA_SI_PRIM_CUOTA+IVA_SD_PRIM_CUOTA+IVA_COMISION_PRIM_CUOTA) -> 0 | O198: 6.38 | Q198: 0 | R198: 6.38
A199: 192 | B199: ='Tabla Amortización Fijo'!C205 -> 2039-12-04 | C199: 0 | D199: =IF(C199<=0,0,IF(C199<D198,C199,'Tabla Amortización Liquidez'!O212)) -> 0 | F199: ='Tabla Amortización Liquidez'!P212 -> 0 | G199: ='Tabla Amortización Liquidez'!Q212 -> 0 | H199: 0 | J199: 0 | K199: 0 | L199: ='Tabla Amortización Liquidez'!Y212+'Tabla Amortización Liquidez'!Z212 -> 6.38 | M199: 0 | N199: =IF(C199=0,0,'Tabla Amortización Liquidez'!Z212+IVA_SI_PRIM_CUOTA+IVA_SD_PRIM_CUOTA+IVA_COMISION_PRIM_CUOTA) -> 0 | O199: 6.38 | Q199: 0 | R199: 6.38
A200: 193 | B200: ='Tabla Amortización Fijo'!C206 -> 2040-01-04 | C200: 0 | D200: =IF(C200<=0,0,IF(C200<D199,C200,'Tabla Amortización Liquidez'!O213)) -> 0 | F200: ='Tabla Amortización Liquidez'!P213 -> 0 | G200: ='Tabla Amortización Liquidez'!Q213 -> 0 | H200: 0 | J200: 0 | K200: =SD_PRIM_CUOTA -> 0 | L200: ='Tabla Amortización Liquidez'!Y213+'Tabla Amortización Liquidez'!Z213 -> 6.38 | M200: 0 | N200: =IF(C200=0,0,'Tabla Amortización Liquidez'!Z213+IVA_SI_PRIM_CUOTA+IVA_SD_PRIM_CUOTA+IVA_COMISION_PRIM_CUOTA) -> 0 | O200: 6.38 | Q200: 0 | R200: 6.38
A201: 194 | B201: ='Tabla Amortización Fijo'!C207 -> 2040-02-04 | C201: 0 | D201: =IF(C201<=0,0,IF(C201<D200,C201,'Tabla Amortización Liquidez'!O214)) -> 0 | F201: ='Tabla Amortización Liquidez'!P214 -> 0 | G201: ='Tabla Amortización Liquidez'!Q214 -> 0 | H201: =+G201+F201+D201 -> 0 | J201: =IF(C201<=0,0,(C201*0.8/1000)) -> 0 | K201: 0 | L201: ='Tabla Amortización Liquidez'!Y214+'Tabla Amortización Liquidez'!Z214 -> 6.38 | M201: 0 | N201: =IF(C201=0,0,'Tabla Amortización Liquidez'!Z214+IVA_SI_PRIM_CUOTA+IVA_SD_PRIM_CUOTA+IVA_COMISION_PRIM_CUOTA) -> 0 | O201: 6.38 | Q201: 0 | R201: 6.38
A202: 195 | B202: ='Tabla Amortización Fijo'!C208 -> 2040-03-04 | C202: 0 | D202: =IF(C202<=0,0,IF(C202<D201,C202,'Tabla Amortización Liquidez'!O215)) -> 0 | F202: ='Tabla Amortización Liquidez'!P215 -> 0 | G202: ='Tabla Amortización Liquidez'!Q215 -> 0 | H202: 0 | J202: 0 | K202: 0 | L202: ='Tabla Amortización Liquidez'!Y215+'Tabla Amortización Liquidez'!Z215 -> 6.38 | M202: =IF(OR($M$8=0,C202<=0),0,399) -> 0 | N202: =IF(C202=0,0,'Tabla Amortización Liquidez'!Z215+IVA_SI_PRIM_CUOTA+IVA_SD_PRIM_CUOTA+IVA_COMISION_PRIM_CUOTA) -> 0 | O202: 6.38 | Q202: =C202-D202-E202-I202 -> 0 | R202: =O202-N202+I202+E202 -> 6.38
... 46 more rows

Sheet Parametros Crec (hidden)
B2: Esquema | C2: Tasa Base | D2: Tasa Pago Puntual | E2: % Diminución de Tasa | F2: Incremento Tasa Crecientes | G2: Inc Amort 20 años | H2: Inc Amort 15 años | I2: Incremento Amort 1 | L2: Destinos | N2: Suma de Ingresos | P2: Excedente Pago Puntual
L3: ADQUISICIÓN | N3: SI | P3: MENOS CUOTA
B4: 0.0995 | C4: 0.0995 | D4: 0.0995 | E4: =C4-D4 -> 0 | F4: 0 | G4: 0.012 | H4: 0.023 | I4: =IF(PLAZO_ANIOS>=20,G4,H4) -> 0.012 | L4: REMODELACIÓN | N4: NO | P4: MENOS PLAZO
B5: 0.1015 | C5: 0.1015 | D5: 0.1015 | E5: =C5-D5 -> 0 | F5: 0 | G5: 0.015 | H5: 0.026 | I5: =IF(PLAZO_ANIOS>=20,G5,H5) -> 0.015 | L5: CONSTRUCCIÓN
B6: 0.1035 | C6: 0.1035 | D6: 0.1035 | E6: =C6-D6 -> 0 | F6: 0 | G6: 0.014 | H6: 0.026 | I6: =IF(PLAZO_ANIOS>=20,G6,H6) -> 0.014
B7: 0.107 | C7: 0.107 | D7: 0.107 | E7: 0 | F7: 0 | G7: 0.012 | H7: 0.023 | I7: =IF(PLAZO_ANIOS>=20,G7,H7) -> 0.012 | L7: SUSTITUCIÓN
B8: 0.102 | C8: 0.102 | D8: 0.102 | E8: 0 | F8: 0 | G8: 0.02 | H8: 0.026 | I8: 0.02 | L8: ADQ/REM
B9: 0.106 | C9: 0.106 | D9: 0.106 | E9: =C9-D9 -> 0 | F9: 0 | G9: 0.02 | H9: 0.026 | I9: =IF(PLAZO_ANIOS>=20,G9,H9) -> 0.02
B10: 0.1115 | C10: 0.1115 | D10: 0.1115 | E10: =C10-D10 -> 0 | F10: 0 | G10: 0.012 | H10: 0.023 | I10: =IF(PLAZO_ANIOS>=20,G10,H10) -> 0.012
B11: 0.1045 | C11: 0.1045 | D11: 0.1045 | E11: 0 | F11: 0 | G11: 0.012 | H11: 0.023 | I11: 0.012 | L11: SUST/REM | P11: PLAZO SELECCIONADO | Q11: ='Parametro Destino'!I4 -> 20
B12: 0.115 | C12: 0.115 | D12: 0.115 | E12: 0 | F12: 0 | G12: 0.011 | H12: 0.023 | I12: =IF(PLAZO_ANIOS>=20,G12,H12) -> 0.011 | P12: tasa | Q12: ='Parametro Destino'!I11 -> 0.0995
B13: 0.123 | C13: 0.123 | D13: 0.112 | E13: 0 | F13: 0 | G13: 0.009 | H13: 0.02 | I13: 0.009
B14: 0.11 | C14: 0.11 | D14: 0.11 | E14: =C14-D14 -> 0 | F14: 0 | G14: 0.012 | H14: 0.023 | I14: 0.012
B15: 0.1125 | C15: 0.1125 | D15: 0.1125 | E15: =C15-D15 -> 0 | F15: 0 | G15: 0.012 | H15: 0.023 | I15: 0.012
B16: 0.103 | C16: 0.103 | D16: 0.103 | E16: 0 | F16: 0 | G16: 0.014 | H16: 0.026 | I16: 0.014
B17: 0.1025 | C17: 0.1025 | D17: 0.1025 | E17: =C17-D17 -> 0 | F17: 0 | G17: 0.015 | H17: 0.026 | I17: 0.015
B18: 0.113 | C18: 0.113 | D18: 0.113 | E18: 0 | F18: 0 | G18: 0.012 | H18: 0.023 | I18: 0.012
B19: 0.1065 | C19: 0.1065 | D19: 0.1065 | E19: 0 | F19: 0 | G19: 0.012 | H19: 0.023 | I19: 0.012
B20: 0.1165 | C20: 0.1165 | D20: 0.1165 | E20: 0 | F20: 0 | G20: 0.01 | H20: 0.022 | I20: 0.01
B21: 0.12 | C21: 0.12 | D21: 0.12 | E21: =C21-D21 -> 0 | F21: 0 | G21: 0.01 | H21: 0.02 | I21: 0.01
P22: ,O,SI(Y(TASACREC=9.9%,Q8=20),"0.07%","2.40%")
B23: Parámetros Tasas de Intrerés | P23: =IF(Q12=8.9%,D31,D32) -> 0
B24: Tasa Anual Base | C24: =Q12 -> 0.0995
B25: % Disminución de Tasa | C25: 0 | N25: terr a 15
B26: Meses Beneficio Pago Puntual | C26: 12 | N26: terr a 10
B27: Meses Incremento Tasa Crecientes | C27: 60 | E27: Esquemas Pago Puntual | G27: SI(Q9=8.55%,D15,SI(Q9=8.90%,D16,SI(Q9=9.90%,D17)))
G28: Tramite Patrimonial 9.3 | I28: Solo fijos | L28: =IF(Q12=9.6%,I3,IF(Q12=9.7%,I4,IF(Q12=9.8%,I5,IF(Q12=10.1%,I7,IF(Q12=10.2%,I8,IF(Q12=10.9%,I11,IF(Q12=11%,I12,IF(Q12=11.5%,I21,9)))))))) -> 9
B29: Parámetros Esquema Pagos Crecientes | G29: Trámite 9.8 | I29: Fijos/Crecientes
B30: Icremento Tasa | C30: 0 | G30: Trámite Ordinario 10.55 | I30: Fijos/Crecientes
B31: Incremento Amort | C31: =VLOOKUP(ESQUEMACREC, B3:I21, 8,FALSE) -> 0.012 | D31: =VLOOKUP(ESQUEMACREC, B3:I21, 8,FALSE) -> 0.012 | E31: Tramites Especiales
B32: Meses incremento | C32: 12 | G32: Pemex
G33: Villacero
B34: Parámetros Seguro Vida (Saldo Deudor) | G34: Muncipios
B35: Factor Seg. Deudor | C35: 0.0008 | E35: Terrenos
G36: Tradicional
B37: Parámetros Seguro de Daños | E37: Esquema | G37: Villacero
B38: Factor Seg. Daños | C38: =IF(E38="TERRENO",0,1.1) -> 1.1 | E38: =Simulación!H21 -> ADQUISICION
B39: Factor Seg. Daños Final | C39: =FACT_SEGURO_DANIOSCREC * 1.0802 / 12000 -> 9.901833333e-05
B40: Factor Ajuste Seg Daños | C40: 0.7
B41: Suma Aseg. Calculada | C41: =VALOR_INMUEBLECREC * FACTOR_AJSTE_SEG_DAÑCREC -> 0
B42: Suma Aseg. Final | C42: =IF(SUMA_ASEG_AVALUOCREC > 0, SUMA_ASEG_AVALUOCREC, SUMA_ASEG_CALCCREC) -> 0
B43: Seguro Daños | C43: =SUMA_ASEGURADA_DAÑOSCREC * FACTOR_SEG_DANIOS_FINCREC -> 0
B45: Parámetro Seguro Desempleo
B46: Factor Seguro Desempleo | C46: =IF(SUMA_INGRESOSCREC= "SI", 0.0098, 0.0057) -> 0.0098
B47: Seguro Interiores | C47: =IF(E38="TERRENO",0,(98/(1+IVA))) -> 84.48275862
B49: Parámetros Costo de Avalúo
B50: Factor Avalúo | C50: =D50/1000 -> 0.003 | D50: ='Parametro Destino'!J27 -> 3
B51: Honorarios Avalúo | C51: 0
B53: Parámetros Comisión Administración
B54: Mto. Comisión Admon. | C54: 399
B56: Otros Parámetros
B57: Frecuencia Pago | C57: MENSUAL
B58: Dias Capital | C58: 30
B59: % IVA | C59: 0.16

Sheet Parametros Fijo (hidden)
G1: 20 | H1: 15
B2: Esquema | C2: Tasa Base | D2: Tasa Pago Puntual | E2: % Diminución de Tasa | F2: Incremento Tasa Crecientes | G2: Inc Amort1 | H2: Inc Amort2 | I2: Incremento Amort 1 | L2: Destinos | N2: Suma de Ingresos | P2: Excedente Pago Puntual
B3: 0.095 | C3: 0.095 | D3: 0.095 | E3: =C3-D3 -> 0 | F3: 0 | G3: =E3-F3 -> 0 | H3: 0 | I3: =IF(PLAZO_ANIOS>=20,G3,H3) -> 0 | L3: ADQUISICIÓN | N3: SI | P3: MENOS CUOTA
B4: 0.097 | C4: 0.097 | D4: 0.097 | E4: 0 | F4: 0 | G4: =E4-F4 -> 0 | H4: 0 | I4: =IF(PLAZO_ANIOS>=20,G4,H4) -> 0 | L4: REMODELACIÓN | N4: NO | P4: MENOS PLAZO
B5: 0.098 | C5: 0.098 | D5: 0.098 | E5: 0 | F5: 0 | G5: 0 | H5: 0 | I5: 0 | L5: CONSTRUCCIÓN
B6: 0.101 | C6: 0.101 | D6: 0.101 | E6: 0 | F6: 0 | G6: 0 | H6: 0 | I6: 0 | L6: SUSTITUCIÓN
B7: 0.0925 | C7: 0.0925 | D7: 0.0925 | E7: 0 | F7: 0 | G7: 0 | H7: 0 | I7: =IF(PLAZO_ANIOS>=20,G7,H7) -> 0 | L7: ADQ/REM
B8: 0.095 | C8: 0.095 | D8: 0.095 | E8: 0 | F8: 0 | G8: 0 | H8: 0 | I8: 0 | L8: SUST/REM
B9: 0.1015 | C9: 0.1015 | D9: 0.1015 | E9: 0 | F9: 0 | G9: 0 | H9: 0 | I9: =IF(PLAZO_ANIOS>=20,G9,H9) -> 0
B10: 0.115 | C10: 0.115 | D10: 0.115 | E10: =C10-D10 -> 0 | F10: 0 | G10: 0 | H10: 0 | I10: 0
B12: Parámetros Tasas de Intrerés
B13: Tasa Anual Base | C13: =Simulación!N25 -> 0.0995
B14: % Disminución de Tasa | C14: 0 | D14: ,=BUSCARV(ESQUEMA, B3:I10, 4,FALSO)
B15: Meses Beneficio Pago Puntual | C15: 12
B16: Meses Incremento Tasa Crecientes | C16: 60 | E16: Esquemas Pago Puntual
G17: Tramite Patrimonial 9.3 | I17: Solo fijos
B18: Parámetros Esquema Pagos Crecientes | G18: Trámite 9.8 | I18: Fijos/Crecientes
B19: Icremento Tasa | C19: 0 | D19: ,=BUSCARV(ESQUEMA, B3:I10, 5,FALSO) | G19: Trámite Ordinario 10.55 | I19: Fijos/Crecientes
B20: Incremento Amort | C20: 0 | D20: ,=BUSCARV(ESQUEMA, B3:I10, 8,FALSO) | E20: Tramites Especiales
B21: Meses incremento | C21: 12 | G21: Pemex
G22: Villacero
B23: Parámetros Seguro Vida (Saldo Deudor) | G23: Muncipios
B24: Factor Seg. Deudor | C24: 0.0008 | E24: Terrenos
G25: Tradicional
B26: Parámetros Seguro de Daños | E26: Esquema | G26: Villacero
B27: Factor Seg. Daños | C27: =IF(E27="TERRENO",0,1.1) -> 1.1 | E27: =Simulación!H21 -> ADQUISICION
B28: Factor Seg. Daños Final | C28: =FACT_SEGURO_DANIOS * 1.0802 / 12000 -> 9.901833333e-05
B29: Factor Ajuste Seg Daños | C29: 0.7
B30: Suma Aseg. Calculada | C30: =VALOR_INMUEBLE * FACTOR_AJSTE_SEG_DAÑ -> 0
B31: Suma Aseg. Final | C31: =IF(SUMA_ASEG_AVALUO > 0, SUMA_ASEG_AVALUO, SUMA_ASEG_CALC) -> 0
B32: Seguro Daños | C32: =SUMA_ASEGURADA_DAÑOS * FACTOR_SEG_DANIOS_FIN -> 0
B34: Parámetro Seguro Desempleo
B35: Factor Seguro Desempleo | C35: =IF(SUMA_INGRESOS= "SI", 0.0098, 0.0057) -> 0.0098
B36: Seguro Interiores | C36: =IF(E27="TERRENO",0,(98/(1+IVA))) -> 84.48275862
B38: Parámetros Costo de Avalúo
B39: Factor Avalúo | C39: =D39/1000 -> 0.003 | D39: ='Parametro Destino'!J27 -> 3
B40: Honorarios Avalúo | C40: 0
B42: Parámetros Comisión Administración
B43: Mto. Comisión Admon. | C43: =IF(OR('Parametro Destino'!C2=11,'Parametro Destino'!C2=12),0,399) -> 399 | D43: =IF(OR('Parametro Destino'!C2=11,'Parametro Destino'!C2=12),"liquidez normal o gold com mens =0",399) -> 399
B45: Otros Parámetros
B46: Frecuencia Pago | C46: MENSUAL
B47: Dias Capital | C47: 30
B48: % IVA | C48: 0.16

Sheet Tabla Amortización Fijo (hidden)
B1: Tabla de Amortización >> Hipotecario >> Tasas Pagos Puntuales>>Cuotas Fijas
B3: Monto Solicitado | C3: Plazo años | D3: Plazo Meses | E3: Tipo | F3: ¿Cómo aplicar el Beneficio PP? | G3: Suma de Ingresos | H3: Esquema | J3: Total Financiado | K3: % Comisión Apert | L3: Comisión Apertura | M3: CAT
B4: =IF( OR('Parametro Destino'!C2=8,'Parametro Destino'!C2=3,'Parametro Destino'!C2=4), MIN('Parametro Destino'!F3,Simulación!H25), MIN(Simulación!H25,'Parametro Destino'!C7,'Parametro Destino'!F2)) -> 0 | C4: ='Parametro Destino'!F4 -> 20 | D4: =PLAZO_ANIOS*12 -> 240 | E4: ADQUISICIÓN | F4: 0 | G4: SI | H4: =IF(Simulación!J21="SI",Simulación!N40,Simulación!N25) -> 0.0995 | J4: =MTO_SOLICITADO -> 0 | K4: ='Parametro Destino'!C8 -> 0.01 | L4: =COMISION_APERT *TOTAL_FINANCIADO -> 0 | M4: =(1+IRR(AJ13:AJ259,0))^(360/30)-1 -> 
B6: Valor Inmueble | C6: Presupuesto Construcción | D6: Valor Inmueble actual | E6: Suma Asegurada Daños | J6: Base Avalúo | K6: Costo Avaluo Base | L6: Subtotal Avalúo (Base + Honorarios) | M6: IVA Avalúo | N6: Total Avalúo
B7: =Simulación!H23 -> 0 | C7: 1000000 | D7: 2000000 | E7: =VALOR_INMUEBLE*0.7 -> 0 | J7: =IF(DESTINO ="CONSTRUCCIÓN", IF(VALOR_INMUEB_ACT> 0, VALOR_INMUEB_ACT, VALOR_INMUEBLE-PRES_CONSTRUCCION), VALOR_INMUEBLE) -> 0 | K7: =MTO_BASE_AVALUO*FACTOR_AVALUO -> 0 | L7: =MTO_AVALUO + HONORARIOS_AVALUO -> 0 | M7: =SUBTOT_AVALUO * IVA -> 0 | N7: =SUBTOT_AVALUO + IVA_AVALUO -> 0
B9: Fecha Apertura | C9: Fecha 1er Pago | K9: Suma Inversos | L9: Cuota Nivelada Base | AJ9: Monto Inicial CAT
B10: =Simulación!N8 -> 2023-12-11 | C10: =IF(DAY(FECHA_APERTURA)<= 19, DATE(YEAR(DATE(YEAR(FECHA_APERTURA),MONTH(FECHA_APERTURA)+2,)), MONTH(DATE(YEAR(FECHA_APERTURA),MONTH(FECHA_APERTURA)+2,)), 4), DATE(YEAR(DATE(YEAR(FECHA_APERTURA),MONTH(FECHA_APERTURA)+3,)), MONTH(DATE(YEAR(FECHA_APERTURA),MONTH(FECHA_APERTURA)+3,)), 4)) -> 2024-01-04 | K10: =SUMIF(B14:B259, CONCATENATE("<",PLAZO),K14:K259) -> 96.42796215 | L10: =J4/K10 -> 0 | AJ10: =MTO_SOLICITADO - MTO_COMISION_APERT - SUBTOT_AVALUO -> 0
B12: Pago | C12: Fecha | D12: Dias Reales | E12: Tasa Periodo | F12: Prorrateo | G12: Potencia | H12: Inverso | I12: Aplica Incremento | J12: Ajuste | K12: Inverso Ajuste | L12: Cuota Nivelada Periodo | M12: Saldo | N12: Capital | O12: Interés (Dias Reales) | P12: Comision | Q12: IVA Comisión | R12: Seguro Daños | S12: IVA Seguro Daños | T12: Seguro Vida | U12: Seguro Interiores | V12: IVA Seguro Interiores | W12: Seguro Desempleo | X12: IVA Seguro Desempleo | Y12: Total a Pagar Ordinario | Z12: Tasa Pago Puntual | AA12: Saldo Pago Puntual | AB12: Capital Pago Puntual | AC12: Interés | AD12: Seguro Vida Pago Puntual | AE12: Total Pago Puntual | AF12: Aportación Capital Pago Puntual | AG12: Prepago | AH12: Total a Pagar Pago Puntual | AJ12: Total CAT
AJ13: =AJ10*-1 -> 0
B14: 0 | C14: =IF(B14=0,FECHA_1ER_PAGO,DATE(YEAR(C13),MONTH(C13)+2,)) -> 2024-01-04 | D14: =IF(B14=0,C14-B10+1, C14-C13) -> 25 | E14: =ESQUEMA -> 0.0995 | F14: =1 + D14 * E14 / 360 + FACTOR_SEG_DEUD -> 1.007709722 | G14: =IF(B14 = 0, 0, IF(G13=0, F14, G13 * F14 )) -> 0 | H14: =IF(G14=0, 0, 1/G14) -> 0 | I14: =MOD(B14, MESES_INC)=0 -> TRUE | J14: =IF(B14=0, 1, IF(I14,J12*(1+INCREMENTO),J12)) -> 1 | K14: =H14*J14 -> 0 | L14: =CUOTA_INIT*J14 -> 0 | M14: =IF(B14=0,TOTAL_FINANCIADO, M12-N12) -> 0 | N14: =IF(B14=0, 0, L14-O14-T14) -> 0 | O14: =M14 * D14 * E14 /360 -> 0 | P14: =COMISION_AMORT -> 399 | Q14: =P14*IVA -> 63.84 | R14: =SEGURO_DAÑOS_MENS -> 0 | S14: =R14*IVA -> 0 | T14: =M14 * FACTOR_SEG_DEUD -> 0 | U14: =SEGURO_INTERIORES -> 84.48275862 | V14: =U14*IVA -> 13.51724138 | W14: =SUM(N14:V14) * FACTOR_SEG_DESEMPLEO -> 5.496232 | X14: =W14*IVA -> 0.87939712 | Y14: =IF(B14>=PLAZO, 0, SUM(N14:X14)) -> 567.2156291 | Z14: =ESQUEMA -> 0.0995 | AA14: =IF(B14=0,TOTAL_FINANCIADO, MAX(ROUND(AA13-N13-AF13-AG13,2), 0)) -> 0 | AB14: =MIN(AA14,N14) -> 0 | AC14: =AA14 * D14 * Z14 /360 -> 0 | AD14: =AA14 * FACTOR_SEG_DEUD -> 0 | AE14: =IF(AA14>0, AB14+AC14+AD14+P14+Q14+R14+S14+U14+V14+W14+X14, 0) -> 0 | AF14: =IF(ACCION_EXCEDENTE_PP="MENOS PLAZO", IF(AA14>N14, ROUND(Y14-AE14, 2), 0), 0) -> 0 | AG14: ='Tabla Fijo'!E8+'Tabla Fijo'!H8 -> 0 | AH14: =AE14+AF14 -> 0 | AJ14: =IF(AA14> 0,AB14+AC14+AD14+P14+R14+U14+W14, 0) -> 0
B15: 1 | C15: =IF(B15=0,FECHA_1ER_PAGO,DATE(YEAR(C14),MONTH(C14)+1,4)) -> 2024-02-04 | D15: =IF(B15=0,C15-C10+1, C15-C14) -> 31 | E15: =IF(B15=0,TASA,IF(B15=MESES_INC_TASA,E14+INCREMENTO_TASA,E14)) -> 0.0995 | F15: =1 + D15 * E15 / 360 + FACTOR_SEG_DEUD -> 1.009368056 | G15: =IF(B15 = 0, 0, IF(G14=0, F15, G14 * F15 )) -> 1.009368056 | H15: =IF(G15=0, 0, 1/G15) -> 0.9907188904 | I15: FALSE | J15: =IF(B15=0, 1, IF(I15,J14*(1+INCREMENTO),J14)) -> 1 | K15: 0.9907188904 | L15: =CUOTA_INIT*J15 -> 0 | M15: =IF(B15=0,TOTAL_FINANCIADO, M14-N14) -> 0 | N15: =IF(B15=0, 0, L15-O15-T15) -> 0 | O15: =M15 * D15 * E15 /360 -> 0 | P15: 399 | Q15: =P15*IVA -> 63.84 | R15: =SEGURO_DAÑOS_MENS -> 0 | S15: 0 | T15: =M15 * FACTOR_SEG_DEUD -> 0 | U15: 84.48275862 | V15: 13.51724138 | W15: =SUM(N15:V15) * FACTOR_SEG_DESEMPLEO -> 5.496232 | X15: 0.87939712 | Y15: 567.2156291 | Z15: 0.0995 | AA15: 0 | AB15: 0 | AC15: =AA15 * D15 * Z15 /360 -> 0 | AD15: 0 | AE15: =IF(AA15>0, AB15+AC15+AD15+P15+Q15+R15+S15+U15+V15+W15+X15, 0) -> 0 | AF15: 0 | AG15: ='Tabla Fijo'!E9+'Tabla Fijo'!H9 -> 0 | AH15: =AE15+AF15 -> 0 | AJ15: =IF(AA15> 0,AB15+AC15+AD15+P15+R15+U15+W15, 0) -> 0
B16: 2 | C16: 2024-03-04 | D16: =IF(B16=0,C16-'Parametros Fijo'!C13+1, C16-C15) -> 29 | E16: =IF(B16=0,TASA,IF(B16=MESES_INC_TASA,E15+INCREMENTO_TASA,E15)) -> 0.0995 | F16: 1.008815278 | G16: 1.018265915 | H16: =IF(G16=0, 0, 1/G16) -> 0.9820617433 | I16: FALSE | J16: 1 | K16: 0.9820617433 | L16: 0 | M16: 0 | N16: =IF(B16=0, 0, L16-O16-T16) -> 0 | O16: 0 | P16: 399 | Q16: 63.84 | R16: 0 | S16: 0 | T16: 0 | U16: 84.48275862 | V16: 13.51724138 | W16: 5.496232 | X16: 0.87939712 | Y16: 567.2156291 | Z16: 0.0995 | AA16: 0 | AB16: =MIN(AA16,N16) -> 0 | AC16: 0 | AD16: 0 | AE16: 0 | AF16: 0 | AG16: ='Tabla Fijo'!E10+'Tabla Fijo'!H10 -> 0 | AH16: =AE16+AF16 -> 0 | AJ16: 0
B17: 3 | C17: 2024-04-04 | D17: =IF(B17=0,C17-'Parametros Fijo'!C19+1, C17-C16) -> 31 | E17: 0.0995 | F17: 1.009368056 | G17: 1.027805087 | H17: 0.9729471207 | I17: FALSE | J17: 1 | K17: 0.9729471207 | L17: 0 | M17: 0 | N17: 0 | O17: 0 | P17: 399 | Q17: 63.84 | R17: 0 | S17: 0 | T17: 0 | U17: 84.48275862 | V17: 13.51724138 | W17: 5.496232 | X17: 0.87939712 | Y17: 567.2156291 | Z17: 0.0995 | AA17: 0 | AB17: 0 | AC17: 0 | AD17: 0 | AE17: 0 | AF17: 0 | AG17: ='Tabla Fijo'!E11+'Tabla Fijo'!H11 -> 0 | AH17: 0 | AJ17: 0
B18: 4 | C18: 2024-05-04 | D18: =IF(B18=0,C18-'Parametros Fijo'!C20+1, C18-C17) -> 30 | E18: 0.0995 | F18: 1.009091667 | G18: 1.037149548 | H18: 0.9641811074 | I18: FALSE | J18: 1 | K18: 0.9641811074 | L18: 0 | M18: 0 | N18: 0 | O18: 0 | P18: 399 | Q18: 63.84 | R18: 0 | S18: 0 | T18: 0 | U18: 84.48275862 | V18: 13.51724138 | W18: 5.496232 | X18: 0.87939712 | Y18: 567.2156291 | Z18: 0.0995 | AA18: 0 | AB18: 0 | AC18: 0 | AD18: 0 | AE18: 0 | AF18: 0 | AG18: ='Tabla Fijo'!E12+'Tabla Fijo'!H12 -> 0 | AH18: 0 | AJ18: 0
B19: 5 | C19: 2024-06-04 | D19: =IF(B19=0,C19-#REF!+1, C19-C18) -> 31 | E19: 0.0995 | F19: 1.009368056 | G19: 1.046865623 | H19: 0.9552324369 | I19: FALSE | J19: 1 | K19: 0.9552324369 | L19: 0 | M19: 0 | N19: 0 | O19: 0 | P19: 399 | Q19: 63.84 | R19: 0 | S19: 0 | T19: 0 | U19: 84.48275862 | V19: 13.51724138 | W19: 5.496232 | X19: 0.87939712 | Y19: 567.2156291 | Z19: 0.0995 | AA19: 0 | AB19: 0 | AC19: 0 | AD19: 0 | AE19: 0 | AF19: 0 | AG19: ='Tabla Fijo'!E13+'Tabla Fijo'!H13 -> 0 | AH19: 0 | AJ19: 0
B20: 6 | C20: 2024-07-04 | D20: =IF(B20=0,C20-C12+1, C20-C19) -> 30 | E20: 0.0995 | F20: 1.009091667 | G20: 1.056383376 | H20: 0.9466260286 | I20: FALSE | J20: 1 | K20: 0.9466260286 | L20: 0 | M20: 0 | N20: 0 | O20: 0 | P20: 399 | Q20: 63.84 | R20: 0 | S20: 0 | T20: 0 | U20: 84.48275862 | V20: 13.51724138 | W20: 5.496232 | X20: 0.87939712 | Y20: 567.2156291 | Z20: 0.0995 | AA20: 0 | AB20: 0 | AC20: 0 | AD20: 0 | AE20: 0 | AF20: 0 | AG20: ='Tabla Fijo'!E14+'Tabla Fijo'!H14 -> 0 | AH20: 0 | AJ20: 0
B21: 7 | C21: 2024-08-04 | D21: 31 | E21: 0.0995 | F21: 1.009368056 | G21: 1.066279634 | H21: 0.9378402886 | I21: FALSE | J21: 1 | K21: 0.9378402886 | L21: 0 | M21: 0 | N21: 0 | O21: =M21 * D21 * E21 /360 -> 0 | P21: 399 | Q21: 63.84 | R21: 0 | S21: 0 | T21: 0 | U21: 84.48275862 | V21: 13.51724138 | W21: 5.496232 | X21: 0.87939712 | Y21: 567.2156291 | Z21: 0.0995 | AA21: 0 | AB21: 0 | AC21: 0 | AD21: 0 | AE21: 0 | AF21: 0 | AG21: ='Tabla Fijo'!E15+'Tabla Fijo'!H15 -> 0 | AH21: 0 | AJ21: 0
B22: 8 | C22: 2024-09-04 | D22: 31 | E22: 0.0995 | F22: 1.009368056 | G22: 1.076268601 | H22: 0.9291360901 | I22: FALSE | J22: 1 | K22: 0.9291360901 | L22: 0 | M22: 0 | N22: 0 | O22: 0 | P22: 399 | Q22: 63.84 | R22: 0 | S22: 0 | T22: 0 | U22: 84.48275862 | V22: 13.51724138 | W22: 5.496232 | X22: 0.87939712 | Y22: 567.2156291 | Z22: 0.0995 | AA22: 0 | AB22: 0 | AC22: 0 | AD22: 0 | AE22: 0 | AF22: 0 | AG22: ='Tabla Fijo'!E16+'Tabla Fijo'!H16 -> 0 | AH22: 0 | AJ22: 0
B23: 9 | C23: 2024-10-04 | D23: 30 | E23: 0.0995 | F23: 1.009091667 | G23: 1.086053677 | H23: 0.9207648035 | I23: FALSE | J23: =IF(B23=0, 1, IF(I23,J22*(1+INCREMENTO),J22)) -> 1 | K23: 0.9207648035 | L23: 0 | M23: 0 | N23: 0 | O23: 0 | P23: 399 | Q23: 63.84 | R23: 0 | S23: 0 | T23: 0 | U23: 84.48275862 | V23: 13.51724138 | W23: 5.496232 | X23: 0.87939712 | Y23: 567.2156291 | Z23: 0.0995 | AA23: 0 | AB23: 0 | AC23: 0 | AD23: 0 | AE23: 0 | AF23: 0 | AG23: ='Tabla Fijo'!E17+'Tabla Fijo'!H17 -> 0 | AH23: 0 | AJ23: 0
B24: 10 | C24: 2024-11-04 | D24: 31 | E24: 0.0995 | F24: 1.009368056 | G24: 1.096227888 | H24: 0.9122190844 | I24: FALSE | J24: 1 | K24: 0.9122190844 | L24: 0 | M24: 0 | N24: 0 | O24: 0 | P24: 399 | Q24: 63.84 | R24: 0 | S24: 0 | T24: 0 | U24: 84.48275862 | V24: 13.51724138 | W24: 5.496232 | X24: 0.87939712 | Y24: 567.2156291 | Z24: 0.0995 | AA24: 0 | AB24: 0 | AC24: 0 | AD24: 0 | AE24: 0 | AF24: 0 | AG24: ='Tabla Fijo'!E18+'Tabla Fijo'!H18 -> 0 | AH24: 0 | AJ24: 0
B25: 11 | C25: 2024-12-04 | D25: 30 | E25: 0.0995 | F25: 1.009091667 | G25: 1.106194426 | H25: 0.9040002158 | I25: FALSE | J25: 1 | K25: 0.9040002158 | L25: 0 | M25: 0 | N25: 0 | O25: 0 | P25: 399 | Q25: 63.84 | R25: 0 | S25: 0 | T25: 0 | U25: 84.48275862 | V25: 13.51724138 | W25: 5.496232 | X25: 0.87939712 | Y25: 567.2156291 | Z25: 0.0995 | AA25: 0 | AB25: 0 | AC25: 0 | AD25: 0 | AE25: 0 | AF25: 0 | AG25: ='Tabla Fijo'!E19+'Tabla Fijo'!H19 -> 0 | AH25: 0 | AJ25: 0
B26: 12 | C26: 2025-01-04 | D26: 31 | E26: 0.0995 | F26: 1.009368056 | G26: 1.116557317 | H26: 0.8956100907 | I26: TRUE | J26: =IF(B26=0, 1, IF(I26,J25*(1+INCREMENTO),J25)) -> 1 | K26: 0.8956100907 | L26: 0 | M26: 0 | N26: 0 | O26: 0 | P26: 399 | Q26: 63.84 | R26: 0 | S26: 0 | T26: 0 | U26: 84.48275862 | V26: 13.51724138 | W26: 5.496232 | X26: 0.87939712 | Y26: 567.2156291 | Z26: 0.0995 | AA26: 0 | AB26: 0 | AC26: 0 | AD26: 0 | AE26: 0 | AF26: 0 | AG26: ='Tabla Fijo'!E20+'Tabla Fijo'!H20 -> 0 | AH26: 0 | AJ26: 0
B27: 13 | C27: 2025-02-04 | D27: 31 | E27: 0.0995 | F27: 1.009368056 | G27: 1.127017288 | H27: 0.8872978353 | I27: FALSE | J27: 1 | K27: 0.8872978353 | L27: 0 | M27: 0 | N27: 0 | O27: 0 | P27: 399 | Q27: 63.84 | R27: 0 | S27: 0 | T27: 0 | U27: 84.48275862 | V27: 13.51724138 | W27: 5.496232 | X27: 0.87939712 | Y27: 567.2156291 | Z27: 0.0995 | AA27: 0 | AB27: 0 | AC27: 0 | AD27: 0 | AE27: 0 | AF27: 0 | AG27: ='Tabla Fijo'!E21+'Tabla Fijo'!H21 -> 0 | AH27: 0 | AJ27: 0
B28: 14 | C28: 2025-03-04 | D28: 28 | E28: 0.0995 | F28: 1.008538889 | G28: 1.136640763 | H28: 0.8797854451 | I28: FALSE | J28: 1 | K28: 0.8797854451 | L28: 0 | M28: 0 | N28: 0 | O28: 0 | P28: 399 | Q28: 63.84 | R28: 0 | S28: 0 | T28: 0 | U28: 84.48275862 | V28: 13.51724138 | W28: 5.496232 | X28: 0.87939712 | Y28: 567.2156291 | Z28: 0.0995 | AA28: 0 | AB28: 0 | AC28: 0 | AD28: 0 | AE28: 0 | AF28: 0 | AG28: ='Tabla Fijo'!E22+'Tabla Fijo'!H22 -> 0 | AH28: 0 | AJ28: 0
B29: 15 | C29: 2025-04-04 | D29: 31 | E29: 0.0995 | F29: 1.009368056 | G29: 1.147288877 | H29: 0.87162006 | I29: FALSE | J29: 1 | K29: 0.87162006 | L29: 0 | M29: 0 | N29: 0 | O29: 0 | P29: 399 | Q29: 63.84 | R29: 0 | S29: 0 | T29: 0 | U29: 84.48275862 | V29: 13.51724138 | W29: 5.496232 | X29: 0.87939712 | Y29: 567.2156291 | Z29: 0.0995 | AA29: 0 | AB29: 0 | AC29: 0 | AD29: 0 | AE29: 0 | AF29: 0 | AG29: ='Tabla Fijo'!E23+'Tabla Fijo'!H23 -> 0 | AH29: 0 | AJ29: 0
B30: 16 | C30: 2025-05-04 | D30: 30 | E30: 0.0995 | F30: 1.009091667 | G30: 1.157719645 | H30: 0.8637669785 | I30: FALSE | J30: 1 | K30: 0.8637669785 | L30: 0 | M30: 0 | N30: 0 | O30: 0 | P30: 399 | Q30: 63.84 | R30: 0 | S30: 0 | T30: 0 | U30: 84.48275862 | V30: 13.51724138 | W30: 5.496232 | X30: 0.87939712 | Y30: 567.2156291 | Z30: 0.0995 | AA30: 0 | AB30: 0 | AC30: 0 | AD30: 0 | AE30: 0 | AF30: 0 | AG30: ='Tabla Fijo'!E24+'Tabla Fijo'!H24 -> 0 | AH30: 0 | AJ30: 0
B31: 17 | C31: 2025-06-04 | D31: 31 | E31: 0.0995 | F31: 1.009368056 | G31: 1.168565227 | H31: 0.8557502625 | I31: FALSE | J31: 1 | K31: 0.8557502625 | L31: 0 | M31: 0 | N31: 0 | O31: 0 | P31: 399 | Q31: 63.84 | R31: 0 | S31: 0 | T31: 0 | U31: 84.48275862 | V31: 13.51724138 | W31: 5.496232 | X31: 0.87939712 | Y31: 567.2156291 | Z31: 0.0995 | AA31: 0 | AB31: 0 | AC31: 0 | AD31: 0 | AE31: 0 | AF31: 0 | AG31: ='Tabla Fijo'!E25+'Tabla Fijo'!H25 -> 0 | AH31: 0 | AJ31: 0
B32: 18 | C32: 2025-07-04 | D32: 30 | E32: 0.0995 | F32: 1.009091667 | G32: 1.179189433 | H32: 0.848040164 | I32: FALSE | J32: 1 | K32: 0.848040164 | L32: 0 | M32: 0 | N32: 0 | O32: 0 | P32: 399 | Q32: 63.84 | R32: 0 | S32: 0 | T32: 0 | U32: 84.48275862 | V32: 13.51724138 | W32: 5.496232 | X32: 0.87939712 | Y32: 567.2156291 | Z32: 0.0995 | AA32: 0 | AB32: 0 | AC32: 0 | AD32: 0 | AE32: 0 | AF32: 0 | AG32: ='Tabla Fijo'!E26+'Tabla Fijo'!H26 -> 0 | AH32: 0 | AJ32: 0
B33: 19 | C33: 2025-08-04 | D33: 31 | E33: 0.0995 | F33: 1.009368056 | G33: 1.190236145 | H33: 0.8401694103 | I33: FALSE | J33: 1 | K33: 0.8401694103 | L33: 0 | M33: 0 | N33: 0 | O33: 0 | P33: 399 | Q33: 63.84 | R33: 0 | S33: 0 | T33: 0 | U33: 84.48275862 | V33: 13.51724138 | W33: 5.496232 | X33: 0.87939712 | Y33: 567.2156291 | Z33: 0.0995 | AA33: 0 | AB33: 0 | AC33: 0 | AD33: 0 | AE33: 0 | AF33: 0 | AG33: ='Tabla Fijo'!E27+'Tabla Fijo'!H27 -> 0 | AH33: 0 | AJ33: 0
B34: 20 | C34: 2025-09-04 | D34: 31 | E34: 0.0995 | F34: 1.009368056 | G34: 1.201386343 | H34: 0.8323717059 | I34: FALSE | J34: 1 | K34: 0.8323717059 | L34: 0 | M34: 0 | N34: 0 | O34: 0 | P34: 399 | Q34: 63.84 | R34: 0 | S34: 0 | T34: 0 | U34: 84.48275862 | V34: 13.51724138 | W34: 5.496232 | X34: 0.87939712 | Y34: 567.2156291 | Z34: 0.0995 | AA34: 0 | AB34: 0 | AC34: 0 | AD34: 0 | AE34: 0 | AF34: 0 | AG34: ='Tabla Fijo'!E28+'Tabla Fijo'!H28 -> 0 | AH34: 0 | AJ34: 0
B35: 21 | C35: 2025-10-04 | D35: 30 | E35: 0.0995 | F35: 1.009091667 | G35: 1.212308947 | H35: 0.8248722425 | I35: FALSE | J35: 1 | K35: 0.8248722425 | L35: 0 | M35: 0 | N35: 0 | O35: 0 | P35: 399 | Q35: 63.84 | R35: 0 | S35: 0 | T35: 0 | U35: 84.48275862 | V35: 13.51724138 | W35: 5.496232 | X35: 0.87939712 | Y35: 567.2156291 | Z35: 0.0995 | AA35: 0 | AB35: 0 | AC35: 0 | AD35: 0 | AE35: 0 | AF35: 0 | AG35: ='Tabla Fijo'!E29+'Tabla Fijo'!H29 -> 0 | AH35: 0 | AJ35: 0
B36: 22 | C36: 2025-11-04 | D36: 31 | E36: 0.0995 | F36: 1.009368056 | G36: 1.223665925 | H36: 0.8172165128 | I36: FALSE | J36: 1 | K36: 0.8172165128 | L36: 0 | M36: 0 | N36: 0 | O36: 0 | P36: 399 | Q36: 63.84 | R36: 0 | S36: 0 | T36: 0 | U36: 84.48275862 | V36: 13.51724138 | W36: 5.496232 | X36: 0.87939712 | Y36: 567.2156291 | Z36: 0.0995 | AA36: 0 | AB36: 0 | AC36: 0 | AD36: 0 | AE36: 0 | AF36: 0 | AG36: ='Tabla Fijo'!E30+'Tabla Fijo'!H30 -> 0 | AH36: 0 | AJ36: 0
B37: 23 | C37: 2025-12-04 | D37: 30 | E37: 0.0995 | F37: 1.009091667 | G37: 1.234791088 | H37: 0.8098535938 | I37: FALSE | J37: 1 | K37: 0.8098535938 | L37: 0 | M37: 0 | N37: 0 | O37: 0 | P37: 399 | Q37: 63.84 | R37: 0 | S37: 0 | T37: 0 | U37: 84.48275862 | V37: 13.51724138 | W37: 5.496232 | X37: 0.87939712 | Y37: 567.2156291 | Z37: 0.0995 | AA37: 0 | AB37: 0 | AC37: 0 | AD37: 0 | AE37: 0 | AF37: 0 | AG37: ='Tabla Fijo'!E31+'Tabla Fijo'!H31 -> 0 | AH37: 0 | AJ37: 0
B38: 24 | C38: 2026-01-04 | D38: 31 | E38: 0.0995 | F38: 1.009368056 | G38: 1.246358679 | H38: 0.8023372539 | I38: TRUE | J38: 1 | K38: 0.8023372539 | L38: 0 | M38: 0 | N38: 0 | O38: 0 | P38: 399 | Q38: 63.84 | R38: 0 | S38: 0 | T38: 0 | U38: 84.48275862 | V38: 13.51724138 | W38: 5.496232 | X38: 0.87939712 | Y38: 567.2156291 | Z38: 0.0995 | AA38: 0 | AB38: 0 | AC38: 0 | AD38: 0 | AE38: 0 | AF38: 0 | AG38: ='Tabla Fijo'!E32+'Tabla Fijo'!H32 -> 0 | AH38: 0 | AJ38: 0
B39: 25 | C39: 2026-02-04 | D39: 31 | E39: 0.0995 | F39: 1.009368056 | G39: 1.258034637 | H39: 0.7948906739 | I39: FALSE | J39: 1 | K39: 0.7948906739 | L39: 0 | M39: 0 | N39: 0 | O39: 0 | P39: 399 | Q39: 63.84 | R39: 0 | S39: 0 | T39: 0 | U39: 84.48275862 | V39: 13.51724138 | W39: 5.496232 | X39: 0.87939712 | Y39: 567.2156291 | Z39: 0.0995 | AA39: 0 | AB39: 0 | AC39: 0 | AD39: 0 | AE39: 0 | AF39: 0 | AG39: ='Tabla Fijo'!E33+'Tabla Fijo'!H33 -> 0 | AH39: 0 | AJ39: 0
B40: 26 | C40: 2026-03-04 | D40: 28 | E40: 0.0995 | F40: 1.008538889 | G40: 1.268776855 | H40: 0.7881606576 | I40: FALSE | J40: 1 | K40: 0.7881606576 | L40: 0 | M40: 0 | N40: 0 | O40: 0 | P40: 399 | Q40: 63.84 | R40: 0 | S40: 0 | T40: 0 | U40: 84.48275862 | V40: 13.51724138 | W40: 5.496232 | X40: 0.87939712 | Y40: 567.2156291 | Z40: 0.0995 | AA40: 0 | AB40: 0 | AC40: 0 | AD40: 0 | AE40: 0 | AF40: 0 | AG40: ='Tabla Fijo'!E34+'Tabla Fijo'!H34 -> 0 | AH40: 0 | AJ40: 0
B41: 27 | C41: 2026-04-04 | D41: 31 | E41: 0.0995 | F41: 1.009368056 | G41: 1.280662827 | H41: 0.7808456521 | I41: FALSE | J41: 1 | K41: 0.7808456521 | L41: 0 | M41: 0 | N41: 0 | O41: 0 | P41: 399 | Q41: 63.84 | R41: 0 | S41: 0 | T41: 0 | U41: 84.48275862 | V41: 13.51724138 | W41: 5.496232 | X41: 0.87939712 | Y41: 567.2156291 | Z41: 0.0995 | AA41: 0 | AB41: 0 | AC41: 0 | AD41: 0 | AE41: 0 | AF41: 0 | AG41: ='Tabla Fijo'!E35+'Tabla Fijo'!H35 -> 0 | AH41: 0 | AJ41: 0
B42: 28 | C42: 2026-05-04 | D42: 30 | E42: 0.0995 | F42: 1.009091667 | G42: 1.292306186 | H42: 0.7738104257 | I42: FALSE | J42: 1 | K42: 0.7738104257 | L42: 0 | M42: 0 | N42: 0 | O42: 0 | P42: 399 | Q42: 63.84 | R42: 0 | S42: 0 | T42: 0 | U42: 84.48275862 | V42: 13.51724138 | W42: 5.496232 | X42: 0.87939712 | Y42: 567.2156291 | Z42: 0.0995 | AA42: 0 | AB42: 0 | AC42: 0 | AD42: 0 | AE42: 0 | AF42: 0 | AG42: ='Tabla Fijo'!E36+'Tabla Fijo'!H36 -> 0 | AH42: 0 | AJ42: 0
B43: 29 | C43: 2026-06-04 | D43: 31 | E43: 0.0995 | F43: 1.009368056 | G43: 1.304412582 | H43: 0.7666286063 | I43: FALSE | J43: 1 | K43: 0.7666286063 | L43: 0 | M43: 0 | N43: 0 | O43: 0 | P43: 399 | Q43: 63.84 | R43: 0 | S43: 0 | T43: 0 | U43: 84.48275862 | V43: 13.51724138 | W43: 5.496232 | X43: 0.87939712 | Y43: 567.2156291 | Z43: 0.0995 | AA43: 0 | AB43: 0 | AC43: 0 | AD43: 0 | AE43: 0 | AF43: 0 | AG43: ='Tabla Fijo'!E37+'Tabla Fijo'!H37 -> 0 | AH43: 0 | AJ43: 0
B44: 30 | C44: 2026-07-04 | D44: 30 | E44: 0.0995 | F44: 1.009091667 | G44: 1.316271867 | H44: 0.7597214719 | I44: FALSE | J44: 1 | K44: 0.7597214719 | L44: 0 | M44: 0 | N44: 0 | O44: 0 | P44: 399 | Q44: 63.84 | R44: 0 | S44: 0 | T44: 0 | U44: 84.48275862 | V44: 13.51724138 | W44: 5.496232 | X44: 0.87939712 | Y44: 567.2156291 | Z44: 0.0995 | AA44: 0 | AB44: 0 | AC44: 0 | AD44: 0 | AE44: 0 | AF44: 0 | AG44: ='Tabla Fijo'!E38+'Tabla Fijo'!H38 -> 0 | AH44: 0 | AJ44: 0
B45: 31 | C45: 2026-08-04 | D45: 31 | E45: 0.0995 | F45: 1.009368056 | G45: 1.328602775 | H45: 0.7526704137 | I45: FALSE | J45: 1 | K45: 0.7526704137 | L45: 0 | M45: 0 | N45: 0 | O45: 0 | P45: 399 | Q45: 63.84 | R45: 0 | S45: 0 | T45: 0 | U45: 84.48275862 | V45: 13.51724138 | W45: 5.496232 | X45: 0.87939712 | Y45: 567.2156291 | Z45: 0.0995 | AA45: 0 | AB45: 0 | AC45: 0 | AD45: 0 | AE45: 0 | AF45: 0 | AG45: ='Tabla Fijo'!E39+'Tabla Fijo'!H39 -> 0 | AH45: 0 | AJ45: 0
B46: 32 | C46: 2026-09-04 | D46: 31 | E46: 0.0995 | F46: 1.009368056 | G46: 1.341049199 | H46: 0.7456847971 | I46: FALSE | J46: 1 | K46: 0.7456847971 | L46: 0 | M46: 0 | N46: 0 | O46: 0 | P46: 399 | Q46: 63.84 | R46: 0 | S46: 0 | T46: 0 | U46: 84.48275862 | V46: 13.51724138 | W46: 5.496232 | X46: 0.87939712 | Y46: 567.2156291 | Z46: 0.0995 | AA46: 0 | AB46: 0 | AC46: 0 | AD46: 0 | AE46: 0 | AF46: 0 | AG46: ='Tabla Fijo'!E40+'Tabla Fijo'!H40 -> 0 | AH46: 0 | AJ46: 0
B47: 33 | C47: 2026-10-04 | D47: 30 | E47: 0.0995 | F47: 1.009091667 | G47: 1.353241572 | H47: 0.7389663612 | I47: FALSE | J47: 1 | K47: 0.7389663612 | L47: 0 | M47: 0 | N47: 0 | O47: 0 | P47: 399 | Q47: 63.84 | R47: 0 | S47: 0 | T47: 0 | U47: 84.48275862 | V47: 13.51724138 | W47: 5.496232 | X47: 0.87939712 | Y47: 567.2156291 | Z47: 0.0995 | AA47: 0 | AB47: 0 | AC47: 0 | AD47: 0 | AE47: 0 | AF47: 0 | AG47: ='Tabla Fijo'!E41+'Tabla Fijo'!H41 -> 0 | AH47: 0 | AJ47: 0
B48: 34 | C48: 2026-11-04 | D48: 31 | E48: 0.0995 | F48: 1.009368056 | G48: 1.365918814 | H48: 0.7321079335 | I48: FALSE | J48: 1 | K48: 0.7321079335 | L48: 0 | M48: 0 | N48: 0 | O48: 0 | P48: 399 | Q48: 63.84 | R48: 0 | S48: 0 | T48: 0 | U48: 84.48275862 | V48: 13.51724138 | W48: 5.496232 | X48: 0.87939712 | Y48: 567.2156291 | Z48: 0.0995 | AA48: 0 | AB48: 0 | AC48: 0 | AD48: 0 | AE48: 0 | AF48: 0 | AG48: ='Tabla Fijo'!E42+'Tabla Fijo'!H42 -> 0 | AH48: 0 | AJ48: 0
B49: 35 | C49: 2026-12-04 | D49: 30 | E49: 0.0995 | F49: 1.009091667 | G49: 1.378337292 | H49: 0.7255118218 | I49: FALSE | J49: 1 | K49: 0.7255118218 | L49: 0 | M49: 0 | N49: 0 | O49: 0 | P49: 399 | Q49: 63.84 | R49: 0 | S49: 0 | T49: 0 | U49: 84.48275862 | V49: 13.51724138 | W49: 5.496232 | X49: 0.87939712 | Y49: 567.2156291 | Z49: 0.0995 | AA49: 0 | AB49: 0 | AC49: 0 | AD49: 0 | AE49: 0 | AF49: 0 | AG49: ='Tabla Fijo'!E43+'Tabla Fijo'!H43 -> 0 | AH49: 0 | AJ49: 0
B50: 36 | C50: 2027-01-04 | D50: 31 | E50: 0.0995 | F50: 1.009368056 | G50: 1.391249633 | H50: 0.7187782671 | I50: TRUE | J50: 1 | K50: 0.7187782671 | L50: 0 | M50: 0 | N50: 0 | O50: 0 | P50: 399 | Q50: 63.84 | R50: 0 | S50: 0 | T50: 0 | U50: 84.48275862 | V50: 13.51724138 | W50: 5.496232 | X50: 0.87939712 | Y50: 567.2156291 | Z50: 0.0995 | AA50: 0 | AB50: 0 | AC50: 0 | AD50: 0 | AE50: 0 | AF50: 0 | AG50: ='Tabla Fijo'!E44+'Tabla Fijo'!H44 -> 0 | AH50: 0 | AJ50: 0
B51: 37 | C51: 2027-02-04 | D51: 31 | E51: 0.0995 | F51: 1.009368056 | G51: 1.404282936 | H51: 0.7121072072 | I51: FALSE | J51: 1 | K51: 0.7121072072 | L51: 0 | M51: 0 | N51: 0 | O51: 0 | P51: 399 | Q51: 63.84 | R51: 0 | S51: 0 | T51: 0 | U51: 84.48275862 | V51: 13.51724138 | W51: 5.496232 | X51: 0.87939712 | Y51: 567.2156291 | Z51: 0.0995 | AA51: 0 | AB51: 0 | AC51: 0 | AD51: 0 | AE51: 0 | AF51: 0 | AG51: ='Tabla Fijo'!E45+'Tabla Fijo'!H45 -> 0 | AH51: 0 | AJ51: 0
B52: 38 | C52: 2027-03-04 | D52: =IF(B52=0,C52-C44+1, C52-C51) -> 28 | E52: 0.0995 | F52: 1.008538889 | G52: 1.416273952 | H52: 0.7060780849 | I52: FALSE | J52: 1 | K52: 0.7060780849 | L52: 0 | M52: 0 | N52: 0 | O52: 0 | P52: 399 | Q52: 63.84 | R52: 0 | S52: 0 | T52: 0 | U52: 84.48275862 | V52: 13.51724138 | W52: 5.496232 | X52: 0.87939712 | Y52: 567.2156291 | Z52: 0.0995 | AA52: 0 | AB52: 0 | AC52: 0 | AD52: 0 | AE52: 0 | AF52: 0 | AG52: ='Tabla Fijo'!E46+'Tabla Fijo'!H46 -> 0 | AH52: 0 | AJ52: 0
B53: 39 | C53: 2027-04-04 | D53: 31 | E53: 0.0995 | F53: 1.009368056 | G53: 1.429541686 | H53: 0.6995248968 | I53: FALSE | J53: 1 | K53: 0.6995248968 | L53: 0 | M53: 0 | N53: 0 | O53: 0 | P53: 399 | Q53: 63.84 | R53: 0 | S53: 0 | T53: 0 | U53: 84.48275862 | V53: 13.51724138 | W53: 5.496232 | X53: 0.87939712 | Y53: 567.2156291 | Z53: 0.0995 | AA53: 0 | AB53: 0 | AC53: 0 | AD53: 0 | AE53: 0 | AF53: 0 | AG53: ='Tabla Fijo'!E47+'Tabla Fijo'!H47 -> 0 | AH53: 0 | AJ53: 0
B54: 40 | C54: 2027-05-04 | D54: 30 | E54: 0.0995 | F54: 1.009091667 | G54: 1.442538602 | H54: 0.6932223502 | I54: FALSE | J54: 1 | K54: 0.6932223502 | L54: 0 | M54: 0 | N54: 0 | O54: 0 | P54: 399 | Q54: 63.84 | R54: 0 | S54: 0 | T54: 0 | U54: 84.48275862 | V54: 13.51724138 | W54: 5.496232 | X54: 0.87939712 | Y54: 567.2156291 | Z54: 0.0995 | AA54: 0 | AB54: 0 | AC54: 0 | AD54: 0 | AE54: 0 | AF54: 0 | AG54: ='Tabla Fijo'!E48+'Tabla Fijo'!H48 -> 0 | AH54: 0 | AJ54: 0
B55: 41 | C55: 2027-06-04 | D55: 31 | E55: 0.0995 | F55: 1.009368056 | G55: 1.456052384 | H55: 0.6867884776 | I55: FALSE | J55: 1 | K55: 0.6867884776 | L55: 0 | M55: 0 | N55: 0 | O55: 0 | P55: 399 | Q55: 63.84 | R55: 0 | S55: 0 | T55: 0 | U55: 84.48275862 | V55: 13.51724138 | W55: 5.496232 | X55: 0.87939712 | Y55: 567.2156291 | Z55: 0.0995 | AA55: 0 | AB55: 0 | AC55: 0 | AD55: 0 | AE55: 0 | AF55: 0 | AG55: ='Tabla Fijo'!E49+'Tabla Fijo'!H49 -> 0 | AH55: 0 | AJ55: 0
B56: 42 | C56: 2027-07-04 | D56: 30 | E56: 0.0995 | F56: 1.009091667 | G56: 1.469290327 | H56: 0.6806006831 | I56: FALSE | J56: 1 | K56: 0.6806006831 | L56: 0 | M56: 0 | N56: 0 | O56: 0 | P56: 399 | Q56: 63.84 | R56: 0 | S56: 0 | T56: 0 | U56: 84.48275862 | V56: 13.51724138 | W56: 5.496232 | X56: 0.87939712 | Y56: 567.2156291 | Z56: 0.0995 | AA56: 0 | AB56: 0 | AC56: 0 | AD56: 0 | AE56: 0 | AF56: 0 | AG56: ='Tabla Fijo'!E50+'Tabla Fijo'!H50 -> 0 | AH56: 0 | AJ56: 0
B57: 43 | C57: 2027-08-04 | D57: 31 | E57: 0.0995 | F57: 1.009368056 | G57: 1.48305472 | H57: 0.6742839536 | I57: FALSE | J57: 1 | K57: 0.6742839536 | L57: 0 | M57: 0 | N57: 0 | O57: 0 | P57: 399 | Q57: 63.84 | R57: 0 | S57: 0 | T57: 0 | U57: 84.48275862 | V57: 13.51724138 | W57: 5.496232 | X57: 0.87939712 | Y57: 567.2156291 | Z57: 0.0995 | AA57: 0 | AB57: 0 | AC57: 0 | AD57: 0 | AE57: 0 | AF57: 0 | AG57: ='Tabla Fijo'!E51+'Tabla Fijo'!H51 -> 0 | AH57: 0 | AJ57: 0
B58: 44 | C58: 2027-09-04 | D58: 31 | E58: 0.0995 | F58: 1.009368056 | G58: 1.496948059 | H58: 0.6680258503 | I58: FALSE | J58: 1 | K58: 0.6680258503 | L58: 0 | M58: 0 | N58: 0 | O58: 0 | P58: 399 | Q58: 63.84 | R58: 0 | S58: 0 | T58: 0 | U58: 84.48275862 | V58: 13.51724138 | W58: 5.496232 | X58: 0.87939712 | Y58: 567.2156291 | Z58: 0.0995 | AA58: 0 | AB58: 0 | AC58: 0 | AD58: 0 | AE58: 0 | AF58: 0 | AG58: ='Tabla Fijo'!E52+'Tabla Fijo'!H52 -> 0 | AH58: 0 | AJ58: 0
B59: 45 | C59: 2027-10-04 | D59: 30 | E59: 0.0995 | F59: 1.009091667 | G59: 1.510557812 | H59: 0.6620071024 | I59: FALSE | J59: 1 | K59: 0.6620071024 | L59: 0 | M59: 0 | N59: 0 | O59: 0 | P59: 399 | Q59: 63.84 | R59: 0 | S59: 0 | T59: 0 | U59: 84.48275862 | V59: 13.51724138 | W59: 5.496232 | X59: 0.87939712 | Y59: 567.2156291 | Z59: 0.0995 | AA59: 0 | AB59: 0 | AC59: 0 | AD59: 0 | AE59: 0 | AF59: 0 | AG59: ='Tabla Fijo'!E53+'Tabla Fijo'!H53 -> 0 | AH59: 0 | AJ59: 0
B60: 46 | C60: 2027-11-04 | D60: 31 | E60: 0.0995 | F60: 1.009368056 | G60: 1.524708801 | H60: 0.6558629419 | I60: FALSE | J60: 1 | K60: 0.6558629419 | L60: 0 | M60: 0 | N60: 0 | O60: 0 | P60: 399 | Q60: 63.84 | R60: 0 | S60: 0 | T60: 0 | U60: 84.48275862 | V60: 13.51724138 | W60: 5.496232 | X60: 0.87939712 | Y60: 567.2156291 | Z60: 0.0995 | AA60: 0 | AB60: 0 | AC60: 0 | AD60: 0 | AE60: 0 | AF60: 0 | AG60: ='Tabla Fijo'!E54+'Tabla Fijo'!H54 -> 0 | AH60: 0 | AJ60: 0
B61: 47 | C61: 2027-12-04 | D61: 30 | E61: 0.0995 | F61: 1.009091667 | G61: 1.538570946 | H61: 0.6499537788 | I61: FALSE | J61: 1 | K61: 0.6499537788 | L61: 0 | M61: 0 | N61: 0 | O61: 0 | P61: 399 | Q61: 63.84 | R61: 0 | S61: 0 | T61: 0 | U61: 84.48275862 | V61: 13.51724138 | W61: 5.496232 | X61: 0.87939712 | Y61: 567.2156291 | Z61: 0.0995 | AA61: 0 | AB61: 0 | AC61: 0 | AD61: 0 | AE61: 0 | AF61: 0 | AG61: ='Tabla Fijo'!E55+'Tabla Fijo'!H55 -> 0 | AH61: 0 | AJ61: 0
B62: 48 | C62: 2028-01-04 | D62: 31 | E62: 0.0995 | F62: 1.009368056 | G62: 1.552984364 | H62: 0.6439214865 | I62: TRUE | J62: 1 | K62: 0.6439214865 | L62: 0 | M62: 0 | N62: 0 | O62: 0 | P62: 399 | Q62: 63.84 | R62: 0 | S62: 0 | T62: 0 | U62: 84.48275862 | V62: 13.51724138 | W62: 5.496232 | X62: 0.87939712 | Y62: 567.2156291 | Z62: 0.0995 | AA62: 0 | AB62: 0 | AC62: 0 | AD62: 0 | AE62: 0 | AF62: 0 | AG62: ='Tabla Fijo'!E56+'Tabla Fijo'!H56 -> 0 | AH62: 0 | AJ62: 0
B63: 49 | C63: 2028-02-04 | D63: 31 | E63: 0.0995 | F63: 1.009368056 | G63: 1.567532807 | H63: 0.6379451806 | I63: FALSE | J63: 1 | K63: 0.6379451806 | L63: 0 | M63: 0 | N63: 0 | O63: 0 | P63: 399 | Q63: 63.84 | R63: 0 | S63: 0 | T63: 0 | U63: 84.48275862 | V63: 13.51724138 | W63: 5.496232 | X63: 0.87939712 | Y63: 567.2156291 | Z63: 0.0995 | AA63: 0 | AB63: 0 | AC63: 0 | AD63: 0 | AE63: 0 | AF63: 0 | AG63: ='Tabla Fijo'!E57+'Tabla Fijo'!H57 -> 0 | AH63: 0 | AJ63: 0
B64: 50 | C64: 2028-03-04 | D64: 29 | E64: 0.0995 | F64: 1.008815278 | G64: 1.581351045 | H64: 0.6323706576 | I64: FALSE | J64: 1 | K64: 0.6323706576 | L64: 0 | M64: 0 | N64: 0 | O64: 0 | P64: 399 | Q64: 63.84 | R64: 0 | S64: 0 | T64: 0 | U64: 84.48275862 | V64: 13.51724138 | W64: 5.496232 | X64: 0.87939712 | Y64: 567.2156291 | Z64: 0.0995 | AA64: 0 | AB64: 0 | AC64: 0 | AD64: 0 | AE64: 0 | AF64: 0 | AG64: ='Tabla Fijo'!E58+'Tabla Fijo'!H58 -> 0 | AH64: 0 | AJ64: 0
B65: 51 | C65: 2028-04-04 | D65: 31 | E65: 0.0995 | F65: 1.009368056 | G65: 1.596165229 | H65: 0.6265015562 | I65: FALSE | J65: 1 | K65: 0.6265015562 | L65: 0 | M65: 0 | N65: 0 | O65: 0 | P65: 399 | Q65: 63.84 | R65: 0 | S65: 0 | T65: 0 | U65: 84.48275862 | V65: 13.51724138 | W65: 5.496232 | X65: 0.87939712 | Y65: 567.2156291 | Z65: 0.0995 | AA65: 0 | AB65: 0 | AC65: 0 | AD65: 0 | AE65: 0 | AF65: 0 | AG65: ='Tabla Fijo'!E59+'Tabla Fijo'!H59 -> 0 | AH65: 0 | AJ65: 0
B66: 52 | C66: 2028-05-04 | D66: 30 | E66: 0.0995 | F66: 1.009091667 | G66: 1.610677031 | H66: 0.620856932 | I66: FALSE | J66: 1 | K66: 0.620856932 | L66: 0 | M66: 0 | N66: 0 | O66: 0 | P66: 399 | Q66: 63.84 | R66: 0 | S66: 0 | T66: 0 | U66: 84.48275862 | V66: 13.51724138 | W66: 5.496232 | X66: 0.87939712 | Y66: 567.2156291 | Z66: 0.0995 | AA66: 0 | AB66: 0 | AC66: 0 | AD66: 0 | AE66: 0 | AF66: 0 | AG66: ='Tabla Fijo'!E60+'Tabla Fijo'!H60 -> 0 | AH66: 0 | AJ66: 0
B67: 53 | C67: 2028-06-04 | D67: 31 | E67: 0.0995 | F67: 1.009368056 | G67: 1.625765943 | H67: 0.6150946907 | I67: FALSE | J67: 1 | K67: 0.6150946907 | L67: 0 | M67: 0 | N67: 0 | O67: 0 | P67: 399 | Q67: 63.84 | R67: 0 | S67: 0 | T67: 0 | U67: 84.48275862 | V67: 13.51724138 | W67: 5.496232 | X67: 0.87939712 | Y67: 567.2156291 | Z67: 0.0995 | AA67: 0 | AB67: 0 | AC67: 0 | AD67: 0 | AE67: 0 | AF67: 0 | AG67: ='Tabla Fijo'!E61+'Tabla Fijo'!H61 -> 0 | AH67: 0 | AJ67: 0
B68: 54 | C68: 2028-07-04 | D68: 30 | E68: 0.0995 | F68: 1.009091667 | G68: 1.640546865 | H68: 0.6095528395 | I68: FALSE | J68: 1 | K68: 0.6095528395 | L68: 0 | M68: 0 | N68: 0 | O68: 0 | P68: 399 | Q68: 63.84 | R68: 0 | S68: 0 | T68: 0 | U68: 84.48275862 | V68: 13.51724138 | W68: 5.496232 | X68: 0.87939712 | Y68: 567.2156291 | Z68: 0.0995 | AA68: 0 | AB68: 0 | AC68: 0 | AD68: 0 | AE68: 0 | AF68: 0 | AG68: ='Tabla Fijo'!E62+'Tabla Fijo'!H62 -> 0 | AH68: 0 | AJ68: 0
B69: 55 | C69: 2028-08-04 | D69: 31 | E69: 0.0995 | F69: 1.009368056 | G69: 1.655915599 | H69: 0.6038955128 | I69: FALSE | J69: 1 | K69: 0.6038955128 | L69: 0 | M69: 0 | N69: 0 | O69: 0 | P69: 399 | Q69: 63.84 | R69: 0 | S69: 0 | T69: 0 | U69: 84.48275862 | V69: 13.51724138 | W69: 5.496232 | X69: 0.87939712 | Y69: 567.2156291 | Z69: 0.0995 | AA69: 0 | AB69: 0 | AC69: 0 | AD69: 0 | AE69: 0 | AF69: 0 | AG69: ='Tabla Fijo'!E63+'Tabla Fijo'!H63 -> 0 | AH69: 0 | AJ69: 0
B70: 56 | C70: 2028-09-04 | D70: 31 | E70: 0.0995 | F70: 1.009368056 | G70: 1.671428309 | H70: 0.5982906923 | I70: FALSE | J70: 1 | K70: 0.5982906923 | L70: 0 | M70: 0 | N70: 0 | O70: 0 | P70: 399 | Q70: 63.84 | R70: 0 | S70: 0 | T70: 0 | U70: 84.48275862 | V70: 13.51724138 | W70: 5.496232 | X70: 0.87939712 | Y70: 567.2156291 | Z70: 0.0995 | AA70: 0 | AB70: 0 | AC70: 0 | AD70: 0 | AE70: 0 | AF70: 0 | AG70: ='Tabla Fijo'!E64+'Tabla Fijo'!H64 -> 0 | AH70: 0 | AJ70: 0
B71: 57 | C71: 2028-10-04 | D71: 30 | E71: 0.0995 | F71: 1.009091667 | G71: 1.686624378 | H71: 0.592900241 | I71: FALSE | J71: 1 | K71: 0.592900241 | L71: 0 | M71: 0 | N71: 0 | O71: 0 | P71: 399 | Q71: 63.84 | R71: 0 | S71: 0 | T71: 0 | U71: 84.48275862 | V71: 13.51724138 | W71: 5.496232 | X71: 0.87939712 | Y71: 567.2156291 | Z71: 0.0995 | AA71: 0 | AB71: 0 | AC71: 0 | AD71: 0 | AE71: 0 | AF71: 0 | AG71: ='Tabla Fijo'!E65+'Tabla Fijo'!H65 -> 0 | AH71: 0 | AJ71: 0
B72: 58 | C72: 2028-11-04 | D72: 31 | E72: 0.0995 | F72: 1.009368056 | G72: 1.702424769 | H72: 0.5873974689 | I72: FALSE | J72: 1 | K72: 0.5873974689 | L72: 0 | M72: 0 | N72: 0 | O72: 0 | P72: 399 | Q72: 63.84 | R72: 0 | S72: 0 | T72: 0 | U72: 84.48275862 | V72: 13.51724138 | W72: 5.496232 | X72: 0.87939712 | Y72: 567.2156291 | Z72: 0.0995 | AA72: 0 | AB72: 0 | AC72: 0 | AD72: 0 | AE72: 0 | AF72: 0 | AG72: ='Tabla Fijo'!E66+'Tabla Fijo'!H66 -> 0 | AH72: 0 | AJ72: 0
B73: 59 | C73: 2028-12-04 | D73: 30 | E73: 0.0995 | F73: 1.009091667 | G73: 1.717902647 | H73: 0.5821051628 | I73: FALSE | J73: 1 | K73: 0.5821051628 | L73: 0 | M73: 0 | N73: 0 | O73: 0 | P73: 399 | Q73: 63.84 | R73: 0 | S73: 0 | T73: 0 | U73: 84.48275862 | V73: 13.51724138 | W73: 5.496232 | X73: 0.87939712 | Y73: 567.2156291 | Z73: 0.0995 | AA73: 0 | AB73: 0 | AC73: 0 | AD73: 0 | AE73: 0 | AF73: 0 | AG73: ='Tabla Fijo'!E67+'Tabla Fijo'!H67 -> 0 | AH73: 0 | AJ73: 0
B74: 60 | C74: 2029-01-04 | D74: 31 | E74: 0.0995 | F74: 1.009368056 | G74: 1.733996055 | H74: 0.5767025809 | I74: TRUE | J74: 1 | K74: 0.5767025809 | L74: 0 | M74: 0 | N74: 0 | O74: 0 | P74: 399 | Q74: 63.84 | R74: 0 | S74: 0 | T74: 0 | U74: 84.48275862 | V74: 13.51724138 | W74: 5.496232 | X74: 0.87939712 | Y74: 567.2156291 | Z74: 0.0995 | AA74: 0 | AB74: 0 | AC74: 0 | AD74: 0 | AE74: 0 | AF74: 0 | AG74: ='Tabla Fijo'!E68+'Tabla Fijo'!H68 -> 0 | AH74: 0 | AJ74: 0
B75: 61 | C75: 2029-02-04 | D75: 31 | E75: 0.0995 | F75: 1.009368056 | G75: 1.750240226 | H75: 0.5713501411 | I75: FALSE | J75: 1 | K75: 0.5713501411 | L75: 0 | M75: 0 | N75: 0 | O75: 0 | P75: 399 | Q75: 63.84 | R75: 0 | S75: 0 | T75: 0 | U75: 84.48275862 | V75: 13.51724138 | W75: 5.496232 | X75: 0.87939712 | Y75: 567.2156291 | Z75: 0.0995 | AA75: 0 | AB75: 0 | AC75: 0 | AD75: 0 | AE75: 0 | AF75: 0 | AG75: ='Tabla Fijo'!E69+'Tabla Fijo'!H69 -> 0 | AH75: 0 | AJ75: 0
B76: 62 | C76: 2029-03-04 | D76: 28 | E76: 0.0995 | F76: 1.008538889 | G76: 1.765185333 | H76: 0.5665127516 | I76: FALSE | J76: 1 | K76: 0.5665127516 | L76: 0 | M76: 0 | N76: 0 | O76: 0 | P76: 399 | Q76: 63.84 | R76: 0 | S76: 0 | T76: 0 | U76: 84.48275862 | V76: 13.51724138 | W76: 5.496232 | X76: 0.87939712 | Y76: 567.2156291 | Z76: 0.0995 | AA76: 0 | AB76: 0 | AC76: 0 | AD76: 0 | AE76: 0 | AF76: 0 | AG76: ='Tabla Fijo'!E70+'Tabla Fijo'!H70 -> 0 | AH76: 0 | AJ76: 0
B77: 63 | C77: 2029-04-04 | D77: 31 | E77: 0.0995 | F77: 1.009368056 | G77: 1.781721687 | H77: 0.5612548847 | I77: FALSE | J77: 1 | K77: 0.5612548847 | L77: 0 | M77: 0 | N77: 0 | O77: 0 | P77: 399 | Q77: 63.84 | R77: 0 | S77: 0 | T77: 0 | U77: 84.48275862 | V77: 13.51724138 | W77: 5.496232 | X77: 0.87939712 | Y77: 567.2156291 | Z77: 0.0995 | AA77: 0 | AB77: 0 | AC77: 0 | AD77: 0 | AE77: 0 | AF77: 0 | AG77: ='Tabla Fijo'!E71+'Tabla Fijo'!H71 -> 0 | AH77: 0 | AJ77: 0
B78: 64 | C78: 2029-05-04 | D78: 30 | E78: =IF(B78=0,TASA,IF(B78=MESES_INC_TASA,E77+INCREMENTO_TASA,E77)) -> 0.0995 | F78: =1 + D78 * E78 / 360 + FACTOR_SEG_DEUD -> 1.009091667 | G78: 1.797920507 | H78: 0.5561981168 | I78: =MOD(B78, MESES_INC)=0 -> FALSE | J78: 1 | K78: =H78*J78 -> 0.5561981168 | L78: =CUOTA_INIT*J78 -> 0 | M78: 0 | N78: 0 | O78: =M78 * D78 * E78 /360 -> 0 | P78: =COMISION_AMORT -> 399 | Q78: =P78*IVA -> 63.84 | R78: =SEGURO_DAÑOS_MENS -> 0 | S78: =R78*IVA -> 0 | T78: =M78 * FACTOR_SEG_DEUD -> 0 | U78: =SEGURO_INTERIORES -> 84.48275862 | V78: =U78*IVA -> 13.51724138 | W78: =SUM(N78:V78) * FACTOR_SEG_DESEMPLEO -> 5.496232 | X78: =W78*IVA -> 0.87939712 | Y78: =IF(B78>=PLAZO, 0, SUM(N78:X78)) -> 567.2156291 | Z78: =ESQUEMA -> 0.0995 | AA78: =IF(B78=0,TOTAL_FINANCIADO, MAX(ROUND(AA77-N77-AF77-AG77,2), 0)) -> 0 | AB78: =MIN(AA78,N78) -> 0 | AC78: =AA78 * D78 * Z78 /360 -> 0 | AD78: =AA78 * FACTOR_SEG_DEUD -> 0 | AE78: =IF(AA78>0, AB78+AC78+AD78+P78+Q78+R78+S78+U78+V78+W78+X78, 0) -> 0 | AF78: =IF(ACCION_EXCEDENTE_PP="MENOS PLAZO", IF(AA78>N78, ROUND(Y78-AE78, 2), 0), 0) -> 0 | AG78: ='Tabla Fijo'!E72+'Tabla Fijo'!H72 -> 0 | AH78: 0 | AJ78: =IF(AA78> 0,AB78+AC78+AD78+P78+R78+U78+W78, 0) -> 0
B79: 65 | C79: =IF(B79=0,FECHA_1ER_PAGO,DATE(YEAR(C78),MONTH(C78)+1,4)) -> 2029-06-04 | D79: =IF(B79=0,C79-C71+1, C79-C78) -> 31 | E79: 0.0995 | F79: 1.009368056 | G79: =IF(B79 = 0, 0, IF(G78=0, F79, G78 * F79 )) -> 1.814763526 | H79: =IF(G79=0, 0, 1/G79) -> 0.5510359811 | I79: FALSE | J79: =IF(B79=0, 1, IF(I79,J78*(1+INCREMENTO),J78)) -> 1 | K79: 0.5510359811 | L79: 0 | M79: =IF(B79=0,TOTAL_FINANCIADO, M78-N78) -> 0 | N79: =IF(B79=0, 0, L79-O79-T79) -> 0 | O79: 0 | P79: 399 | Q79: 63.84 | R79: 0 | S79: 0 | T79: 0 | U79: 84.48275862 | V79: 13.51724138 | W79: 5.496232 | X79: 0.87939712 | Y79: 567.2156291 | Z79: 0.0995 | AA79: 0 | AB79: 0 | AC79: 0 | AD79: 0 | AE79: 0 | AF79: 0 | AG79: ='Tabla Fijo'!E73+'Tabla Fijo'!H73 -> 0 | AH79: =AE79+AF79 -> 0 | AJ79: 0
B80: 66 | C80: 2029-07-04 | D80: 30 | E80: 0.0995 | F80: 1.009091667 | G80: 1.831262751 | H80: 0.5460712831 | I80: FALSE | J80: 1 | K80: 0.5460712831 | L80: 0 | M80: 0 | N80: 0 | O80: 0 | P80: 399 | Q80: 63.84 | R80: 0 | S80: 0 | T80: 0 | U80: 84.48275862 | V80: 13.51724138 | W80: 5.496232 | X80: 0.87939712 | Y80: 567.2156291 | Z80: 0.0995 | AA80: 0 | AB80: 0 | AC80: 0 | AD80: 0 | AE80: 0 | AF80: 0 | AG80: ='Tabla Fijo'!E74+'Tabla Fijo'!H74 -> 0 | AH80: 0 | AJ80: 0
B81: 67 | C81: 2029-08-04 | D81: 31 | E81: 0.0995 | F81: 1.009368056 | G81: 1.848418122 | H81: 0.5410031356 | I81: FALSE | J81: 1 | K81: 0.5410031356 | L81: 0 | M81: 0 | N81: 0 | O81: 0 | P81: 399 | Q81: 63.84 | R81: 0 | S81: 0 | T81: 0 | U81: 84.48275862 | V81: 13.51724138 | W81: 5.496232 | X81: 0.87939712 | Y81: 567.2156291 | Z81: 0.0995 | AA81: 0 | AB81: 0 | AC81: 0 | AD81: 0 | AE81: 0 | AF81: 0 | AG81: ='Tabla Fijo'!E75+'Tabla Fijo'!H75 -> 0 | AH81: 0 | AJ81: 0
B82: 68 | C82: 2029-09-04 | D82: 31 | E82: 0.0995 | F82: 1.009368056 | G82: 1.865734206 | H82: 0.5359820262 | I82: FALSE | J82: 1 | K82: 0.5359820262 | L82: 0 | M82: 0 | N82: 0 | O82: 0 | P82: 399 | Q82: 63.84 | R82: 0 | S82: 0 | T82: 0 | U82: 84.48275862 | V82: 13.51724138 | W82: 5.496232 | X82: 0.87939712 | Y82: 567.2156291 | Z82: 0.0995 | AA82: 0 | AB82: 0 | AC82: 0 | AD82: 0 | AE82: 0 | AF82: 0 | AG82: ='Tabla Fijo'!E76+'Tabla Fijo'!H76 -> 0 | AH82: 0 | AJ82: 0
B83: 69 | C83: 2029-10-04 | D83: 30 | E83: 0.0995 | F83: 1.009091667 | G83: 1.882696839 | H83: 0.5311529606 | I83: FALSE | J83: 1 | K83: 0.5311529606 | L83: 0 | M83: 0 | N83: 0 | O83: 0 | P83: 399 | Q83: 63.84 | R83: 0 | S83: 0 | T83: 0 | U83: 84.48275862 | V83: 13.51724138 | W83: 5.496232 | X83: 0.87939712 | Y83: 567.2156291 | Z83: 0.0995 | AA83: 0 | AB83: 0 | AC83: 0 | AD83: 0 | AE83: 0 | AF83: 0 | AG83: ='Tabla Fijo'!E77+'Tabla Fijo'!H77 -> 0 | AH83: 0 | AJ83: 0
B84: 70 | C84: 2029-11-04 | D84: 31 | E84: 0.0995 | F84: 1.009368056 | G84: 1.900334048 | H84: 0.5262232717 | I84: FALSE | J84: 1 | K84: 0.5262232717 | L84: 0 | M84: 0 | N84: 0 | O84: 0 | P84: 399 | Q84: 63.84 | R84: 0 | S84: 0 | T84: 0 | U84: 84.48275862 | V84: 13.51724138 | W84: 5.496232 | X84: 0.87939712 | Y84: 567.2156291 | Z84: 0.0995 | AA84: 0 | AB84: 0 | AC84: 0 | AD84: 0 | AE84: 0 | AF84: 0 | AG84: ='Tabla Fijo'!E78+'Tabla Fijo'!H78 -> 0 | AH84: 0 | AJ84: 0
B85: 71 | C85: 2029-12-04 | D85: 30 | E85: 0.0995 | F85: 1.009091667 | G85: 1.917611252 | H85: 0.52148213 | I85: FALSE | J85: 1 | K85: 0.52148213 | L85: 0 | M85: 0 | N85: 0 | O85: 0 | P85: 399 | Q85: 63.84 | R85: 0 | S85: 0 | T85: 0 | U85: 84.48275862 | V85: 13.51724138 | W85: 5.496232 | X85: 0.87939712 | Y85: 567.2156291 | Z85: 0.0995 | AA85: 0 | AB85: 0 | AC85: 0 | AD85: 0 | AE85: 0 | AF85: 0 | AG85: ='Tabla Fijo'!E79+'Tabla Fijo'!H79 -> 0 | AH85: 0 | AJ85: 0
B86: 72 | C86: 2030-01-04 | D86: 31 | E86: 0.0995 | F86: 1.009368056 | G86: 1.93557554 | H86: 0.5166421972 | I86: TRUE | J86: 1 | K86: 0.5166421972 | L86: 0 | M86: 0 | N86: 0 | O86: 0 | P86: 399 | Q86: 63.84 | R86: 0 | S86: 0 | T86: 0 | U86: 84.48275862 | V86: 13.51724138 | W86: 5.496232 | X86: 0.87939712 | Y86: 567.2156291 | Z86: 0.0995 | AA86: 0 | AB86: 0 | AC86: 0 | AD86: 0 | AE86: 0 | AF86: 0 | AG86: ='Tabla Fijo'!E80+'Tabla Fijo'!H80 -> 0 | AH86: 0 | AJ86: 0
B87: 73 | C87: 2030-02-04 | D87: 31 | E87: 0.0995 | F87: 1.009368056 | G87: 1.953708119 | H87: 0.5118471844 | I87: FALSE | J87: 1 | K87: 0.5118471844 | L87: 0 | M87: 0 | N87: 0 | O87: 0 | P87: 399 | Q87: 63.84 | R87: 0 | S87: 0 | T87: 0 | U87: 84.48275862 | V87: 13.51724138 | W87: 5.496232 | X87: 0.87939712 | Y87: 567.2156291 | Z87: 0.0995 | AA87: 0 | AB87: 0 | AC87: 0 | AD87: 0 | AE87: 0 | AF87: 0 | AG87: ='Tabla Fijo'!E81+'Tabla Fijo'!H81 -> 0 | AH87: 0 | AJ87: 0
B88: 74 | C88: 2030-03-04 | D88: 28 | E88: 0.0995 | F88: 1.008538889 | G88: 1.970390616 | H88: 0.5075135823 | I88: FALSE | J88: 1 | K88: 0.5075135823 | L88: 0 | M88: 0 | N88: 0 | O88: 0 | P88: 399 | Q88: 63.84 | R88: 0 | S88: 0 | T88: 0 | U88: 84.48275862 | V88: 13.51724138 | W88: 5.496232 | X88: 0.87939712 | Y88: 567.2156291 | Z88: 0.0995 | AA88: 0 | AB88: 0 | AC88: 0 | AD88: 0 | AE88: 0 | AF88: 0 | AG88: ='Tabla Fijo'!E82+'Tabla Fijo'!H82 -> 0 | AH88: 0 | AJ88: 0
B89: 75 | C89: 2030-04-04 | D89: 31 | E89: 0.0995 | F89: 1.009368056 | G89: 1.988849345 | H89: 0.5028032931 | I89: FALSE | J89: 1 | K89: 0.5028032931 | L89: 0 | M89: 0 | N89: 0 | O89: 0 | P89: 399 | Q89: 63.84 | R89: 0 | S89: 0 | T89: 0 | U89: 84.48275862 | V89: 13.51724138 | W89: 5.496232 | X89: 0.87939712 | Y89: 567.2156291 | Z89: 0.0995 | AA89: 0 | AB89: 0 | AC89: 0 | AD89: 0 | AE89: 0 | AF89: 0 | AG89: ='Tabla Fijo'!E83+'Tabla Fijo'!H83 -> 0 | AH89: 0 | AJ89: 0
B90: 76 | C90: 2030-05-04 | D90: 30 | E90: 0.0995 | F90: 1.009091667 | G90: 2.0069313 | H90: 0.4982731596 | I90: FALSE | J90: 1 | K90: 0.4982731596 | L90: 0 | M90: 0 | N90: 0 | O90: 0 | P90: 399 | Q90: 63.84 | R90: 0 | S90: 0 | T90: 0 | U90: 84.48275862 | V90: 13.51724138 | W90: 5.496232 | X90: 0.87939712 | Y90: 567.2156291 | Z90: 0.0995 | AA90: 0 | AB90: 0 | AC90: 0 | AD90: 0 | AE90: 0 | AF90: 0 | AG90: ='Tabla Fijo'!E84+'Tabla Fijo'!H84 -> 0 | AH90: 0 | AJ90: 0
B91: 77 | C91: 2030-06-04 | D91: 31 | E91: 0.0995 | F91: 1.009368056 | G91: 2.025732344 | H91: 0.4936486318 | I91: FALSE | J91: 1 | K91: 0.4936486318 | L91: 0 | M91: 0 | N91: 0 | O91: 0 | P91: 399 | Q91: 63.84 | R91: 0 | S91: 0 | T91: 0 | U91: 84.48275862 | V91: 13.51724138 | W91: 5.496232 | X91: 0.87939712 | Y91: 567.2156291 | Z91: 0.0995 | AA91: 0 | AB91: 0 | AC91: 0 | AD91: 0 | AE91: 0 | AF91: 0 | AG91: ='Tabla Fijo'!E85+'Tabla Fijo'!H85 -> 0 | AH91: 0 | AJ91: 0
B92: 78 | C92: 2030-07-04 | D92: 30 | E92: 0.0995 | F92: 1.009091667 | G92: 2.044149627 | H92: 0.4892009796 | I92: FALSE | J92: 1 | K92: 0.4892009796 | L92: 0 | M92: 0 | N92: 0 | O92: 0 | P92: 399 | Q92: 63.84 | R92: 0 | S92: 0 | T92: 0 | U92: 84.48275862 | V92: 13.51724138 | W92: 5.496232 | X92: 0.87939712 | Y92: 567.2156291 | Z92: 0.0995 | AA92: 0 | AB92: 0 | AC92: 0 | AD92: 0 | AE92: 0 | AF92: 0 | AG92: ='Tabla Fijo'!E86+'Tabla Fijo'!H86 -> 0 | AH92: 0 | AJ92: 0
B93: 79 | C93: 2030-08-04 | D93: 31 | E93: 0.0995 | F93: 1.009368056 | G93: 2.063299334 | H93: 0.4846606516 | I93: FALSE | J93: 1 | K93: 0.4846606516 | L93: 0 | M93: 0 | N93: 0 | O93: 0 | P93: 399 | Q93: 63.84 | R93: 0 | S93: 0 | T93: 0 | U93: 84.48275862 | V93: 13.51724138 | W93: 5.496232 | X93: 0.87939712 | Y93: 567.2156291 | Z93: 0.0995 | AA93: 0 | AB93: 0 | AC93: 0 | AD93: 0 | AE93: 0 | AF93: 0 | AG93: ='Tabla Fijo'!E87+'Tabla Fijo'!H87 -> 0 | AH93: 0 | AJ93: 0
B94: 80 | C94: 2030-09-04 | D94: 31 | E94: 0.0995 | F94: 1.009368056 | G94: 2.082628437 | H94: 0.480162463 | I94: FALSE | J94: 1 | K94: 0.480162463 | L94: 0 | M94: 0 | N94: 0 | O94: 0 | P94: 399 | Q94: 63.84 | R94: 0 | S94: 0 | T94: 0 | U94: 84.48275862 | V94: 13.51724138 | W94: 5.496232 | X94: 0.87939712 | Y94: 567.2156291 | Z94: 0.0995 | AA94: 0 | AB94: 0 | AC94: 0 | AD94: 0 | AE94: 0 | AF94: 0 | AG94: ='Tabla Fijo'!E88+'Tabla Fijo'!H88 -> 0 | AH94: 0 | AJ94: 0
B95: 81 | C95: 2030-10-04 | D95: 30 | E95: 0.0995 | F95: 1.009091667 | G95: 2.101563001 | H95: 0.4758363178 | I95: FALSE | J95: 1 | K95: 0.4758363178 | L95: 0 | M95: 0 | N95: 0 | O95: 0 | P95: 399 | Q95: 63.84 | R95: 0 | S95: 0 | T95: 0 | U95: 84.48275862 | V95: 13.51724138 | W95: 5.496232 | X95: 0.87939712 | Y95: 567.2156291 | Z95: 0.0995 | AA95: 0 | AB95: 0 | AC95: 0 | AD95: 0 | AE95: 0 | AF95: 0 | AG95: ='Tabla Fijo'!E89+'Tabla Fijo'!H89 -> 0 | AH95: 0 | AJ95: 0
B96: 82 | C96: 2030-11-04 | D96: 31 | E96: 0.0995 | F96: 1.009368056 | G96: 2.12125056 | H96: 0.4714200288 | I96: FALSE | J96: 1 | K96: 0.4714200288 | L96: 0 | M96: 0 | N96: 0 | O96: 0 | P96: 399 | Q96: 63.84 | R96: 0 | S96: 0 | T96: 0 | U96: 84.48275862 | V96: 13.51724138 | W96: 5.496232 | X96: 0.87939712 | Y96: 567.2156291 | Z96: 0.0995 | AA96: 0 | AB96: 0 | AC96: 0 | AD96: 0 | AE96: 0 | AF96: 0 | AG96: ='Tabla Fijo'!E90+'Tabla Fijo'!H90 -> 0 | AH96: 0 | AJ96: 0
B97: 83 | C97: 2030-12-04 | D97: 30 | E97: 0.0995 | F97: 1.009091667 | G97: 2.140536263 | H97: 0.4671726508 | I97: FALSE | J97: 1 | K97: 0.4671726508 | L97: 0 | M97: 0 | N97: 0 | O97: 0 | P97: 399 | Q97: 63.84 | R97: 0 | S97: 0 | T97: 0 | U97: 84.48275862 | V97: 13.51724138 | W97: 5.496232 | X97: 0.87939712 | Y97: 567.2156291 | Z97: 0.0995 | AA97: 0 | AB97: 0 | AC97: 0 | AD97: 0 | AE97: 0 | AF97: 0 | AG97: ='Tabla Fijo'!E91+'Tabla Fijo'!H91 -> 0 | AH97: 0 | AJ97: 0
B98: 84 | C98: 2031-01-04 | D98: 31 | E98: 0.0995 | F98: 1.009368056 | G98: 2.160588925 | H98: 0.4628367702 | I98: TRUE | J98: 1 | K98: 0.4628367702 | L98: 0 | M98: 0 | N98: 0 | O98: 0 | P98: 399 | Q98: 63.84 | R98: 0 | S98: 0 | T98: 0 | U98: 84.48275862 | V98: 13.51724138 | W98: 5.496232 | X98: 0.87939712 | Y98: 567.2156291 | Z98: 0.0995 | AA98: 0 | AB98: 0 | AC98: 0 | AD98: 0 | AE98: 0 | AF98: 0 | AG98: ='Tabla Fijo'!E92+'Tabla Fijo'!H92 -> 0 | AH98: 0 | AJ98: 0
B99: 85 | C99: 2031-02-04 | D99: 31 | E99: 0.0995 | F99: 1.009368056 | G99: 2.180829442 | H99: 0.4585411314 | I99: FALSE | J99: 1 | K99: 0.4585411314 | L99: 0 | M99: 0 | N99: 0 | O99: 0 | P99: 399 | Q99: 63.84 | R99: 0 | S99: 0 | T99: 0 | U99: 84.48275862 | V99: 13.51724138 | W99: 5.496232 | X99: 0.87939712 | Y99: 567.2156291 | Z99: 0.0995 | AA99: 0 | AB99: 0 | AC99: 0 | AD99: 0 | AE99: 0 | AF99: 0 | AG99: ='Tabla Fijo'!E93+'Tabla Fijo'!H93 -> 0 | AH99: 0 | AJ99: 0
B100: 86 | C100: 2031-03-04 | D100: 28 | E100: 0.0995 | F100: 1.008538889 | G100: 2.199451303 | H100: 0.45465885 | I100: FALSE | J100: 1 | K100: 0.45465885 | L100: 0 | M100: 0 | N100: 0 | O100: 0 | P100: 399 | Q100: 63.84 | R100: 0 | S100: 0 | T100: 0 | U100: 84.48275862 | V100: 13.51724138 | W100: 5.496232 | X100: 0.87939712 | Y100: 567.2156291 | Z100: 0.0995 | AA100: 0 | AB100: 0 | AC100: 0 | AD100: 0 | AE100: 0 | AF100: 0 | AG100: ='Tabla Fijo'!E94+'Tabla Fijo'!H94 -> 0 | AH100: 0 | AJ100: 0
B101: 87 | C101: 2031-04-04 | D101: 31 | E101: 0.0995 | F101: 1.009368056 | G101: 2.220055885 | H101: 0.4504391114 | I101: FALSE | J101: 1 | K101: 0.4504391114 | L101: 0 | M101: 0 | N101: 0 | O101: 0 | P101: 399 | Q101: 63.84 | R101: 0 | S101: 0 | T101: 0 | U101: 84.48275862 | V101: 13.51724138 | W101: 5.496232 | X101: 0.87939712 | Y101: 567.2156291 | Z101: 0.0995 | AA101: 0 | AB101: 0 | AC101: 0 | AD101: 0 | AE101: 0 | AF101: 0 | AG101: ='Tabla Fijo'!E95+'Tabla Fijo'!H95 -> 0 | AH101: 0 | AJ101: 0
B102: 88 | C102: 2031-05-04 | D102: 30 | E102: 0.0995 | F102: 1.009091667 | G102: 2.240239893 | H102: 0.4463807663 | I102: FALSE | J102: 1 | K102: 0.4463807663 | L102: 0 | M102: 0 | N102: 0 | O102: 0 | P102: 399 | Q102: 63.84 | R102: 0 | S102: 0 | T102: 0 | U102: 84.48275862 | V102: 13.51724138 | W102: 5.496232 | X102: 0.87939712 | Y102: 567.2156291 | Z102: 0.0995 | AA102: 0 | AB102: 0 | AC102: 0 | AD102: 0 | AE102: 0 | AF102: 0 | AG102: ='Tabla Fijo'!E96+'Tabla Fijo'!H96 -> 0 | AH102: 0 | AJ102: 0
B103: 89 | C103: 2031-06-04 | D103: 31 | E103: 0.0995 | F103: 1.009368056 | G103: 2.261226585 | H103: 0.4422378574 | I103: FALSE | J103: 1 | K103: 0.4422378574 | L103: 0 | M103: 0 | N103: 0 | O103: 0 | P103: 399 | Q103: 63.84 | R103: 0 | S103: 0 | T103: 0 | U103: 84.48275862 | V103: 13.51724138 | W103: 5.496232 | X103: 0.87939712 | Y103: 567.2156291 | Z103: 0.0995 | AA103: 0 | AB103: 0 | AC103: 0 | AD103: 0 | AE103: 0 | AF103: 0 | AG103: ='Tabla Fijo'!E97+'Tabla Fijo'!H97 -> 0 | AH103: 0 | AJ103: 0
B104: 90 | C104: 2031-07-04 | D104: 30 | E104: 0.0995 | F104: 1.009091667 | G104: 2.281784903 | H104: 0.4382534036 | I104: FALSE | J104: 1 | K104: 0.4382534036 | L104: 0 | M104: 0 | N104: 0 | O104: 0 | P104: 399 | Q104: 63.84 | R104: 0 | S104: 0 | T104: 0 | U104: 84.48275862 | V104: 13.51724138 | W104: 5.496232 | X104: 0.87939712 | Y104: 567.2156291 | Z104: 0.0995 | AA104: 0 | AB104: 0 | AC104: 0 | AD104: 0 | AE104: 0 | AF104: 0 | AG104: ='Tabla Fijo'!E98+'Tabla Fijo'!H98 -> 0 | AH104: 0 | AJ104: 0
B105: 91 | C105: 2031-08-04 | D105: 31 | E105: 0.0995 | F105: 1.009368056 | G105: 2.303160791 | H105: 0.4341859257 | I105: FALSE | J105: 1 | K105: 0.4341859257 | L105: 0 | M105: 0 | N105: 0 | O105: 0 | P105: 399 | Q105: 63.84 | R105: 0 | S105: 0 | T105: 0 | U105: 84.48275862 | V105: 13.51724138 | W105: 5.496232 | X105: 0.87939712 | Y105: 567.2156291 | Z105: 0.0995 | AA105: 0 | AB105: 0 | AC105: 0 | AD105: 0 | AE105: 0 | AF105: 0 | AG105: ='Tabla Fijo'!E99+'Tabla Fijo'!H99 -> 0 | AH105: 0 | AJ105: 0
B106: 92 | C106: 2031-09-04 | D106: 31 | E106: 0.0995 | F106: 1.009368056 | G106: 2.324736929 | H106: 0.4301561985 | I106: FALSE | J106: 1 | K106: 0.4301561985 | L106: 0 | M106: 0 | N106: 0 | O106: 0 | P106: 399 | Q106: 63.84 | R106: 0 | S106: 0 | T106: 0 | U106: 84.48275862 | V106: 13.51724138 | W106: 5.496232 | X106: 0.87939712 | Y106: 567.2156291 | Z106: 0.0995 | AA106: 0 | AB106: 0 | AC106: 0 | AD106: 0 | AE106: 0 | AF106: 0 | AG106: ='Tabla Fijo'!E100+'Tabla Fijo'!H100 -> 0 | AH106: 0 | AJ106: 0
B107: 93 | C107: 2031-10-04 | D107: 30 | E107: 0.0995 | F107: 1.009091667 | G107: 2.345872662 | H107: 0.4262805975 | I107: FALSE | J107: 1 | K107: 0.4262805975 | L107: 0 | M107: 0 | N107: 0 | O107: 0 | P107: 399 | Q107: 63.84 | R107: 0 | S107: 0 | T107: 0 | U107: 84.48275862 | V107: 13.51724138 | W107: 5.496232 | X107: 0.87939712 | Y107: 567.2156291 | Z107: 0.0995 | AA107: 0 | AB107: 0 | AC107: 0 | AD107: 0 | AE107: 0 | AF107: 0 | AG107: ='Tabla Fijo'!E101+'Tabla Fijo'!H101 -> 0 | AH107: 0 | AJ107: 0
B108: 94 | C108: 2031-11-04 | D108: 31 | E108: 0.0995 | F108: 1.009368056 | G108: 2.367848928 | H108: 0.4223242405 | I108: FALSE | J108: 1 | K108: 0.4223242405 | L108: 0 | M108: 0 | N108: 0 | O108: 0 | P108: 399 | Q108: 63.84 | R108: 0 | S108: 0 | T108: 0 | U108: 84.48275862 | V108: 13.51724138 | W108: 5.496232 | X108: 0.87939712 | Y108: 567.2156291 | Z108: 0.0995 | AA108: 0 | AB108: 0 | AC108: 0 | AD108: 0 | AE108: 0 | AF108: 0 | AG108: ='Tabla Fijo'!E102+'Tabla Fijo'!H102 -> 0 | AH108: 0 | AJ108: 0
B109: 95 | C109: 2031-12-04 | D109: 30 | E109: 0.0995 | F109: 1.009091667 | G109: 2.389376621 | H109: 0.4185192034 | I109: FALSE | J109: 1 | K109: 0.4185192034 | L109: 0 | M109: 0 | N109: 0 | O109: 0 | P109: 399 | Q109: 63.84 | R109: 0 | S109: 0 | T109: 0 | U109: 84.48275862 | V109: 13.51724138 | W109: 5.496232 | X109: 0.87939712 | Y109: 567.2156291 | Z109: 0.0995 | AA109: 0 | AB109: 0 | AC109: 0 | AD109: 0 | AE109: 0 | AF109: 0 | AG109: ='Tabla Fijo'!E103+'Tabla Fijo'!H103 -> 0 | AH109: 0 | AJ109: 0
B110: 96 | C110: 2032-01-04 | D110: 31 | E110: 0.0995 | F110: 1.009368056 | G110: 2.411760434 | H110: 0.4146348808 | I110: TRUE | J110: 1 | K110: 0.4146348808 | L110: 0 | M110: 0 | N110: 0 | O110: 0 | P110: 399 | Q110: 63.84 | R110: 0 | S110: 0 | T110: 0 | U110: 84.48275862 | V110: 13.51724138 | W110: 5.496232 | X110: 0.87939712 | Y110: 567.2156291 | Z110: 0.0995 | AA110: 0 | AB110: 0 | AC110: 0 | AD110: 0 | AE110: 0 | AF110: 0 | AG110: ='Tabla Fijo'!E104+'Tabla Fijo'!H104 -> 0 | AH110: 0 | AJ110: 0
B111: 97 | C111: 2032-02-04 | D111: 31 | E111: 0.0995 | F111: 1.009368056 | G111: 2.434353939 | H111: 0.410786609 | I111: FALSE | J111: 1 | K111: 0.410786609 | L111: 0 | M111: 0 | N111: 0 | O111: 0 | P111: 399 | Q111: 63.84 | R111: 0 | S111: 0 | T111: 0 | U111: 84.48275862 | V111: 13.51724138 | W111: 5.496232 | X111: 0.87939712 | Y111: 567.2156291 | Z111: 0.0995 | AA111: 0 | AB111: =MIN(AA111,N111) -> 0 | AC111: 0 | AD111: 0 | AE111: 0 | AF111: 0 | AG111: ='Tabla Fijo'!E105+'Tabla Fijo'!H105 -> 0 | AH111: 0 | AJ111: 0
B112: 98 | C112: 2032-03-04 | D112: 29 | E112: 0.0995 | F112: 1.008815278 | G112: 2.455813446 | H112: 0.4071970539 | I112: FALSE | J112: 1 | K112: 0.4071970539 | L112: 0 | M112: 0 | N112: 0 | O112: 0 | P112: 399 | Q112: 63.84 | R112: 0 | S112: 0 | T112: 0 | U112: 84.48275862 | V112: 13.51724138 | W112: 5.496232 | X112: 0.87939712 | Y112: 567.2156291 | Z112: 0.0995 | AA112: 0 | AB112: 0 | AC112: 0 | AD112: 0 | AE112: 0 | AF112: 0 | AG112: ='Tabla Fijo'!E106+'Tabla Fijo'!H106 -> 0 | AH112: 0 | AJ112: 0
B113: 99 | C113: 2032-04-04 | D113: 31 | E113: 0.0995 | F113: 1.009368056 | G113: 2.478819642 | H113: 0.4034178134 | I113: FALSE | J113: 1 | K113: 0.4034178134 | L113: 0 | M113: 0 | N113: 0 | O113: 0 | P113: 399 | Q113: 63.84 | R113: 0 | S113: 0 | T113: 0 | U113: 84.48275862 | V113: 13.51724138 | W113: 5.496232 | X113: 0.87939712 | Y113: 567.2156291 | Z113: 0.0995 | AA113: 0 | AB113: 0 | AC113: 0 | AD113: 0 | AE113: 0 | AF113: 0 | AG113: ='Tabla Fijo'!E107+'Tabla Fijo'!H107 -> 0 | AH113: 0 | AJ113: 0
B114: 100 | C114: 2032-05-04 | D114: 30 | E114: 0.0995 | F114: 1.009091667 | G114: 2.501356244 | H114: 0.3997831186 | I114: FALSE | J114: 1 | K114: 0.3997831186 | L114: 0 | M114: 0 | N114: 0 | O114: 0 | P114: 399 | Q114: 63.84 | R114: 0 | S114: 0 | T114: 0 | U114: 84.48275862 | V114: 13.51724138 | W114: 5.496232 | X114: 0.87939712 | Y114: 567.2156291 | Z114: 0.0995 | AA114: 0 | AB114: 0 | AC114: 0 | AD114: 0 | AE114: 0 | AF114: 0 | AG114: ='Tabla Fijo'!E108+'Tabla Fijo'!H108 -> 0 | AH114: 0 | AJ114: 0
B115: 101 | C115: 2032-06-04 | D115: 31 | E115: 0.0995 | F115: 1.009368056 | G115: 2.524789089 | H115: 0.3960726876 | I115: FALSE | J115: 1 | K115: 0.3960726876 | L115: 0 | M115: 0 | N115: 0 | O115: 0 | P115: 399 | Q115: 63.84 | R115: 0 | S115: 0 | T115: 0 | U115: 84.48275862 | V115: 13.51724138 | W115: 5.496232 | X115: 0.87939712 | Y115: 567.2156291 | Z115: 0.0995 | AA115: 0 | AB115: 0 | AC115: 0 | AD115: 0 | AE115: 0 | AF115: 0 | AG115: ='Tabla Fijo'!E109+'Tabla Fijo'!H109 -> 0 | AH115: 0 | AJ115: 0
B116: 102 | C116: 2032-07-04 | D116: 30 | E116: 0.0995 | F116: 1.009091667 | G116: 2.547743629 | H116: 0.3925041705 | I116: FALSE | J116: 1 | K116: 0.3925041705 | L116: 0 | M116: 0 | N116: 0 | O116: 0 | P116: 399 | Q116: 63.84 | R116: 0 | S116: 0 | T116: 0 | U116: 84.48275862 | V116: 13.51724138 | W116: 5.496232 | X116: 0.87939712 | Y116: 567.2156291 | Z116: 0.0995 | AA116: 0 | AB116: 0 | AC116: 0 | AD116: 0 | AE116: 0 | AF116: 0 | AG116: ='Tabla Fijo'!E110+'Tabla Fijo'!H110 -> 0 | AH116: 0 | AJ116: 0
B117: 103 | C117: 2032-08-04 | D117: 31 | E117: 0.0995 | F117: 1.009368056 | G117: 2.571611033 | H117: 0.3888612963 | I117: FALSE | J117: 1 | K117: 0.3888612963 | L117: 0 | M117: 0 | N117: 0 | O117: 0 | P117: 399 | Q117: 63.84 | R117: 0 | S117: 0 | T117: 0 | U117: 84.48275862 | V117: 13.51724138 | W117: 5.496232 | X117: 0.87939712 | Y117: 567.2156291 | Z117: 0.0995 | AA117: 0 | AB117: 0 | AC117: 0 | AD117: 0 | AE117: 0 | AF117: 0 | AG117: ='Tabla Fijo'!E111+'Tabla Fijo'!H111 -> 0 | AH117: 0 | AJ117: 0
B118: 104 | C118: 2032-09-04 | D118: 31 | E118: 0.0995 | F118: 1.009368056 | G118: 2.595702028 | H118: 0.385252232 | I118: FALSE | J118: 1 | K118: 0.385252232 | L118: 0 | M118: 0 | N118: 0 | O118: 0 | P118: 399 | Q118: 63.84 | R118: 0 | S118: 0 | T118: 0 | U118: 84.48275862 | V118: 13.51724138 | W118: 5.496232 | X118: 0.87939712 | Y118: 567.2156291 | Z118: 0.0995 | AA118: 0 | AB118: 0 | AC118: 0 | AD118: 0 | AE118: 0 | AF118: 0 | AG118: ='Tabla Fijo'!E112+'Tabla Fijo'!H112 -> 0 | AH118: 0 | AJ118: 0
B119: 105 | C119: 2032-10-04 | D119: 30 | E119: 0.0995 | F119: 1.009091667 | G119: 2.619301286 | H119: 0.3817812045 | I119: FALSE | J119: 1 | K119: 0.3817812045 | L119: 0 | M119: 0 | N119: 0 | O119: 0 | P119: 399 | Q119: 63.84 | R119: 0 | S119: 0 | T119: 0 | U119: 84.48275862 | V119: 13.51724138 | W119: 5.496232 | X119: 0.87939712 | Y119: 567.2156291 | Z119: 0.0995 | AA119: 0 | AB119: 0 | AC119: 0 | AD119: 0 | AE119: 0 | AF119: 0 | AG119: ='Tabla Fijo'!E113+'Tabla Fijo'!H113 -> 0 | AH119: 0 | AJ119: 0
B120: 106 | C120: 2032-11-04 | D120: 31 | E120: 0.0995 | F120: 1.009368056 | G120: 2.643839046 | H120: 0.3782378513 | I120: FALSE | J120: 1 | K120: 0.3782378513 | L120: 0 | M120: 0 | N120: 0 | O120: 0 | P120: 399 | Q120: 63.84 | R120: 0 | S120: 0 | T120: 0 | U120: 84.48275862 | V120: 13.51724138 | W120: 5.496232 | X120: 0.87939712 | Y120: 567.2156291 | Z120: 0.0995 | AA120: 0 | AB120: 0 | AC120: 0 | AD120: 0 | AE120: 0 | AF120: 0 | AG120: ='Tabla Fijo'!E114+'Tabla Fijo'!H114 -> 0 | AH120: 0 | AJ120: 0
B121: 107 | C121: 2032-12-04 | D121: 30 | E121: 0.0995 | F121: 1.009091667 | G121: 2.667875949 | H121: 0.3748300217 | I121: FALSE | J121: 1 | K121: 0.3748300217 | L121: 0 | M121: 0 | N121: 0 | O121: 0 | P121: 399 | Q121: 63.84 | R121: 0 | S121: 0 | T121: 0 | U121: 84.48275862 | V121: 13.51724138 | W121: 5.496232 | X121: 0.87939712 | Y121: 567.2156291 | Z121: 0.0995 | AA121: 0 | AB121: 0 | AC121: 0 | AD121: 0 | AE121: 0 | AF121: 0 | AG121: ='Tabla Fijo'!E115+'Tabla Fijo'!H115 -> 0 | AH121: 0 | AJ121: 0
B122: 108 | C122: 2033-01-04 | D122: 31 | E122: 0.0995 | F122: 1.009368056 | G122: 2.692868759 | H122: 0.3713511832 | I122: TRUE | J122: 1 | K122: 0.3713511832 | L122: 0 | M122: 0 | N122: 0 | O122: 0 | P122: 399 | Q122: 63.84 | R122: 0 | S122: 0 | T122: 0 | U122: 84.48275862 | V122: 13.51724138 | W122: 5.496232 | X122: 0.87939712 | Y122: 567.2156291 | Z122: 0.0995 | AA122: 0 | AB122: 0 | AC122: 0 | AD122: 0 | AE122: 0 | AF122: 0 | AG122: ='Tabla Fijo'!E116+'Tabla Fijo'!H116 -> 0 | AH122: 0 | AJ122: 0
B123: 109 | C123: 2033-02-04 | D123: 31 | E123: 0.0995 | F123: 1.009368056 | G123: 2.718095703 | H123: 0.3679046322 | I123: FALSE | J123: 1 | K123: 0.3679046322 | L123: 0 | M123: 0 | N123: 0 | O123: 0 | P123: 399 | Q123: 63.84 | R123: 0 | S123: 0 | T123: 0 | U123: 84.48275862 | V123: 13.51724138 | W123: 5.496232 | X123: 0.87939712 | Y123: 567.2156291 | Z123: 0.0995 | AA123: 0 | AB123: 0 | AC123: 0 | AD123: 0 | AE123: 0 | AF123: 0 | AG123: ='Tabla Fijo'!E117+'Tabla Fijo'!H117 -> 0 | AH123: 0 | AJ123: 0
B124: 110 | C124: 2033-03-04 | D124: 28 | E124: 0.0995 | F124: 1.008538889 | G124: 2.741305221 | H124: 0.3647897332 | I124: FALSE | J124: 1 | K124: 0.3647897332 | L124: 0 | M124: 0 | N124: 0 | O124: 0 | P124: 399 | Q124: 63.84 | R124: 0 | S124: 0 | T124: 0 | U124: 84.48275862 | V124: 13.51724138 | W124: 5.496232 | X124: 0.87939712 | Y124: 567.2156291 | Z124: 0.0995 | AA124: 0 | AB124: 0 | AC124: 0 | AD124: 0 | AE124: 0 | AF124: 0 | AG124: ='Tabla Fijo'!E118+'Tabla Fijo'!H118 -> 0 | AH124: 0 | AJ124: 0
B125: 111 | C125: 2033-04-04 | D125: 31 | E125: 0.0995 | F125: 1.009368056 | G125: 2.76698592 | H125: 0.3614040797 | I125: FALSE | J125: 1 | K125: 0.3614040797 | L125: 0 | M125: 0 | N125: 0 | O125: 0 | P125: 399 | Q125: 63.84 | R125: 0 | S125: 0 | T125: 0 | U125: 84.48275862 | V125: 13.51724138 | W125: 5.496232 | X125: 0.87939712 | Y125: 567.2156291 | Z125: 0.0995 | AA125: 0 | AB125: 0 | AC125: 0 | AD125: 0 | AE125: 0 | AF125: 0 | AG125: ='Tabla Fijo'!E119+'Tabla Fijo'!H119 -> 0 | AH125: 0 | AJ125: 0
B126: 112 | C126: 2033-05-04 | D126: 30 | E126: 0.0995 | F126: 1.009091667 | G126: 2.792142434 | H126: 0.3581479182 | I126: FALSE | J126: 1 | K126: 0.3581479182 | L126: 0 | M126: 0 | N126: 0 | O126: 0 | P126: 399 | Q126: 63.84 | R126: 0 | S126: 0 | T126: 0 | U126: 84.48275862 | V126: 13.51724138 | W126: 5.496232 | X126: 0.87939712 | Y126: 567.2156291 | Z126: 0.0995 | AA126: 0 | AB126: 0 | AC126: 0 | AD126: 0 | AE126: 0 | AF126: 0 | AG126: ='Tabla Fijo'!E120+'Tabla Fijo'!H120 -> 0 | AH126: 0 | AJ126: 0
B127: 113 | C127: 2033-06-04 | D127: 31 | E127: 0.0995 | F127: 1.009368056 | G127: 2.818299379 | H127: 0.3548239081 | I127: FALSE | J127: 1 | K127: 0.3548239081 | L127: 0 | M127: 0 | N127: 0 | O127: 0 | P127: 399 | Q127: 63.84 | R127: 0 | S127: 0 | T127: 0 | U127: 84.48275862 | V127: 13.51724138 | W127: 5.496232 | X127: 0.87939712 | Y127: 567.2156291 | Z127: 0.0995 | AA127: 0 | AB127: 0 | AC127: 0 | AD127: 0 | AE127: 0 | AF127: 0 | AG127: ='Tabla Fijo'!E121+'Tabla Fijo'!H121 -> 0 | AH127: 0 | AJ127: 0
B128: 114 | C128: 2033-07-04 | D128: 30 | E128: 0.0995 | F128: 1.009091667 | G128: 2.843922418 | H128: 0.3516270323 | I128: FALSE | J128: 1 | K128: 0.3516270323 | L128: 0 | M128: 0 | N128: 0 | O128: 0 | P128: 399 | Q128: 63.84 | R128: 0 | S128: 0 | T128: 0 | U128: 84.48275862 | V128: 13.51724138 | W128: 5.496232 | X128: 0.87939712 | Y128: 567.2156291 | Z128: 0.0995 | AA128: 0 | AB128: 0 | AC128: 0 | AD128: 0 | AE128: 0 | AF128: 0 | AG128: ='Tabla Fijo'!E122+'Tabla Fijo'!H122 -> 0 | AH128: 0 | AJ128: 0
B129: 115 | C129: 2033-08-04 | D129: 31 | E129: 0.0995 | F129: 1.009368056 | G129: 2.870564441 | H129: 0.3483635433 | I129: FALSE | J129: 1 | K129: 0.3483635433 | L129: 0 | M129: 0 | N129: 0 | O129: 0 | P129: 399 | Q129: 63.84 | R129: 0 | S129: 0 | T129: 0 | U129: 84.48275862 | V129: 13.51724138 | W129: 5.496232 | X129: 0.87939712 | Y129: 567.2156291 | Z129: 0.0995 | AA129: 0 | AB129: 0 | AC129: 0 | AD129: 0 | AE129: 0 | AF129: 0 | AG129: ='Tabla Fijo'!E123+'Tabla Fijo'!H123 -> 0 | AH129: 0 | AJ129: 0
B130: 116 | C130: 2033-09-04 | D130: 31 | E130: 0.0995 | F130: 1.009368056 | G130: 2.897456048 | H130: 0.3451303431 | I130: FALSE | J130: 1 | K130: 0.3451303431 | L130: 0 | M130: 0 | N130: 0 | O130: 0 | P130: 399 | Q130: 63.84 | R130: 0 | S130: 0 | T130: 0 | U130: 84.48275862 | V130: 13.51724138 | W130: 5.496232 | X130: 0.87939712 | Y130: 567.2156291 | Z130: 0.0995 | AA130: 0 | AB130: 0 | AC130: 0 | AD130: 0 | AE130: 0 | AF130: 0 | AG130: ='Tabla Fijo'!E124+'Tabla Fijo'!H124 -> 0 | AH130: 0 | AJ130: 0
B131: 117 | C131: 2033-10-04 | D131: 30 | E131: 0.0995 | F131: 1.009091667 | G131: 2.923798753 | H131: 0.3420208039 | I131: FALSE | J131: 1 | K131: 0.3420208039 | L131: 0 | M131: 0 | N131: 0 | O131: 0 | P131: 399 | Q131: 63.84 | R131: 0 | S131: 0 | T131: 0 | U131: 84.48275862 | V131: 13.51724138 | W131: 5.496232 | X131: 0.87939712 | Y131: 567.2156291 | Z131: 0.0995 | AA131: 0 | AB131: 0 | AC131: 0 | AD131: 0 | AE131: 0 | AF131: 0 | AG131: ='Tabla Fijo'!E125+'Tabla Fijo'!H125 -> 0 | AH131: 0 | AJ131: 0
B132: 118 | C132: 2033-11-04 | D132: 31 | E132: 0.0995 | F132: 1.009368056 | G132: 2.951189062 | H132: 0.3388464714 | I132: FALSE | J132: 1 | K132: 0.3388464714 | L132: 0 | M132: 0 | N132: 0 | O132: 0 | P132: 399 | Q132: 63.84 | R132: 0 | S132: 0 | T132: 0 | U132: 84.48275862 | V132: 13.51724138 | W132: 5.496232 | X132: 0.87939712 | Y132: 567.2156291 | Z132: 0.0995 | AA132: 0 | AB132: 0 | AC132: 0 | AD132: 0 | AE132: 0 | AF132: 0 | AG132: ='Tabla Fijo'!E126+'Tabla Fijo'!H126 -> 0 | AH132: 0 | AJ132: 0
B133: 119 | C133: 2033-12-04 | D133: 30 | E133: 0.0995 | F133: 1.009091667 | G133: 2.978020289 | H133: 0.3357935484 | I133: FALSE | J133: 1 | K133: 0.3357935484 | L133: 0 | M133: 0 | N133: 0 | O133: 0 | P133: 399 | Q133: 63.84 | R133: 0 | S133: 0 | T133: 0 | U133: 84.48275862 | V133: 13.51724138 | W133: 5.496232 | X133: 0.87939712 | Y133: 567.2156291 | Z133: 0.0995 | AA133: 0 | AB133: 0 | AC133: 0 | AD133: 0 | AE133: 0 | AF133: 0 | AG133: ='Tabla Fijo'!E127+'Tabla Fijo'!H127 -> 0 | AH133: 0 | AJ133: 0
B134: 120 | C134: 2034-01-04 | D134: 31 | E134: 0.0995 | F134: 1.009368056 | G134: 3.005918549 | H134: 0.3326770116 | I134: TRUE | J134: 1 | K134: 0.3326770116 | L134: 0 | M134: 0 | N134: 0 | O134: 0 | P134: 399 | Q134: 63.84 | R134: 0 | S134: 0 | T134: 0 | U134: 84.48275862 | V134: 13.51724138 | W134: 5.496232 | X134: 0.87939712 | Y134: 567.2156291 | Z134: 0.0995 | AA134: 0 | AB134: 0 | AC134: 0 | AD134: 0 | AE134: 0 | AF134: 0 | AG134: ='Tabla Fijo'!E128+'Tabla Fijo'!H128 -> 0 | AH134: 0 | AJ134: 0
B135: 121 | C135: 2034-02-04 | D135: 31 | E135: 0.0995 | F135: 1.009368056 | G135: 3.034078161 | H135: 0.3295893998 | I135: FALSE | J135: 1 | K135: 0.3295893998 | L135: 0 | M135: 0 | N135: 0 | O135: 0 | P135: 399 | Q135: 63.84 | R135: 0 | S135: 0 | T135: 0 | U135: 84.48275862 | V135: 13.51724138 | W135: 5.496232 | X135: 0.87939712 | Y135: 567.2156291 | Z135: 0.0995 | AA135: 0 | AB135: 0 | AC135: 0 | AD135: 0 | AE135: 0 | AF135: 0 | AG135: ='Tabla Fijo'!E129+'Tabla Fijo'!H129 -> 0 | AH135: 0 | AJ135: 0
B136: 122 | C136: 2034-03-04 | D136: 28 | E136: 0.0995 | F136: 1.008538889 | G136: 3.059985817 | H136: 0.3267989003 | I136: FALSE | J136: 1 | K136: 0.3267989003 | L136: 0 | M136: 0 | N136: 0 | O136: 0 | P136: 399 | Q136: 63.84 | R136: 0 | S136: 0 | T136: 0 | U136: 84.48275862 | V136: 13.51724138 | W136: 5.496232 | X136: 0.87939712 | Y136: 567.2156291 | Z136: 0.0995 | AA136: 0 | AB136: 0 | AC136: 0 | AD136: 0 | AE136: 0 | AF136: 0 | AG136: ='Tabla Fijo'!E130+'Tabla Fijo'!H130 -> 0 | AH136: 0 | AJ136: 0
B137: 123 | C137: 2034-04-04 | D137: 31 | E137: 0.0995 | F137: 1.009368056 | G137: 3.088651934 | H137: 0.3237658439 | I137: FALSE | J137: 1 | K137: 0.3237658439 | L137: 0 | M137: 0 | N137: 0 | O137: 0 | P137: 399 | Q137: 63.84 | R137: 0 | S137: 0 | T137: 0 | U137: 84.48275862 | V137: 13.51724138 | W137: 5.496232 | X137: 0.87939712 | Y137: 567.2156291 | Z137: 0.0995 | AA137: 0 | AB137: 0 | AC137: 0 | AD137: 0 | AE137: 0 | AF137: 0 | AG137: ='Tabla Fijo'!E131+'Tabla Fijo'!H131 -> 0 | AH137: 0 | AJ137: 0
B138: 124 | C138: 2034-05-04 | D138: 30 | E138: 0.0995 | F138: 1.009091667 | G138: 3.116732928 | H138: 0.3208487936 | I138: FALSE | J138: 1 | K138: 0.3208487936 | L138: 0 | M138: 0 | N138: 0 | O138: 0 | P138: 399 | Q138: 63.84 | R138: 0 | S138: 0 | T138: 0 | U138: 84.48275862 | V138: 13.51724138 | W138: 5.496232 | X138: 0.87939712 | Y138: 567.2156291 | Z138: 0.0995 | AA138: 0 | AB138: 0 | AC138: 0 | AD138: 0 | AE138: 0 | AF138: 0 | AG138: ='Tabla Fijo'!E132+'Tabla Fijo'!H132 -> 0 | AH138: 0 | AJ138: 0
B139: 125 | C139: 2034-06-04 | D139: 31 | E139: 0.0995 | F139: 1.009368056 | G139: 3.145930655 | H139: 0.3178709608 | I139: FALSE | J139: 1 | K139: 0.3178709608 | L139: 0 | M139: 0 | N139: 0 | O139: 0 | P139: 399 | Q139: 63.84 | R139: 0 | S139: 0 | T139: 0 | U139: 84.48275862 | V139: 13.51724138 | W139: 5.496232 | X139: 0.87939712 | Y139: 567.2156291 | Z139: 0.0995 | AA139: 0 | AB139: 0 | AC139: 0 | AD139: 0 | AE139: 0 | AF139: 0 | AG139: ='Tabla Fijo'!E133+'Tabla Fijo'!H133 -> 0 | AH139: 0 | AJ139: 0
B140: 126 | C140: 2034-07-04 | D140: 30 | E140: 0.0995 | F140: 1.009091667 | G140: 3.174532408 | H140: 0.315007022 | I140: FALSE | J140: 1 | K140: 0.315007022 | L140: 0 | M140: 0 | N140: 0 | O140: 0 | P140: 399 | Q140: 63.84 | R140: 0 | S140: 0 | T140: 0 | U140: 84.48275862 | V140: 13.51724138 | W140: 5.496232 | X140: 0.87939712 | Y140: 567.2156291 | Z140: 0.0995 | AA140: 0 | AB140: 0 | AC140: 0 | AD140: 0 | AE140: 0 | AF140: 0 | AG140: ='Tabla Fijo'!E134+'Tabla Fijo'!H134 -> 0 | AH140: 0 | AJ140: 0
B141: 127 | C141: 2034-08-04 | D141: 31 | E141: 0.0995 | F141: 1.009368056 | G141: 3.204271604 | H141: 0.3120834073 | I141: FALSE | J141: 1 | K141: 0.3120834073 | L141: 0 | M141: 0 | N141: 0 | O141: 0 | P141: 399 | Q141: 63.84 | R141: 0 | S141: 0 | T141: 0 | U141: 84.48275862 | V141: 13.51724138 | W141: 5.496232 | X141: 0.87939712 | Y141: 567.2156291 | Z141: 0.0995 | AA141: 0 | AB141: 0 | AC141: 0 | AD141: 0 | AE141: 0 | AF141: 0 | AG141: ='Tabla Fijo'!E135+'Tabla Fijo'!H135 -> 0 | AH141: 0 | AJ141: 0
B142: 128 | C142: 2034-09-04 | D142: 31 | E142: =IF(B142=0,TASA,IF(B142=MESES_INC_TASA,E141+INCREMENTO_TASA,E141)) -> 0.0995 | F142: =1 + D142 * E142 / 360 + FACTOR_SEG_DEUD -> 1.009368056 | G142: 3.234289398 | H142: 0.309186927 | I142: =MOD(B142, MESES_INC)=0 -> FALSE | J142: 1 | K142: =H142*J142 -> 0.309186927 | L142: =CUOTA_INIT*J142 -> 0 | M142: 0 | N142: 0 | O142: =M142 * D142 * E142 /360 -> 0 | P142: =COMISION_AMORT -> 399 | Q142: =P142*IVA -> 63.84 | R142: =SEGURO_DAÑOS_MENS -> 0 | S142: =R142*IVA -> 0 | T142: =M142 * FACTOR_SEG_DEUD -> 0 | U142: =SEGURO_INTERIORES -> 84.48275862 | V142: =U142*IVA -> 13.51724138 | W142: =SUM(N142:V142) * FACTOR_SEG_DESEMPLEO -> 5.496232 | X142: =W142*IVA -> 0.87939712 | Y142: =IF(B142>=PLAZO, 0, SUM(N142:X142)) -> 567.2156291 | Z142: =ESQUEMA -> 0.0995 | AA142: =IF(B142=0,TOTAL_FINANCIADO, MAX(ROUND(AA141-N141-AF141-AG141,2), 0)) -> 0 | AB142: =MIN(AA142,N142) -> 0 | AC142: =AA142 * D142 * Z142 /360 -> 0 | AD142: =AA142 * FACTOR_SEG_DEUD -> 0 | AE142: =IF(AA142>0, AB142+AC142+AD142+P142+Q142+R142+S142+U142+V142+W142+X142, 0) -> 0 | AF142: =IF(ACCION_EXCEDENTE_PP="MENOS PLAZO", IF(AA142>N142, ROUND(Y142-AE142, 2), 0), 0) -> 0 | AG142: ='Tabla Fijo'!E136+'Tabla Fijo'!H136 -> 0 | AH142: 0 | AJ142: =IF(AA142> 0,AB142+AC142+AD142+P142+R142+U142+W142, 0) -> 0
B143: 129 | C143: =IF(B143=0,FECHA_1ER_PAGO,DATE(YEAR(C142),MONTH(C142)+1,4)) -> 2034-10-04 | D143: =IF(B143=0,C143-C135+1, C143-C142) -> 30 | E143: 0.0995 | F143: 1.009091667 | G143: =IF(B143 = 0, 0, IF(G142=0, F143, G142 * F143 )) -> 3.26369448 | H143: =IF(G143=0, 0, 1/G143) -> 0.3064012291 | I143: FALSE | J143: =IF(B143=0, 1, IF(I143,J142*(1+INCREMENTO),J142)) -> 1 | K143: 0.3064012291 | L143: 0 | M143: =IF(B143=0,TOTAL_FINANCIADO, M142-N142) -> 0 | N143: =IF(B143=0, 0, L143-O143-T143) -> 0 | O143: 0 | P143: 399 | Q143: 63.84 | R143: 0 | S143: 0 | T143: 0 | U143: 84.48275862 | V143: 13.51724138 | W143: 5.496232 | X143: 0.87939712 | Y143: 567.2156291 | Z143: 0.0995 | AA143: 0 | AB143: 0 | AC143: 0 | AD143: 0 | AE143: 0 | AF143: 0 | AG143: ='Tabla Fijo'!E137+'Tabla Fijo'!H137 -> 0 | AH143: =AE143+AF143 -> 0 | AJ143: 0
B144: 130 | C144: 2034-11-04 | D144: 31 | E144: 0.0995 | F144: 1.009368056 | G144: 3.294268951 | H144: 0.3035574857 | I144: FALSE | J144: 1 | K144: 0.3035574857 | L144: 0 | M144: 0 | N144: 0 | O144: 0 | P144: 399 | Q144: 63.84 | R144: 0 | S144: 0 | T144: 0 | U144: 84.48275862 | V144: 13.51724138 | W144: 5.496232 | X144: 0.87939712 | Y144: 567.2156291 | Z144: 0.0995 | AA144: 0 | AB144: 0 | AC144: 0 | AD144: 0 | AE144: 0 | AF144: 0 | AG144: ='Tabla Fijo'!E138+'Tabla Fijo'!H138 -> 0 | AH144: 0 | AJ144: 0
B145: 131 | C145: 2034-12-04 | D145: 30 | E145: 0.0995 | F145: 1.009091667 | G145: 3.324219346 | H145: 0.3008225078 | I145: FALSE | J145: 1 | K145: 0.3008225078 | L145: 0 | M145: 0 | N145: 0 | O145: 0 | P145: 399 | Q145: 63.84 | R145: 0 | S145: 0 | T145: 0 | U145: 84.48275862 | V145: 13.51724138 | W145: 5.496232 | X145: 0.87939712 | Y145: 567.2156291 | Z145: 0.0995 | AA145: 0 | AB145: 0 | AC145: 0 | AD145: 0 | AE145: 0 | AF145: 0 | AG145: ='Tabla Fijo'!E139+'Tabla Fijo'!H139 -> 0 | AH145: 0 | AJ145: 0
B146: 132 | C146: 2035-01-04 | D146: 31 | E146: 0.0995 | F146: 1.009368056 | G146: 3.355360817 | H146: 0.2980305411 | I146: TRUE | J146: 1 | K146: 0.2980305411 | L146: 0 | M146: 0 | N146: 0 | O146: 0 | P146: 399 | Q146: 63.84 | R146: 0 | S146: 0 | T146: 0 | U146: 84.48275862 | V146: 13.51724138 | W146: 5.496232 | X146: 0.87939712 | Y146: 567.2156291 | Z146: 0.0995 | AA146: 0 | AB146: 0 | AC146: 0 | AD146: 0 | AE146: 0 | AF146: 0 | AG146: ='Tabla Fijo'!E140+'Tabla Fijo'!H140 -> 0 | AH146: 0 | AJ146: 0
B147: 133 | C147: 2035-02-04 | D147: 31 | E147: 0.0995 | F147: 1.009368056 | G147: 3.386794024 | H147: 0.295264487 | I147: FALSE | J147: 1 | K147: 0.295264487 | L147: 0 | M147: 0 | N147: 0 | O147: 0 | P147: 399 | Q147: 63.84 | R147: 0 | S147: 0 | T147: 0 | U147: 84.48275862 | V147: 13.51724138 | W147: 5.496232 | X147: 0.87939712 | Y147: 567.2156291 | Z147: 0.0995 | AA147: 0 | AB147: 0 | AC147: 0 | AD147: 0 | AE147: 0 | AF147: 0 | AG147: ='Tabla Fijo'!E141+'Tabla Fijo'!H141 -> 0 | AH147: 0 | AJ147: 0
B148: 134 | C148: 2035-03-04 | D148: 28 | E148: 0.0995 | F148: 1.008538889 | G148: 3.415713482 | H148: 0.2927646026 | I148: FALSE | J148: 1 | K148: 0.2927646026 | L148: 0 | M148: 0 | N148: 0 | O148: 0 | P148: 399 | Q148: 63.84 | R148: 0 | S148: 0 | T148: 0 | U148: 84.48275862 | V148: 13.51724138 | W148: 5.496232 | X148: 0.87939712 | Y148: 567.2156291 | Z148: 0.0995 | AA148: 0 | AB148: 0 | AC148: 0 | AD148: 0 | AE148: 0 | AF148: 0 | AG148: ='Tabla Fijo'!E142+'Tabla Fijo'!H142 -> 0 | AH148: 0 | AJ148: 0
B149: 135 | C149: 2035-04-04 | D149: 31 | E149: 0.0995 | F149: 1.009368056 | G149: 3.447712076 | H149: 0.2900474222 | I149: FALSE | J149: 1 | K149: 0.2900474222 | L149: 0 | M149: 0 | N149: 0 | O149: 0 | P149: 399 | Q149: 63.84 | R149: 0 | S149: 0 | T149: 0 | U149: 84.48275862 | V149: 13.51724138 | W149: 5.496232 | X149: 0.87939712 | Y149: 567.2156291 | Z149: 0.0995 | AA149: 0 | AB149: 0 | AC149: 0 | AD149: 0 | AE149: 0 | AF149: 0 | AG149: ='Tabla Fijo'!E143+'Tabla Fijo'!H143 -> 0 | AH149: 0 | AJ149: 0
B150: 136 | C150: 2035-05-04 | D150: 30 | E150: 0.0995 | F150: 1.009091667 | G150: 3.479057524 | H150: 0.2874341666 | I150: FALSE | J150: 1 | K150: 0.2874341666 | L150: 0 | M150: 0 | N150: 0 | O150: 0 | P150: 399 | Q150: 63.84 | R150: 0 | S150: 0 | T150: 0 | U150: 84.48275862 | V150: 13.51724138 | W150: 5.496232 | X150: 0.87939712 | Y150: 567.2156291 | Z150: 0.0995 | AA150: 0 | AB150: 0 | AC150: 0 | AD150: 0 | AE150: 0 | AF150: 0 | AG150: ='Tabla Fijo'!E144+'Tabla Fijo'!H144 -> 0 | AH150: 0 | AJ150: 0
B151: 137 | C151: 2035-06-04 | D151: 31 | E151: 0.0995 | F151: 1.009368056 | G151: 3.511649529 | H151: 0.2847664586 | I151: FALSE | J151: 1 | K151: 0.2847664586 | L151: 0 | M151: 0 | N151: 0 | O151: 0 | P151: 399 | Q151: 63.84 | R151: 0 | S151: 0 | T151: 0 | U151: 84.48275862 | V151: 13.51724138 | W151: 5.496232 | X151: 0.87939712 | Y151: 567.2156291 | Z151: 0.0995 | AA151: 0 | AB151: 0 | AC151: 0 | AD151: 0 | AE151: 0 | AF151: 0 | AG151: ='Tabla Fijo'!E145+'Tabla Fijo'!H145 -> 0 | AH151: 0 | AJ151: 0
B152: 138 | C152: 2035-07-04 | D152: 30 | E152: 0.0995 | F152: 1.009091667 | G152: 3.543576276 | H152: 0.2822007831 | I152: FALSE | J152: 1 | K152: 0.2822007831 | L152: 0 | M152: 0 | N152: 0 | O152: 0 | P152: 399 | Q152: 63.84 | R152: 0 | S152: 0 | T152: 0 | U152: 84.48275862 | V152: 13.51724138 | W152: 5.496232 | X152: 0.87939712 | Y152: 567.2156291 | Z152: 0.0995 | AA152: 0 | AB152: 0 | AC152: 0 | AD152: 0 | AE152: 0 | AF152: 0 | AG152: ='Tabla Fijo'!E146+'Tabla Fijo'!H146 -> 0 | AH152: 0 | AJ152: 0
B153: 139 | C153: 2035-08-04 | D153: 31 | E153: 0.0995 | F153: 1.009368056 | G153: 3.576772695 | H153: 0.2795816467 | I153: FALSE | J153: 1 | K153: 0.2795816467 | L153: 0 | M153: 0 | N153: 0 | O153: 0 | P153: 399 | Q153: 63.84 | R153: 0 | S153: 0 | T153: 0 | U153: 84.48275862 | V153: 13.51724138 | W153: 5.496232 | X153: 0.87939712 | Y153: 567.2156291 | Z153: 0.0995 | AA153: 0 | AB153: 0 | AC153: 0 | AD153: 0 | AE153: 0 | AF153: 0 | AG153: ='Tabla Fijo'!E147+'Tabla Fijo'!H147 -> 0 | AH153: 0 | AJ153: 0
B154: 140 | C154: 2035-09-04 | D154: 31 | E154: 0.0995 | F154: 1.009368056 | G154: 3.6102801 | H154: 0.2769868188 | I154: FALSE | J154: 1 | K154: 0.2769868188 | L154: 0 | M154: 0 | N154: 0 | O154: 0 | P154: 399 | Q154: 63.84 | R154: 0 | S154: 0 | T154: 0 | U154: 84.48275862 | V154: 13.51724138 | W154: 5.496232 | X154: 0.87939712 | Y154: 567.2156291 | Z154: 0.0995 | AA154: 0 | AB154: 0 | AC154: 0 | AD154: 0 | AE154: 0 | AF154: 0 | AG154: ='Tabla Fijo'!E148+'Tabla Fijo'!H148 -> 0 | AH154: 0 | AJ154: 0
B155: 141 | C155: 2035-10-04 | D155: 30 | E155: 0.0995 | F155: 1.009091667 | G155: 3.643103564 | H155: 0.274491236 | I155: FALSE | J155: 1 | K155: 0.274491236 | L155: 0 | M155: 0 | N155: 0 | O155: 0 | P155: 399 | Q155: 63.84 | R155: 0 | S155: 0 | T155: 0 | U155: 84.48275862 | V155: 13.51724138 | W155: 5.496232 | X155: 0.87939712 | Y155: 567.2156291 | Z155: 0.0995 | AA155: 0 | AB155: 0 | AC155: 0 | AD155: 0 | AE155: 0 | AF155: 0 | AG155: ='Tabla Fijo'!E149+'Tabla Fijo'!H149 -> 0 | AH155: 0 | AJ155: 0
B156: 142 | C156: 2035-11-04 | D156: 31 | E156: 0.0995 | F156: 1.009368056 | G156: 3.67723236 | H156: 0.2719436527 | I156: FALSE | J156: 1 | K156: 0.2719436527 | L156: 0 | M156: 0 | N156: 0 | O156: 0 | P156: 399 | Q156: 63.84 | R156: 0 | S156: 0 | T156: 0 | U156: 84.48275862 | V156: 13.51724138 | W156: 5.496232 | X156: 0.87939712 | Y156: 567.2156291 | Z156: 0.0995 | AA156: 0 | AB156: 0 | AC156: 0 | AD156: 0 | AE156: 0 | AF156: 0 | AG156: ='Tabla Fijo'!E150+'Tabla Fijo'!H150 -> 0 | AH156: 0 | AJ156: 0
B157: 143 | C157: 2035-12-04 | D157: 30 | E157: 0.0995 | F157: 1.009091667 | G157: 3.710664531 | H157: 0.2694935076 | I157: FALSE | J157: 1 | K157: 0.2694935076 | L157: 0 | M157: 0 | N157: 0 | O157: 0 | P157: 399 | Q157: 63.84 | R157: 0 | S157: 0 | T157: 0 | U157: 84.48275862 | V157: 13.51724138 | W157: 5.496232 | X157: 0.87939712 | Y157: 567.2156291 | Z157: 0.0995 | AA157: 0 | AB157: 0 | AC157: 0 | AD157: 0 | AE157: 0 | AF157: 0 | AG157: ='Tabla Fijo'!E151+'Tabla Fijo'!H151 -> 0 | AH157: 0 | AJ157: 0
B158: 144 | C158: 2036-01-04 | D158: 31 | E158: 0.0995 | F158: 1.009368056 | G158: 3.745426242 | H158: 0.2669923088 | I158: TRUE | J158: 1 | K158: 0.2669923088 | L158: 0 | M158: 0 | N158: 0 | O158: 0 | P158: 399 | Q158: 63.84 | R158: 0 | S158: 0 | T158: 0 | U158: 84.48275862 | V158: 13.51724138 | W158: 5.496232 | X158: 0.87939712 | Y158: 567.2156291 | Z158: 0.0995 | AA158: 0 | AB158: 0 | AC158: 0 | AD158: 0 | AE158: 0 | AF158: 0 | AG158: ='Tabla Fijo'!E152+'Tabla Fijo'!H152 -> 0 | AH158: 0 | AJ158: 0
B159: 145 | C159: 2036-02-04 | D159: 31 | E159: 0.0995 | F159: 1.009368056 | G159: 3.780513604 | H159: 0.2645143239 | I159: FALSE | J159: 1 | K159: 0.2645143239 | L159: 0 | M159: 0 | N159: 0 | O159: 0 | P159: 399 | Q159: 63.84 | R159: 0 | S159: 0 | T159: 0 | U159: 84.48275862 | V159: 13.51724138 | W159: 5.496232 | X159: 0.87939712 | Y159: 567.2156291 | Z159: 0.0995 | AA159: 0 | AB159: 0 | AC159: 0 | AD159: 0 | AE159: 0 | AF159: 0 | AG159: ='Tabla Fijo'!E153+'Tabla Fijo'!H153 -> 0 | AH159: 0 | AJ159: 0
B160: 146 | C160: 2036-03-04 | D160: 29 | E160: 0.0995 | F160: 1.008815278 | G160: 3.813839881 | H160: 0.2622029323 | I160: FALSE | J160: 1 | K160: 0.2622029323 | L160: 0 | M160: 0 | N160: 0 | O160: 0 | P160: 399 | Q160: 63.84 | R160: 0 | S160: 0 | T160: 0 | U160: 84.48275862 | V160: 13.51724138 | W160: 5.496232 | X160: 0.87939712 | Y160: 567.2156291 | Z160: 0.0995 | AA160: 0 | AB160: 0 | AC160: 0 | AD160: 0 | AE160: 0 | AF160: 0 | AG160: ='Tabla Fijo'!E154+'Tabla Fijo'!H154 -> 0 | AH160: 0 | AJ160: 0
B161: 147 | C161: 2036-04-04 | D161: 31 | E161: 0.0995 | F161: 1.009368056 | G161: 3.849568145 | H161: 0.2597693981 | I161: FALSE | J161: 1 | K161: 0.2597693981 | L161: 0 | M161: 0 | N161: 0 | O161: 0 | P161: 399 | Q161: 63.84 | R161: 0 | S161: 0 | T161: 0 | U161: 84.48275862 | V161: 13.51724138 | W161: 5.496232 | X161: 0.87939712 | Y161: 567.2156291 | Z161: 0.0995 | AA161: 0 | AB161: 0 | AC161: 0 | AD161: 0 | AE161: 0 | AF161: 0 | AG161: ='Tabla Fijo'!E155+'Tabla Fijo'!H155 -> 0 | AH161: 0 | AJ161: 0
B162: 148 | C162: 2036-05-04 | D162: 30 | E162: 0.0995 | F162: 1.009091667 | G162: 3.884567135 | H162: 0.25742894 | I162: FALSE | J162: 1 | K162: 0.25742894 | L162: 0 | M162: 0 | N162: 0 | O162: 0 | P162: 399 | Q162: 63.84 | R162: 0 | S162: 0 | T162: 0 | U162: 84.48275862 | V162: 13.51724138 | W162: 5.496232 | X162: 0.87939712 | Y162: 567.2156291 | Z162: 0.0995 | AA162: 0 | AB162: 0 | AC162: 0 | AD162: 0 | AE162: 0 | AF162: 0 | AG162: ='Tabla Fijo'!E156+'Tabla Fijo'!H156 -> 0 | AH162: 0 | AJ162: 0
B163: 149 | C163: 2036-06-04 | D163: 31 | E163: 0.0995 | F163: 1.009368056 | G163: 3.920957976 | H163: 0.2550397138 | I163: FALSE | J163: 1 | K163: 0.2550397138 | L163: 0 | M163: 0 | N163: 0 | O163: 0 | P163: 399 | Q163: 63.84 | R163: 0 | S163: 0 | T163: 0 | U163: 84.48275862 | V163: 13.51724138 | W163: 5.496232 | X163: 0.87939712 | Y163: 567.2156291 | Z163: 0.0995 | AA163: 0 | AB163: 0 | AC163: 0 | AD163: 0 | AE163: 0 | AF163: 0 | AG163: ='Tabla Fijo'!E157+'Tabla Fijo'!H157 -> 0 | AH163: 0 | AJ163: 0
B164: 150 | C164: 2036-07-04 | D164: 30 | E164: 0.0995 | F164: 1.009091667 | G164: 3.956606019 | H164: 0.252741869 | I164: FALSE | J164: 1 | K164: 0.252741869 | L164: 0 | M164: 0 | N164: 0 | O164: 0 | P164: 399 | Q164: 63.84 | R164: 0 | S164: 0 | T164: 0 | U164: 84.48275862 | V164: 13.51724138 | W164: 5.496232 | X164: 0.87939712 | Y164: 567.2156291 | Z164: 0.0995 | AA164: 0 | AB164: 0 | AC164: 0 | AD164: 0 | AE164: 0 | AF164: 0 | AG164: ='Tabla Fijo'!E158+'Tabla Fijo'!H158 -> 0 | AH164: 0 | AJ164: 0
B165: 151 | C165: 2036-08-04 | D165: 31 | E165: 0.0995 | F165: 1.009368056 | G165: 3.993671724 | H165: 0.250396144 | I165: FALSE | J165: 1 | K165: 0.250396144 | L165: 0 | M165: 0 | N165: 0 | O165: 0 | P165: 399 | Q165: 63.84 | R165: 0 | S165: 0 | T165: 0 | U165: 84.48275862 | V165: 13.51724138 | W165: 5.496232 | X165: 0.87939712 | Y165: 567.2156291 | Z165: 0.0995 | AA165: 0 | AB165: 0 | AC165: 0 | AD165: 0 | AE165: 0 | AF165: 0 | AG165: ='Tabla Fijo'!E159+'Tabla Fijo'!H159 -> 0 | AH165: 0 | AJ165: 0
B166: 152 | C166: 2036-09-04 | D166: 31 | E166: 0.0995 | F166: 1.009368056 | G166: 4.031084663 | H166: 0.2480721899 | I166: FALSE | J166: 1 | K166: 0.2480721899 | L166: 0 | M166: 0 | N166: 0 | O166: 0 | P166: 399 | Q166: 63.84 | R166: 0 | S166: 0 | T166: 0 | U166: 84.48275862 | V166: 13.51724138 | W166: 5.496232 | X166: 0.87939712 | Y166: 567.2156291 | Z166: 0.0995 | AA166: 0 | AB166: 0 | AC166: 0 | AD166: 0 | AE166: 0 | AF166: 0 | AG166: ='Tabla Fijo'!E160+'Tabla Fijo'!H160 -> 0 | AH166: 0 | AJ166: 0
